{"text_format":"1","workbook":"xlsx","n_sheets":11,"sheets":["Anlage 2 PPF Abstimmung","Anlage 3 Selbstb. Produkt","Anlage 3 Selbstb. Prozess","Anlage 4 Deckblatt","Anlage 4 PPF-Bewertung","Anlage 4 Produktbez. Nachweise","Anlage 4 Prozessbez. Nachweise","Anlage 5 Deckblatt Software 1","Anlage 5 Deckblatt Software 2","Sprachen","Anlage 6 Teilelebenslauf"],"not_rendered":{"charts":0,"images":0,"macros":0,"external_links":13,"defined_names":1988,"comments":0,"pivot_tables":0},"unopened":[],"bounds":{"document_bytes":16777216,"sheet_cells":100000,"rows_first":2000,"rows_last":500,"rows_between":2000,"halvings":0,"cell_chars":16384,"cell_head_chars":4096},"cells_cut":0,"cells_raw":0,"read":"whole","date_system":"1900"}

{"sheet":"Anlage 2 PPF Abstimmung","index":0,"n_rows":274,"n_cols":53,"rows_kept":274,"cut":false,"hidden":false,"merged":[[273,21,273,25],[273,26,273,41],[37,14,37,41],[270,8,270,20],[271,0,271,7],[271,8,271,20],[272,0,272,7],[272,8,272,20],[273,0,273,7],[273,8,273,20],[265,21,265,25],[265,26,265,41],[266,0,266,41],[267,0,267,41],[268,0,268,41],[269,0,269,7],[269,8,269,20],[269,21,272,25],[269,26,272,41],[270,0,270,7],[263,0,263,7],[263,8,263,20],[264,0,264,7],[264,8,264,20],[265,0,265,7],[265,8,265,20],[257,2,257,41],[258,0,258,41],[259,0,259,41],[260,0,260,41],[261,0,261,7],[261,8,261,20],[261,21,264,25],[261,26,264,41],[262,0,262,7],[262,8,262,20],[255,13,255,18],[255,19,255,28],[255,29,255,34],[255,35,255,41],[256,3,256,10],[256,11,256,12],[256,13,256,18],[256,19,256,41],[252,0,252,1],[252,2,252,41],[253,0,257,1],[253,2,253,10],[253,11,253,41],[254,2,254,10],[254,11,254,12],[254,13,254,41],[255,3,255,10],[255,11,255,12],[247,25,247,31],[247,32,247,41],[246,2,246,10],[246,11,246,15],[246,16,246,19],[246,20,246,24],[246,25,246,31],[246,32,246,41],[251,2,251,10],[251,11,251,15],[251,16,251,19],[251,20,251,24],[251,25,251,31],[251,32,251,41],[250,2,250,10],[250,11,250,15],[250,16,250,19],[250,20,250,24],[250,25,250,31],[250,32,250,41],[249,2,249,10],[249,11,249,15],[249,16,249,19],[249,20,249,24],[249,25,249,31],[249,32,249,41],[245,2,245,10],[245,11,245,15],[245,16,245,19],[245,20,245,24],[245,25,245,31],[245,32,245,41],[243,0,243,1],[243,2,243,19],[243,20,243,41],[244,0,251,1],[244,2,244,10],[244,11,244,15],[244,16,244,19],[244,20,244,24],[244,25,244,31],[244,32,244,41],[242,2,242,10],[242,11,242,15],[242,16,242,19],[242,20,242,24],[242,25,242,31],[242,32,242,41],[248,2,248,10],[248,11,248,15],[248,16,248,19],[248,20,248,24],[248,25,248,31],[248,32,248,41],[247,2,247,10],[247,11,247,15],[247,16,247,19],[247,20,247,24],[236,20,236,24],[236,25,236,31],[236,32,236,41],[241,2,241,10],[241,11,241,15],[241,16,241,19],[241,20,241,24],[241,25,241,31],[241,32,241,41],[240,2,240,10],[240,11,240,15],[240,16,240,19],[240,20,240,24],[240,25,240,31],[240,32,240,41],[239,2,239,10],[239,11,239,15],[239,16,239,19],[239,20,239,24],[239,25,239,31],[239,32,239,41],[234,0,234,1],[234,2,234,19],[234,20,234,41],[235,0,242,1],[235,2,235,10],[235,11,235,15],[235,16,235,19],[235,20,235,24],[235,25,235,31],[235,32,235,41],[232,22,232,23],[232,24,232,25],[232,26,232,27],[232,28,232,29],[232,30,232,41],[233,0,233,1],[233,2,233,41],[238,2,238,10],[238,11,238,15],[238,16,238,19],[238,20,238,24],[238,25,238,31],[238,32,238,41],[237,2,237,10],[237,11,237,15],[237,16,237,19],[237,20,237,24],[237,25,237,31],[237,32,237,41],[236,2,236,10],[236,11,236,15],[236,16,236,19],[231,26,231,27],[231,28,231,29],[231,30,231,41],[232,0,232,2],[232,3,232,11],[232,12,232,13],[232,14,232,15],[232,16,232,17],[232,18,232,19],[232,20,232,21],[230,30,230,41],[231,0,231,2],[231,3,231,11],[231,12,231,13],[231,14,231,15],[231,16,231,17],[231,18,231,19],[231,20,231,21],[231,22,231,23],[231,24,231,25],[230,18,230,19],[230,20,230,21],[230,22,230,23],[230,24,230,25],[230,26,230,27],[230,28,230,29],[229,22,229,23],[229,24,229,25],[229,26,229,27],[229,28,229,29],[229,30,229,41],[230,0,230,2],[230,3,230,11],[230,12,230,13],[230,14,230,15],[230,16,230,17],[228,26,228,27],[228,28,228,29],[228,30,228,41],[229,0,229,2],[229,3,229,11],[229,12,229,13],[229,14,229,15],[229,16,229,17],[229,18,229,19],[229,20,229,21],[227,30,227,41],[228,0,228,2],[228,3,228,11],[228,12,228,13],[228,14,228,15],[228,16,228,17],[228,18,228,19],[228,20,228,21],[228,22,228,23],[228,24,228,25],[227,18,227,19],[227,20,227,21],[227,22,227,23],[227,24,227,25],[227,26,227,27],[227,28,227,29],[226,22,226,23],[226,24,226,25],[226,26,226,27],[226,28,226,29],[226,30,226,41],[227,0,227,2],[227,3,227,11],[227,12,227,13],[227,14,227,15],[227,16,227,17],[225,26,225,27],[225,28,225,29],[225,30,225,41],[226,0,226,2],[226,3,226,11],[226,12,226,13],[226,14,226,15],[226,16,226,17],[226,18,226,19],[226,20,226,21],[224,30,224,41],[225,0,225,2],[225,3,225,11],[225,12,225,13],[225,14,225,15],[225,16,225,17],[225,18,225,19],[225,20,225,21],[225,22,225,23],[225,24,225,25],[224,18,224,19],[224,20,224,21],[224,22,224,23],[224,24,224,25],[224,26,224,27],[224,28,224,29],[223,22,223,23],[223,24,223,25],[223,26,223,27],[223,28,223,29],[223,30,223,41],[224,0,224,2],[224,3,224,11],[224,12,224,13],[224,14,224,15],[224,16,224,17],[222,26,222,27],[222,28,222,29],[222,30,222,41],[223,0,223,2],[223,3,223,11],[223,12,223,13],[223,14,223,15],[223,16,223,17],[223,18,223,19],[223,20,223,21],[221,30,221,41],[222,0,222,2],[222,3,222,11],[222,12,222,13],[222,14,222,15],[222,16,222,17],[222,18,222,19],[222,20,222,21],[222,22,222,23],[222,24,222,25],[221,18,221,19],[221,20,221,21],[221,22,221,23],[221,24,221,25],[221,26,221,27],[221,28,221,29],[220,22,220,23],[220,24,220,25],[220,26,220,27],[220,28,220,29],[220,30,220,41],[221,0,221,2],[221,3,221,11],[221,12,221,13],[221,14,221,15],[221,16,221,17],[219,26,219,27],[219,28,219,29],[219,30,219,41],[220,0,220,2],[220,3,220,11],[220,12,220,13],[220,14,220,15],[220,16,220,17],[220,18,220,19],[220,20,220,21],[218,30,218,41],[219,0,219,2],[219,3,219,11],[219,12,219,13],[219,14,219,15],[219,16,219,17],[219,18,219,19],[219,20,219,21],[219,22,219,23],[219,24,219,25],[218,18,218,19],[218,20,218,21],[218,22,218,23],[218,24,218,25],[218,26,218,27],[218,28,218,29],[216,20,216,21],[216,22,216,23],[216,24,216,25],[215,18,215,19],[215,20,215,21],[215,22,215,23],[215,24,215,25],[215,26,215,27],[215,28,215,29],[214,30,214,41],[217,22,217,23],[217,24,217,25],[217,26,217,27],[217,28,217,29],[217,30,217,41],[218,0,218,2],[218,3,218,11],[218,12,218,13],[218,14,218,15],[218,16,218,17],[216,26,216,27],[216,28,216,29],[216,30,216,41],[217,0,217,2],[217,3,217,11],[217,12,217,13],[217,14,217,15],[217,16,217,17],[217,18,217,19],[217,20,217,21],[214,47,232,47],[214,48,232,48],[214,49,232,49],[214,50,232,50],[215,0,215,2],[215,3,215,11],[215,12,215,13],[215,14,215,15],[215,16,215,17],[214,18,214,19],[214,20,214,21],[214,22,214,23],[214,24,214,25],[214,26,214,27],[214,28,214,29],[212,30,213,41],[213,20,213,21],[213,22,213,23],[213,24,213,25],[213,26,213,27],[214,0,214,2],[214,3,214,11],[214,12,214,13],[214,14,214,15],[214,16,214,17],[215,30,215,41],[216,0,216,2],[216,3,216,11],[216,12,216,13],[216,14,216,15],[216,16,216,17],[216,18,216,19],[211,0,211,2],[211,3,211,41],[212,0,213,2],[212,3,213,11],[212,12,213,13],[212,14,213,15],[212,16,213,17],[212,18,213,19],[212,20,212,27],[212,28,213,29],[208,30,208,41],[209,0,209,2],[209,3,209,41],[210,3,210,11],[210,12,210,13],[210,14,210,19],[210,20,210,41],[208,18,208,19],[208,20,208,21],[208,22,208,23],[208,24,208,25],[208,26,208,27],[208,28,208,29],[207,22,207,23],[207,24,207,25],[207,26,207,27],[207,28,207,29],[207,30,207,41],[208,0,208,2],[208,3,208,11],[208,12,208,13],[208,14,208,15],[208,16,208,17],[206,26,206,27],[206,28,206,29],[206,30,206,41],[207,0,207,2],[207,3,207,11],[207,12,207,13],[207,14,207,15],[207,16,207,17],[207,18,207,19],[207,20,207,21],[205,30,205,41],[206,0,206,2],[206,3,206,11],[206,12,206,13],[206,14,206,15],[206,16,206,17],[206,18,206,19],[206,20,206,21],[206,22,206,23],[206,24,206,25],[205,18,205,19],[205,20,205,21],[205,22,205,23],[205,24,205,25],[205,26,205,27],[205,28,205,29],[204,22,204,23],[204,24,204,25],[204,26,204,27],[204,28,204,29],[204,30,204,41],[205,0,205,2],[205,3,205,11],[205,12,205,13],[205,14,205,15],[205,16,205,17],[203,26,203,27],[203,28,203,29],[203,30,203,41],[204,0,204,2],[204,3,204,11],[204,12,204,13],[204,14,204,15],[204,16,204,17],[204,18,204,19],[204,20,204,21],[202,30,202,41],[203,0,203,2],[203,3,203,11],[203,12,203,13],[203,14,203,15],[203,16,203,17],[203,18,203,19],[203,20,203,21],[203,22,203,23],[203,24,203,25],[202,18,202,19],[202,20,202,21],[202,22,202,23],[202,24,202,25],[202,26,202,27],[202,28,202,29],[201,22,201,23],[201,24,201,25],[201,26,201,27],[201,28,201,29],[201,30,201,41],[202,0,202,2],[202,3,202,11],[202,12,202,13],[202,14,202,15],[202,16,202,17],[200,26,200,27],[200,28,200,29],[200,30,200,41],[201,0,201,2],[201,3,201,11],[201,12,201,13],[201,14,201,15],[201,16,201,17],[201,18,201,19],[201,20,201,21],[199,30,199,41],[200,0,200,2],[200,3,200,11],[200,12,200,13],[200,14,200,15],[200,16,200,17],[200,18,200,19],[200,20,200,21],[200,22,200,23],[200,24,200,25],[199,18,199,19],[199,20,199,21],[199,22,199,23],[199,24,199,25],[199,26,199,27],[199,28,199,29],[198,30,198,41],[198,47,208,47],[198,48,208,48],[198,49,208,49],[198,50,208,50],[199,0,199,2],[199,3,199,11],[199,12,199,13],[199,14,199,15],[199,16,199,17],[198,18,198,19],[198,20,198,21],[198,22,198,23],[198,24,198,25],[198,26,198,27],[198,28,198,29],[195,30,195,41],[196,0,196,2],[196,3,196,41],[197,0,197,17],[197,18,197,26],[198,0,198,2],[198,3,198,11],[198,12,198,13],[198,14,198,15],[198,16,198,17],[195,18,195,19],[195,20,195,21],[195,22,195,23],[195,24,195,25],[195,26,195,27],[195,28,195,29],[186,50,195,50],[194,22,194,23],[194,24,194,25],[194,26,194,27],[194,28,194,29],[194,30,194,41],[195,0,195,2],[195,3,195,11],[195,12,195,13],[195,14,195,15],[195,16,195,17],[193,26,193,27],[193,28,193,29],[193,30,193,41],[194,0,194,2],[194,3,194,11],[194,12,194,13],[194,14,194,15],[194,16,194,17],[194,18,194,19],[194,20,194,21],[192,30,192,41],[193,0,193,2],[193,3,193,11],[193,12,193,13],[193,14,193,15],[193,16,193,17],[193,18,193,19],[193,20,193,21],[193,22,193,23],[193,24,193,25],[192,18,192,19],[192,20,192,21],[192,22,192,23],[192,24,192,25],[192,26,192,27],[192,28,192,29],[191,22,191,23],[191,24,191,25],[191,26,191,27],[191,28,191,29],[191,30,191,41],[192,0,192,2],[192,3,192,11],[192,12,192,13],[192,14,192,15],[192,16,192,17],[190,26,190,27],[190,28,190,29],[190,30,190,41],[191,0,191,2],[191,3,191,11],[191,12,191,13],[191,14,191,15],[191,16,191,17],[191,18,191,19],[191,20,191,21],[189,30,189,41],[190,0,190,2],[190,3,190,11],[190,12,190,13],[190,14,190,15],[190,16,190,17],[190,18,190,19],[190,20,190,21],[190,22,190,23],[190,24,190,25],[189,18,189,19],[189,20,189,21],[189,22,189,23],[189,24,189,25],[189,26,189,27],[189,28,189,29],[188,20,188,21],[188,22,188,23],[188,24,188,25],[188,26,188,27],[188,28,188,29],[188,30,188,41],[188,0,189,2],[188,3,188,11],[188,12,188,13],[188,14,188,15],[188,16,188,17],[188,18,188,19],[189,4,189,11],[189,12,189,13],[189,14,189,15],[189,16,189,17],[186,49,195,49],[187,0,187,2],[187,3,187,11],[187,12,187,13],[187,14,187,15],[187,16,187,17],[187,18,187,19],[187,20,187,21],[187,22,187,23],[186,24,186,25],[186,26,186,27],[186,28,186,29],[186,30,186,41],[186,47,195,47],[186,48,195,48],[187,24,187,25],[187,26,187,27],[187,28,187,29],[187,30,187,41],[185,0,185,2],[185,3,185,41],[186,0,186,2],[186,3,186,11],[186,12,186,13],[186,14,186,15],[186,16,186,17],[186,18,186,19],[186,20,186,21],[186,22,186,23],[184,20,184,21],[184,22,184,23],[184,24,184,25],[184,26,184,27],[184,28,184,29],[184,30,184,41],[184,0,184,2],[184,3,184,11],[184,12,184,13],[184,14,184,15],[184,16,184,17],[184,18,184,19],[183,20,183,21],[183,22,183,23],[183,24,183,25],[183,26,183,27],[183,28,183,29],[183,30,183,41],[183,0,183,2],[183,3,183,11],[183,12,183,13],[183,14,183,15],[183,16,183,17],[183,18,183,19],[182,20,182,21],[182,22,182,23],[182,24,182,25],[182,26,182,27],[182,28,182,29],[182,30,182,41],[182,0,182,2],[182,3,182,11],[182,12,182,13],[182,14,182,15],[182,16,182,17],[182,18,182,19],[181,20,181,21],[181,22,181,23],[181,24,181,25],[181,26,181,27],[181,28,181,29],[181,30,181,41],[181,0,181,2],[181,3,181,11],[181,12,181,13],[181,14,181,15],[181,16,181,17],[181,18,181,19],[179,49,184,49],[179,50,184,50],[180,0,180,2],[180,3,180,11],[180,12,180,13],[180,14,180,15],[180,16,180,17],[180,18,180,19],[180,20,180,21],[180,22,180,23],[179,24,179,25],[179,26,179,27],[179,28,179,29],[179,30,179,41],[179,47,184,47],[179,48,184,48],[180,24,180,25],[180,26,180,27],[180,28,180,29],[180,30,180,41],[178,0,178,2],[178,3,178,41],[179,0,179,2],[179,3,179,11],[179,12,179,13],[179,14,179,15],[179,16,179,17],[179,18,179,19],[179,20,179,21],[179,22,179,23],[177,20,177,21],[177,22,177,23],[177,24,177,25],[177,26,177,27],[177,28,177,29],[177,30,177,41],[177,0,177,2],[177,3,177,11],[177,12,177,13],[177,14,177,15],[177,16,177,17],[177,18,177,19],[176,20,176,21],[176,22,176,23],[176,24,176,25],[176,26,176,27],[176,28,176,29],[176,30,176,41],[176,0,176,2],[176,3,176,11],[176,12,176,13],[176,14,176,15],[176,16,176,17],[176,18,176,19],[175,20,175,21],[175,22,175,23],[175,24,175,25],[175,26,175,27],[175,28,175,29],[175,30,175,41],[175,0,175,2],[175,3,175,11],[175,12,175,13],[175,14,175,15],[175,16,175,17],[175,18,175,19],[174,20,174,21],[174,22,174,23],[174,24,174,25],[174,26,174,27],[174,28,174,29],[174,30,174,41],[174,0,174,2],[174,3,174,11],[174,12,174,13],[174,14,174,15],[174,16,174,17],[174,18,174,19],[173,20,173,21],[173,22,173,23],[173,24,173,25],[173,26,173,27],[173,28,173,29],[173,30,173,41],[173,0,173,2],[173,3,173,11],[173,12,173,13],[173,14,173,15],[173,16,173,17],[173,18,173,19],[170,20,170,21],[170,22,170,23],[170,24,170,25],[170,26,170,27],[170,28,170,29],[170,30,170,41],[170,0,170,2],[170,3,170,11],[170,12,172,13],[170,14,172,15],[170,16,170,17],[170,18,170,19],[171,0,171,2],[171,4,171,11],[171,16,171,17],[171,18,171,19],[171,30,171,41],[172,0,172,2],[172,4,172,11],[172,16,172,17],[172,18,172,19],[172,20,172,21],[172,22,172,23],[171,20,171,21],[169,20,169,21],[169,22,169,23],[169,24,169,25],[169,26,169,27],[169,28,169,29],[169,30,169,41],[169,0,169,2],[169,3,169,11],[169,12,169,13],[169,14,169,15],[169,16,169,17],[169,18,169,19],[172,24,172,25],[172,26,172,27],[172,28,172,29],[172,30,172,41],[168,20,168,21],[168,22,168,23],[168,24,168,25],[168,26,168,27],[168,28,168,29],[168,30,168,41],[168,0,168,2],[168,3,168,11],[168,12,168,13],[168,14,168,15],[168,16,168,17],[168,18,168,19],[171,22,171,23],[171,24,171,25],[171,26,171,27],[171,28,171,29],[167,20,167,21],[167,22,167,23],[167,24,167,25],[167,26,167,27],[167,28,167,29],[167,30,167,41],[167,0,167,2],[167,3,167,11],[167,12,167,13],[167,14,167,15],[167,16,167,17],[167,18,167,19],[166,20,166,21],[166,22,166,23],[166,24,166,25],[166,26,166,27],[166,28,166,29],[166,30,166,41],[166,0,166,2],[166,3,166,11],[166,12,166,13],[166,14,166,15],[166,16,166,17],[166,18,166,19],[165,20,165,21],[165,22,165,23],[165,24,165,25],[165,26,165,27],[165,28,165,29],[165,30,165,41],[164,24,164,25],[164,26,164,27],[164,28,164,29],[164,30,164,41],[165,0,165,2],[165,3,165,11],[165,12,165,13],[165,14,165,15],[165,16,165,17],[165,18,165,19],[163,24,163,25],[163,26,163,27],[163,28,163,29],[163,30,163,41],[164,0,164,2],[164,4,164,11],[164,16,164,17],[164,18,164,19],[164,20,164,21],[164,22,164,23],[162,24,162,25],[162,26,162,27],[162,28,162,29],[162,30,162,41],[163,0,163,2],[163,4,163,11],[163,16,163,17],[163,18,163,19],[163,20,163,21],[163,22,163,23],[161,24,161,25],[161,26,161,27],[161,28,161,29],[161,30,161,41],[162,0,162,2],[162,4,162,11],[162,16,162,17],[162,18,162,19],[162,20,162,21],[162,22,162,23],[160,24,160,25],[160,26,160,27],[160,28,160,29],[160,30,160,41],[161,0,161,2],[161,4,161,11],[161,16,161,17],[161,18,161,19],[161,20,161,21],[161,22,161,23],[159,24,159,25],[159,26,159,27],[159,28,159,29],[159,30,159,41],[160,0,160,2],[160,4,160,11],[160,16,160,17],[160,18,160,19],[160,20,160,21],[160,22,160,23],[159,0,159,2],[159,4,159,11],[159,16,159,17],[159,18,159,19],[159,20,159,21],[159,22,159,23],[158,24,158,25],[158,26,158,27],[158,28,158,29],[158,30,158,41],[153,24,153,25],[153,26,153,27],[153,28,153,29],[153,30,153,41],[154,0,154,2],[154,3,154,11],[154,12,164,13],[154,14,164,15],[154,16,154,17],[154,18,154,19],[157,24,157,25],[157,26,157,27],[157,28,157,29],[157,30,157,41],[158,0,158,2],[158,4,158,11],[158,16,158,17],[158,18,158,19],[158,20,158,21],[158,22,158,23],[157,16,157,17],[157,18,157,19],[157,20,157,21],[157,22,157,23],[156,16,156,17],[156,18,156,19],[156,20,156,21],[156,22,156,23]],"merged_total":1763,"flags":["merged_cut"]}
[{"$f":"Sprachen!L388","v":"dohoda o postupu PPF"},null,null,null,null,null,null,null,null,null,null,null,null,{"$f":"Sprachen!L304","v":"číslo dílu"},null,null,null,null,null,null,{"$f":"IF(H33<>\"\",H33,\"\")","v":""},null,null,null,null,null,null,{"$f":"Sprachen!L361","v":"verze/datum"},null,null,null,null,null,null,null,null,null,{"$f":"IF(H35<>\"\",H35,\"\")","v":""},null,null,null,null,null,null,null,"Hardwarebemusterung erforderlich",{"$f":"IF(S135=Sprachen!L4,\"X\",\"N\")","v":"N"},null,null,null,null,null,"volba jazyka"]
[null,null,null,null,null,null,null,null,null,null,null,null,null,{"$f":"Sprachen!L255","v":"organizace"},null,null,null,null,null,null,{"$f":"IF(H5<>\"\",H5,\"\")","v":""},null,null,null,null,null,null,null,null,null,null,null,null,null,null,null,null,null,null,null,null,null,null,null,{"$f":"MATCH(BA2,Sprachen!A2:J2,0)","v":3},"Softwarebemusterung erforderlich",{"$f":"IF(S198=Sprachen!L4,\"X\",\"N\")","v":"N"},null,null,null,null,null,"česky"]
[{"$f":"Sprachen!L184","v":"kontaktní informace"}]
[{"$f":"Sprachen!L46","v":"údaje organizace"},null,null,null,null,null,null,null,null,null,null,null,null,null,null,null,null,null,null,null,{"$f":"Sprachen!L45","v":"údaje zákazníka"}]
[{"$f":"Sprachen!L235","v":"název organizace"},null,null,null,null,null,null,null,null,null,null,null,null,null,null,null,null,null,null,null,{"$f":"Sprachen!L236","v":"název zákazníka"}]
[{"$f":"Sprachen!L276","v":"výrobní místo"},null,null,null,null,null,null,null,null,null,null,null,null,null,null,null,null,null,null,null,{"$f":"Sprachen!L121","v":"výrobní místo příjemce"}]
[{"$f":"Sprachen!L10","v":"adresa"},null,null,null,null,null,null,null,null,null,null,null,null,null,null,null,null,null,null,null,{"$f":"Sprachen!L10","v":"adresa"}]
[{"$f":"Sprachen!L199","v":"místo odeslání"},null,null,null,null,null,null,null,null,null,null,null,null,null,null,null,null,null,null,null,{"$f":"Sprachen!L14","v":"místo dodání"}]
[{"$f":"Sprachen!L10","v":"adresa"},null,null,null,null,null,null,null,null,null,null,null,null,null,null,null,null,null,null,null,{"$f":"Sprachen!L10","v":"adresa"}]
[{"$f":"Sprachen!L196","v":"číslo dodavatele/DUNS číslo"},null,null,null,null,null,null,null,null,null,null,null,null,null,null,null,null,null,null,null,{"$f":"Sprachen!L87","v":"číslo objednávky vzorků PPF"}]
[{"$f":"Sprachen!L75","v":"číslo zprávy"},null,null,null,null,null,null,null,null,null,null,null,null,null,null,null,null,null,null,null,{"$f":"Sprachen!L75","v":"číslo zprávy"}]
[{"$f":"Sprachen!L77","v":"verze zprávy"},null,null,null,null,null,null,null,null,null,null,null,null,null,null,null,null,null,null,null,{"$f":"Sprachen!L77","v":"verze zprávy"}]
[{"$f":"Sprachen!L47","v":"kontaktní osoby"}]
[null,null,{"$f":"Sprachen!L187","v":"zákazník"},null,null,null,null,{"$f":"Sprachen!L234","v":"jméno "},null,null,null,null,null,null,null,null,null,null,null,null,{"$f":"Sprachen!L343","v":"telefon"},null,null,null,null,null,null,{"$f":"Sprachen!L204","v":"e-mail"}]
[null,null,{"$f":"Sprachen!L296","v":"management kvality"}]
[null,null,{"$f":"Sprachen!L114","v":"nákup (volitelné)"}]
[null,null,{"$f":"Sprachen!L281","v":"vedoucí projektu (volitelné)"}]
[null,null,{"$f":"Sprachen!L127","v":"vývoj (volitelné)"}]
[null,null,{"$f":"Sprachen!L134","v":"výroba (volitelné)"}]
[null,null,{"$f":"Sprachen!L212","v":"měřicí technika (volitelné)"}]
[null,null,{"$f":"Sprachen!L369","v":"technologie materiálů (volitelné)"}]
[null,null,{"$f":"Sprachen!L254","v":"organizace"},null,null,null,null,{"$f":"Sprachen!L234","v":"jméno "},null,null,null,null,null,null,null,null,null,null,null,null,{"$f":"Sprachen!L343","v":"telefon"},null,null,null,null,null,null,{"$f":"Sprachen!L204","v":"e-mail"}]
[null,null,{"$f":"Sprachen!L296","v":"management kvality"}]
[null,null,{"$f":"Sprachen!L64","v":"osoba odpovědná za PPF (volitelné)"}]
[null,null,{"$f":"Sprachen!L281","v":"vedoucí projektu (volitelné)"}]
[null,null,{"$f":"Sprachen!L127","v":"vývoj (volitelné)"}]
[null,null,{"$f":"Sprachen!L134","v":"výroba (volitelné)"}]
[null,null,{"$f":"Sprachen!L212","v":"měřicí technika (volitelné)"}]
[null,null,{"$f":"Sprachen!L369","v":"technologie materiálů (volitelné)"}]
[{"$f":"Sprachen!L59","v":"informace o díle"}]
[{"$f":"Sprachen!L46","v":"údaje organizace"},null,null,null,null,null,null,null,null,null,null,null,null,null,null,null,null,null,null,null,{"$f":"Sprachen!L45","v":"údaje zákazníka"}]
[{"$f":"Sprachen!L65","v":"název"},null,null,null,null,null,null,null,null,null,null,null,null,null,null,null,null,null,null,null,{"$f":"Sprachen!L65","v":"název"}]
[{"$f":"Sprachen!L304","v":"číslo dílu"},null,null,null,null,null,null,null,null,null,null,null,null,null,null,null,null,null,null,null,{"$f":"Sprachen!L304","v":"číslo dílu"}]
[{"$f":"Sprachen!L374","v":"číslo výkresu"},null,null,null,null,null,null,null,null,null,null,null,null,null,null,null,null,null,null,null,{"$f":"Sprachen!L374","v":"číslo výkresu"}]
[{"$f":"Sprachen!L361","v":"verze/datum"},null,null,null,null,null,null,null,null,null,null,null,null,null,null,null,null,null,null,null,{"$f":"Sprachen!L361","v":"verze/datum"}]
[null,null,null,null,null,null,null,null,null,null,null,null,null,null,null,null,null,null,null,null,{"$f":"Sprachen!L189","v":"status dílů od zákazníka (generační stav/stav výroby/stav kvality atd.)"}]
[{"$f":"Sprachen!L80","v":"zvláštní charakteristiky (bezpečnost, schvalování, funkce)"},null,null,null,null,null,null,null,null,null,null,null,null,null,null,null,null,null,null,null,{"$f":"Sprachen!L80","v":"zvláštní charakteristiky (bezpečnost, schvalování, funkce)"}]
["díl s povinností zvláštní archivace",null,null,null,null,null,null,null,null,null,null,null,null,null,{"$f":"Sprachen!L470","v":"povinnost zvláštní archivace"}]
[{"$f":"Sprachen!L340","v":"rodina produktů"}]
[null,null,{"$f":"Sprachen!L267","v":"postup PPF pro rodinu produktů"},null,null,null,null,null,null,null,null,null,null,null,null,null,null,null,null,null,{"$f":"Sprachen!L158","v":"příp. seznam dotčených čísel dílů v příloze"}]
[null,null,{"$f":"Sprachen!L65","v":"název"},null,null,null,null,null,null,null,null,{"$f":"Sprachen!L304","v":"číslo dílu"},null,null,null,null,{"$f":"Sprachen!L361","v":"verze/datum"},null,null,null,{"$f":"Sprachen!L66","v":"název dílu - zákazník"},null,null,null,null,null,null,null,null,null,null,null,null,{"$f":"Sprachen!L304","v":"číslo dílu"},null,null,null,null,{"$f":"Sprachen!L361","v":"verze/datum"}]
[null,null,null,null,null,null,null,null,null,null,null,null,null,null,null,null,null,null,null,null,null,null,null,null,null,null,null,null,null,null,null,null,null,null,null,null,null,null,null,null,null,null,{"$f":"COUNTA(C42:AP42)","v":0}]
[null,null,null,null,null,null,null,null,null,null,null,null,null,null,null,null,null,null,null,null,null,null,null,null,null,null,null,null,null,null,null,null,null,null,null,null,null,null,null,null,null,null,{"$f":"COUNTA(C43:AP43)","v":0}]
[null,null,null,null,null,null,null,null,null,null,null,null,null,null,null,null,null,null,null,null,null,null,null,null,null,null,null,null,null,null,null,null,null,null,null,null,null,null,null,null,null,null,0]
[null,null,null,null,null,null,null,null,null,null,null,null,null,null,null,null,null,null,null,null,null,null,null,null,null,null,null,null,null,null,null,null,null,null,null,null,null,null,null,null,null,null,0]
[null,null,null,null,null,null,null,null,null,null,null,null,null,null,null,null,null,null,null,null,null,null,null,null,null,null,null,null,null,null,null,null,null,null,null,null,null,null,null,null,null,null,0]
[null,null,null,null,null,null,null,null,null,null,null,null,null,null,null,null,null,null,null,null,null,null,null,null,null,null,null,null,null,null,null,null,null,null,null,null,null,null,null,null,null,null,0]
[null,null,null,null,null,null,null,null,null,null,null,null,null,null,null,null,null,null,null,null,null,null,null,null,null,null,null,null,null,null,null,null,null,null,null,null,null,null,null,null,null,null,0]
[null,null,null,null,null,null,null,null,null,null,null,null,null,null,null,null,null,null,null,null,null,null,null,null,null,null,null,null,null,null,null,null,null,null,null,null,null,null,null,null,null,null,0]
[{"$f":"Sprachen!L351","v":"varianty PPF"}]
[null,null,{"$f":"Sprachen!L352","v":"varianty PPF k dříve předloženému postupu PPF"}]
[null,null,{"$f":"Sprachen!L299","v":"odkaz na číslo zprávy organizace"},null,null,null,null,null,null,null,null,{"$f":"Sprachen!L77","v":"verze zprávy"},null,null,null,null,{"$f":"Sprachen!L91","v":"datum"},null,null,null,{"$f":"Sprachen!L298","v":"odkaz na číslo zprávy zákazníka"},null,null,null,null,null,null,null,null,null,null,null,null,{"$f":"Sprachen!L77","v":"verze zprávy"},null,null,null,null,{"$f":"Sprachen!L91","v":"datum"}]
[null,null,null,null,null,null,null,null,null,null,null,null,null,null,null,null,null,null,null,null,null,null,null,null,null,null,null,null,null,null,null,null,null,null,null,null,null,null,null,null,null,null,{"$f":"COUNTA(C53:AP53)","v":0}]
[{"$f":"Sprachen!L318","v":"díly stanovené zákazníkem"}]
[null,null,{"$f":"Sprachen!L319","v":"díly stanovené zákazníkem v odpovědnosti organizace"},null,null,null,null,null,null,null,null,null,null,null,null,null,null,null,null,null,{"$f":"Sprachen!L158","v":"příp. seznam dotčených čísel dílů v příloze"}]
[null,null,{"$f":"Sprachen!L67","v":"název dílu - organizace"},null,null,null,null,null,null,null,null,{"$f":"Sprachen!L304","v":"číslo dílu"},null,null,null,null,{"$f":"Sprachen!L361","v":"verze/datum"},null,null,null,{"$f":"Sprachen!L66","v":"název dílu - zákazník"},null,null,null,null,null,null,null,null,null,null,null,null,{"$f":"Sprachen!L304","v":"číslo dílu"},null,null,null,null,{"$f":"Sprachen!L361","v":"verze/datum"}]
[null,null,null,null,null,null,null,null,null,null,null,null,null,null,null,null,null,null,null,null,null,null,null,null,null,null,null,null,null,null,null,null,null,null,null,null,null,null,null,null,null,null,{"$f":"COUNTA(C57:AP57)","v":0}]
[null,null,null,null,null,null,null,null,null,null,null,null,null,null,null,null,null,null,null,null,null,null,null,null,null,null,null,null,null,null,null,null,null,null,null,null,null,null,null,null,null,null,{"$f":"COUNTA(C58:AP58)","v":0}]
[null,null,null,null,null,null,null,null,null,null,null,null,null,null,null,null,null,null,null,null,null,null,null,null,null,null,null,null,null,null,null,null,null,null,null,null,null,null,null,null,null,null,0]
[null,null,null,null,null,null,null,null,null,null,null,null,null,null,null,null,null,null,null,null,null,null,null,null,null,null,null,null,null,null,null,null,null,null,null,null,null,null,null,null,null,null,0]
[null,null,null,null,null,null,null,null,null,null,null,null,null,null,null,null,null,null,null,null,null,null,null,null,null,null,null,null,null,null,null,null,null,null,null,null,null,null,null,null,null,null,0]
[null,null,null,null,null,null,null,null,null,null,null,null,null,null,null,null,null,null,null,null,null,null,null,null,null,null,null,null,null,null,null,null,null,null,null,null,null,null,null,null,null,null,0]
[null,null,null,null,null,null,null,null,null,null,null,null,null,null,null,null,null,null,null,null,null,null,null,null,null,null,null,null,null,null,null,null,null,null,null,null,null,null,null,null,null,null,0]
[null,null,{"$f":"Sprachen!L320","v":"díly stanovené zákazníkem v odpovědnosti zákazníka"},null,null,null,null,null,null,null,null,null,null,null,null,null,null,null,null,null,{"$f":"Sprachen!L158","v":"příp. seznam dotčených čísel dílů v příloze"}]
[null,null,{"$f":"Sprachen!L67","v":"název dílu - organizace"},null,null,null,null,null,null,null,null,{"$f":"Sprachen!L304","v":"číslo dílu"},null,null,null,null,{"$f":"Sprachen!L361","v":"verze/datum"},null,null,null,{"$f":"Sprachen!L66","v":"název dílu - zákazník"},null,null,null,null,null,null,null,null,null,null,null,null,{"$f":"Sprachen!L304","v":"číslo dílu"},null,null,null,null,{"$f":"Sprachen!L361","v":"verze/datum"}]
[null,null,null,null,null,null,null,null,null,null,null,null,null,null,null,null,null,null,null,null,null,null,null,null,null,null,null,null,null,null,null,null,null,null,null,null,null,null,null,null,null,null,{"$f":"COUNTA(C66:AP66)","v":0}]
[null,null,null,null,null,null,null,null,null,null,null,null,null,null,null,null,null,null,null,null,null,null,null,null,null,null,null,null,null,null,null,null,null,null,null,null,null,null,null,null,null,null,0]
[null,null,null,null,null,null,null,null,null,null,null,null,null,null,null,null,null,null,null,null,null,null,null,null,null,null,null,null,null,null,null,null,null,null,null,null,null,null,null,null,null,null,0]
[null,null,null,null,null,null,null,null,null,null,null,null,null,null,null,null,null,null,null,null,null,null,null,null,null,null,null,null,null,null,null,null,null,null,null,null,null,null,null,null,null,null,0]
[null,null,null,null,null,null,null,null,null,null,null,null,null,null,null,null,null,null,null,null,null,null,null,null,null,null,null,null,null,null,null,null,null,null,null,null,null,null,null,null,null,null,0]
[null,null,null,null,null,null,null,null,null,null,null,null,null,null,null,null,null,null,null,null,null,null,null,null,null,null,null,null,null,null,null,null,null,null,null,null,null,null,null,null,null,null,0]
[null,null,null,null,null,null,null,null,null,null,null,null,null,null,null,null,null,null,null,null,null,null,null,null,null,null,null,null,null,null,null,null,null,null,null,null,null,null,null,null,null,null,0]
[{"$f":"Sprachen!L159","v":"důvod zpracování zprávy"}]
[{"$f":"Sprachen!L159","v":"důvod zpracování zprávy"},null,null,null,null,null,null,null,null,null,null,null,null,null,null,null,null,null,null,null,{"$f":"Sprachen!L55","v":"iniciátor postupu PPF"}]
[null,null,{"$f":"Sprachen!L71","v":"zpráva o uvolnění produktu a výrobního procesu (PPF)"},null,null,null,null,null,null,null,null,null,null,null,null,null,null,null,null,null,null,null,null,{"$f":"Sprachen!L218","v":"představení vzorků"},null,null,null,null,null,null,null,null,null,null,null,null,null,null,null,null,null,null,{"$f":"COUNTIF(A75:B77,\"X\")","v":0}]
[null,null,{"$f":"Sprachen!L72","v":"zpráva o zvláštních vzorcích"},null,null,null,null,null,null,null,null,null,null,null,null,null,null,null,null,null,null,null,null,{"$f":"Sprachen!L239","v":"nový díl"}]
[null,null,{"$f":"Sprachen!L301","v":"rekvalifikace"},null,null,null,null,null,null,null,null,null,null,null,null,null,null,null,null,null,null,null,null,{"$f":"Sprachen!L36","v":"změna na produktu"}]
[{"$f":"Sprachen!L345","v":"předložení dokumentace PPF"},null,null,null,null,null,null,null,null,null,null,null,null,null,null,null,null,null,null,null,null,null,null,{"$f":"Sprachen!L285","v":"změna výrobního procesu"},null,null,null,null,null,null,null,null,null,null,null,null,null,null,null,null,null,null,{"$f":"COUNTIF(U75:V81,\"X\")","v":0}]
[null,null,{"$f":"Sprachen!L258","v":"ve formátu PDF"},null,null,null,null,null,null,null,null,null,{"$f":"Sprachen!L256","v":"originál"},null,null,null,null,null,null,null,null,null,null,{"$f":"Sprachen!L35","v":"změna v dodavatelském řetězci"}]
[null,null,{"$f":"Sprachen!L262","v":"portál"},null,null,null,null,null,null,null,null,null,{"$f":"Sprachen!L257","v":"v listinné podobě"},null,null,null,null,null,null,null,null,null,null,{"$f":"Sprachen!L373","v":"opětovné použití po odstávce delší než 12 měsíců"}]
[null,null,{"$f":"Sprachen!L327","v":"jiné"},null,null,null,null,null,null,null,null,null,null,null,null,null,null,null,null,null,null,null,null,{"$f":"Sprachen!L24","v":"aktualizovaná dokumentace PPF"},null,null,null,null,null,null,null,null,null,null,null,null,null,null,null,null,null,null,{"$f":"COUNTIF(A79:B81,\"X\")+COUNTIF(K79:L80,\"X\")","v":0}]
[{"$f":"Sprachen!L346","v":"jazyk předložení postupu PPF"}]
[]
[{"$f":"Sprachen!L156","v":"odstupňovaný postup PPF"}]
[null,null,{"$f":"Sprachen!L157","v":"odstupňovaný postup PPF (prosím podle odsouhlasených termínů pro jednotlivé stupně a plánu dokumentace vztažené k těmto stupňům)"}]
[null,null,{"$f":"Sprachen!L60","v":"důvod odstupňovaného postupu PPF"}]
[]
[]
[]
[]
[]
[null,null,{"$f":"Sprachen!L86","v":"potvrzení organizací:"}]
[null,null,{"$f":"Sprachen!L99","v":"Předložené vzorky byly s ohledem na prokazované charakteristiky vyrobeny sériovými provozními prostředky za sériových podmínek"}]
[null,null,{"$f":"Sprachen!L100","v":"v sériovém výrobním místě případně u \"zvláštních vzorků\" podle dohody mezi organizací a zákazníkem"}]
[null,null,{"$f":"Sprachen!L101","v":"(ta je připojena jako příloha). S ohledem na dotčené charakteristiky není známa příp. plánována žádná změna. Výsledky dosažené našimi zkouškami "}]
[null,null,{"$f":"Sprachen!L102","v":"a uvolněním mohou být převzaty do aktualizované dokumentace PPF. Pokud by měly být přesto  změny na "}]
[null,null,{"$f":"Sprachen!L103","v":"díle a/nebo v procesu nezbytné,  oznámíme to při aktualizaci dokumentace PPF. "}]
[{"$f":"Sprachen!L344","v":"odsouhlasení termínů"}]
[{"$f":"Sprachen!L266","v":"termín PPF"},null,null,null,null,null,null,null,null,null,null,null,null,null,{"$f":"Sprachen!L156","v":"odstupňovaný postup PPF"}]
[{"$f":"Sprachen!L58","v":"postup PPF"},null,null,null,null,null,null,null,null,null,null,null,null,null,{"$f":"Sprachen!L306","v":"stupeň 1"},null,null,null,null,null,null,null,null,null,null,null,null,{"$f":"Sprachen!L308","v":"stupeň 3"}]
[{"$f":"Sprachen!L349","v":"varianty"},null,null,null,null,null,null,null,null,null,null,null,null,null,{"$f":"Sprachen!L307","v":"stupeň 2"},null,null,null,null,null,null,null,null,null,null,null,null,{"$f":"Sprachen!L309","v":"stupeň 4"}]
[null,null,null,null,null,null,null,null,null,null,null,null,null,null,{"$f":"Sprachen!L123","v":"konečný termín postupu PPF"}]
[{"$f":"Sprachen!L168","v":"IMDS-ID zákazníka"},null,null,null,null,null,null,null,null,null,null,null,null,null,{"$f":"Sprachen!L68","v":"poskytnutí IMDS"}]
[null,null,{"$f":"Sprachen!L96","v":"Zákazník se zříká předložení dokumentace. Realizace a dokumentování PPF probíhá výhradně v rámci organizace. Zákazník souhlasí s doporučením organizace o uvolnění."}]
[null,null,{"$f":"Sprachen!L91","v":"datum"},null,null,null,null,null,null,null,null,null,null,null,null,null,null,null,null,null,null,{"$f":"Sprachen!L348","v":"podpis"}]
[null,null,null,{"$f":"Sprachen!L215","v":"platné podklady související s postupem PPF "}]
[{"$f":"Sprachen!L49","v":"použití"},null,null,{"$f":"Sprachen!L347","v":"podklady"},null,null,null,null,null,null,null,null,{"$f":"Sprachen!L112","v":"číslo dokumentu"},null,null,null,null,{"$f":"Sprachen!L54","v":"vydání/stav/datum"},null,null,null,null,{"$f":"Sprachen!L62","v":"poznámka/popis"}]
[null,null,null,{"$f":"Sprachen!L332","v":"technické podklady zákazníka"}]
[null,null,null,{"$f":"Sprachen!L375","v":"stanovení zón pro hodnocení vzhledu"}]
[null,null,null,{"$f":"Sprachen!L139","v":"stanovení mezních vzorků "}]
[null,null,null,{"$f":"Sprachen!L140","v":"stanovení třídy porezity"}]
[null,null,null,{"$f":"Sprachen!L15","v":"přejímací směrnice"}]
[null,null,null,{"$f":"Sprachen!L294","v":"zkušební předpisy"}]
[null,null,null,{"$f":"Sprachen!L247","v":"normy"}]
[null,null,null,{"$f":"Sprachen!L201","v":"soupis barev/variant PPF s termíny"}]
[]
[]
[]
[]
[]
[]
[]
[]
[]
[]
[{"$f":"Sprachen!L349","v":"varianty"}]
[{"$f":"Sprachen!L49","v":"použití"},null,null,{"$f":"Sprachen!L169","v":"obsah"},null,null,null,null,null,null,null,null,{"$f":"Sprachen!L79","v":"popis"},null,null,null,null,null,null,null,null,null,null,null,null,null,null,{"$f":"Sprachen!L78","v":"zohledněno v rámci postupu PPF"}]
[null,null,null,{"$f":"Sprachen!L322","v":"Plánují se odlišné stroje nebo procesy?"}]
[null,null,null,{"$f":"Sprachen!L321","v":"Předpokládají se alternativní dodavatelé?"}]
[{"$f":"Sprachen!L19","v":"dohoda o obsahu a předložení PPF"}]
[{"$f":"Sprachen!L253","v":"pořadové číslo"},null,null,{"$f":"Sprachen!L289","v":"oblast zkoušení"},null,null,{"$f":"Sprachen!L12","v":"(pokud se produktu týká)"},null,null,null,null,null,{"$f":"Sprachen!L40","v":"požadavek je k dispozici"},null,{"$f":"Sprachen!L366","v":"požadováno předložení"},null,{"$f":"Sprachen!L57","v":"postup PPF"},null,{"$f":"Sprachen!L351","v":"varianty PPF"},null,{"$f":"Sprachen!L310","v":"krok odstupňovaného PPF"},null,null,null,null,null,null,null,{"$f":"Sprachen!L381","v":"součást rekvalifikací"},null,{"$f":"Sprachen!L61","v":"poznámka"}]
[null,null,null,null,null,null,null,null,null,null,null,null,null,null,null,null,null,null,null,null,{"$f":"Sprachen!L306","v":"stupeň 1"},null,{"$f":"Sprachen!L307","v":"stupeň 2"},null,{"$f":"Sprachen!L308","v":"stupeň 3"},null,{"$f":"Sprachen!L309","v":"stupeň 4"},null,null,null,null,null,null,null,null,null,null,null,null,null,null,null,"Anforderung vorhanden","Auswahl erfolgt","Vorlage erforderlich"]
["0.1",null,null,{"$f":"Sprachen!L94","v":"krycí list PPF/hodnocení PPF"},null,null,null,null,null,null,null,null,{"$f":"Sprachen!L4","v":"ano"},null,{"$f":"Sprachen!L4","v":"ano"},null,"X",null,"X",null,"X",null,"X",null,"X",null,"X",null,{"$f":"Sprachen!L4","v":"ano"},null,null,null,null,null,null,null,null,null,null,null,null,null,{"$f":"M133=Sprachen!$L$4","v":true},"=",{"$f":"O133=Sprachen!$L$4","v":true}]
["0.2",null,null,{"$f":"Sprachen!L313","v":"sebehodnocení produktu, procesu příp. softwaru"},null,null,null,null,null,null,null,null,{"$f":"Sprachen!L4","v":"ano"},null,{"$f":"Sprachen!L4","v":"ano"},null,null,null,null,null,null,null,null,null,null,null,null,null,null,null,null,null,null,null,null,null,null,null,null,null,null,null,{"$f":"M134=Sprachen!$L$4","v":true},{"$f":"COUNTIF(Q134:T134,\"X\")","v":0},{"$f":"O134=Sprachen!$L$4","v":true}]
[{"$f":"Sprachen!L165","v":"požadováno uvolnění hardwaru"}]
["1. ",null,null,{"$f":"Sprachen!L228","v":"důkazy k návrhu produktu"}]
["1.1",null,null,{"$f":"Sprachen!L334","v":"technické specifikace"},null,null,null,null,null,null,null,null,null,null,null,null,null,null,null,null,null,null,null,null,null,null,null,null,null,null,null,null,null,null,null,null,null,null,null,null,null,null,{"$f":"M137=Sprachen!$L$4","v":false},{"$f":"COUNTIF(Q137:T137,\"X\")","v":0},{"$f":"O137=Sprachen!$L$4","v":false}]
["1.2",null,null,{"$f":"Sprachen!L150","v":"schválené změny konstrukce"},null,null,null,null,null,null,null,null,null,null,null,null,null,null,null,null,null,null,null,null,null,null,null,null,null,null,null,null,null,null,null,null,null,null,null,null,null,null,{"$f":"M138=Sprachen!$L$4","v":false},{"$f":"COUNTIF(Q138:T138,\"X\")","v":0},{"$f":"O138=Sprachen!$L$4","v":false}]
["1.3",null,null,{"$f":"Sprachen!L183","v":"uvolnění organizace v případě odpovědnosti za konstrukci/vývoj  "},null,null,null,null,null,null,null,null,null,null,null,null,null,null,null,null,null,null,null,null,null,null,null,null,null,null,null,null,null,null,null,null,null,null,null,null,null,null,{"$f":"M139=Sprachen!$L$4","v":false},{"$f":"COUNTIF(Q139:T139,\"X\")","v":0},{"$f":"O139=Sprachen!$L$4","v":false}]
["1.4",null,null,{"$f":"Sprachen!L209","v":"materiálová data podle IMDS"},null,null,null,null,null,null,null,null,{"$f":"IF(OR(AU1=\"X\",AU2=\"X\"),Sprachen!L4,\"\")","v":""},null,{"$f":"IF(OR(AU1=\"X\",AU2=\"X\"),Sprachen!L4,\"\")","v":""},null,null,null,null,null,null,null,null,null,null,null,null,null,null,null,null,null,null,null,null,null,null,null,null,null,null,null,{"$f":"M140=Sprachen!$L$4","v":false},{"$f":"COUNTIF(Q140:T140,\"X\")","v":0},{"$f":"O140=Sprachen!$L$4","v":false}]
["1.5",null,null,{"$f":"Sprachen!L97","v":"FMEA-D"},null,null,null,null,null,null,null,null,null,null,null,null,null,null,null,null,null,null,null,null,null,null,null,null,null,null,null,null,null,null,null,null,null,null,null,null,null,null,{"$f":"M141=Sprachen!$L$4","v":false},{"$f":"COUNTIF(Q141:AB141,\"X\")","v":0},{"$f":"O141=Sprachen!$L$4","v":false}]
["2. ",null,null,{"$f":"Sprachen!L229","v":"důkazy k návrhu výrobního procesu"}]
["2.1",null,null,{"$f":"Sprachen!L283","v":"vývojový diagram procesu (flowchart)"},null,null,null,null,null,null,null,null,null,null,null,null,null,null,null,null,null,null,null,null,null,null,null,null,null,null,null,null,null,null,null,null,null,null,null,null,null,null,{"$f":"M143=Sprachen!$L$4","v":false},{"$f":"COUNTIF(Q143:T143,\"X\")","v":0},{"$f":"O143=Sprachen!$L$4","v":false}]
["2.2",null,null,{"$f":"Sprachen!L287","v":"FMEA-P"},null,null,null,null,null,null,null,null,null,null,null,null,null,null,null,null,null,null,null,null,null,null,null,null,null,null,null,null,null,null,null,null,null,null,null,null,null,null,{"$f":"M144=Sprachen!$L$4","v":false},{"$f":"COUNTIF(Q144:AB144,\"X\")","v":0},{"$f":"O144=Sprachen!$L$4","v":false}]
["2.3",null,null,{"$f":"Sprachen!L275","v":"plán kontroly a řízení"},null,null,null,null,null,null,null,null,null,null,null,null,null,null,null,null,null,null,null,null,null,null,null,null,null,null,null,null,null,null,null,null,null,null,null,null,null,null,{"$f":"M145=Sprachen!$L$4","v":false},{"$f":"COUNTIF(Q145:AB145,\"X\")","v":0},{"$f":"O145=Sprachen!$L$4","v":false}]
["3. ",null,null,{"$f":"Sprachen!L231","v":"důkazy k validaci produktu"}]
["3.1",null,null,{"$f":"Sprachen!L153","v":"geometrie, rozměry"},null,null,null,null,null,null,null,null,null,null,null,null,{"$f":"Sprachen!L52","v":"počet dílů na hnízdo/formu"},null,null,null,null,null,null,null,null,null,null,null,null,null,null,null,null,null,null,null,null,null,null,null,null,null,{"$f":"M147=Sprachen!$L$4","v":false},{"$f":"COUNTIF(Q147:AB147,\"X\")","v":0},{"$f":"O147=Sprachen!$L$4","v":false}]
["3.1.1",null,null,null,{"$f":"Sprachen!L303","v":"náměry polotovaru"},null,null,null,null,null,null,null,null,null,null,null,null,null,null,null,null,null,null,null,null,null,null,null,null,null,null,null,null,null,null,null,null,null,null,null,null,null,{"$f":"M148=Sprachen!$L$4","v":false},{"$f":"COUNTIF(Q148:T148,\"X\")","v":0},{"$f":"O148=Sprachen!$L$4","v":false}]
["3.1.2",null,null,null,{"$f":"Sprachen!L116","v":"náměry dílu"},null,null,null,null,null,null,null,null,null,null,null,null,null,null,null,null,null,null,null,null,null,null,null,null,null,null,null,null,null,null,null,null,null,null,null,null,null,{"$f":"M149=Sprachen!$L$4","v":false},{"$f":"COUNTIF(Q149:T149,\"X\")","v":0},{"$f":"O149=Sprachen!$L$4","v":false}]
["3.1.3",null,null,null,{"$f":"Sprachen!L330","v":"standardní zpráva o měření (všechny výkresové charakteristiky)"},null,null,null,null,null,null,null,null,null,null,null,null,null,null,null,null,null,null,null,null,null,null,null,null,null,null,null,null,null,null,null,null,null,null,null,null,null,{"$f":"M150=Sprachen!$L$4","v":false},0,{"$f":"O150=Sprachen!$L$4","v":false}]
["3.1.4",null,null,null,{"$f":"Sprachen!L329","v":"standardní zpráva o šablonách"},null,null,null,null,null,null,null,null,null,null,null,null,null,null,null,null,null,null,null,null,null,null,null,null,null,null,null,null,null,null,null,null,null,null,null,null,null,{"$f":"M151=Sprachen!$L$4","v":false},0,{"$f":"O151=Sprachen!$L$4","v":false}]
["3.1.5",null,null,null,{"$f":"Sprachen!L13","v":"datový soubor náměrů 3D"},null,null,null,null,null,null,null,null,null,null,null,null,null,null,null,null,null,null,null,null,null,null,null,null,null,null,null,null,null,null,null,null,null,null,null,null,null,{"$f":"M152=Sprachen!$L$4","v":false},0,{"$f":"O152=Sprachen!$L$4","v":false}]
["3.1.6",null,null,null,{"$f":"Sprachen!L305","v":"řezy"},null,null,null,null,null,null,null,null,null,null,null,null,null,null,null,null,null,null,null,null,null,null,null,null,null,null,null,null,null,null,null,null,null,null,null,null,null,{"$f":"M153=Sprachen!$L$4","v":false},0,{"$f":"O153=Sprachen!$L$4","v":false}]
["3.1.7",null,null,null,{"$f":"Sprachen!L327","v":"jiné"},null,null,null,null,null,null,null,null,null,null,null,null,null,null,null,null,null,null,null,null,null,null,null,null,null,null,null,null,null,null,null,null,null,null,null,null,null,{"$f":"M154=Sprachen!$L$4","v":false},0,{"$f":"O154=Sprachen!$L$4","v":false}]
["3.2",null,null,{"$f":"Sprachen!L368","v":"materiál (pevnost, fyzikální vlastnosti…)"},null,null,null,null,null,null,null,null,null,null,null,null,null,null,null,null,null,null,null,null,null,null,null,null,null,null,null,null,null,null,null,null,null,null,null,null,null,null,{"$f":"M155=Sprachen!$L$4","v":false},0,{"$f":"O155=Sprachen!$L$4","v":false}]
["3.2.1",null,null,null,{"$f":"Sprachen!L222","v":"důkaz o dodržení norem zákazníka vztahujících se k materiálům"},null,null,null,null,null,null,null,null,null,null,null,null,null,null,null,null,null,null,null,null,null,null,null,null,null,null,null,null,null,null,null,null,null,null,null,null,null,{"$f":"M156=Sprachen!$L$4","v":false},0,{"$f":"O156=Sprachen!$L$4","v":false}]
["3.2.2",null,null,null,{"$f":"Sprachen!L269","v":"plán odběru vzorků"},null,null,null,null,null,null,null,null,null,null,null,null,null,null,null,null,null,null,null,null,null,null,null,null,null,null,null,null,null,null,null,null,null,null,null,null,null,{"$f":"M157=Sprachen!$L$4","v":false},0,{"$f":"O157=Sprachen!$L$4","v":false}]
["3.2.3",null,null,null,{"$f":"Sprachen!L213","v":"metalografie"},null,null,null,null,null,null,null,null,null,null,null,null,null,null,null,null,null,null,null,null,null,null,null,null,null,null,null,null,null,null,null,null,null,null,null,null,null,{"$f":"M158=Sprachen!$L$4","v":false},0,{"$f":"O158=Sprachen!$L$4","v":false}]
["3.2.4",null,null,null,{"$f":"Sprachen!L90","v":"chemická analýza"},null,null,null,null,null,null,null,null,null,null,null,null,null,null,null,null,null,null,null,null,null,null,null,null,null,null,null,null,null,null,null,null,null,null,null,null,null,{"$f":"M159=Sprachen!$L$4","v":false},0,{"$f":"O159=Sprachen!$L$4","v":false}]
["3.2.5",null,null,null,{"$f":"Sprachen!L141","v":"uvolnění jednotlivých dílů"},null,null,null,null,null,null,null,null,null,null,null,null,null,null,null,null,null,null,null,null,null,null,null,null,null,null,null,null,null,null,null,null,null,null,null,null,null,{"$f":"M160=Sprachen!$L$4","v":false},0,{"$f":"O160=Sprachen!$L$4","v":false}]
["3.2.6",null,null,null,{"$f":"Sprachen!L142","v":"uvolnění pomocných a provozních látek"},null,null,null,null,null,null,null,null,null,null,null,null,null,null,null,null,null,null,null,null,null,null,null,null,null,null,null,null,null,null,null,null,null,null,null,null,null,{"$f":"M161=Sprachen!$L$4","v":false},0,{"$f":"O161=Sprachen!$L$4","v":false}]
["3.2.7",null,null,null,{"$f":"Sprachen!L210","v":"mechanické vlastnosti"},null,null,null,null,null,null,null,null,null,null,null,null,null,null,null,null,null,null,null,null,null,null,null,null,null,null,null,null,null,null,null,null,null,null,null,null,null,{"$f":"M162=Sprachen!$L$4","v":false},0,{"$f":"O162=Sprachen!$L$4","v":false}]
["3.2.8",null,null,null,{"$f":"Sprachen!L143","v":"uvolnění surovin"},null,null,null,null,null,null,null,null,null,null,null,null,null,null,null,null,null,null,null,null,null,null,null,null,null,null,null,null,null,null,null,null,null,null,null,null,null,{"$f":"M163=Sprachen!$L$4","v":false},0,{"$f":"O163=Sprachen!$L$4","v":false}]
["3.2.9",null,null,null,{"$f":"Sprachen!L186","v":"korozní zkoušky"},null,null,null,null,null,null,null,null,null,null,null,null,null,null,null,null,null,null,null,null,null,null,null,null,null,null,null,null,null,null,null,null,null,null,null,null,null,{"$f":"M164=Sprachen!$L$4","v":false},0,{"$f":"O164=Sprachen!$L$4","v":false}]
["3.2.10",null,null,null,{"$f":"Sprachen!L327","v":"jiné"},null,null,null,null,null,null,null,null,null,null,null,null,null,null,null,null,null,null,null,null,null,null,null,null,null,null,null,null,null,null,null,null,null,null,null,null,null,{"$f":"M165=Sprachen!$L$4","v":false},0,{"$f":"O165=Sprachen!$L$4","v":false}]
["3.3",null,null,{"$f":"Sprachen!L148","v":"zkoušky funkce podle specifikace zákaznického zadání (KLH)/předpisů"},null,null,null,null,null,null,null,null,null,null,null,null,null,null,null,null,null,null,null,null,null,null,null,null,null,null,null,null,null,null,null,null,null,null,null,null,null,null,{"$f":"M166=Sprachen!$L$4","v":false},0,{"$f":"O166=Sprachen!$L$4","v":false}]
["3.4",null,null,{"$f":"Sprachen!L162","v":"zkoušky haptiky"},null,null,null,null,null,null,null,null,null,null,null,null,null,null,null,null,null,null,null,null,null,null,null,null,null,null,null,null,null,null,null,null,null,null,null,null,null,null,{"$f":"M167=Sprachen!$L$4","v":false},0,{"$f":"O167=Sprachen!$L$4","v":false}]
["3.5",null,null,{"$f":"Sprachen!L28","v":"zkoušky akustiky"},null,null,null,null,null,null,null,null,null,null,null,null,null,null,null,null,null,null,null,null,null,null,null,null,null,null,null,null,null,null,null,null,null,null,null,null,null,null,{"$f":"M168=Sprachen!$L$4","v":false},0,{"$f":"O168=Sprachen!$L$4","v":false}]
["3.6",null,null,{"$f":"Sprachen!L155","v":" zkoušky pachu"},null,null,null,null,null,null,null,null,null,null,null,null,null,null,null,null,null,null,null,null,null,null,null,null,null,null,null,null,null,null,null,null,null,null,null,null,null,null,{"$f":"M169=Sprachen!$L$4","v":false},0,{"$f":"O169=Sprachen!$L$4","v":false}]
["3.7",null,null,{"$f":"Sprachen!L56","v":"vzhled"},null,null,null,null,null,null,null,null,null,null,null,null,null,null,null,null,null,null,null,null,null,null,null,null,null,null,null,null,null,null,null,null,null,null,null,null,null,null,{"$f":"M170=Sprachen!$L$4","v":false},0,{"$f":"O170=Sprachen!$L$4","v":false}]
["3.8",null,null,{"$f":"Sprachen!L252","v":"požadavky týkající se povrchu"},null,null,null,null,null,null,null,null,null,null,null,null,null,null,null,null,null,null,null,null,null,null,null,null,null,null,null,null,null,null,null,null,null,null,null,null,null,null,{"$f":"M171=Sprachen!$L$4","v":false},0,{"$f":"O171=Sprachen!$L$4","v":false}]
["3.8.1",null,null,null,{"$f":"Sprachen!L132","v":"měření barvy a sebehodnocení vzhledu "},null,null,null,null,null,null,null,null,null,null,null,null,null,null,null,null,null,null,null,null,null,null,null,null,null,null,null,null,null,null,null,null,null,null,null,null,null,{"$f":"M171=Sprachen!$L$4","v":false},0,{"$f":"O172=Sprachen!$L$4","v":false}]
["3.8.2",null,null,null,{"$f":"Sprachen!L131","v":"vlastnosti závislé na barvě"},null,null,null,null,null,null,null,null,null,null,null,null,null,null,null,null,null,null,null,null,null,null,null,null,null,null,null,null,null,null,null,null,null,null,null,null,null,{"$f":"M171=Sprachen!$L$4","v":false},0,{"$f":"O173=Sprachen!$L$4","v":false}]
["3.9",null,null,{"$f":"Sprachen!L333","v":"technická čistota"},null,null,null,null,null,null,null,null,null,null,null,null,null,null,null,null,null,null,null,null,null,null,null,null,null,null,null,null,null,null,null,null,null,null,null,null,null,null,{"$f":"M174=Sprachen!$L$4","v":false},0,{"$f":"O174=Sprachen!$L$4","v":false}]
["3.10",null,null,{"$f":"Sprachen!L377","v":"spolehlivost"},null,null,null,null,null,null,null,null,null,null,null,null,null,null,null,null,null,null,null,null,null,null,null,null,null,null,null,null,null,null,null,null,null,null,null,null,null,null,{"$f":"M175=Sprachen!$L$4","v":false},0,{"$f":"O175=Sprachen!$L$4","v":false}]
["3.11",null,null,{"$f":"Sprachen!L82","v":"odolnost proti elektrostatickému výboji (ESD)"},null,null,null,null,null,null,null,null,null,null,null,null,null,null,null,null,null,null,null,null,null,null,null,null,null,null,null,null,null,null,null,null,null,null,null,null,null,null,{"$f":"M176=Sprachen!$L$4","v":false},0,{"$f":"O176=Sprachen!$L$4","v":false}]
["3.12",null,null,{"$f":"Sprachen!L117","v":"elektrická bezpečnost/ochrana proti vysokému napětí"},null,null,null,null,null,null,null,null,null,null,null,null,null,null,null,null,null,null,null,null,null,null,null,null,null,null,null,null,null,null,null,null,null,null,null,null,null,null,{"$f":"M177=Sprachen!$L$4","v":false},0,{"$f":"O177=Sprachen!$L$4","v":false}]
["3.13",null,null,{"$f":"Sprachen!L118","v":"elektromagnetická kompatibilita (EMC)"},null,null,null,null,null,null,null,null,null,null,null,null,null,null,null,null,null,null,null,null,null,null,null,null,null,null,null,null,null,null,null,null,null,null,null,null,null,null,{"$f":"M178=Sprachen!$L$4","v":false},0,{"$f":"O178=Sprachen!$L$4","v":false}]
["4. ",null,null,{"$f":"Sprachen!L232","v":"důkazy k validaci výrobního procesu"}]
["4.1",null,null,{"$f":"Sprachen!L16","v":"zajištění zvláštních charakteristik podle technických specifikací a dohodnutých charakteristik (např. Poka Yoke, 100% zkoušení, způsobilosti procesu…)"},null,null,null,null,null,null,null,null,null,null,null,null,null,null,null,null,null,null,null,null,null,null,null,null,null,null,null,null,null,null,null,null,null,null,null,null,null,null,{"$f":"M180=Sprachen!$L$4","v":false},{"$f":"COUNTIF(Q180:T180,\"X\")","v":0},{"$f":"O180=Sprachen!$L$4","v":false}]
["4.2",null,null,{"$f":"Sprachen!L194","v":"kvalifikace laboratoře"},null,null,null,null,null,null,null,null,null,null,null,null,null,null,null,null,null,null,null,null,null,null,null,null,null,null,null,null,null,null,null,null,null,null,null,null,null,null,{"$f":"M181=Sprachen!$L$4","v":false},0,{"$f":"O181=Sprachen!$L$4","v":false}]
["4.3",null,null,{"$f":"Sprachen!L216","v":"vzorek včetně výrobní dokumentace"},null,null,null,null,null,null,null,null,null,null,null,null,null,null,null,null,null,null,null,null,null,null,null,null,null,null,null,null,null,null,null,null,null,null,null,null,null,null,{"$f":"M182=Sprachen!$L$4","v":false},0,{"$f":"O182=Sprachen!$L$4","v":false}]
["4.4",null,null,{"$f":"Sprachen!L300","v":"referenční vzorek"},null,null,null,null,null,null,null,null,null,null,null,null,null,null,null,null,null,null,null,null,null,null,null,null,null,null,null,null,null,null,null,null,null,null,null,null,null,null,{"$f":"M183=Sprachen!$L$4","v":false},0,{"$f":"O183=Sprachen!$L$4","v":false}]
["4.5",null,null,{"$f":"Sprachen!L274","v":"kapacita výroby"},null,null,null,null,null,null,null,null,null,null,null,null,null,null,null,null,null,null,null,null,null,null,null,null,null,null,null,null,null,null,null,null,null,null,null,null,null,null,{"$f":"M184=Sprachen!$L$4","v":false},0,{"$f":"O184=Sprachen!$L$4","v":false}]
["4.6",null,null,{"$f":"Sprachen!L372","v":"nástroje (počet kusů/počet hnízd a informace o koncepci nástrojů"},null,null,null,null,null,null,null,null,null,null,null,null,null,null,null,null,null,null,null,null,null,null,null,null,null,null,null,null,null,null,null,null,null,null,null,null,null,null,{"$f":"M185=Sprachen!$L$4","v":false},0,{"$f":"O185=Sprachen!$L$4","v":false}]
["5. ",null,null,{"$f":"Sprachen!L152","v":"všeobecné důkazy"}]
["5.1",null,null,{"$f":"Sprachen!L226","v":"důkazy o dodržení požadavků právních předpisů"},null,null,null,null,null,null,null,null,{"$f":"IF(OR(AU1=\"X\",AU2=\"X\"),Sprachen!L4,\"\")","v":""},null,{"$f":"IF(M187=Sprachen!L4,Sprachen!L4,\"\")","v":""},null,null,null,null,null,null,null,null,null,null,null,null,null,null,null,null,null,null,null,null,null,null,null,null,null,null,null,{"$f":"M187=Sprachen!$L$4","v":false},{"$f":"COUNTIF(Q187:T187,\"X\")","v":0},{"$f":"O187=Sprachen!$L$4","v":false}]
["5.2",null,null,{"$f":"Sprachen!L264","v":"status PPF dodavatelského řetězce"},null,null,null,null,null,null,null,null,null,null,null,null,null,null,null,null,null,null,null,null,null,null,null,null,null,null,null,null,null,null,null,null,null,null,null,null,null,null,{"$f":"M188=Sprachen!$L$4","v":false},{"$f":"COUNTIF(Q188:T188,\"X\")","v":0},{"$f":"O188=Sprachen!$L$4","v":false}]
["5.3",null,null,{"$f":"Sprachen!L292","v":"seznam měřidel k produktu a výrobnímu procesu"},null,null,null,null,null,null,null,null,null,null,null,null,null,null,null,null,null,null,null,null,null,null,null,null,null,null,null,null,null,null,null,null,null,null,null,null,null,null,{"$f":"M189=Sprachen!$L$4","v":false},0,{"$f":"O189=Sprachen!$L$4","v":false}]
[null,null,null,null,{"$f":"Sprachen!L288","v":"zkušební/měřící protokol příp. přejímací protokol pro šablony"},null,null,null,null,null,null,null,null,null,null,null,null,null,null,null,null,null,null,null,null,null,null,null,null,null,null,null,null,null,null,null,null,null,null,null,null,null,{"$f":"M190=Sprachen!$L$4","v":false},0,{"$f":"O190=Sprachen!$L$4","v":false}]
["5.4",null,null,{"$f":"Sprachen!L291","v":"důkaz o způsobilosti měřidel pro produkt a výrobní proces"},null,null,null,null,null,null,null,null,null,null,null,null,null,null,null,null,null,null,null,null,null,null,null,null,null,null,null,null,null,null,null,null,null,null,null,null,null,null,{"$f":"M191=Sprachen!$L$4","v":false},0,{"$f":"O191=Sprachen!$L$4","v":false}]
["5.5",null,null,{"$f":"Sprachen!L341","v":"životopis dílu"},null,null,null,null,null,null,null,null,{"$f":"IF(AU1=\"X\",Sprachen!L4,\"\")","v":""},null,{"$f":"IF(M192=Sprachen!L4,Sprachen!L4,\"\")","v":""},null,null,null,null,null,null,null,null,null,null,null,null,null,null,null,null,null,null,null,null,null,null,null,null,null,null,null,{"$f":"M192=Sprachen!$L$4","v":false},0,{"$f":"O192=Sprachen!$L$4","v":false}]
["5.6",null,null,{"$f":"Sprachen!L113","v":"důkaz o vhodnosti nasazených balících jednotek, včetně skladování"},null,null,null,null,null,null,null,null,null,null,null,null,null,null,null,null,null,null,null,null,null,null,null,null,null,null,null,null,null,null,null,null,null,null,null,null,null,null,{"$f":"M193=Sprachen!$L$4","v":false},0,{"$f":"O193=Sprachen!$L$4","v":false}]
["5.7",null,null,{"$f":"Sprachen!L107","v":"dokumentace dohod k procesu posuzování a analýz:\n- zpracování reklamací (např. 8D)\n- analýza vadných dílů z provozu "},null,null,null,null,null,null,null,null,null,null,null,null,null,null,null,null,null,null,null,null,null,null,null,null,null,null,null,null,null,null,null,null,null,null,null,null,null,null,{"$f":"M194=Sprachen!$L$4","v":false},0,{"$f":"O194=Sprachen!$L$4","v":false}]
["5.8",null,null,{"$f":"Sprachen!L106","v":"dokumentace dohody o rekvalifikačních zkouškách"},null,null,null,null,null,null,null,null,null,null,null,null,null,null,null,null,null,null,null,null,null,null,null,null,null,null,null,null,null,null,null,null,null,null,null,null,null,null,{"$f":"M195=Sprachen!$L$4","v":false},0,{"$f":"O195=Sprachen!$L$4","v":false}]
["5.9",null,null,{"$f":"Sprachen!L327","v":"jiné"},null,null,null,null,null,null,null,null,null,null,null,null,null,null,null,null,null,null,null,null,null,null,null,null,null,null,null,null,null,null,null,null,null,null,null,null,null,null,{"$f":"M196=Sprachen!$L$4","v":false},0,{"$f":"O196=Sprachen!$L$4","v":false}]
["6. ",null,null,{"$f":"Sprachen!L230","v":"důkazy k softwaru"}]
[{"$f":"Sprachen!L325","v":"vyžadováno uvolnění softwaru"}]
["6.1",null,null,{"$f":"Sprachen!L331","v":"uvolnění nasazení softwaru (např. příloha 5 \"krycí list PPF k softwaru\""},null,null,null,null,null,null,null,null,{"$f":"IF(AU2=\"X\",Sprachen!L4,\"\")","v":""},null,{"$f":"IF(AU2=\"X\",Sprachen!L4,\"\")","v":""},null,null,null,null,null,null,null,null,null,null,null,null,null,null,null,null,null,null,null,null,null,null,null,null,null,null,null,{"$f":"M199=Sprachen!$L$4","v":false},{"$f":"COUNTIF(Q199:T199,\"X\")","v":0},{"$f":"O199=Sprachen!$L$4","v":false}]
["6.2",null,null,{"$f":"Sprachen!L138","v":"stanovení rozsahu (\"scope\") SW produktu, který má být dodáván"},null,null,null,null,null,null,null,null,{"$f":"IF(AU2=\"X\",Sprachen!L4,\"\")","v":""},null,{"$f":"IF(AU2=\"X\",Sprachen!L4,\"\")","v":""},null,null,null,null,null,null,null,null,null,null,null,null,null,null,null,null,null,null,null,null,null,null,null,null,null,null,null,{"$f":"M200=Sprachen!$L$4","v":false},{"$f":"COUNTIF(Q200:T200,\"X\")","v":0},{"$f":"O200=Sprachen!$L$4","v":false}]
["6.3",null,null,{"$f":"Sprachen!L297","v":"odkaz na smluvně stanovené požadavky na kvalitu (např. značení, kódy, pokrytí testy)"},null,null,null,null,null,null,null,null,{"$f":"IF(AU2=\"X\",Sprachen!L4,\"\")","v":""},null,{"$f":"IF(AU2=\"X\",Sprachen!L4,\"\")","v":""},null,null,null,null,null,null,null,null,null,null,null,null,null,null,null,null,null,null,null,null,null,null,null,null,null,null,null,{"$f":"M201=Sprachen!$L$4","v":false},0,{"$f":"O201=Sprachen!$L$4","v":false}]
["6.4",null,null,{"$f":"Sprachen!L105","v":"dokumentace technických specifikací SW"},null,null,null,null,null,null,null,null,null,null,null,null,null,null,null,null,null,null,null,null,null,null,null,null,null,null,null,null,null,null,null,null,null,null,null,null,null,null,{"$f":"M202=Sprachen!$L$4","v":false},0,{"$f":"O202=Sprachen!$L$4","v":false}]
["6.5",null,null,{"$f":"Sprachen!L223","v":"důkaz o realizaci požadavků 6.3 a 6.4 "},null,null,null,null,null,null,null,null,null,null,null,null,null,null,null,null,null,null,null,null,null,null,null,null,null,null,null,null,null,null,null,null,null,null,null,null,null,null,{"$f":"M203=Sprachen!$L$4","v":false},0,{"$f":"O203=Sprachen!$L$4","v":false}]
["6.6",null,null,{"$f":"Sprachen!L111","v":"dokumentace FOSS (volný a otevřený SW)"},null,null,null,null,null,null,null,null,{"$f":"IF(AU2=\"X\",Sprachen!L4,\"\")","v":""},null,{"$f":"IF(AU2=\"X\",Sprachen!L4,\"\")","v":""},null,null,null,null,null,null,null,null,null,null,null,null,null,null,null,null,null,null,null,null,null,null,null,null,null,null,null,{"$f":"M204=Sprachen!$L$4","v":false},0,{"$f":"O204=Sprachen!$L$4","v":false}]
["6.7",null,null,{"$f":"Sprachen!L200","v":"výpis známých chyb"},null,null,null,null,null,null,null,null,{"$f":"IF(AU2=\"X\",Sprachen!L4,\"\")","v":""},null,{"$f":"IF(AU2=\"X\",Sprachen!L4,\"\")","v":""},null,null,null,null,null,null,null,null,null,null,null,null,null,null,null,null,null,null,null,null,null,null,null,null,null,null,null,{"$f":"M205=Sprachen!$L$4","v":false},0,{"$f":"O205=Sprachen!$L$4","v":false}]
["6.8",null,null,{"$f":"Sprachen!L108","v":"dokumentace nástrojů vývoje použitých během celkového průběhu projektu"},null,null,null,null,null,null,null,null,null,null,null,null,null,null,null,null,null,null,null,null,null,null,null,null,null,null,null,null,null,null,null,null,null,null,null,null,null,null,{"$f":"M206=Sprachen!$L$4","v":false},0,{"$f":"O206=Sprachen!$L$4","v":false}]
["6.9",null,null,{"$f":"Sprachen!L109","v":"dokumentace nástrojů testování použitých během celkového průběhu projektu"},null,null,null,null,null,null,null,null,null,null,null,null,null,null,null,null,null,null,null,null,null,null,null,null,null,null,null,null,null,null,null,null,null,null,null,null,null,null,{"$f":"M207=Sprachen!$L$4","v":false},0,{"$f":"O207=Sprachen!$L$4","v":false}]
["6.10",null,null,{"$f":"Sprachen!L110","v":"dokumentace managementu verzí (základní provedení, konfigurace, změny)"},null,null,null,null,null,null,null,null,null,null,null,null,null,null,null,null,null,null,null,null,null,null,null,null,null,null,null,null,null,null,null,null,null,null,null,null,null,null,{"$f":"M208=Sprachen!$L$4","v":false},0,{"$f":"O208=Sprachen!$L$4","v":false}]
["6.11",null,null,{"$f":"Sprachen!L221","v":"důkaz o hodnocení procesu (např. Automotive SPICE)"},null,null,null,null,null,null,null,null,null,null,null,null,null,null,null,null,null,null,null,null,null,null,null,null,null,null,null,null,null,null,null,null,null,null,null,null,null,null,{"$f":"M209=Sprachen!$L$4","v":false},0,{"$f":"O209=Sprachen!$L$4","v":false}]
[null,null,null,{"$f":"Sprachen!L284","v":"požadována přejímka procesu"}]
[null,null,null,{"$f":"Sprachen!L193","v":"požadována účast zákazníka při přejímce procesu"},null,null,null,null,null,null,null,null,"ano",null,{"$f":"Sprachen!L359","v":"dohodnutý postup (např. doba trvání příp. počet testovaných dílů)"}]
[null,null,null,{"$f":"Sprachen!L293","v":"zkoušky u zákazníka"}]
[{"$f":"Sprachen!L49","v":"použití"},null,null,{"$f":"Sprachen!L293","v":"zkoušky u zákazníka"},null,null,null,null,null,null,null,null,{"$f":"Sprachen!L51","v":"počet vzorků"},null,{"$f":"Sprachen!L92","v":"doba ttvání v pracovních dnech"},null,{"$f":"Sprachen!L57","v":"postup PPF"},null,{"$f":"Sprachen!L351","v":"varianty PPF"},null,{"$f":"Sprachen!L310","v":"krok odstupňovaného PPF"},null,null,null,null,null,null,null,{"$f":"Sprachen!L381","v":"součást rekvalifikací"},null,{"$f":"Sprachen!L48","v":"kontaktní osoba u zákazníka"}]
[null,null,null,null,null,null,null,null,null,null,null,null,null,null,null,null,null,null,null,null,{"$f":"Sprachen!L306","v":"stupeň 1"},null,{"$f":"Sprachen!L307","v":"stupeň 2"},null,{"$f":"Sprachen!L308","v":"stupeň 3"},null,{"$f":"Sprachen!L309","v":"stupeň 4"},null,null,null,null,null,null,null,null,null,null,null,null,null,null,null,"Anforderung vorhanden","Auswahl erfolgt","Vorlage erforderlich"]
[null,null,null,{"$f":"Sprachen!L205","v":"rozměry"},null,null,null,null,null,null,null,null,null,null,null,null,null,null,null,null,null,null,null,null,null,null,null,null,null,null,null,null,null,null,null,null,null,null,null,null,null,null,{"$f":"A215=Sprachen!$L$4","v":false},{"$f":"COUNTIF(Q215:AB215,\"X\")","v":0},{"$f":"O215=Sprachen!$L$4","v":false}]
[null,null,null,{"$f":"Sprachen!L144","v":"funkce"},null,null,null,null,null,null,null,null,null,null,null,null,null,null,null,null,null,null,null,null,null,null,null,null,null,null,null,null,null,null,null,null,null,null,null,null,null,null,{"$f":"A216=Sprachen!$L$4","v":false},0,{"$f":"O216=Sprachen!$L$4","v":false}]
[null,null,null,{"$f":"Sprachen!L355","v":"zástavbové zkoušky"},null,null,null,null,null,null,null,null,null,null,null,null,null,null,null,null,null,null,null,null,null,null,null,null,null,null,null,null,null,null,null,null,null,null,null,null,null,null,{"$f":"A217=Sprachen!$L$4","v":false},0,{"$f":"O217=Sprachen!$L$4","v":false}]
[null,null,null,{"$f":"Sprachen!L367","v":"materál"},null,null,null,null,null,null,null,null,null,null,null,null,null,null,null,null,null,null,null,null,null,null,null,null,null,null,null,null,null,null,null,null,null,null,null,null,null,null,{"$f":"A218=Sprachen!$L$4","v":false},0,{"$f":"O218=Sprachen!$L$4","v":false}]
[null,null,null,{"$f":"Sprachen!L185","v":"koroze"},null,null,null,null,null,null,null,null,null,null,null,null,null,null,null,null,null,null,null,null,null,null,null,null,null,null,null,null,null,null,null,null,null,null,null,null,null,null,{"$f":"A219=Sprachen!$L$4","v":false},0,{"$f":"O219=Sprachen!$L$4","v":false}]
[null,null,null,{"$f":"Sprachen!L195","v":"technika lakování"},null,null,null,null,null,null,null,null,null,null,null,null,null,null,null,null,null,null,null,null,null,null,null,null,null,null,null,null,null,null,null,null,null,null,null,null,null,null,{"$f":"A220=Sprachen!$L$4","v":false},0,{"$f":"O220=Sprachen!$L$4","v":false}]
[null,null,null,{"$f":"Sprachen!L133","v":"barevný tón"},null,null,null,null,null,null,null,null,null,null,null,null,null,null,null,null,null,null,null,null,null,null,null,null,null,null,null,null,null,null,null,null,null,null,null,null,null,null,{"$f":"A221=Sprachen!$L$4","v":false},0,{"$f":"O221=Sprachen!$L$4","v":false}]
[null,null,null,{"$f":"Sprachen!L251","v":"povrch, dezén"},null,null,null,null,null,null,null,null,null,null,null,null,null,null,null,null,null,null,null,null,null,null,null,null,null,null,null,null,null,null,null,null,null,null,null,null,null,null,{"$f":"A222=Sprachen!$L$4","v":false},0,{"$f":"O222=Sprachen!$L$4","v":false}]
[null,null,null,{"$f":"Sprachen!L282","v":"proces"},null,null,null,null,null,null,null,null,null,null,null,null,null,null,null,null,null,null,null,null,null,null,null,null,null,null,null,null,null,null,null,null,null,null,null,null,null,null,{"$f":"A223=Sprachen!$L$4","v":false},0,{"$f":"O223=Sprachen!$L$4","v":false}]
[null,null,null,null,null,null,null,null,null,null,null,null,null,null,null,null,null,null,null,null,null,null,null,null,null,null,null,null,null,null,null,null,null,null,null,null,null,null,null,null,null,null,{"$f":"A224=Sprachen!$L$4","v":false},0,{"$f":"O224=Sprachen!$L$4","v":false}]
[null,null,null,null,null,null,null,null,null,null,null,null,null,null,null,null,null,null,null,null,null,null,null,null,null,null,null,null,null,null,null,null,null,null,null,null,null,null,null,null,null,null,{"$f":"A225=Sprachen!$L$4","v":false},0,{"$f":"O225=Sprachen!$L$4","v":false}]
[null,null,null,null,null,null,null,null,null,null,null,null,null,null,null,null,null,null,null,null,null,null,null,null,null,null,null,null,null,null,null,null,null,null,null,null,null,null,null,null,null,null,{"$f":"A226=Sprachen!$L$4","v":false},0,{"$f":"O226=Sprachen!$L$4","v":false}]
[null,null,null,null,null,null,null,null,null,null,null,null,null,null,null,null,null,null,null,null,null,null,null,null,null,null,null,null,null,null,null,null,null,null,null,null,null,null,null,null,null,null,{"$f":"A227=Sprachen!$L$4","v":false},0,{"$f":"O227=Sprachen!$L$4","v":false}]
[null,null,null,null,null,null,null,null,null,null,null,null,null,null,null,null,null,null,null,null,null,null,null,null,null,null,null,null,null,null,null,null,null,null,null,null,null,null,null,null,null,null,{"$f":"A228=Sprachen!$L$4","v":false},0,{"$f":"O228=Sprachen!$L$4","v":false}]
[null,null,null,null,null,null,null,null,null,null,null,null,null,null,null,null,null,null,null,null,null,null,null,null,null,null,null,null,null,null,null,null,null,null,null,null,null,null,null,null,null,null,{"$f":"A229=Sprachen!$L$4","v":false},0,{"$f":"O229=Sprachen!$L$4","v":false}]
[null,null,null,null,null,null,null,null,null,null,null,null,null,null,null,null,null,null,null,null,null,null,null,null,null,null,null,null,null,null,null,null,null,null,null,null,null,null,null,null,null,null,{"$f":"A230=Sprachen!$L$4","v":false},0,{"$f":"O230=Sprachen!$L$4","v":false}]
[null,null,null,null,null,null,null,null,null,null,null,null,null,null,null,null,null,null,null,null,null,null,null,null,null,null,null,null,null,null,null,null,null,null,null,null,null,null,null,null,null,null,{"$f":"A231=Sprachen!$L$4","v":false},0,{"$f":"O231=Sprachen!$L$4","v":false}]
[null,null,null,null,null,null,null,null,null,null,null,null,null,null,null,null,null,null,null,null,null,null,null,null,null,null,null,null,null,null,null,null,null,null,null,null,null,null,null,null,null,null,{"$f":"A232=Sprachen!$L$4","v":false},0,{"$f":"O232=Sprachen!$L$4","v":false}]
[null,null,null,null,null,null,null,null,null,null,null,null,null,null,null,null,null,null,null,null,null,null,null,null,null,null,null,null,null,null,null,null,null,null,null,null,null,null,null,null,null,null,{"$f":"A233=Sprachen!$L$4","v":false},0,{"$f":"O233=Sprachen!$L$4","v":false}]
[null,null,{"$f":"Sprachen!L376","v":"poskytnuté díly na rozhraní a pomocný materiál na rozhraní "}]
[null,null,{"$f":"Sprachen!L365","v":"poskytuje organizace"},null,null,null,null,null,null,null,null,null,null,null,null,null,null,null,null,null,{"$f":"Sprachen!L158","v":"příp. seznam dotčených čísel dílů v příloze"}]
[null,null,{"$f":"Sprachen!L65","v":"název"},null,null,null,null,null,null,null,null,{"$f":"Sprachen!L304","v":"číslo dílu"},null,null,null,null,{"$f":"Sprachen!L361","v":"verze/datum"},null,null,null,{"$f":"Sprachen!L70","v":"termín poskytnutí"},null,null,null,null,{"$f":"Sprachen!L69","v":"doba přípravy"},null,null,null,null,null,null,{"$f":"Sprachen!L179","v":"komentář"}]
[null,null,null,null,null,null,null,null,null,null,null,null,null,null,null,null,null,null,null,null,null,null,null,null,null,null,null,null,null,null,null,null,null,null,null,null,null,null,null,null,null,null,{"$f":"COUNTA(C237:AP237)","v":0}]
[null,null,null,null,null,null,null,null,null,null,null,null,null,null,null,null,null,null,null,null,null,null,null,null,null,null,null,null,null,null,null,null,null,null,null,null,null,null,null,null,null,null,{"$f":"COUNTA(C238:AP238)","v":0}]
[null,null,null,null,null,null,null,null,null,null,null,null,null,null,null,null,null,null,null,null,null,null,null,null,null,null,null,null,null,null,null,null,null,null,null,null,null,null,null,null,null,null,0]
[null,null,null,null,null,null,null,null,null,null,null,null,null,null,null,null,null,null,null,null,null,null,null,null,null,null,null,null,null,null,null,null,null,null,null,null,null,null,null,null,null,null,0]
[null,null,null,null,null,null,null,null,null,null,null,null,null,null,null,null,null,null,null,null,null,null,null,null,null,null,null,null,null,null,null,null,null,null,null,null,null,null,null,null,null,null,0]
[null,null,null,null,null,null,null,null,null,null,null,null,null,null,null,null,null,null,null,null,null,null,null,null,null,null,null,null,null,null,null,null,null,null,null,null,null,null,null,null,null,null,0]
[null,null,null,null,null,null,null,null,null,null,null,null,null,null,null,null,null,null,null,null,null,null,null,null,null,null,null,null,null,null,null,null,null,null,null,null,null,null,null,null,null,null,0]
[null,null,{"$f":"Sprachen!L363","v":"poskytuje zákazník"},null,null,null,null,null,null,null,null,null,null,null,null,null,null,null,null,null,{"$f":"Sprachen!L158","v":"příp. seznam dotčených čísel dílů v příloze"}]
[null,null,{"$f":"Sprachen!L65","v":"název"},null,null,null,null,null,null,null,null,{"$f":"Sprachen!L304","v":"číslo dílu"},null,null,null,null,{"$f":"Sprachen!L361","v":"verze/datum"},null,null,null,{"$f":"Sprachen!L70","v":"termín poskytnutí"},null,null,null,null,{"$f":"Sprachen!L69","v":"doba přípravy"},null,null,null,null,null,null,{"$f":"Sprachen!L179","v":"komentář"}]
[null,null,null,null,null,null,null,null,null,null,null,null,null,null,null,null,null,null,null,null,null,null,null,null,null,null,null,null,null,null,null,null,null,null,null,null,null,null,null,null,null,null,{"$f":"COUNTA(C246:AP246)","v":0}]
[null,null,null,null,null,null,null,null,null,null,null,null,null,null,null,null,null,null,null,null,null,null,null,null,null,null,null,null,null,null,null,null,null,null,null,null,null,null,null,null,null,null,{"$f":"COUNTA(C247:AP247)","v":0}]
[null,null,null,null,null,null,null,null,null,null,null,null,null,null,null,null,null,null,null,null,null,null,null,null,null,null,null,null,null,null,null,null,null,null,null,null,null,null,null,null,null,null,0]
[null,null,null,null,null,null,null,null,null,null,null,null,null,null,null,null,null,null,null,null,null,null,null,null,null,null,null,null,null,null,null,null,null,null,null,null,null,null,null,null,null,null,0]
[null,null,null,null,null,null,null,null,null,null,null,null,null,null,null,null,null,null,null,null,null,null,null,null,null,null,null,null,null,null,null,null,null,null,null,null,null,null,null,null,null,null,0]
[null,null,null,null,null,null,null,null,null,null,null,null,null,null,null,null,null,null,null,null,null,null,null,null,null,null,null,null,null,null,null,null,null,null,null,null,null,null,null,null,null,null,0]
[null,null,null,null,null,null,null,null,null,null,null,null,null,null,null,null,null,null,null,null,null,null,null,null,null,null,null,null,null,null,null,null,null,null,null,null,null,null,null,null,null,null,0]
[null,null,{"$f":"Sprachen!L382","v":"odsouhlasení rekvalifikací"}]
[null,null,{"$f":"Sprachen!L383","v":"intervaly rekvalifikací"}]
[null,null,{"$f":"Sprachen!L384","v":"předání zákazníkovi"},null,null,null,null,null,null,null,null,null,null,{"$f":"Sprachen!L48","v":"kontaktní osoba u zákazníka"}]
[null,null,null,{"$f":"Sprachen!L385","v":"pouze důkaz"},null,null,null,null,null,null,null,null,null,{"$f":"Sprachen!L234","v":"jméno "},null,null,null,null,null,null,null,null,null,null,null,null,null,null,null,{"$f":"Sprachen!L20","v":"oddělení"}]
[null,null,null,{"$f":"Sprachen!L386","v":"dokumentace"},null,null,null,null,null,null,null,null,null,{"$f":"Sprachen!L119","v":"e-mail/fax č."}]
[null,null,{"$f":"Sprachen!L387","v":"pokud dojde během rekvalifikací k odchylkám od specifikace, musí být v každém případě informován zákazník"}]
[{"$f":"Sprachen!L181","v":"komentář organizace"}]
[]
[{"$f":"Sprachen!L84","v":"potvrzení organizací"}]
[{"$f":"Sprachen!L234","v":"jméno "},null,null,null,null,null,null,null,{"$f":"IF(H24<>\"\",H24,\"\")","v":""},null,null,null,null,null,null,null,null,null,null,null,null,{"$f":"Sprachen!L61","v":"poznámka"}]
[{"$f":"Sprachen!L20","v":"oddělení"}]
[{"$f":"Sprachen!L343","v":"telefon"},null,null,null,null,null,null,null,{"$f":"IF(U24<>\"\",U24,\"\")","v":""}]
[{"$f":"Sprachen!L119","v":"e-mail/fax č."},null,null,null,null,null,null,null,{"$f":"IF(AB24<>\"\",AB24,\"\")","v":""}]
[{"$f":"Sprachen!L91","v":"datum"},null,null,null,null,null,null,null,null,null,null,null,null,null,null,null,null,null,null,null,null,{"$f":"Sprachen!L348","v":"podpis"}]
[{"$f":"Sprachen!L180","v":"komentář zákazníka"}]
[]
[{"$f":"Sprachen!L83","v":"potvrzení zákazníkem"}]
[{"$f":"Sprachen!L234","v":"jméno "},null,null,null,null,null,null,null,{"$f":"IF(H15<>\"\",H15,\"\")","v":""},null,null,null,null,null,null,null,null,null,null,null,null,{"$f":"Sprachen!L61","v":"poznámka"}]
[{"$f":"Sprachen!L20","v":"oddělení"}]
[{"$f":"Sprachen!L343","v":"telefon"},null,null,null,null,null,null,null,{"$f":"IF(U15<>\"\",U15,\"\")","v":""}]
[{"$f":"Sprachen!L119","v":"e-mail/fax č."},null,null,null,null,null,null,null,{"$f":"IF(AB15<>\"\",AB15,\"\")","v":""}]
[{"$f":"Sprachen!L91","v":"datum"},null,null,null,null,null,null,null,null,null,null,null,null,null,null,null,null,null,null,null,null,{"$f":"Sprachen!L348","v":"podpis"}]

{"sheet":"Anlage 3 Selbstb. Produkt","index":1,"n_rows":32,"n_cols":46,"rows_kept":32,"cut":false,"hidden":false,"merged":[[21,30,21,31],[22,30,22,31],[21,32,22,39],[23,30,23,31],[24,30,24,31],[23,32,24,39],[31,26,31,39],[29,8,29,20],[30,0,30,7],[30,8,30,20],[31,0,31,7],[31,8,31,20],[31,21,31,25],[25,0,25,17],[25,18,25,39],[26,0,26,39],[27,0,27,7],[27,8,27,20],[27,21,30,25],[27,26,30,39],[28,0,28,7],[28,8,28,20],[29,0,29,7],[23,0,24,5],[23,6,23,13],[23,14,23,21],[23,22,23,29],[24,6,24,13],[24,14,24,21],[24,22,24,29],[21,0,22,5],[21,6,21,13],[21,14,21,21],[21,22,21,29],[22,6,22,13],[22,14,22,21],[22,22,22,29],[19,0,20,5],[15,0,16,5],[15,6,15,13],[15,14,15,21],[15,22,15,29],[16,6,16,13],[16,14,16,21],[16,22,16,29],[19,6,19,13],[19,14,19,21],[19,22,19,29],[20,6,20,13],[20,14,20,21],[20,22,20,29],[17,0,18,5],[17,6,17,13],[17,14,17,21],[17,22,17,29],[12,30,12,31],[12,32,12,39],[13,30,13,31],[14,30,14,31],[13,32,14,39],[17,45,20,45],[18,6,18,13],[18,14,18,21],[18,22,18,29],[15,30,15,31],[16,30,16,31],[15,32,16,39],[17,30,17,31],[18,30,18,31],[17,32,18,39],[19,30,19,31],[20,30,20,31],[19,32,20,39],[13,0,14,5],[13,6,13,13],[13,14,13,21],[13,22,13,29],[14,6,14,13],[14,14,14,21],[14,22,14,29],[11,0,11,13],[12,0,12,5],[12,6,12,13],[12,14,12,21],[12,22,12,29],[10,0,10,6],[10,7,10,13],[10,14,10,20],[10,21,10,26],[10,27,10,33],[10,34,10,39],[9,0,9,6],[9,7,9,13],[9,14,9,20],[9,21,9,26],[9,27,9,33],[9,34,9,39],[8,0,8,6],[8,7,8,13],[8,14,8,20],[8,21,8,26],[8,27,8,33],[8,34,8,39],[7,0,7,6],[7,7,7,13],[7,14,7,20],[7,21,7,26],[7,27,7,33],[7,34,7,39],[6,0,6,6],[6,7,6,13],[6,14,6,20],[6,21,6,26],[6,27,6,33],[6,34,6,39],[5,0,5,6],[5,7,5,13],[5,14,5,20],[5,21,5,26],[5,27,5,33],[5,34,5,39],[0,0,1,12],[1,13,1,19],[1,20,1,39],[2,0,2,13],[2,14,2,26],[2,27,2,39],[3,0,3,6],[3,7,3,13],[3,14,3,20],[3,21,3,26],[3,27,4,33],[4,0,4,6],[4,7,4,13],[4,14,4,20],[4,21,4,26],[3,34,4,39],[0,13,0,39]]}
[{"$f":"Sprachen!L312","v":"sebehodnocení produktu"},null,null,null,null,null,null,null,null,null,null,null,null,null,null,null,null,null,null,null,null,null,null,null,null,null,null,null,null,null,null,null,null,null,null,null,null,null,null,null,null,"Sprachauswahl"]
[null,null,null,null,null,null,null,null,null,null,null,null,null,{"$f":"Sprachen!L255","v":"organizace"},null,null,null,null,null,null,{"$f":"IF('Anlage 4 Deckblatt'!U2<>\"\",'Anlage 4 Deckblatt'!U2,\"\")","v":""}]
[{"$f":"Sprachen!L46","v":"údaje organizace"},null,null,null,null,null,null,null,null,null,null,null,null,null,{"$f":"Sprachen!L44","v":"údaje o vzorcích"},null,null,null,null,null,null,null,null,null,null,null,null,{"$f":"Sprachen!L45","v":"údaje zákazníka"}]
[{"$f":"Sprachen!L75","v":"číslo zprávy"},null,null,null,null,null,null,{"$f":"IF('Anlage 4 Deckblatt'!H16<>\"\",'Anlage 4 Deckblatt'!H16,\"\")","v":""},null,null,null,null,null,null,{"$f":"Sprachen!L198","v":"číslo dodacího listu"},null,null,null,null,null,null,null,null,null,null,null,null,{"$f":"Sprachen!L187","v":"zákazník"},null,null,null,null,null,null,{"$f":"IF('Anlage 4 Deckblatt'!A10<>\"\",'Anlage 4 Deckblatt'!A10,\"\")","v":""}]
[{"$f":"Sprachen!L77","v":"verze zprávy"},null,null,null,null,null,null,{"$f":"IF('Anlage 4 Deckblatt'!H17<>\"\",'Anlage 4 Deckblatt'!H17,\"\")","v":""},null,null,null,null,null,null,{"$f":"Sprachen!L197","v":"dodané množství"}]
[{"$f":"Sprachen!L199","v":"místo odeslání"},null,null,null,null,null,null,{"$f":"IF('Anlage 4 Deckblatt'!H18<>\"\",'Anlage 4 Deckblatt'!H18,\"\")","v":""},null,null,null,null,null,null,{"$f":"Sprachen!L89","v":"číslo šarže"},null,null,null,null,null,null,null,null,null,null,null,null,{"$f":"Sprachen!L87","v":"číslo objednávky vzorků PPF"}]
[{"$f":"Sprachen!L276","v":"výrobní místo"},null,null,null,null,null,null,{"$f":"IF('Anlage 4 Deckblatt'!H19<>\"\",'Anlage 4 Deckblatt'!H19,\"\")","v":""},null,null,null,null,null,null,{"$f":"Sprachen!L217","v":"hmotnost vzorku (kg)"},null,null,null,null,null,null,null,null,null,null,null,null,{"$f":"Sprachen!L14","v":"místo dodání"},null,null,null,null,null,null,{"$f":"IF('Anlage 2 PPF Abstimmung'!AB8<>\"\",'Anlage 2 PPF Abstimmung'!AB8,\"\")","v":""}]
[{"$f":"Sprachen!L304","v":"číslo dílu"},null,null,null,null,null,null,{"$f":"IF('Anlage 4 Deckblatt'!H20<>\"\",'Anlage 4 Deckblatt'!H20,\"\")","v":""},null,null,null,null,null,null,{"$f":"Sprachen!L166","v":"verze hardwaru"},null,null,null,null,null,null,null,null,null,null,null,null,{"$f":"Sprachen!L304","v":"číslo dílu"},null,null,null,null,null,null,{"$f":"IF('Anlage 4 Deckblatt'!AI20<>\"\",'Anlage 4 Deckblatt'!AI20,\"\")","v":""}]
[{"$f":"Sprachen!L65","v":"název"},null,null,null,null,null,null,{"$f":"IF('Anlage 4 Deckblatt'!H21<>\"\",'Anlage 4 Deckblatt'!H21,\"\")","v":""},null,null,null,null,null,null,{"$f":"Sprachen!L98","v":"status diagnózy"},null,null,null,null,null,null,null,null,null,null,null,null,{"$f":"Sprachen!L65","v":"název"},null,null,null,null,null,null,{"$f":"IF('Anlage 4 Deckblatt'!AI21<>\"\",'Anlage 4 Deckblatt'!AI21,\"\")","v":""}]
[{"$f":"Sprachen!L374","v":"číslo výkresu"},null,null,null,null,null,null,{"$f":"IF('Anlage 4 Deckblatt'!H22<>\"\",'Anlage 4 Deckblatt'!H22,\"\")","v":""},null,null,null,null,null,null,{"$f":"Sprachen!L326","v":"verze softwaru"},null,null,null,null,null,null,null,null,null,null,null,null,{"$f":"Sprachen!L374","v":"číslo výkresu"},null,null,null,null,null,null,{"$f":"IF('Anlage 4 Deckblatt'!AI22<>\"\",'Anlage 4 Deckblatt'!AI22,\"\")","v":""}]
[{"$f":"Sprachen!L361","v":"verze/datum"},null,null,null,null,null,null,{"$f":"IF('Anlage 4 Deckblatt'!H23<>\"\",'Anlage 4 Deckblatt'!H23,\"\")","v":""},null,null,null,null,null,null,{"$f":"Sprachen!L177","v":"identifikace/DUNS"},null,null,null,null,null,null,{"$f":"IF('Anlage 2 PPF Abstimmung'!H10<>\"\",'Anlage 2 PPF Abstimmung'!H10,\"\")","v":""},null,null,null,null,null,{"$f":"Sprachen!L361","v":"verze/datum"},null,null,null,null,null,null,{"$f":"IF('Anlage 4 Deckblatt'!AI23<>\"\",'Anlage 4 Deckblatt'!AI23,\"\")","v":""}]
["díl s povinností zvláštní archivace"]
[{"$f":"Sprachen!L172","v":"kategorie"},null,null,null,null,null,{"$f":"Sprachen!L6","v":"požadavky zcela splněny"},null,null,null,null,null,null,null,{"$f":"Sprachen!L7","v":"některé požadavky nejsou splněny"},null,null,null,null,null,null,null,{"$f":"Sprachen!L8","v":"požadavky nesplněny"},null,null,null,null,null,null,null,{"$f":"Sprachen!L380","v":"není aplikovatelné"},null,{"$f":"Sprachen!L63","v":"poznámka/opatření + termín (pokud  není zvoleno i.O)"},null,null,null,null,null,null,null,"grün","gelb","rot","NA"]
[{"$f":"Sprachen!L205","v":"rozměry"},null,null,null,null,null,{"$f":"Sprachen!L206","v":"rozměry v pořádku (i.O), bez přepracování"},null,null,null,null,null,null,null,{"$f":"Sprachen!L207","v":"rozměry v pořádku (i.O), s přepracováním, nebo nekritické hodnoty nejsou v pořádku (n.i. O.)"},null,null,null,null,null,null,null,{"$f":"Sprachen!L208","v":"rozměry nejsou v pořádku (n.i. O.)"}]
[null,null,null,null,null,null,null,null,null,null,null,null,null,null,null,null,null,null,null,null,null,null,null,null,null,null,null,null,null,null,null,null,null,null,null,null,null,null,null,null,{"$f":"G15=\"X\"","v":false},{"$f":"O15=\"X\"","v":false},{"$f":"W15=\"X\"","v":false},{"$f":"AE15=\"X\"","v":false},{"$f":"COUNTIF(AO15:AR15,TRUE)","v":0}]
[{"$f":"Sprachen!L367","v":"materál"},null,null,null,null,null,{"$f":"Sprachen!L315","v":"sériový materiál podle specifikace"},null,null,null,null,null,null,null,{"$f":"Sprachen!L175","v":"nesériový materiál nebo jiné zpracování, akceptováno zákazníkem"},null,null,null,null,null,null,null,{"$f":"Sprachen!L176","v":"nesériový materiál, specifikace nesplněna/neprokázána "}]
[null,null,null,null,null,null,null,null,null,null,null,null,null,null,null,null,null,null,null,null,null,null,null,null,null,null,null,null,null,null,null,null,null,null,null,null,null,null,null,null,{"$f":"G17=\"X\"","v":false},{"$f":"O17=\"X\"","v":false},{"$f":"W17=\"X\"","v":false},{"$f":"AE17=\"X\"","v":false},{"$f":"COUNTIF(AO17:AR17,TRUE)","v":0}]
[{"$f":"Sprachen!L145","v":"funkce EMC/ESD"},null,null,null,null,null,{"$f":"Sprachen!L146","v":"funkce splněna, odpovídá specifikaci"},null,null,null,null,null,null,null,{"$f":"Sprachen!L11","v":"odchylka od specifikace, akceptováno zákazníkem"},null,null,null,null,null,null,null,{"$f":"Sprachen!L147","v":"funkce nesplněna (N.i.O.) příp. neprokázána, specifikace nesplněna"}]
[null,null,null,null,null,null,null,null,null,null,null,null,null,null,null,null,null,null,null,null,null,null,null,null,null,null,null,null,null,null,null,null,null,null,null,null,null,null,null,null,{"$f":"G19=\"X\"","v":false},{"$f":"O19=\"X\"","v":false},{"$f":"W19=\"X\"","v":false},{"$f":"AE19=\"X\"","v":false},{"$f":"COUNTIF(AO19:AR19,TRUE)","v":0}]
[{"$f":"Sprachen!L250","v":"povrch/struktura barva/dezén"},null,null,null,null,null,{"$f":"Sprachen!L167","v":"v pořádku (i.O./OK)"},null,null,null,null,null,null,null,{"$f":"Sprachen!L126","v":"neodpovídá sériovému stavu, akceptováno zákazníkem"},null,null,null,null,null,null,null,{"$f":"Sprachen!L125","v":"neodpovídá sériovému stavu, neakceptováno zákazníkem"}]
[null,null,null,null,null,null,null,null,null,null,null,null,null,null,null,null,null,null,null,null,null,null,null,null,null,null,null,null,null,null,null,null,null,null,null,null,null,null,null,null,{"$f":"G21=\"X\"","v":false},{"$f":"O21=\"X\"","v":false},{"$f":"W21=\"X\"","v":false},{"$f":"AE21=\"X\"","v":false},{"$f":"COUNTIF(AO21:AR21,TRUE)","v":0}]
[{"$f":"Sprachen!L265","v":"status PPF dodavatelského řetězce"},null,null,null,null,null,{"$f":"Sprachen!L190","v":"vhodné pro zákazníka (požadavky splněny, nebo na základě analýzy rizik akceptovaná odchylka)"},null,null,null,null,null,null,null,{"$f":"Sprachen!L192","v":"vhodné pro zákazníka/vhodné pro sériovou výrobu, po posouzení rizik je vyžadována aktualizovaná dokumentace PPF"},null,null,null,null,null,null,null,{"$f":"Sprachen!L244","v":"není vhodné pro zákazníka/není vhodné pro sériovou výrobu příp. není ještě uvolněno"}]
[null,null,null,null,null,null,null,null,null,null,null,null,null,null,null,null,null,null,null,null,null,null,null,null,null,null,null,null,null,null,null,null,null,null,null,null,null,null,null,null,{"$f":"G23=\"X\"","v":false},{"$f":"O23=\"X\"","v":false},{"$f":"W23=\"X\"","v":false},{"$f":"AE23=\"X\"","v":false},{"$f":"COUNTIF(AO23:AR23,TRUE)","v":0}]
[{"$f":"Sprachen!L356","v":"zástavba (u zákazníka)"},null,null,null,null,null,{"$f":"Sprachen!L353","v":"vhodné pro zabudování bez dodatečných nákladů"},null,null,null,null,null,null,null,{"$f":"Sprachen!L354","v":"vhodné pro zabudování s dodatečnými náklady, předložena akceptance zákazníkem"},null,null,null,null,null,null,null,{"$f":"Sprachen!L245","v":"nelze zamontovat"}]
[null,null,null,null,null,null,null,null,null,null,null,null,null,null,null,null,null,null,null,null,null,null,null,null,null,null,null,null,null,null,null,null,null,null,null,null,null,null,null,null,{"$f":"G25=\"X\"","v":false},{"$f":"O25=\"X\"","v":false},{"$f":"W25=\"X\"","v":false},{"$f":"AE25=\"X\"","v":false},{"$f":"COUNTIF(AO25:AR25,TRUE)","v":0}]
[{"$f":"Sprachen!L311","v":"sebehodnocení organizací"},null,null,null,null,null,null,null,null,null,null,null,null,null,null,null,null,null,{"$f":"IF(AND(AT26=6,AS26=0),IF(AQ26>0,W13,IF(AP26>0,O13,IF(AO26>0,G13,\"\"))),Sprachen!L9)","v":"zadání není správné, prosím ověřte"},null,null,null,null,null,null,null,null,null,null,null,null,null,null,null,null,null,null,null,null,null,{"$f":"COUNTIF(AO14:AO25,TRUE)","v":0},{"$f":"COUNTIF(AP14:AP25,TRUE)","v":0},{"$f":"COUNTIF(AQ14:AQ25,TRUE)","v":0},{"$f":"COUNTIF(AR14:AR25,TRUE)","v":0},{"$f":"COUNTIF(AS14:AS25,0)","v":6},{"$f":"SUM(AO26:AR26)","v":0}]
[{"$f":"Sprachen!L84","v":"potvrzení organizací"}]
[{"$f":"Sprachen!L234","v":"jméno "},null,null,null,null,null,null,null,{"$f":"IF('Anlage 2 PPF Abstimmung'!I262<>\"\",'Anlage 2 PPF Abstimmung'!I262,\"\")","v":""},null,null,null,null,null,null,null,null,null,null,null,null,{"$f":"Sprachen!L61","v":"poznámka"}]
[{"$f":"Sprachen!L20","v":"oddělení"},null,null,null,null,null,null,null,{"$f":"IF('Anlage 2 PPF Abstimmung'!I263<>\"\",'Anlage 2 PPF Abstimmung'!I263,\"\")","v":""}]
[{"$f":"Sprachen!L343","v":"telefon"},null,null,null,null,null,null,null,{"$f":"IF('Anlage 2 PPF Abstimmung'!I264<>\"\",'Anlage 2 PPF Abstimmung'!I264,\"\")","v":""}]
[{"$f":"Sprachen!L119","v":"e-mail/fax č."},null,null,null,null,null,null,null,{"$f":"IF('Anlage 2 PPF Abstimmung'!I265<>\"\",'Anlage 2 PPF Abstimmung'!I265,\"\")","v":""}]
[{"$f":"Sprachen!L91","v":"datum"},null,null,null,null,null,null,null,null,null,null,null,null,null,null,null,null,null,null,null,null,{"$f":"Sprachen!L348","v":"podpis"}]

{"sheet":"Anlage 3 Selbstb. Prozess","index":2,"n_rows":43,"n_cols":46,"rows_kept":43,"cut":false,"hidden":false,"merged":[[40,0,40,3],[40,4,40,39],[41,0,41,3],[41,4,41,39],[42,0,42,3],[42,4,42,39],[35,26,35,39],[37,0,37,39],[38,0,38,3],[38,4,38,39],[36,0,36,39],[38,46,38,49],[39,0,39,3],[39,4,39,39],[33,8,33,20],[34,0,34,7],[34,8,34,20],[35,0,35,7],[35,8,35,20],[35,21,35,25],[29,0,29,17],[29,18,29,39],[30,0,30,39],[31,0,31,7],[31,8,31,20],[31,21,34,25],[31,26,34,39],[32,0,32,7],[32,8,32,20],[33,0,33,7],[27,0,28,5],[27,6,27,13],[27,14,27,21],[27,22,27,29],[27,30,27,31],[27,32,28,39],[28,6,28,13],[28,14,28,21],[28,22,28,29],[28,30,28,31],[23,0,26,5],[23,6,23,13],[23,14,23,21],[23,22,23,29],[23,30,23,31],[23,32,24,39],[24,6,24,13],[24,14,24,21],[24,22,24,29],[24,30,24,31],[25,6,25,13],[25,14,25,21],[25,22,25,29],[25,30,25,31],[25,32,26,39],[26,6,26,13],[26,14,26,21],[26,22,26,29],[26,30,26,31],[21,0,22,5],[21,6,21,13],[21,14,21,21],[21,22,21,29],[21,30,21,31],[21,32,22,39],[22,6,22,13],[22,14,22,21],[22,22,22,29],[22,30,22,31],[19,45,23,45],[20,6,20,13],[20,14,20,21],[20,22,20,29],[20,30,20,31],[17,32,18,39],[18,6,18,13],[18,14,18,21],[18,22,18,29],[18,30,18,31],[19,0,20,5],[19,6,19,13],[19,14,19,21],[19,22,19,29],[19,30,19,31],[15,32,16,39],[16,6,16,13],[16,14,16,21],[16,22,16,29],[16,30,16,31],[17,0,18,5],[17,6,17,13],[17,14,17,21],[17,22,17,29],[17,30,17,31],[19,32,20,39],[14,30,14,31],[15,0,16,5],[15,6,15,13],[15,14,15,21],[15,22,15,29],[15,30,15,31],[12,32,12,39],[13,0,14,5],[13,6,13,13],[13,14,13,21],[13,22,13,29],[13,30,13,31],[13,32,14,39],[14,6,14,13],[14,14,14,21],[14,22,14,29],[11,0,11,13],[12,0,12,5],[12,6,12,13],[12,14,12,21],[12,22,12,29],[12,30,12,31],[10,0,10,6],[10,7,10,13],[10,14,10,20],[10,21,10,26],[10,27,10,33],[10,34,10,39],[9,0,9,6],[9,7,9,13],[9,14,9,20],[9,21,9,26],[9,27,9,33],[9,34,9,39],[8,0,8,6],[8,7,8,13],[8,14,8,20],[8,21,8,26],[8,27,8,33],[8,34,8,39],[7,0,7,6],[7,7,7,13],[7,14,7,20],[7,21,7,26],[7,27,7,33],[7,34,7,39],[6,0,6,6],[6,7,6,13],[6,14,6,20],[6,21,6,26],[6,27,6,33],[6,34,6,39],[0,0,1,12],[1,13,1,19],[1,20,1,39],[2,0,2,13],[2,14,2,26],[2,27,2,39],[5,0,5,6],[5,7,5,13],[5,14,5,20],[5,21,5,26],[5,27,5,33],[5,34,5,39],[3,0,3,6],[3,7,3,13],[3,14,3,20],[3,21,3,26],[3,27,4,33],[4,0,4,6],[4,7,4,13],[4,14,4,20],[4,21,4,26],[3,34,4,39],[0,13,0,39]]}
[{"$f":"Sprachen!L314","v":"sebehodnocení výrobního procesu"},null,null,null,null,null,null,null,null,null,null,null,null,null,null,null,null,null,null,null,null,null,null,null,null,null,null,null,null,null,null,null,null,null,null,null,null,null,null,null,null,"Sprachauswahl"]
[null,null,null,null,null,null,null,null,null,null,null,null,null,{"$f":"Sprachen!L255","v":"organizace"},null,null,null,null,null,null,{"$f":"IF('Anlage 4 Deckblatt'!U2<>\"\",'Anlage 4 Deckblatt'!U2,\"\")","v":""}]
[{"$f":"Sprachen!L46","v":"údaje organizace"},null,null,null,null,null,null,null,null,null,null,null,null,null,{"$f":"Sprachen!L44","v":"údaje o vzorcích"},null,null,null,null,null,null,null,null,null,null,null,null,{"$f":"Sprachen!L45","v":"údaje zákazníka"}]
[{"$f":"Sprachen!L75","v":"číslo zprávy"},null,null,null,null,null,null,{"$f":"IF('Anlage 4 Deckblatt'!H16<>\"\",'Anlage 4 Deckblatt'!H16,\"\")","v":""},null,null,null,null,null,null,{"$f":"Sprachen!L198","v":"číslo dodacího listu"},null,null,null,null,null,null,{"$f":"IF('Anlage 3 Selbstb. Produkt'!V4<>\"\",'Anlage 3 Selbstb. Produkt'!V4,\"\")","v":""},null,null,null,null,null,{"$f":"Sprachen!L187","v":"zákazník"},null,null,null,null,null,null,{"$f":"IF('Anlage 4 Deckblatt'!A10<>\"\",'Anlage 4 Deckblatt'!A10,\"\")","v":""}]
[{"$f":"Sprachen!L77","v":"verze zprávy"},null,null,null,null,null,null,{"$f":"IF('Anlage 4 Deckblatt'!H17<>\"\",'Anlage 4 Deckblatt'!H17,\"\")","v":""},null,null,null,null,null,null,{"$f":"Sprachen!L197","v":"dodané množství"},null,null,null,null,null,null,{"$f":"IF('Anlage 3 Selbstb. Produkt'!V5<>\"\",'Anlage 3 Selbstb. Produkt'!V5,\"\")","v":""}]
[{"$f":"Sprachen!L199","v":"místo odeslání"},null,null,null,null,null,null,{"$f":"IF('Anlage 4 Deckblatt'!H18<>\"\",'Anlage 4 Deckblatt'!H18,\"\")","v":""},null,null,null,null,null,null,{"$f":"Sprachen!L89","v":"číslo šarže"},null,null,null,null,null,null,{"$f":"IF('Anlage 3 Selbstb. Produkt'!V6<>\"\",'Anlage 3 Selbstb. Produkt'!V6,\"\")","v":""},null,null,null,null,null,{"$f":"Sprachen!L87","v":"číslo objednávky vzorků PPF"},null,null,null,null,null,null,{"$f":"IF('Anlage 3 Selbstb. Produkt'!AI6<>\"\",'Anlage 3 Selbstb. Produkt'!AI6,\"\")","v":""}]
[{"$f":"Sprachen!L276","v":"výrobní místo"},null,null,null,null,null,null,{"$f":"IF('Anlage 4 Deckblatt'!H19<>\"\",'Anlage 4 Deckblatt'!H19,\"\")","v":""},null,null,null,null,null,null,{"$f":"Sprachen!L217","v":"hmotnost vzorku (kg)"},null,null,null,null,null,null,{"$f":"IF('Anlage 3 Selbstb. Produkt'!V7<>\"\",'Anlage 3 Selbstb. Produkt'!V7,\"\")","v":""},null,null,null,null,null,{"$f":"Sprachen!L14","v":"místo dodání"},null,null,null,null,null,null,{"$f":"IF('Anlage 3 Selbstb. Produkt'!AI7<>\"\",'Anlage 3 Selbstb. Produkt'!AI7,\"\")","v":""}]
[{"$f":"Sprachen!L304","v":"číslo dílu"},null,null,null,null,null,null,{"$f":"IF('Anlage 4 Deckblatt'!H20<>\"\",'Anlage 4 Deckblatt'!H20,\"\")","v":""},null,null,null,null,null,null,{"$f":"Sprachen!L166","v":"verze hardwaru"},null,null,null,null,null,null,{"$f":"IF('Anlage 3 Selbstb. Produkt'!V8<>\"\",'Anlage 3 Selbstb. Produkt'!V8,\"\")","v":""},null,null,null,null,null,{"$f":"Sprachen!L304","v":"číslo dílu"},null,null,null,null,null,null,{"$f":"IF('Anlage 4 Deckblatt'!AI20<>\"\",'Anlage 4 Deckblatt'!AI20,\"\")","v":""}]
[{"$f":"Sprachen!L65","v":"název"},null,null,null,null,null,null,{"$f":"IF('Anlage 4 Deckblatt'!H21<>\"\",'Anlage 4 Deckblatt'!H21,\"\")","v":""},null,null,null,null,null,null,{"$f":"Sprachen!L98","v":"status diagnózy"},null,null,null,null,null,null,{"$f":"IF('Anlage 3 Selbstb. Produkt'!V9<>\"\",'Anlage 3 Selbstb. Produkt'!V9,\"\")","v":""},null,null,null,null,null,{"$f":"Sprachen!L65","v":"název"},null,null,null,null,null,null,{"$f":"IF('Anlage 4 Deckblatt'!AI21<>\"\",'Anlage 4 Deckblatt'!AI21,\"\")","v":""}]
[{"$f":"Sprachen!L374","v":"číslo výkresu"},null,null,null,null,null,null,{"$f":"IF('Anlage 4 Deckblatt'!H22<>\"\",'Anlage 4 Deckblatt'!H22,\"\")","v":""},null,null,null,null,null,null,{"$f":"Sprachen!L326","v":"verze softwaru"},null,null,null,null,null,null,{"$f":"IF('Anlage 3 Selbstb. Produkt'!V10<>\"\",'Anlage 3 Selbstb. Produkt'!V10,\"\")","v":""},null,null,null,null,null,{"$f":"Sprachen!L374","v":"číslo výkresu"},null,null,null,null,null,null,{"$f":"IF('Anlage 4 Deckblatt'!AI22<>\"\",'Anlage 4 Deckblatt'!AI22,\"\")","v":""}]
[{"$f":"Sprachen!L361","v":"verze/datum"},null,null,null,null,null,null,{"$f":"IF('Anlage 4 Deckblatt'!H23<>\"\",'Anlage 4 Deckblatt'!H23,\"\")","v":""},null,null,null,null,null,null,{"$f":"Sprachen!L177","v":"identifikace/DUNS"},null,null,null,null,null,null,{"$f":"IF('Anlage 2 PPF Abstimmung'!H10<>\"\",'Anlage 2 PPF Abstimmung'!H10,\"\")","v":""},null,null,null,null,null,{"$f":"Sprachen!L361","v":"verze/datum"},null,null,null,null,null,null,{"$f":"IF('Anlage 4 Deckblatt'!AI23<>\"\",'Anlage 4 Deckblatt'!AI23,\"\")","v":""}]
["díl s povinností zvláštní archivace"]
[{"$f":"Sprachen!L172","v":"kategorie"},null,null,null,null,null,{"$f":"Sprachen!L6","v":"požadavky zcela splněny"},null,null,null,null,null,null,null,{"$f":"Sprachen!L7","v":"některé požadavky nejsou splněny"},null,null,null,null,null,null,null,{"$f":"Sprachen!L8","v":"požadavky nesplněny"},null,null,null,null,null,null,null,{"$f":"Sprachen!L240","v":"není aplikovatelné"},null,{"$f":"Sprachen!L63","v":"poznámka/opatření + termín (pokud  není zvoleno i.O)"},null,null,null,null,null,null,null,"grün","gelb","rot","NA"]
[{"$f":"Sprachen!L277","v":"výrobní místo"},null,null,null,null,null,{"$f":"Sprachen!L135","v":"Výroba ve výrobním místě převzata organizací (realizován layout, propojení zařízení provedeno)"},null,null,null,null,null,null,null,{"$f":"Sprachen!L136","v":"Výroba ve výrobním místě organizací ještě není převzata, nejsou očekávána žádná  ohrožení kvality v sérii"},null,null,null,null,null,null,null,{"$f":"Sprachen!L137","v":"Výroba není realizována ve výrobním místě, možné kvalitativní ovlivnění "}]
[null,null,null,null,null,null,null,null,null,null,null,null,null,null,null,null,null,null,null,null,null,null,null,null,null,null,null,null,null,null,null,null,null,null,null,null,null,null,null,null,{"$f":"G15=\"X\"","v":false},{"$f":"O15=\"X\"","v":false},{"$f":"W15=\"X\"","v":false},{"$f":"AE15=\"X\"","v":false},{"$f":"COUNTIF(AO15:AR15,TRUE)","v":0}]
[{"$f":"Sprachen!L371","v":"nástroje "},null,null,null,null,null,{"$f":"Sprachen!L316","v":"sériové nástroje převzaty"},null,null,null,null,null,null,null,{"$f":"Sprachen!L317","v":"sériové/malosériové nástroje jsou k dispozici, je nutná ještě optimalizace, nejsou očekávána žádná ohrožení kvality v sérii"},null,null,null,null,null,null,null,{"$f":"Sprachen!L370","v":"nástroje nejsou vhodné pro sériovou výrobu ovlivnění kvality v sérii lze očekávat "}]
[null,null,null,null,null,null,null,null,null,null,null,null,null,null,null,null,null,null,null,null,null,null,null,null,null,null,null,null,null,null,null,null,null,null,null,null,null,null,null,null,{"$f":"G17=\"X\"","v":false},{"$f":"O17=\"X\"","v":false},{"$f":"W17=\"X\"","v":false},{"$f":"AE17=\"X\"","v":false},{"$f":"COUNTIF(AO17:AR17,TRUE)","v":0}]
[{"$f":"Sprachen!L202","v":"logistika (1)"},null,null,null,null,null,{"$f":"Sprachen!L149","v":"v souladu s průběhem procesu"},null,null,null,null,null,null,null,{"$f":"Sprachen!L241","v":"neodpovídá průběhu procesu, ale nejsou očekávána žádná ohrožení kvality v sérii"},null,null,null,null,null,null,null,{"$f":"Sprachen!L295","v":"ovlivnění kvality je možné"}]
[null,null,null,null,null,null,null,null,null,null,null,null,null,null,null,null,null,null,null,null,null,null,null,null,null,null,null,null,null,null,null,null,null,null,null,null,null,null,null,null,{"$f":"G19=\"X\"","v":false},{"$f":"O19=\"X\"","v":false},{"$f":"W19=\"X\"","v":false},{"$f":"AE19=\"X\"","v":false},{"$f":"COUNTIF(AO19:AR19,TRUE)","v":0}]
[{"$f":"Sprachen!L81","v":"zvláštní charakteristiky a dohodnuté charakteristiky zajištěny"},null,null,null,null,null,{"$f":"Sprachen!L211","v":"charakteristiky zajištěny"},null,null,null,null,null,null,null,{"$f":"Sprachen!L18","v":"zajištění není prokázáno zcela, dodatečná opatření jsou zavedena, předložena akceptance zákazníka"},null,null,null,null,null,null,null,{"$f":"Sprachen!L17","v":"zajištění není prokázáno zcela"}]
[null,null,null,null,null,null,null,null,null,null,null,null,null,null,null,null,null,null,null,null,null,null,null,null,null,null,null,null,null,null,null,null,null,null,null,null,null,null,null,null,{"$f":"G21=\"X\"","v":false},{"$f":"O21=\"X\"","v":false},{"$f":"W21=\"X\"","v":false},{"$f":"AE21=\"X\"","v":false},{"$f":"COUNTIF(AO21:AR21,TRUE)","v":0}]
[{"$f":"Sprachen!L290","v":"zkušební zařízení"},null,null,null,null,null,{"$f":"Sprachen!L362","v":"zcela k dispozici/převzato, způsobilost prokázána"},null,null,null,null,null,null,null,{"$f":"Sprachen!L249","v":"částečně k dispozici/částečně převzato, k dispozici jsou náhradní měřící zařízení"},null,null,null,null,null,null,null,{"$f":"Sprachen!L246","v":"není k dispozici/není převzato"}]
[null,null,null,null,null,null,null,null,null,null,null,null,null,null,null,null,null,null,null,null,null,null,null,null,null,null,null,null,null,null,null,null,null,null,null,null,null,null,null,null,{"$f":"G23=\"X\"","v":false},{"$f":"O23=\"X\"","v":false},{"$f":"W23=\"X\"","v":false},{"$f":"AE23=\"X\"","v":false},{"$f":"COUNTIF(AO23:AR23,TRUE)","v":0}]
[{"$f":"Sprachen!L357","v":"dohodnutý objem výroby"},null,null,null,null,null,{"$f":"Sprachen!L30","v":"všechna výrobní zařízení převzata (2)"},null,null,null,null,null,null,null,{"$f":"Sprachen!L214","v":"minimálně jedna výrobní jednotka převzata (2)"},null,null,null,null,null,null,null,{"$f":"Sprachen!L273","v":"výrobní zařízení není převzato (2)"}]
[null,null,null,null,null,null,null,null,null,null,null,null,null,null,null,null,null,null,null,null,null,null,null,null,null,null,null,null,null,null,null,null,null,null,null,null,null,null,null,null,{"$f":"G25=\"X\"","v":false},{"$f":"O25=\"X\"","v":false},{"$f":"W25=\"X\"","v":false},{"$f":"AE25=\"X\"","v":false},{"$f":"COUNTIF(AO25:AR25,TRUE)","v":0}]
[null,null,null,null,null,null,{"$f":"Sprachen!L279","v":"objem výroby dosažen/prokázán"},null,null,null,null,null,null,null,{"$f":"Sprachen!L278","v":"objem výroby dosažitelný se zvláštními opatřeními"},null,null,null,null,null,null,null,{"$f":"Sprachen!L280","v":"objem výroby se zvláštními opatřeními není dosažitelný"}]
[null,null,null,null,null,null,null,null,null,null,null,null,null,null,null,null,null,null,null,null,null,null,null,null,null,null,null,null,null,null,null,null,null,null,null,null,null,null,null,null,{"$f":"G27=\"X\"","v":false},{"$f":"O27=\"X\"","v":false},{"$f":"W27=\"X\"","v":false},{"$f":"AE27=\"X\"","v":false},{"$f":"COUNTIF(AO27:AR27,TRUE)","v":0}]
[{"$f":"Sprachen!L259","v":"pracovníci"},null,null,null,null,null,{"$f":"Sprachen!L128","v":"sériový personál k dispozici\nzcela proškolen, pracovní a kontrolní návodky úplné "},null,null,null,null,null,null,null,{"$f":"Sprachen!L260","v":"personál k dispozici v omezené míře/částečně kvalifikovaný, není očekáváno ovlivnění kvality (3)"},null,null,null,null,null,null,null,{"$f":"Sprachen!L173","v":"Nejsou k dispozici vyškolení pracovníci, nebo není kispozici dostatečný počet pracovníků, jsou možná ohrožení kvality (4) "}]
[null,null,null,null,null,null,null,null,null,null,null,null,null,null,null,null,null,null,null,null,null,null,null,null,null,null,null,null,null,null,null,null,null,null,null,null,null,null,null,null,{"$f":"G29=\"X\"","v":false},{"$f":"O29=\"X\"","v":false},{"$f":"W29=\"X\"","v":false},{"$f":"AE29=\"X\"","v":false},{"$f":"COUNTIF(AO29:AR29,TRUE)","v":0}]
[{"$f":"Sprachen!L311","v":"sebehodnocení organizací"},null,null,null,null,null,null,null,null,null,null,null,null,null,null,null,null,null,{"$f":"IF(AND(AT30=8,AS30=0),IF(AQ30>0,W13,IF(AP30>0,O13,IF(AO30>0,G13,\"\"))),Sprachen!L9)","v":"zadání není správné, prosím ověřte"},null,null,null,null,null,null,null,null,null,null,null,null,null,null,null,null,null,null,null,null,null,{"$f":"COUNTIF(AO14:AO29,TRUE)","v":0},{"$f":"COUNTIF(AP14:AP29,TRUE)","v":0},{"$f":"COUNTIF(AQ14:AQ29,TRUE)","v":0},{"$f":"COUNTIF(AR14:AR29,TRUE)","v":0},{"$f":"COUNTIF(AS14:AS29,0)","v":8},{"$f":"SUM(AO30:AR30)","v":0}]
[{"$f":"Sprachen!L84","v":"potvrzení organizací"}]
[{"$f":"Sprachen!L234","v":"jméno "},null,null,null,null,null,null,null,{"$f":"IF('Anlage 3 Selbstb. Produkt'!I28<>\"\",'Anlage 3 Selbstb. Produkt'!I28,\"\")","v":""},null,null,null,null,null,null,null,null,null,null,null,null,{"$f":"Sprachen!L61","v":"poznámka"}]
[{"$f":"Sprachen!L20","v":"oddělení"},null,null,null,null,null,null,null,{"$f":"IF('Anlage 3 Selbstb. Produkt'!I29<>\"\",'Anlage 3 Selbstb. Produkt'!I29,\"\")","v":""}]
[{"$f":"Sprachen!L343","v":"telefon"},null,null,null,null,null,null,null,{"$f":"IF('Anlage 3 Selbstb. Produkt'!I30<>\"\",'Anlage 3 Selbstb. Produkt'!I30,\"\")","v":""}]
[{"$f":"Sprachen!L119","v":"e-mail/fax č."},null,null,null,null,null,null,null,{"$f":"IF('Anlage 3 Selbstb. Produkt'!I31<>\"\",'Anlage 3 Selbstb. Produkt'!I31,\"\")","v":""}]
[{"$f":"Sprachen!L91","v":"datum"},null,null,null,null,null,null,null,{"$f":"IF('Anlage 3 Selbstb. Produkt'!I32<>\"\",'Anlage 3 Selbstb. Produkt'!I32,\"\")","v":""},null,null,null,null,null,null,null,null,null,null,null,null,{"$f":"Sprachen!L348","v":"podpis"}]
[]
[{"$f":"Sprachen!L53","v":"instrukce pro vyplnění:"}]
["(1)",null,null,null,{"$f":"Sprachen!L203","v":"logistika: položky hodnocení, pokud jsou relevantní - k zákazníkovi - uvnitř organizace - od dodavatele (např. transport,  balicí předpisy zpracovány, sériové obaly jsou k dispozici v dohodnutém množství, není očekáváno ovlivnění kvality v sériové výrobě)"}]
["(2)",null,null,null,{"$f":"Sprachen!L358","v":"dohodnutý objem výroby:výrobní zařízení se vztahují na linky/zařízení/stroje/nástroje/kavity/hnízda"}]
["(3)",null,null,null,{"$f":"Sprachen!L261","v":"personál k dispozici v omezené míře/částečně kvalifikovaný, není očekáváno ovlivnění kvality: - počet a stupeň kvalifikace musí být ještě optimalizován- pracovní a zkušební návodky úplné"}]
["(4)",null,null,null,{"$f":"Sprachen!L174","v":"není k dispozici dostatečný počet kvalifikovaných pracovníků: jsou možná kvalitativní ovlivnění pracoví a/nebo zkušební návodky nejsou úplné"}]
["(5)",null,null,null,{"$f":"Sprachen!L379","v":"požadováno vyplnění, pokud není hodnocení \"požadavky splněny\""}]

{"sheet":"Anlage 4 Deckblatt","index":3,"n_rows":42,"n_cols":41,"rows_kept":42,"cut":false,"hidden":false,"merged":[[40,0,40,7],[40,8,40,20],[41,0,41,7],[41,8,41,20],[41,21,41,25],[41,26,41,39],[36,0,36,17],[36,18,36,39],[37,0,37,7],[37,8,37,20],[37,21,40,25],[37,26,40,39],[38,0,38,7],[38,8,38,20],[39,0,39,7],[39,8,39,20],[34,0,34,17],[34,18,34,19],[34,20,35,37],[34,38,35,39],[35,0,35,17],[35,18,35,19],[31,21,31,25],[31,26,31,39],[32,0,32,39],[33,0,33,17],[33,18,33,19],[33,20,33,37],[33,38,33,39],[29,0,29,7],[29,8,29,20],[30,0,30,7],[30,8,30,20],[31,0,31,7],[31,8,31,20],[25,0,25,39],[26,0,26,2],[26,3,26,21],[26,22,26,39],[27,0,27,7],[27,8,27,20],[27,21,30,25],[27,26,30,39],[28,0,28,7],[28,8,28,20],[23,0,23,13],[23,14,23,20],[23,21,23,26],[23,27,23,33],[23,34,23,39],[24,0,24,39],[22,0,22,6],[22,7,22,13],[22,14,22,20],[22,21,22,26],[22,27,22,33],[22,34,22,39],[21,0,21,6],[21,7,21,13],[21,14,21,20],[21,21,21,26],[21,27,21,33],[21,34,21,39],[20,0,20,6],[20,7,20,13],[20,14,20,20],[20,21,20,26],[20,27,20,33],[20,34,20,39],[19,0,19,6],[19,7,19,13],[19,14,19,20],[19,21,19,26],[19,27,19,33],[19,34,19,39],[18,0,18,6],[18,7,18,13],[18,14,18,20],[18,21,18,26],[18,27,18,33],[18,34,18,39],[16,21,16,26],[17,0,17,6],[17,7,17,13],[17,14,17,20],[17,21,17,26],[17,27,17,33],[17,34,17,39],[14,27,14,39],[15,0,15,6],[15,7,15,13],[15,14,15,20],[15,21,15,26],[15,27,16,33],[16,0,16,6],[16,7,16,13],[16,14,16,20],[15,34,16,39],[12,0,12,19],[12,20,12,21],[13,0,13,19],[13,20,13,21],[14,0,14,13],[14,14,14,26],[9,0,9,19],[9,20,9,21],[10,0,10,19],[10,20,10,21],[11,0,11,19],[11,20,11,21],[7,0,7,19],[7,20,7,21],[8,0,8,19],[8,20,8,21],[4,0,4,19],[4,20,4,21],[4,22,4,39],[5,0,5,19],[5,20,5,21],[5,22,5,39],[0,0,1,12],[1,13,1,19],[1,20,1,39],[2,0,2,19],[2,20,2,39],[3,0,3,19],[3,20,3,21],[3,22,3,39],[6,0,6,19],[6,20,6,39],[0,13,0,39]]}
[{"$f":"Sprachen!L93","v":"krycí list zprávy PPF"}]
[null,null,null,null,null,null,null,null,null,null,null,null,null,{"$f":"Sprachen!L255","v":"organizace"},null,null,null,null,null,null,{"$f":"IF('Anlage 2 PPF Abstimmung'!U2<>\"\",'Anlage 2 PPF Abstimmung'!U2,\"\")","v":""}]
[{"$f":"Sprachen!L254","v":"organizace"},null,null,null,null,null,null,null,null,null,null,null,null,null,null,null,null,null,null,null,{"$f":"Sprachen!L159","v":"důvod zpracování zprávy"}]
[{"$f":"IF('Anlage 2 PPF Abstimmung'!H5<>\"\",'Anlage 2 PPF Abstimmung'!H5,\"\")","v":""},null,null,null,null,null,null,null,null,null,null,null,null,null,null,null,null,null,null,null,{"$f":"IF('Anlage 2 PPF Abstimmung'!A75<>\"\",'Anlage 2 PPF Abstimmung'!A75,\"\")","v":""},null,{"$f":"Sprachen!L71","v":"zpráva o uvolnění produktu a výrobního procesu (PPF)"},null,null,null,null,null,null,null,null,null,null,null,null,null,null,null,null,null,{"$f":"COUNTIF(U4:V6,\"X\")","v":0}]
[{"$f":"IF('Anlage 2 PPF Abstimmung'!H7<>\"\",'Anlage 2 PPF Abstimmung'!H7,\"\")","v":""},null,null,null,null,null,null,null,null,null,null,null,null,null,null,null,null,null,null,null,{"$f":"IF('Anlage 2 PPF Abstimmung'!A76<>\"\",'Anlage 2 PPF Abstimmung'!A76,\"\")","v":""},null,{"$f":"Sprachen!L72","v":"zpráva o zvláštních vzorcích"}]
[null,null,null,null,null,null,null,null,null,null,null,null,null,null,null,null,null,null,null,null,{"$f":"IF('Anlage 2 PPF Abstimmung'!A77<>\"\",'Anlage 2 PPF Abstimmung'!A77,\"\")","v":""},null,{"$f":"Sprachen!L301","v":"rekvalifikace"}]
[null,null,null,null,null,null,null,null,null,null,null,null,null,null,null,null,null,null,null,null,{"$f":"Sprachen!L55","v":"iniciátor postupu PPF"},null,null,null,null,null,null,null,null,null,null,null,null,null,null,null,null,null,null,null,{"$f":"COUNTIF(U8:V14,\"X\")","v":0}]
[null,null,null,null,null,null,null,null,null,null,null,null,null,null,null,null,null,null,null,null,{"$f":"IF('Anlage 2 PPF Abstimmung'!U75<>\"\",'Anlage 2 PPF Abstimmung'!U75,\"\")","v":""},null,{"$f":"Sprachen!L218","v":"představení vzorků"}]
[{"$f":"Sprachen!L188","v":"zákazník (příjemce)"},null,null,null,null,null,null,null,null,null,null,null,null,null,null,null,null,null,null,null,{"$f":"IF('Anlage 2 PPF Abstimmung'!U76<>\"\",'Anlage 2 PPF Abstimmung'!U76,\"\")","v":""},null,{"$f":"Sprachen!L239","v":"nový díl"}]
[{"$f":"IF('Anlage 2 PPF Abstimmung'!AB5<>\"\",'Anlage 2 PPF Abstimmung'!AB5,\"\")","v":""},null,null,null,null,null,null,null,null,null,null,null,null,null,null,null,null,null,null,null,{"$f":"IF('Anlage 2 PPF Abstimmung'!U77<>\"\",'Anlage 2 PPF Abstimmung'!U77,\"\")","v":""},null,{"$f":"Sprachen!L36","v":"změna na produktu"}]
[{"$f":"IF('Anlage 2 PPF Abstimmung'!AB7<>\"\",'Anlage 2 PPF Abstimmung'!AB7,\"\")","v":""},null,null,null,null,null,null,null,null,null,null,null,null,null,null,null,null,null,null,null,{"$f":"IF('Anlage 2 PPF Abstimmung'!U78<>\"\",'Anlage 2 PPF Abstimmung'!U78,\"\")","v":""},null,{"$f":"Sprachen!L37","v":"změna ve výrobním procesu"}]
[null,null,null,null,null,null,null,null,null,null,null,null,null,null,null,null,null,null,null,null,{"$f":"IF('Anlage 2 PPF Abstimmung'!U79<>\"\",'Anlage 2 PPF Abstimmung'!U79,\"\")","v":""},null,{"$f":"Sprachen!L35","v":"změna v dodavatelském řetězci"}]
[null,null,null,null,null,null,null,null,null,null,null,null,null,null,null,null,null,null,null,null,{"$f":"IF('Anlage 2 PPF Abstimmung'!U80<>\"\",'Anlage 2 PPF Abstimmung'!U80,\"\")","v":""},null,{"$f":"Sprachen!L373","v":"opětovné použití po odstávce delší než 12 měsíců"}]
[null,null,null,null,null,null,null,null,null,null,null,null,null,null,null,null,null,null,null,null,{"$f":"IF('Anlage 2 PPF Abstimmung'!U81<>\"\",'Anlage 2 PPF Abstimmung'!U81,\"\")","v":""},null,{"$f":"Sprachen!L24","v":"aktualizovaná dokumentace PPF"}]
[{"$f":"Sprachen!L46","v":"údaje organizace"},null,null,null,null,null,null,null,null,null,null,null,null,null,{"$f":"Sprachen!L44","v":"údaje o vzorcích"},null,null,null,null,null,null,null,null,null,null,null,null,{"$f":"Sprachen!L45","v":"údaje zákazníka"}]
[{"$f":"Sprachen!L75","v":"číslo zprávy"},null,null,null,null,null,null,{"$f":"IF('Anlage 2 PPF Abstimmung'!H11<>\"\",'Anlage 2 PPF Abstimmung'!H11,\"\")","v":""},null,null,null,null,null,null,{"$f":"Sprachen!L198","v":"číslo dodacího listu"},null,null,null,null,null,null,{"$f":"IF('Anlage 3 Selbstb. Produkt'!V4<>\"\",'Anlage 3 Selbstb. Produkt'!V4,\"\")","v":""},null,null,null,null,null,{"$f":"Sprachen!L187","v":"zákazník"},null,null,null,null,null,null,{"$f":"IF(A10<>\"\",A10,\"\")","v":""}]
[{"$f":"Sprachen!L77","v":"verze zprávy"},null,null,null,null,null,null,{"$f":"IF('Anlage 2 PPF Abstimmung'!H12<>\"\",'Anlage 2 PPF Abstimmung'!H12,\"\")","v":""},null,null,null,null,null,null,{"$f":"Sprachen!L197","v":"dodané množství"},null,null,null,null,null,null,{"$f":"IF('Anlage 3 Selbstb. Produkt'!V5<>\"\",'Anlage 3 Selbstb. Produkt'!V5,\"\")","v":""}]
[{"$f":"Sprachen!L199","v":"místo odeslání"},null,null,null,null,null,null,{"$f":"IF('Anlage 2 PPF Abstimmung'!H8<>\"\",'Anlage 2 PPF Abstimmung'!H8,\"\")","v":""},null,null,null,null,null,null,{"$f":"Sprachen!L89","v":"číslo šarže"},null,null,null,null,null,null,{"$f":"IF('Anlage 3 Selbstb. Produkt'!V6<>\"\",'Anlage 3 Selbstb. Produkt'!V6,\"\")","v":""},null,null,null,null,null,{"$f":"Sprachen!L87","v":"číslo objednávky vzorků PPF"},null,null,null,null,null,null,{"$f":"IF('Anlage 3 Selbstb. Produkt'!AI6<>\"\",'Anlage 3 Selbstb. Produkt'!AI6,\"\")","v":""}]
[{"$f":"Sprachen!L276","v":"výrobní místo"},null,null,null,null,null,null,{"$f":"IF('Anlage 2 PPF Abstimmung'!H6<>\"\",'Anlage 2 PPF Abstimmung'!H6,\"\")","v":""},null,null,null,null,null,null,{"$f":"Sprachen!L217","v":"hmotnost vzorku (kg)"},null,null,null,null,null,null,{"$f":"IF('Anlage 3 Selbstb. Produkt'!V7<>\"\",'Anlage 3 Selbstb. Produkt'!V7,\"\")","v":""},null,null,null,null,null,{"$f":"Sprachen!L14","v":"místo dodání"},null,null,null,null,null,null,{"$f":"IF('Anlage 3 Selbstb. Produkt'!AI7<>\"\",'Anlage 3 Selbstb. Produkt'!AI7,\"\")","v":""}]
[{"$f":"Sprachen!L304","v":"číslo dílu"},null,null,null,null,null,null,{"$f":"IF('Anlage 2 PPF Abstimmung'!H33<>\"\",'Anlage 2 PPF Abstimmung'!H33,\"\")","v":""},null,null,null,null,null,null,{"$f":"Sprachen!L166","v":"verze hardwaru"},null,null,null,null,null,null,{"$f":"IF('Anlage 3 Selbstb. Produkt'!V8<>\"\",'Anlage 3 Selbstb. Produkt'!V8,\"\")","v":""},null,null,null,null,null,{"$f":"Sprachen!L304","v":"číslo dílu"},null,null,null,null,null,null,{"$f":"IF('Anlage 2 PPF Abstimmung'!AB33<>\"\",'Anlage 2 PPF Abstimmung'!AB33,\"\")","v":""}]
[{"$f":"Sprachen!L65","v":"název"},null,null,null,null,null,null,{"$f":"IF('Anlage 2 PPF Abstimmung'!H32<>\"\",'Anlage 2 PPF Abstimmung'!H32,\"\")","v":""},null,null,null,null,null,null,{"$f":"Sprachen!L98","v":"status diagnózy"},null,null,null,null,null,null,{"$f":"IF('Anlage 3 Selbstb. Produkt'!V9<>\"\",'Anlage 3 Selbstb. Produkt'!V9,\"\")","v":""},null,null,null,null,null,{"$f":"Sprachen!L65","v":"název"},null,null,null,null,null,null,{"$f":"IF('Anlage 2 PPF Abstimmung'!AB32<>\"\",'Anlage 2 PPF Abstimmung'!AB32,\"\")","v":""}]
[{"$f":"Sprachen!L374","v":"číslo výkresu"},null,null,null,null,null,null,{"$f":"IF('Anlage 2 PPF Abstimmung'!H34<>\"\",'Anlage 2 PPF Abstimmung'!H34,\"\")","v":""},null,null,null,null,null,null,{"$f":"Sprachen!L326","v":"verze softwaru"},null,null,null,null,null,null,{"$f":"IF('Anlage 3 Selbstb. Produkt'!V10<>\"\",'Anlage 3 Selbstb. Produkt'!V10,\"\")","v":""},null,null,null,null,null,{"$f":"Sprachen!L374","v":"číslo výkresu"},null,null,null,null,null,null,{"$f":"IF('Anlage 2 PPF Abstimmung'!AB34<>\"\",'Anlage 2 PPF Abstimmung'!AB34,\"\")","v":""}]
[{"$f":"Sprachen!L361","v":"verze/datum"},null,null,null,null,null,null,{"$f":"IF('Anlage 2 PPF Abstimmung'!H35<>\"\",'Anlage 2 PPF Abstimmung'!H35,\"\")","v":""},null,null,null,null,null,null,{"$f":"Sprachen!L177","v":"identifikace/DUNS"},null,null,null,null,null,null,{"$f":"IF('Anlage 2 PPF Abstimmung'!H10<>\"\",'Anlage 2 PPF Abstimmung'!H10,\"\")","v":""},null,null,null,null,null,{"$f":"Sprachen!L361","v":"verze/datum"},null,null,null,null,null,null,{"$f":"IF('Anlage 2 PPF Abstimmung'!AB35<>\"\",'Anlage 2 PPF Abstimmung'!AB35,\"\")","v":""}]
[{"$f":"IF('Anlage 2 PPF Abstimmung'!A38<>\"\",'Anlage 2 PPF Abstimmung'!A38,\"\")","v":"díl s povinností zvláštní archivace"},null,null,null,null,null,null,null,null,null,null,null,null,null,{"$f":"Sprachen!L163","v":"uvolnění hardwaru"},null,null,null,null,null,null,{"$f":"IF('Anlage 2 PPF Abstimmung'!S135<>\"\",'Anlage 2 PPF Abstimmung'!S135,\"\")","v":""},null,null,null,null,null,{"$f":"Sprachen!L324","v":"uvolnění softwaru"},null,null,null,null,null,null,{"$f":"IF('Anlage 2 PPF Abstimmung'!S198<>\"\",'Anlage 2 PPF Abstimmung'!S198,\"\")","v":""}]
[{"$f":"Sprachen!L84","v":"potvrzení organizací"}]
[{"$f":"Sprachen!L85","v":"Tímto se potvrzuje, že postup PPF byl proveden v souladu s dohodami a odsouhlaseným postupem PPF a v souladu s požadavky svazku VDA 2."}]
[null,null,null,{"$f":"Sprachen!L95","v":"datový soubor IMDS byl vytvořen pod číslem MDB-ID-Nr.: "}]
[{"$f":"Sprachen!L234","v":"jméno "},null,null,null,null,null,null,null,{"$f":"IF('Anlage 3 Selbstb. Produkt'!I28<>\"\",'Anlage 3 Selbstb. Produkt'!I28,\"\")","v":""},null,null,null,null,null,null,null,null,null,null,null,null,{"$f":"Sprachen!L61","v":"poznámka"}]
[{"$f":"Sprachen!L20","v":"oddělení"},null,null,null,null,null,null,null,{"$f":"IF('Anlage 3 Selbstb. Produkt'!I29<>\"\",'Anlage 3 Selbstb. Produkt'!I29,\"\")","v":""}]
[{"$f":"Sprachen!L343","v":"telefon"},null,null,null,null,null,null,null,{"$f":"IF('Anlage 3 Selbstb. Produkt'!I30<>\"\",'Anlage 3 Selbstb. Produkt'!I30,\"\")","v":""}]
[{"$f":"Sprachen!L120","v":"e-mail/fax č."},null,null,null,null,null,null,null,{"$f":"IF('Anlage 3 Selbstb. Produkt'!I31<>\"\",'Anlage 3 Selbstb. Produkt'!I31,\"\")","v":""}]
[{"$f":"Sprachen!L91","v":"datum"},null,null,null,null,null,null,null,{"$f":"IF('Anlage 4 PPF-Bewertung'!I124<>\"\",'Anlage 4 PPF-Bewertung'!I124,\"\")","v":""},null,null,null,null,null,null,null,null,null,null,null,null,{"$f":"Sprachen!L348","v":"podpis"}]
[{"$f":"Sprachen!L124","v":"rozhodnutí zákazníka"}]
[{"$f":"Sprachen!L191","v":"vhodné pro zákazníka/vhodné pro sériovou výrobu"},null,null,null,null,null,null,null,null,null,null,null,null,null,null,null,null,null,{"$f":"IF('Anlage 4 PPF-Bewertung'!S126<>\"\",'Anlage 4 PPF-Bewertung'!S126,\"\")","v":""},null,{"$f":"Sprachen!L243","v":"není vhodné pro zákazníka/není vhodné pro sériovou výrobu"},null,null,null,null,null,null,null,null,null,null,null,null,null,null,null,null,null,{"$f":"IF('Anlage 4 PPF-Bewertung'!AM126<>\"\",'Anlage 4 PPF-Bewertung'!AM126,\"\")","v":""}]
[{"$f":"Sprachen!L268","v":"postup PPF vůči zákazníkovi uzavřen"},null,null,null,null,null,null,null,null,null,null,null,null,null,null,null,null,null,{"$f":"IF('Anlage 4 PPF-Bewertung'!S127<>\"\",\"X\",\"\")","v":""},null,{"$f":"Sprachen!L238","v":"vyžadován nový postup PPF"},null,null,null,null,null,null,null,null,null,null,null,null,null,null,null,null,null,{"$f":"IF('Anlage 4 PPF-Bewertung'!AM127=\"X\",\"X\",\"\")","v":""},null,{"$f":"COUNTIF(S35:T36,\"X\")+COUNTIF(AM35,\"X\")","v":0}]
[{"$f":"Sprachen!L26","v":"požadována aktualizace dokumentace PPF"},null,null,null,null,null,null,null,null,null,null,null,null,null,null,null,null,null,{"$f":"IF('Anlage 4 PPF-Bewertung'!S128<>\"\",\"X\",\"\")","v":""}]
[{"$f":"Sprachen!L76 & \" \" &Sprachen!L187","v":"číslo zprávy/verze zákazník"},null,null,null,null,null,null,null,null,null,null,null,null,null,null,null,null,null,{"$f":"IF('Anlage 2 PPF Abstimmung'!AB11<>\"\",'Anlage 2 PPF Abstimmung'!AB11,\"\")","v":""}]
[{"$f":"Sprachen!L234","v":"jméno "},null,null,null,null,null,null,null,{"$f":"IF('Anlage 2 PPF Abstimmung'!I270<>\"\",'Anlage 2 PPF Abstimmung'!I270,\"\")","v":""},null,null,null,null,null,null,null,null,null,null,null,null,{"$f":"Sprachen!L61","v":"poznámka"}]
[{"$f":"Sprachen!L20","v":"oddělení"},null,null,null,null,null,null,null,{"$f":"IF('Anlage 2 PPF Abstimmung'!I271<>\"\",'Anlage 2 PPF Abstimmung'!I271,\"\")","v":""}]
[{"$f":"Sprachen!L343","v":"telefon"},null,null,null,null,null,null,null,{"$f":"IF('Anlage 2 PPF Abstimmung'!I272<>\"\",'Anlage 2 PPF Abstimmung'!I272,\"\")","v":""}]
[{"$f":"Sprachen!L120","v":"e-mail/fax č."},null,null,null,null,null,null,null,{"$f":"IF('Anlage 2 PPF Abstimmung'!I273<>\"\",'Anlage 2 PPF Abstimmung'!I273,\"\")","v":""}]
[{"$f":"Sprachen!L91","v":"datum"},null,null,null,null,null,null,null,{"$f":"IF('Anlage 4 PPF-Bewertung'!I149<>\"\",'Anlage 4 PPF-Bewertung'!I149,\"\")","v":""},null,null,null,null,null,null,null,null,null,null,null,null,{"$f":"Sprachen!L348","v":"podpis"}]

{"sheet":"Anlage 4 PPF-Bewertung","index":4,"n_rows":149,"n_cols":48,"rows_kept":149,"cut":false,"hidden":false,"merged":[[148,26,148,39],[146,8,146,20],[147,0,147,7],[147,8,147,20],[148,0,148,7],[148,8,148,20],[148,21,148,25],[143,10,143,14],[143,15,143,34],[143,35,143,39],[144,0,144,7],[144,8,144,20],[144,21,147,25],[144,26,147,39],[145,0,145,7],[145,8,145,20],[146,0,146,7],[139,0,143,9],[142,10,142,14],[142,15,142,34],[142,35,142,39],[134,0,138,9],[134,10,134,14],[134,15,134,39],[135,10,135,14],[135,15,135,39],[136,10,136,14],[136,15,136,39],[140,35,140,39],[141,10,141,14],[141,15,141,34],[141,35,141,39],[137,10,137,14],[137,15,137,39],[138,10,138,14],[138,15,138,39],[139,10,139,14],[139,15,139,34],[139,35,139,39],[140,10,140,14],[140,15,140,34],[128,0,128,9],[128,10,128,39],[129,0,133,9],[129,10,129,14],[129,15,129,39],[130,10,130,14],[130,15,130,39],[131,10,131,14],[131,15,131,39],[132,10,132,14],[132,15,132,39],[133,10,133,14],[133,15,133,39],[123,0,123,7],[123,8,123,20],[117,0,117,17],[117,18,117,19],[117,20,117,37],[126,0,126,17],[126,18,126,19],[126,20,127,37],[126,38,127,39],[127,0,127,17],[127,18,127,19],[123,21,123,25],[123,26,123,39],[124,0,124,39],[125,0,125,17],[125,18,125,19],[125,20,125,37],[125,38,125,39],[117,38,117,39],[118,0,118,39],[119,0,119,7],[119,8,119,20],[119,21,122,25],[119,26,122,39],[113,24,113,26],[113,27,113,35],[113,36,113,39],[114,0,114,39],[115,0,115,39],[116,0,116,39],[113,0,113,11],[113,12,113,13],[113,14,113,15],[113,16,113,17],[113,18,113,20],[113,21,113,23],[121,0,121,7],[121,8,121,20],[122,0,122,7],[122,8,122,20],[112,0,112,11],[112,12,112,13],[112,14,112,15],[112,16,112,17],[112,18,112,20],[120,0,120,7],[120,8,120,20],[112,21,112,23],[112,24,112,26],[112,27,112,35],[112,36,112,39],[111,0,111,11],[111,12,111,13],[111,14,111,15],[111,16,111,17],[111,18,111,20],[111,21,111,23],[111,24,111,26],[111,27,111,35],[111,36,111,39],[109,24,109,26],[109,27,109,35],[109,36,109,39],[110,0,110,11],[110,12,110,13],[110,14,110,15],[110,16,110,17],[110,18,110,20],[110,21,110,23],[110,24,110,26],[109,0,109,11],[109,12,109,13],[109,14,109,15],[109,16,109,17],[109,18,109,20],[109,21,109,23],[110,27,110,35],[110,36,110,39],[107,0,107,39],[108,0,108,11],[108,12,108,13],[108,14,108,15],[108,16,108,17],[108,18,108,20],[108,21,108,23],[108,24,108,26],[108,27,108,35],[108,36,108,39],[106,2,106,10],[106,11,106,15],[106,16,106,19],[106,20,106,30],[106,31,106,35],[106,36,106,39],[105,2,105,10],[105,11,105,15],[105,16,105,19],[105,20,105,30],[105,31,105,35],[105,36,105,39],[104,2,104,10],[104,11,104,15],[104,16,104,19],[104,20,104,30],[104,31,104,35],[104,36,104,39],[103,2,103,10],[103,11,103,15],[103,16,103,19],[103,20,103,30],[103,31,103,35],[103,36,103,39],[102,2,102,10],[102,11,102,15],[102,16,102,19],[102,20,102,30],[102,31,102,35],[102,36,102,39],[101,2,101,10],[101,11,101,15],[101,16,101,19],[101,20,101,30],[101,31,101,35],[101,36,101,39],[100,2,100,10],[100,11,100,15],[100,16,100,19],[100,20,100,30],[100,31,100,35],[100,36,100,39],[99,2,99,10],[99,11,99,15],[99,16,99,19],[99,20,99,30],[99,31,99,35],[99,36,99,39],[98,2,98,10],[98,11,98,15],[98,16,98,19],[98,20,98,30],[98,31,98,35],[98,36,98,39],[97,2,97,10],[97,11,97,15],[97,16,97,19],[97,20,97,30],[97,31,97,35],[97,36,97,39],[96,2,96,10],[96,11,96,15],[96,16,96,19],[96,20,96,30],[96,31,96,35],[96,36,96,39],[95,2,95,10],[95,11,95,15],[95,16,95,19],[95,20,95,30],[95,31,95,35],[95,36,95,39],[94,2,94,10],[94,11,94,15],[94,16,94,19],[94,20,94,30],[94,31,94,35],[94,36,94,39],[93,2,93,10],[93,11,93,15],[93,16,93,19],[93,20,93,30],[93,31,93,35],[93,36,93,39],[92,2,92,10],[92,11,92,15],[92,16,92,19],[92,20,92,30],[92,31,92,35],[92,36,92,39],[91,2,91,10],[91,11,91,15],[91,16,91,19],[91,20,91,30],[91,31,91,35],[91,36,91,39],[90,2,90,10],[90,11,90,15],[90,16,90,19],[90,20,90,30],[90,31,90,35],[90,36,90,39],[89,2,89,10],[89,11,89,15],[89,16,89,19],[89,20,89,30],[89,31,89,35],[89,36,89,39],[88,2,88,10],[88,11,88,15],[88,16,88,19],[88,20,88,30],[88,31,88,35],[88,36,88,39],[87,2,87,10],[87,11,87,15],[87,16,87,19],[87,20,87,30],[87,31,87,35],[87,36,87,39],[86,2,86,10],[86,11,86,15],[86,16,86,19],[86,20,86,30],[86,31,86,35],[86,36,86,39],[85,2,85,10],[85,11,85,15],[85,16,85,19],[85,20,85,30],[85,31,85,35],[85,36,85,39],[84,2,84,10],[84,11,84,15],[84,16,84,19],[84,20,84,30],[84,31,84,35],[84,36,84,39],[83,2,83,10],[83,11,83,15],[83,16,83,19],[83,20,83,30],[83,31,83,35],[83,36,83,39],[82,2,82,10],[82,11,82,15],[82,16,82,19],[82,20,82,30],[82,31,82,35],[82,36,82,39],[81,2,81,10],[81,11,81,15],[81,16,81,19],[81,20,81,30],[81,31,81,35],[81,36,81,39],[80,2,80,10],[80,11,80,15],[80,16,80,19],[80,20,80,30],[80,31,80,35],[80,36,80,39],[79,2,79,10],[79,11,79,15],[79,16,79,19],[79,20,79,30],[79,31,79,35],[79,36,79,39],[75,11,75,15],[75,16,75,19],[75,20,75,30],[75,31,75,35],[75,36,75,39],[78,2,78,10],[78,11,78,15],[78,16,78,19],[78,20,78,30],[78,31,78,35],[78,36,78,39],[77,2,77,10],[77,11,77,15],[77,16,77,19],[77,20,77,30],[77,31,77,35],[77,36,77,39],[73,36,73,39],[74,2,74,10],[74,11,74,15],[74,16,74,19],[74,20,74,30],[74,31,74,35],[74,36,74,39],[71,0,71,39],[72,0,72,1],[72,2,72,19],[72,20,72,39],[73,0,106,1],[73,2,73,10],[73,11,73,15],[73,16,73,19],[73,20,73,30],[73,31,73,35],[76,2,76,10],[76,11,76,15],[76,16,76,19],[76,20,76,30],[76,31,76,35],[76,36,76,39],[75,2,75,10],[69,27,69,30],[69,31,69,39],[70,0,70,2],[70,3,70,11],[70,12,70,13],[70,14,70,15],[70,16,70,17],[70,18,70,26],[70,27,70,30],[70,31,70,39],[69,0,69,2],[69,3,69,11],[69,12,69,13],[69,14,69,15],[69,16,69,17],[69,18,69,26],[67,27,67,30],[67,31,67,39],[68,0,68,2],[68,3,68,11],[68,12,68,13],[68,14,68,15],[68,16,68,17],[68,18,68,26],[68,27,68,30],[68,31,68,39],[67,0,67,2],[67,3,67,11],[67,12,67,13],[67,14,67,15],[67,16,67,17],[67,18,67,26],[65,27,65,30],[65,31,65,39],[66,0,66,2],[66,3,66,11],[66,12,66,13],[66,14,66,15],[66,16,66,17],[66,18,66,26],[66,27,66,30],[66,31,66,39],[65,0,65,2],[65,3,65,11],[65,12,65,13],[65,14,65,15],[65,16,65,17],[65,18,65,26],[64,12,64,13],[64,14,64,15],[64,16,64,17],[64,18,64,26],[64,27,64,30],[64,31,64,39],[63,0,63,2],[63,3,63,11],[63,12,63,13],[63,14,63,15],[63,16,63,17],[63,18,63,26],[60,45,70,45],[60,46,70,46],[60,47,70,47],[60,48,70,48],[61,27,61,30],[61,31,61,39],[62,27,62,30],[62,31,62,39],[62,0,62,2],[62,3,62,11],[62,12,62,13],[62,14,62,15],[62,16,62,17],[62,18,62,26],[61,0,61,2],[61,3,61,11],[61,12,61,13],[61,14,61,15],[61,16,61,17],[61,18,61,26],[63,27,63,30],[63,31,63,39],[64,0,64,2],[64,3,64,11],[58,0,58,2],[58,3,58,39],[59,0,59,17],[59,18,59,26],[60,0,60,2],[60,3,60,11],[60,12,60,13],[60,14,60,15],[60,16,60,17],[60,18,60,26],[60,27,60,30],[60,31,60,39],[56,27,56,30],[56,31,56,39],[57,0,57,2],[57,3,57,11],[57,12,57,13],[57,14,57,15],[57,16,57,17],[57,18,57,26],[57,27,57,30],[57,31,57,39],[56,0,56,2],[56,3,56,11],[56,12,56,13],[56,14,56,15],[56,16,56,17],[56,18,56,26],[54,27,54,30],[54,31,54,39],[55,0,55,2],[55,3,55,11],[55,12,55,13],[55,14,55,15],[55,16,55,17],[55,18,55,26],[55,27,55,30],[55,31,55,39],[54,0,54,2],[54,3,54,11],[54,12,54,13],[54,14,54,15],[54,16,54,17],[54,18,54,26],[53,12,53,13],[53,14,53,15],[53,16,53,17],[53,18,53,26],[53,27,53,30],[53,31,53,39],[52,0,52,2],[52,3,52,11],[52,12,52,13],[52,14,52,15],[52,16,52,17],[52,18,52,26],[49,45,57,45],[49,46,57,46],[49,47,57,47],[49,48,57,48],[50,27,50,30],[50,31,50,39],[51,27,51,30],[51,31,51,39],[51,0,51,2],[51,3,51,11],[51,12,51,13],[51,14,51,15],[51,16,51,17],[51,18,51,26],[50,0,50,2],[50,3,50,11],[50,12,50,13],[50,14,50,15],[50,16,50,17],[50,18,50,26],[52,27,52,30],[52,31,52,39],[53,0,53,2],[53,3,53,11],[47,27,47,30],[47,31,47,39],[48,0,48,2],[48,3,48,39],[49,0,49,2],[49,3,49,11],[49,12,49,13],[49,14,49,15],[49,16,49,17],[49,18,49,26],[47,0,47,2],[47,3,47,11],[47,12,47,13],[47,14,47,15],[47,16,47,17],[47,18,47,26],[49,27,49,30],[49,31,49,39],[46,12,46,13],[46,14,46,15],[46,16,46,17],[46,18,46,26],[46,27,46,30],[46,31,46,39],[45,0,45,2],[45,3,45,11],[45,12,45,13],[45,14,45,15],[45,16,45,17],[45,18,45,26],[42,45,47,45],[42,46,47,46],[42,47,47,47],[42,48,47,48],[43,0,43,2],[43,3,43,11],[43,12,43,13],[43,14,43,15],[43,16,43,17],[43,18,43,26],[43,27,43,30],[43,31,43,39],[44,0,44,2],[44,3,44,11],[44,12,44,13],[44,14,44,15],[44,16,44,17],[44,18,44,26],[44,27,44,30],[44,31,44,39],[45,27,45,30],[45,31,45,39],[46,0,46,2],[46,3,46,11],[41,0,41,2],[41,3,41,39],[42,0,42,2],[42,3,42,11],[42,12,42,13],[42,14,42,15],[42,16,42,17],[42,18,42,26],[42,27,42,30],[42,31,42,39],[39,27,39,30],[39,31,39,39],[40,0,40,2],[40,3,40,11],[40,12,40,13],[40,14,40,15],[40,16,40,17],[40,18,40,26],[40,27,40,30],[40,31,40,39],[39,0,39,2],[39,3,39,11],[39,12,39,13],[39,14,39,15],[39,16,39,17],[39,18,39,26],[37,27,37,30],[37,31,37,39],[38,0,38,2],[38,3,38,11],[38,12,38,13],[38,14,38,15],[38,16,38,17],[38,18,38,26],[38,27,38,30],[38,31,38,39],[37,0,37,2],[37,3,37,11],[37,12,37,13],[37,14,37,15],[37,16,37,17],[37,18,37,26],[35,27,35,30],[35,31,35,39],[36,0,36,2],[36,3,36,11],[36,12,36,13],[36,14,36,15],[36,16,36,17],[36,18,36,26],[36,27,36,30],[36,31,36,39],[35,0,35,2],[35,3,35,11],[35,12,35,13],[35,14,35,15],[35,16,35,17],[35,18,35,26],[33,27,33,30],[33,31,33,39],[34,0,34,2],[34,3,34,11],[34,12,34,13],[34,14,34,15],[34,16,34,17],[34,18,34,26],[34,27,34,30],[34,31,34,39],[33,0,33,2],[33,3,33,11],[33,12,33,13],[33,14,33,15],[33,16,33,17],[33,18,33,26],[32,12,32,13],[32,14,32,15],[32,16,32,17],[32,18,32,26],[32,27,32,30],[32,31,32,39],[31,0,31,2],[31,3,31,11],[31,12,31,13],[31,14,31,15],[31,16,31,17],[31,18,31,26],[28,45,40,45],[28,46,40,46],[28,47,40,47],[28,48,40,48],[29,0,29,2],[29,3,29,11],[29,12,29,13],[29,14,29,15],[29,16,29,17],[29,18,29,26],[29,27,29,30],[29,31,29,39],[30,0,30,2],[30,3,30,11],[30,12,30,13],[30,14,30,15],[30,16,30,17],[30,18,30,26],[30,27,30,30],[30,31,30,39],[31,27,31,30],[31,31,31,39],[32,0,32,2],[32,3,32,11],[27,0,27,2],[27,3,27,39],[28,0,28,2],[28,3,28,11],[28,12,28,13],[28,14,28,15],[28,16,28,17],[28,18,28,26],[28,27,28,30],[28,31,28,39],[24,45,26,45],[24,46,26,46],[24,47,26,47],[24,48,26,48],[25,0,25,2],[25,3,25,11],[25,12,25,13],[25,14,25,15],[25,16,25,17],[25,18,25,26],[25,27,25,30],[25,31,25,39],[26,0,26,2],[26,3,26,11],[26,12,26,13],[26,14,26,15],[26,16,26,17],[26,18,26,26],[26,27,26,30],[26,31,26,39],[23,0,23,2],[23,3,23,39],[24,0,24,2],[24,3,24,11],[24,12,24,13],[24,14,24,15],[24,16,24,17],[24,18,24,26],[24,27,24,30],[24,31,24,39],[22,12,22,13],[22,14,22,15],[22,16,22,17],[22,18,22,26],[22,27,22,30],[22,31,22,39],[21,0,21,2],[21,3,21,11],[21,12,21,13],[21,14,21,15],[21,16,21,17],[21,18,21,26],[18,45,22,45],[18,46,22,46],[18,47,22,47],[18,48,22,48],[19,27,19,30],[19,31,19,39],[20,27,20,30],[20,31,20,39],[20,0,20,2],[20,3,20,11],[20,12,20,13],[20,14,20,15],[20,16,20,17],[20,18,20,26],[19,0,19,2],[19,3,19,11],[19,12,19,13],[19,14,19,15],[19,16,19,17],[19,18,19,26],[21,27,21,30],[21,31,21,39],[22,0,22,2],[22,3,22,11],[18,0,18,2],[18,3,18,11],[18,12,18,13],[18,14,18,15],[18,16,18,17],[18,18,18,26],[15,27,15,30],[15,31,15,39],[16,0,16,17],[16,18,16,26],[17,0,17,2],[17,3,17,39],[18,27,18,30],[18,31,18,39],[14,46,15,46],[14,47,15,47],[14,48,15,48],[15,0,15,2],[15,3,15,11],[15,12,15,13],[15,14,15,15],[15,16,15,17],[15,18,15,26],[14,0,14,2],[14,3,14,11],[14,12,14,13],[14,14,14,15],[14,16,14,17],[14,18,14,26],[14,27,14,30],[14,31,14,39],[14,45,15,45],[11,0,11,13],[12,0,12,39],[13,0,13,2],[13,3,13,5],[13,6,13,11],[13,12,13,13],[13,14,13,15],[13,16,13,17],[13,18,13,26],[13,27,13,30],[13,31,13,39],[10,0,10,6],[10,7,10,13],[10,14,10,20],[10,21,10,26],[10,27,10,33],[10,34,10,39],[9,0,9,6],[9,7,9,13],[9,14,9,20],[9,21,9,26],[9,27,9,33],[9,34,9,39],[8,0,8,6],[8,7,8,13],[8,14,8,20],[8,21,8,26],[8,27,8,33],[8,34,8,39],[7,0,7,6],[7,7,7,13],[7,14,7,20],[7,21,7,26],[7,27,7,33],[7,34,7,39],[6,0,6,6],[6,7,6,13],[6,14,6,20],[6,21,6,26],[6,27,6,33],[6,34,6,39],[5,0,5,6],[5,7,5,13],[5,14,5,20],[5,21,5,26],[5,27,5,33],[5,34,5,39],[0,0,1,12],[0,13,0,19],[0,20,0,39],[1,13,1,19],[1,20,1,39],[2,0,2,13],[2,14,2,26],[2,27,2,39],[3,0,3,6],[3,7,3,13],[3,14,3,20],[3,21,3,26],[3,27,4,33],[4,0,4,6],[4,7,4,13],[4,14,4,20],[4,21,4,26],[3,34,4,39]]}
[{"$f":"Sprachen!L263","v":"hodnocení PPF"},null,null,null,null,null,null,null,null,null,null,null,null,{"$f":"Sprachen!L378","v":"zpráva"},null,null,null,null,null,null,{"$f":"IF(H4<>\"\",H4&\" / \"&H5,\"\")","v":""},null,null,null,null,null,null,null,null,null,null,null,null,null,null,null,null,null,null,null,null,"Sprachauswahl",1,"Hardwarebemusterung erforderlich",{"$f":"IF(S17=Sprachen!L4,\"X\",\"N\")","v":"N"}]
[null,null,null,null,null,null,null,null,null,null,null,null,null,{"$f":"Sprachen!L255","v":"organizace"},null,null,null,null,null,null,{"$f":"IF('Anlage 4 Deckblatt'!U2<>\"\",'Anlage 4 Deckblatt'!U2,\"\")","v":""},null,null,null,null,null,null,null,null,null,null,null,null,null,null,null,null,null,null,null,null,null,null,"Softwarebemusterung erforderlich",{"$f":"IF(S60=Sprachen!L4,\"X\",\"N\")","v":"N"}]
[{"$f":"Sprachen!L46","v":"údaje organizace"},null,null,null,null,null,null,null,null,null,null,null,null,null,{"$f":"Sprachen!L44","v":"údaje o vzorcích"},null,null,null,null,null,null,null,null,null,null,null,null,{"$f":"Sprachen!L45","v":"údaje zákazníka"},null,null,null,null,null,null,null,null,null,null,null,null,null,{"$f":"'Anlage 4 Deckblatt'!AP2","v":0}]
[{"$f":"Sprachen!L75","v":"číslo zprávy"},null,null,null,null,null,null,{"$f":"IF('Anlage 4 Deckblatt'!H16<>\"\",'Anlage 4 Deckblatt'!H16,\"\")","v":""},null,null,null,null,null,null,{"$f":"Sprachen!L198","v":"číslo dodacího listu"},null,null,null,null,null,null,{"$f":"IF('Anlage 4 Deckblatt'!V16<>\"\",'Anlage 4 Deckblatt'!V16,\"\")","v":""},null,null,null,null,null,{"$f":"Sprachen!L187","v":"zákazník"},null,null,null,null,null,null,{"$f":"IF('Anlage 4 Deckblatt'!A10<>\"\",'Anlage 4 Deckblatt'!A10,\"\")","v":""}]
[{"$f":"Sprachen!L77","v":"verze zprávy"},null,null,null,null,null,null,{"$f":"IF('Anlage 4 Deckblatt'!H17<>\"\",'Anlage 4 Deckblatt'!H17,\"\")","v":""},null,null,null,null,null,null,{"$f":"Sprachen!L197","v":"dodané množství"},null,null,null,null,null,null,{"$f":"IF('Anlage 4 Deckblatt'!V17<>\"\",'Anlage 4 Deckblatt'!V17,\"\")","v":""}]
[{"$f":"Sprachen!L199","v":"místo odeslání"},null,null,null,null,null,null,{"$f":"IF('Anlage 4 Deckblatt'!H18<>\"\",'Anlage 4 Deckblatt'!H18,\"\")","v":""},null,null,null,null,null,null,{"$f":"Sprachen!L89","v":"číslo šarže"},null,null,null,null,null,null,{"$f":"IF('Anlage 4 Deckblatt'!V18<>\"\",'Anlage 4 Deckblatt'!V18,\"\")","v":""},null,null,null,null,null,{"$f":"Sprachen!L87","v":"číslo objednávky vzorků PPF"},null,null,null,null,null,null,{"$f":"IF('Anlage 4 Deckblatt'!AI18<>\"\",'Anlage 4 Deckblatt'!AI18,\"\")","v":""}]
[{"$f":"Sprachen!L276","v":"výrobní místo"},null,null,null,null,null,null,{"$f":"IF('Anlage 4 Deckblatt'!H19<>\"\",'Anlage 4 Deckblatt'!H19,\"\")","v":""},null,null,null,null,null,null,{"$f":"Sprachen!L217","v":"hmotnost vzorku (kg)"},null,null,null,null,null,null,{"$f":"IF('Anlage 4 Deckblatt'!V19<>\"\",'Anlage 4 Deckblatt'!V19,\"\")","v":""},null,null,null,null,null,{"$f":"Sprachen!L14","v":"místo dodání"},null,null,null,null,null,null,{"$f":"IF('Anlage 4 Deckblatt'!AI19<>\"\",'Anlage 4 Deckblatt'!AI19,\"\")","v":""}]
[{"$f":"Sprachen!L304","v":"číslo dílu"},null,null,null,null,null,null,{"$f":"IF('Anlage 4 Deckblatt'!H20<>\"\",'Anlage 4 Deckblatt'!H20,\"\")","v":""},null,null,null,null,null,null,{"$f":"Sprachen!L166","v":"verze hardwaru"},null,null,null,null,null,null,{"$f":"IF('Anlage 4 Deckblatt'!V20<>\"\",'Anlage 4 Deckblatt'!V20,\"\")","v":""},null,null,null,null,null,{"$f":"Sprachen!L304","v":"číslo dílu"},null,null,null,null,null,null,{"$f":"IF('Anlage 4 Deckblatt'!AI20<>\"\",'Anlage 4 Deckblatt'!AI20,\"\")","v":""}]
[{"$f":"Sprachen!L65","v":"název"},null,null,null,null,null,null,{"$f":"IF('Anlage 4 Deckblatt'!H21<>\"\",'Anlage 4 Deckblatt'!H21,\"\")","v":""},null,null,null,null,null,null,{"$f":"Sprachen!L98","v":"status diagnózy"},null,null,null,null,null,null,{"$f":"IF('Anlage 4 Deckblatt'!V21<>\"\",'Anlage 4 Deckblatt'!V21,\"\")","v":""},null,null,null,null,null,{"$f":"Sprachen!L65","v":"název"},null,null,null,null,null,null,{"$f":"IF('Anlage 4 Deckblatt'!AI21<>\"\",'Anlage 4 Deckblatt'!AI21,\"\")","v":""}]
[{"$f":"Sprachen!L374","v":"číslo výkresu"},null,null,null,null,null,null,{"$f":"IF('Anlage 4 Deckblatt'!H22<>\"\",'Anlage 4 Deckblatt'!H22,\"\")","v":""},null,null,null,null,null,null,{"$f":"Sprachen!L326","v":"verze softwaru"},null,null,null,null,null,null,{"$f":"IF('Anlage 4 Deckblatt'!V22<>\"\",'Anlage 4 Deckblatt'!V22,\"\")","v":""},null,null,null,null,null,{"$f":"Sprachen!L374","v":"číslo výkresu"},null,null,null,null,null,null,{"$f":"IF('Anlage 4 Deckblatt'!AI22<>\"\",'Anlage 4 Deckblatt'!AI22,\"\")","v":""}]
[{"$f":"Sprachen!L361","v":"verze/datum"},null,null,null,null,null,null,{"$f":"IF('Anlage 4 Deckblatt'!H23<>\"\",'Anlage 4 Deckblatt'!H23,\"\")","v":""},null,null,null,null,null,null,{"$f":"Sprachen!L177","v":"identifikace/DUNS"},null,null,null,null,null,null,{"$f":"IF('Anlage 4 Deckblatt'!V23<>\"\",'Anlage 4 Deckblatt'!V23,\"\")","v":""},null,null,null,null,null,{"$f":"Sprachen!L361","v":"verze/datum"},null,null,null,null,null,null,{"$f":"IF('Anlage 4 Deckblatt'!AI23<>\"\",'Anlage 4 Deckblatt'!AI23,\"\")","v":""}]
[{"$f":"IF('Anlage 2 PPF Abstimmung'!A38<>\"\",'Anlage 2 PPF Abstimmung'!A38,\"\")","v":"díl s povinností zvláštní archivace"}]
[{"$f":"Sprachen!L115","v":"sebehodnocení organizací"}]
[{"$f":"Sprachen!L253","v":"pořadové číslo"},null,null,{"$f":"Sprachen!L289","v":"oblast zkoušení"},null,null,{"$f":"Sprachen!L12","v":"(pokud se produktu týká)"},null,null,null,null,null,{"$f":"Sprachen!L366","v":"požadováno předložení"},null,{"$f":"Sprachen!L43","v":"požadavky zcela splněny "},null,{"$f":"Sprachen!L42","v":"některé požadavky nejsou splněny"},null,{"$f":"Sprachen!L224","v":"průkazná dokumentace"},null,null,null,null,null,null,null,null,{"$f":"Sprachen!L361","v":"verze/datum"},null,null,null,{"$f":"Sprachen!L61","v":"poznámka"},null,null,null,null,null,null,null,null,"Kategorie gefordert","rückgemeldet","0: gefordert und rückgemeldet: \n-1: gefordert nicht rückgemeldet",null,"i.O.","Nicht vollständig befüllt","Vollständig und i.O.","Nicht i.O."]
["0.1",null,null,{"$f":"Sprachen!L94","v":"krycí list PPF/hodnocení PPF"},null,null,null,null,null,null,null,null,{"$f":"Sprachen!L4","v":"ano"},null,null,null,null,null,"-",null,null,null,null,null,null,null,null,"-",null,null,null,null,null,null,null,null,null,null,null,null,{"$f":"IF(M15=Sprachen!$L$4,\"J\",\"N\")","v":"J"},{"$f":"IF(OR(O15=\"X\",Q15=\"X\"),\"J\",\"N\")","v":"N"},{"$f":"IF(AND(AO15=\"J\",AP15=\"J\"),0,IF(AND(AO15=\"J\",AP15=\"N\"),-1,\"\"))","v":-1},null,{"$f":"IF(O15=\"X\",\"J\",IF(AP15=\"N\",IF(AQ15=-1,\"Fehlt\",\"\"),\"N\"))","v":"Fehlt"},{"$f":"IF(IFERROR(VLOOKUP(\"Fehlt\",AS15:AS16,1,FALSE)=\"Fehlt\",FALSE),\"X\",\"\")","v":"X"},{"$f":"IF(OR(IFERROR(VLOOKUP(\"N\",AS15:AS16,1,FALSE),FALSE)=\"N\",IFERROR(VLOOKUP(\"Fehlt\",AS15:AS16,1,FALSE),FALSE)=\"Fehlt\")=FALSE,\"X\",\"\")","v":""},{"$f":"IF(IFERROR(VLOOKUP(\"N\",AS15:AS16,1,FALSE),FALSE)=\"N\",\"X\",\"\")","v":""}]
["0.2",null,null,{"$f":"Sprachen!L313","v":"sebehodnocení produktu, procesu příp. softwaru"},null,null,null,null,null,null,null,null,{"$f":"Sprachen!L4","v":"ano"},null,null,null,null,null,null,null,null,null,null,null,null,null,null,null,null,null,null,null,null,null,null,null,null,null,null,null,{"$f":"IF(M16=Sprachen!$L$4,\"J\",\"N\")","v":"J"},{"$f":"IF(OR(O16=\"X\",Q16=\"X\"),\"J\",\"N\")","v":"N"},{"$f":"IF(AND(AO16=\"J\",AP16=\"J\"),0,IF(AND(AO16=\"J\",AP16=\"N\"),-1,\"\"))","v":-1},null,{"$f":"IF(O16=\"X\",\"J\",IF(AP16=\"N\",IF(AQ16=-1,\"Fehlt\",\"\"),\"N\"))","v":"Fehlt"}]
[{"$f":"Sprachen!L165","v":"požadováno uvolnění hardwaru"},null,null,null,null,null,null,null,null,null,null,null,null,null,null,null,null,null,{"$f":"IF('Anlage 2 PPF Abstimmung'!S135<>\"\",'Anlage 2 PPF Abstimmung'!S135,\"\")","v":""}]
["1. ",null,null,{"$f":"Sprachen!L228","v":"důkazy k návrhu produktu"}]
["1.1",null,null,{"$f":"Sprachen!L334","v":"technické specifikace"},null,null,null,null,null,null,null,null,{"$f":"IF('Anlage 2 PPF Abstimmung'!O137<>\"\",'Anlage 2 PPF Abstimmung'!O137,\"\")","v":""},null,null,null,null,null,null,null,null,null,null,null,null,null,null,null,null,null,null,null,null,null,null,null,null,null,null,null,{"$f":"IF(M19=Sprachen!$L$4,\"J\",\"N\")","v":"N"},{"$f":"IF(OR(O19=\"X\",Q19=\"X\"),\"J\",\"N\")","v":"N"},{"$f":"IF(AND(AO19=\"J\",AP19=\"J\"),0,IF(AND(AO19=\"J\",AP19=\"N\"),-1,\"\"))","v":""},null,{"$f":"IF(O19=\"X\",\"J\",IF(AP19=\"N\",IF(AQ19=-1,\"Fehlt\",\"\"),\"N\"))","v":""},{"$f":"IF(IFERROR(VLOOKUP(\"Fehlt\",AS19:AS23,1,FALSE)=\"Fehlt\",FALSE),\"X\",\"\")","v":""},{"$f":"IF(OR(IFERROR(VLOOKUP(\"N\",AS19:AS23,1,FALSE),FALSE)=\"N\",IFERROR(VLOOKUP(\"Fehlt\",AS19:AS23,1,FALSE),FALSE)=\"Fehlt\")=FALSE,\"X\",\"\")","v":"X"},{"$f":"IF(IFERROR(VLOOKUP(\"N\",AS19:AS23,1,FALSE),FALSE)=\"N\",\"X\",\"\")","v":""}]
["1.2",null,null,{"$f":"Sprachen!L150","v":"schválené změny konstrukce"},null,null,null,null,null,null,null,null,{"$f":"IF('Anlage 2 PPF Abstimmung'!O138<>\"\",'Anlage 2 PPF Abstimmung'!O138,\"\")","v":""},null,null,null,null,null,null,null,null,null,null,null,null,null,null,null,null,null,null,null,null,null,null,null,null,null,null,null,{"$f":"IF(M20=Sprachen!$L$4,\"J\",\"N\")","v":"N"},"N","",null,""]
["1.3",null,null,{"$f":"Sprachen!L182","v":"uvolnění konstrukcí/vývojem"},null,null,null,null,null,null,null,null,{"$f":"IF('Anlage 2 PPF Abstimmung'!O139<>\"\",'Anlage 2 PPF Abstimmung'!O139,\"\")","v":""},null,null,null,null,null,null,null,null,null,null,null,null,null,null,null,null,null,null,null,null,null,null,null,null,null,null,null,{"$f":"IF(M21=Sprachen!$L$4,\"J\",\"N\")","v":"N"},"N","",null,""]
["1.4",null,null,{"$f":"Sprachen!L209","v":"materiálová data podle IMDS"},null,null,null,null,null,null,null,null,{"$f":"IF('Anlage 2 PPF Abstimmung'!O140<>\"\",'Anlage 2 PPF Abstimmung'!O140,\"\")","v":""},null,null,null,null,null,null,null,null,null,null,null,null,null,null,null,null,null,null,null,null,null,null,null,null,null,null,null,{"$f":"IF(M22=Sprachen!$L$4,\"J\",\"N\")","v":"N"},"N","",null,""]
["1.5",null,null,{"$f":"Sprachen!L97","v":"FMEA-D"},null,null,null,null,null,null,null,null,{"$f":"IF('Anlage 2 PPF Abstimmung'!O141<>\"\",'Anlage 2 PPF Abstimmung'!O141,\"\")","v":""},null,null,null,null,null,null,null,null,null,null,null,null,null,null,null,null,null,null,null,null,null,null,null,null,null,null,null,{"$f":"IF(M23=Sprachen!$L$4,\"J\",\"N\")","v":"N"},"N","",null,""]
["2. ",null,null,{"$f":"Sprachen!L229","v":"důkazy k návrhu výrobního procesu"},null,null,null,null,null,null,null,null,null,null,null,null,null,null,null,null,null,null,null,null,null,null,null,null,null,null,null,null,null,null,null,null,null,null,null,null,{"$f":"IF(M24=Sprachen!$L$4,\"J\",\"N\")","v":"N"}]
["2.1",null,null,{"$f":"Sprachen!L283","v":"vývojový diagram procesu (flowchart)"},null,null,null,null,null,null,null,null,{"$f":"IF('Anlage 2 PPF Abstimmung'!O143<>\"\",'Anlage 2 PPF Abstimmung'!O143,\"\")","v":""},null,null,null,null,null,null,null,null,null,null,null,null,null,null,null,null,null,null,null,null,null,null,null,null,null,null,null,{"$f":"IF(M25=Sprachen!$L$4,\"J\",\"N\")","v":"N"},{"$f":"IF(OR(O25=\"X\",Q25=\"X\"),\"J\",\"N\")","v":"N"},{"$f":"IF(AND(AO25=\"J\",AP25=\"J\"),0,IF(AND(AO25=\"J\",AP25=\"N\"),-1,\"\"))","v":""},null,{"$f":"IF(O25=\"X\",\"J\",IF(AP25=\"N\",IF(AQ25=-1,\"Fehlt\",\"\"),\"N\"))","v":""},{"$f":"IF(IFERROR(VLOOKUP(\"Fehlt\",AS25:AS27,1,FALSE)=\"Fehlt\",FALSE),\"X\",\"\")","v":""},{"$f":"IF(OR(IFERROR(VLOOKUP(\"N\",AS25:AS27,1,FALSE),FALSE)=\"N\",IFERROR(VLOOKUP(\"Fehlt\",AS25:AS27,1,FALSE),FALSE)=\"Fehlt\")=FALSE,\"X\",\"\")","v":"X"},{"$f":"IF(IFERROR(VLOOKUP(\"N\",AS25:AS27,1,FALSE),FALSE)=\"N\",\"X\",\"\")","v":""}]
["2.2",null,null,{"$f":"Sprachen!L287","v":"FMEA-P"},null,null,null,null,null,null,null,null,{"$f":"IF('Anlage 2 PPF Abstimmung'!O144<>\"\",'Anlage 2 PPF Abstimmung'!O144,\"\")","v":""},null,null,null,null,null,null,null,null,null,null,null,null,null,null,null,null,null,null,null,null,null,null,null,null,null,null,null,{"$f":"IF(M26=Sprachen!$L$4,\"J\",\"N\")","v":"N"},"N","",null,""]
["2.3",null,null,{"$f":"Sprachen!L275","v":"plán kontroly a řízení"},null,null,null,null,null,null,null,null,{"$f":"IF('Anlage 2 PPF Abstimmung'!O145<>\"\",'Anlage 2 PPF Abstimmung'!O145,\"\")","v":""},null,null,null,null,null,null,null,null,null,null,null,null,null,null,null,null,null,null,null,null,null,null,null,null,null,null,null,{"$f":"IF(M27=Sprachen!$L$4,\"J\",\"N\")","v":"N"},"N","",null,""]
["3. ",null,null,{"$f":"Sprachen!L231","v":"důkazy k validaci produktu"},null,null,null,null,null,null,null,null,null,null,null,null,null,null,null,null,null,null,null,null,null,null,null,null,null,null,null,null,null,null,null,null,null,null,null,null,{"$f":"IF(M28=Sprachen!$L$4,\"J\",\"N\")","v":"N"}]
["3.1",null,null,{"$f":"Sprachen!L153","v":"geometrie, rozměry"},null,null,null,null,null,null,null,null,{"$f":"IF('Anlage 2 PPF Abstimmung'!O147<>\"\",'Anlage 2 PPF Abstimmung'!O147,\"\")","v":""},null,null,null,null,null,null,null,null,null,null,null,null,null,null,null,null,null,null,null,null,null,null,null,null,null,null,null,{"$f":"IF(M29=Sprachen!$L$4,\"J\",\"N\")","v":"N"},{"$f":"IF(OR(O29=\"X\",Q29=\"X\"),\"J\",\"N\")","v":"N"},{"$f":"IF(AND(AO29=\"J\",AP29=\"J\"),0,IF(AND(AO29=\"J\",AP29=\"N\"),-1,\"\"))","v":""},null,{"$f":"IF(O29=\"X\",\"J\",IF(AP29=\"N\",IF(AQ29=-1,\"Fehlt\",\"\"),\"N\"))","v":""},{"$f":"IF(IFERROR(VLOOKUP(\"Fehlt\",AS29:AS41,1,FALSE)=\"Fehlt\",FALSE),\"X\",\"\")","v":""},{"$f":"IF(OR(IFERROR(VLOOKUP(\"N\",AS29:AS41,1,FALSE),FALSE)=\"N\",IFERROR(VLOOKUP(\"Fehlt\",AS29:AS41,1,FALSE),FALSE)=\"Fehlt\")=FALSE,\"X\",\"\")","v":""},{"$f":"IF(IFERROR(VLOOKUP(\"N\",AS29:AS41,1,FALSE),FALSE)=\"N\",\"X\",\"\")","v":"X"}]
["3.2",null,null,{"$f":"Sprachen!L368","v":"materiál (pevnost, fyzikální vlastnosti…)"},null,null,null,null,null,null,null,null,{"$f":"IF('Anlage 2 PPF Abstimmung'!O155<>\"\",'Anlage 2 PPF Abstimmung'!O155,\"\")","v":""},null,null,null,"x",null,null,null,null,null,null,null,null,null,null,null,null,null,null,null,null,null,null,null,null,null,null,null,{"$f":"IF(M30=Sprachen!$L$4,\"J\",\"N\")","v":"N"},{"$f":"IF(OR(O30=\"X\",Q30=\"X\"),\"J\",\"N\")","v":"J"},{"$f":"IF(AND(AO30=\"J\",AP30=\"J\"),0,IF(AND(AO30=\"J\",AP30=\"N\"),-1,\"\"))","v":""},null,{"$f":"IF(O30=\"X\",\"J\",IF(AP30=\"N\",IF(AQ30=-1,\"Fehlt\",\"\"),\"N\"))","v":"N"}]
["3.3",null,null,{"$f":"Sprachen!L144","v":"funkce"},null,null,null,null,null,null,null,null,{"$f":"IF('Anlage 2 PPF Abstimmung'!O166<>\"\",'Anlage 2 PPF Abstimmung'!O166,\"\")","v":""},null,null,null,null,null,null,null,null,null,null,null,null,null,null,null,null,null,null,null,null,null,null,null,null,null,null,null,{"$f":"IF(M31=Sprachen!$L$4,\"J\",\"N\")","v":"N"},"N","",null,""]
["3.4",null,null,{"$f":"Sprachen!L161","v":"hmatový vjem (haptika)"},null,null,null,null,null,null,null,null,{"$f":"IF('Anlage 2 PPF Abstimmung'!O167<>\"\",'Anlage 2 PPF Abstimmung'!O167,\"\")","v":""},null,null,null,null,null,null,null,null,null,null,null,null,null,null,null,null,null,null,null,null,null,null,null,null,null,null,null,{"$f":"IF(M32=Sprachen!$L$4,\"J\",\"N\")","v":"N"},"N","",null,""]
["3.5",null,null,{"$f":"Sprachen!L27","v":"akustika"},null,null,null,null,null,null,null,null,{"$f":"IF('Anlage 2 PPF Abstimmung'!O168<>\"\",'Anlage 2 PPF Abstimmung'!O168,\"\")","v":""},null,null,null,null,null,null,null,null,null,null,null,null,null,null,null,null,null,null,null,null,null,null,null,null,null,null,null,{"$f":"IF(M33=Sprachen!$L$4,\"J\",\"N\")","v":"N"},"N","",null,""]
["3.6",null,null,{"$f":"Sprachen!L154","v":"pach"},null,null,null,null,null,null,null,null,{"$f":"IF('Anlage 2 PPF Abstimmung'!O169<>\"\",'Anlage 2 PPF Abstimmung'!O169,\"\")","v":""},null,null,null,null,null,null,null,null,null,null,null,null,null,null,null,null,null,null,null,null,null,null,null,null,null,null,null,{"$f":"IF(M34=Sprachen!$L$4,\"J\",\"N\")","v":"N"},"N","",null,""]
["3.7",null,null,{"$f":"Sprachen!L56","v":"vzhled"},null,null,null,null,null,null,null,null,{"$f":"IF('Anlage 2 PPF Abstimmung'!O170<>\"\",'Anlage 2 PPF Abstimmung'!O170,\"\")","v":""},null,null,null,null,null,null,null,null,null,null,null,null,null,null,null,null,null,null,null,null,null,null,null,null,null,null,null,{"$f":"IF(M35=Sprachen!$L$4,\"J\",\"N\")","v":"N"},"N","",null,""]
["3.8",null,null,{"$f":"Sprachen!L252","v":"požadavky týkající se povrchu"},null,null,null,null,null,null,null,null,{"$f":"IF('Anlage 2 PPF Abstimmung'!O171<>\"\",'Anlage 2 PPF Abstimmung'!O171,\"\")","v":""},null,null,null,null,null,null,null,null,null,null,null,null,null,null,null,null,null,null,null,null,null,null,null,null,null,null,null,{"$f":"IF(M36=Sprachen!$L$4,\"J\",\"N\")","v":"N"},"N","",null,""]
["3.9",null,null,{"$f":"Sprachen!L333","v":"technická čistota"},null,null,null,null,null,null,null,null,{"$f":"IF('Anlage 2 PPF Abstimmung'!O174<>\"\",'Anlage 2 PPF Abstimmung'!O174,\"\")","v":""},null,null,null,null,null,null,null,null,null,null,null,null,null,null,null,null,null,null,null,null,null,null,null,null,null,null,null,{"$f":"IF(M37=Sprachen!$L$4,\"J\",\"N\")","v":"N"},"N","",null,""]
["3.10",null,null,{"$f":"Sprachen!L377","v":"spolehlivost"},null,null,null,null,null,null,null,null,{"$f":"IF('Anlage 2 PPF Abstimmung'!O175<>\"\",'Anlage 2 PPF Abstimmung'!O175,\"\")","v":""},null,null,null,null,null,null,null,null,null,null,null,null,null,null,null,null,null,null,null,null,null,null,null,null,null,null,null,{"$f":"IF(M38=Sprachen!$L$4,\"J\",\"N\")","v":"N"},"N","",null,""]
["3.11",null,null,{"$f":"Sprachen!L82","v":"odolnost proti elektrostatickému výboji (ESD)"},null,null,null,null,null,null,null,null,{"$f":"IF('Anlage 2 PPF Abstimmung'!O176<>\"\",'Anlage 2 PPF Abstimmung'!O176,\"\")","v":""},null,null,null,null,null,null,null,null,null,null,null,null,null,null,null,null,null,null,null,null,null,null,null,null,null,null,null,{"$f":"IF(M39=Sprachen!$L$4,\"J\",\"N\")","v":"N"},"N","",null,""]
["3.12",null,null,{"$f":"Sprachen!L117","v":"elektrická bezpečnost/ochrana proti vysokému napětí"},null,null,null,null,null,null,null,null,{"$f":"IF('Anlage 2 PPF Abstimmung'!O177<>\"\",'Anlage 2 PPF Abstimmung'!O177,\"\")","v":""},null,null,null,null,null,null,null,null,null,null,null,null,null,null,null,null,null,null,null,null,null,null,null,null,null,null,null,{"$f":"IF(M40=Sprachen!$L$4,\"J\",\"N\")","v":"N"},"N","",null,""]
["3.13",null,null,{"$f":"Sprachen!L118","v":"elektromagnetická kompatibilita (EMC)"},null,null,null,null,null,null,null,null,{"$f":"IF('Anlage 2 PPF Abstimmung'!O178<>\"\",'Anlage 2 PPF Abstimmung'!O178,\"\")","v":""},null,null,null,null,null,null,null,null,null,null,null,null,null,null,null,null,null,null,null,null,null,null,null,null,null,null,null,{"$f":"IF(M41=Sprachen!$L$4,\"J\",\"N\")","v":"N"},"N","",null,""]
["4. ",null,null,{"$f":"Sprachen!L232","v":"důkazy k validaci výrobního procesu"}]
["4.1",null,null,{"$f":"Sprachen!L16","v":"zajištění zvláštních charakteristik podle technických specifikací a dohodnutých charakteristik (např. Poka Yoke, 100% zkoušení, způsobilosti procesu…)"},null,null,null,null,null,null,null,null,{"$f":"IF('Anlage 2 PPF Abstimmung'!O180<>\"\",'Anlage 2 PPF Abstimmung'!O180,\"\")","v":""},null,null,null,null,null,null,null,null,null,null,null,null,null,null,null,null,null,null,null,null,null,null,null,null,null,null,null,{"$f":"IF(M43=Sprachen!$L$4,\"J\",\"N\")","v":"N"},{"$f":"IF(OR(O43=\"X\",Q43=\"X\"),\"J\",\"N\")","v":"N"},{"$f":"IF(AND(AO43=\"J\",AP43=\"J\"),0,IF(AND(AO43=\"J\",AP43=\"N\"),-1,\"\"))","v":""},null,{"$f":"IF(O43=\"X\",\"J\",IF(AP43=\"N\",IF(AQ43=-1,\"Fehlt\",\"\"),\"N\"))","v":""},{"$f":"IF(IFERROR(VLOOKUP(\"Fehlt\",AS43:AS48,1,FALSE)=\"Fehlt\",FALSE),\"X\",\"\")","v":""},{"$f":"IF(OR(IFERROR(VLOOKUP(\"N\",AS43:AS48,1,FALSE),FALSE)=\"N\",IFERROR(VLOOKUP(\"Fehlt\",AS43:AS48,1,FALSE),FALSE)=\"Fehlt\")=FALSE,\"X\",\"\")","v":"X"},{"$f":"IF(IFERROR(VLOOKUP(\"N\",AS43:AS48,1,FALSE),FALSE)=\"N\",\"X\",\"\")","v":""}]
["4.2",null,null,{"$f":"Sprachen!L194","v":"kvalifikace laboratoře"},null,null,null,null,null,null,null,null,{"$f":"IF('Anlage 2 PPF Abstimmung'!O181<>\"\",'Anlage 2 PPF Abstimmung'!O181,\"\")","v":""},null,null,null,null,null,null,null,null,null,null,null,null,null,null,null,null,null,null,null,null,null,null,null,null,null,null,null,{"$f":"IF(M44=Sprachen!$L$4,\"J\",\"N\")","v":"N"},"N","",null,""]
["4.3",null,null,{"$f":"Sprachen!L216","v":"vzorek včetně výrobní dokumentace"},null,null,null,null,null,null,null,null,{"$f":"IF('Anlage 2 PPF Abstimmung'!O182<>\"\",'Anlage 2 PPF Abstimmung'!O182,\"\")","v":""},null,null,null,null,null,null,null,null,null,null,null,null,null,null,null,null,null,null,null,null,null,null,null,null,null,null,null,{"$f":"IF(M45=Sprachen!$L$4,\"J\",\"N\")","v":"N"},"N","",null,""]
["4.4",null,null,{"$f":"Sprachen!L300","v":"referenční vzorek"},null,null,null,null,null,null,null,null,{"$f":"IF('Anlage 2 PPF Abstimmung'!O183<>\"\",'Anlage 2 PPF Abstimmung'!O183,\"\")","v":""},null,null,null,null,null,null,null,null,null,null,null,null,null,null,null,null,null,null,null,null,null,null,null,null,null,null,null,{"$f":"IF(M46=Sprachen!$L$4,\"J\",\"N\")","v":"N"},"N","",null,""]
["4.5",null,null,{"$f":"Sprachen!L274","v":"kapacita výroby"},null,null,null,null,null,null,null,null,{"$f":"IF('Anlage 2 PPF Abstimmung'!O184<>\"\",'Anlage 2 PPF Abstimmung'!O184,\"\")","v":""},null,null,null,null,null,null,null,null,null,null,null,null,null,null,null,null,null,null,null,null,null,null,null,null,null,null,null,{"$f":"IF(M47=Sprachen!$L$4,\"J\",\"N\")","v":"N"},"N","",null,""]
["4.6",null,null,{"$f":"Sprachen!L371","v":"nástroje "},null,null,null,null,null,null,null,null,{"$f":"IF('Anlage 2 PPF Abstimmung'!O185<>\"\",'Anlage 2 PPF Abstimmung'!O185,\"\")","v":""},null,null,null,null,null,null,null,null,null,null,null,null,null,null,null,null,null,null,null,null,null,null,null,null,null,null,null,{"$f":"IF(M48=Sprachen!$L$4,\"J\",\"N\")","v":"N"},"N","",null,""]
["5. ",null,null,{"$f":"Sprachen!L152","v":"všeobecné důkazy"}]
["5.1",null,null,{"$f":"Sprachen!L226","v":"důkazy o dodržení požadavků právních předpisů"},null,null,null,null,null,null,null,null,{"$f":"IF(OR(AS1=\"X\",AS2=\"X\"),Sprachen!L4,\"\")","v":""},null,null,null,null,null,null,null,null,null,null,null,null,null,null,null,null,null,null,null,null,null,null,null,null,null,null,null,{"$f":"IF(M50=Sprachen!$L$4,\"J\",\"N\")","v":"N"},"N","",null,"",{"$f":"IF(IFERROR(VLOOKUP(\"Fehlt\",AS50:AS58,1,FALSE)=\"Fehlt\",FALSE),\"X\",\"\")","v":""},{"$f":"IF(OR(IFERROR(VLOOKUP(\"N\",AS50:AS58,1,FALSE),FALSE)=\"N\",IFERROR(VLOOKUP(\"Fehlt\",AS50:AS58,1,FALSE),FALSE)=\"Fehlt\")=FALSE,\"X\",\"\")","v":"X"},{"$f":"IF(IFERROR(VLOOKUP(\"N\",AS50:AS58,1,FALSE),FALSE)=\"N\",\"X\",\"\")","v":""}]
["5.2",null,null,{"$f":"Sprachen!L264","v":"status PPF dodavatelského řetězce"},null,null,null,null,null,null,null,null,{"$f":"IF('Anlage 2 PPF Abstimmung'!O188<>\"\",'Anlage 2 PPF Abstimmung'!O188,\"\")","v":""},null,null,null,null,null,null,null,null,null,null,null,null,null,null,null,null,null,null,null,null,null,null,null,null,null,null,null,{"$f":"IF(M51=Sprachen!$L$4,\"J\",\"N\")","v":"N"},"N","",null,""]
["5.3",null,null,{"$f":"Sprachen!L292","v":"seznam měřidel k produktu a výrobnímu procesu"},null,null,null,null,null,null,null,null,{"$f":"IF('Anlage 2 PPF Abstimmung'!O189<>\"\",'Anlage 2 PPF Abstimmung'!O189,\"\")","v":""},null,null,null,null,null,null,null,null,null,null,null,null,null,null,null,null,null,null,null,null,null,null,null,null,null,null,null,{"$f":"IF(M52=Sprachen!$L$4,\"J\",\"N\")","v":"N"},"N","",null,""]
["5.4",null,null,{"$f":"Sprachen!L291","v":"důkaz o způsobilosti měřidel pro produkt a výrobní proces"},null,null,null,null,null,null,null,null,{"$f":"IF('Anlage 2 PPF Abstimmung'!O190<>\"\",'Anlage 2 PPF Abstimmung'!O190,\"\")","v":""},null,null,null,null,null,null,null,null,null,null,null,null,null,null,null,null,null,null,null,null,null,null,null,null,null,null,null,{"$f":"IF(M53=Sprachen!$L$4,\"J\",\"N\")","v":"N"},"N","",null,""]
["5.5",null,null,{"$f":"Sprachen!L341","v":"životopis dílu"},null,null,null,null,null,null,null,null,{"$f":"IF(AS1=\"X\",Sprachen!L4,\"\")","v":""},null,null,null,null,null,null,null,null,null,null,null,null,null,null,null,null,null,null,null,null,null,null,null,null,null,null,null,{"$f":"IF(M54=Sprachen!$L$4,\"J\",\"N\")","v":"N"},"N","",null,""]
["5.6",null,null,{"$f":"Sprachen!L113","v":"důkaz o vhodnosti nasazených balících jednotek, včetně skladování"},null,null,null,null,null,null,null,null,{"$f":"IF('Anlage 2 PPF Abstimmung'!O193<>\"\",'Anlage 2 PPF Abstimmung'!O193,\"\")","v":""},null,null,null,null,null,null,null,null,null,null,null,null,null,null,null,null,null,null,null,null,null,null,null,null,null,null,null,{"$f":"IF(M55=Sprachen!$L$4,\"J\",\"N\")","v":"N"},"N","",null,""]
["5.7",null,null,{"$f":"Sprachen!L107","v":"dokumentace dohod k procesu posuzování a analýz:\n- zpracování reklamací (např. 8D)\n- analýza vadných dílů z provozu "},null,null,null,null,null,null,null,null,{"$f":"IF('Anlage 2 PPF Abstimmung'!O194<>\"\",'Anlage 2 PPF Abstimmung'!O194,\"\")","v":""},null,null,null,null,null,null,null,null,null,null,null,null,null,null,null,null,null,null,null,null,null,null,null,null,null,null,null,{"$f":"IF(M56=Sprachen!$L$4,\"J\",\"N\")","v":"N"},"N","",null,""]
["5.8",null,null,{"$f":"Sprachen!L106","v":"dokumentace dohody o rekvalifikačních zkouškách"},null,null,null,null,null,null,null,null,{"$f":"IF('Anlage 2 PPF Abstimmung'!O195<>\"\",'Anlage 2 PPF Abstimmung'!O195,\"\")","v":""},null,null,null,null,null,null,null,null,null,null,null,null,null,null,null,null,null,null,null,null,null,null,null,null,null,null,null,{"$f":"IF(M57=Sprachen!$L$4,\"J\",\"N\")","v":"N"},"N","",null,""]
["5.9",null,null,{"$f":"Sprachen!L327","v":"jiné"},null,null,null,null,null,null,null,null,{"$f":"IF('Anlage 2 PPF Abstimmung'!O196<>\"\",'Anlage 2 PPF Abstimmung'!O196,\"\")","v":""},null,null,null,null,null,null,null,null,null,null,null,null,null,null,null,null,null,null,null,null,null,null,null,null,null,null,null,{"$f":"IF(M58=Sprachen!$L$4,\"J\",\"N\")","v":"N"},"N","",null,""]
["6. ",null,null,{"$f":"Sprachen!L230","v":"důkazy k softwaru"}]
[{"$f":"Sprachen!L325","v":"vyžadováno uvolnění softwaru"},null,null,null,null,null,null,null,null,null,null,null,null,null,null,null,null,null,{"$f":"IF('Anlage 2 PPF Abstimmung'!S198<>\"\",'Anlage 2 PPF Abstimmung'!S198,\"\")","v":""}]
["6.1",null,null,{"$f":"Sprachen!L331","v":"uvolnění nasazení softwaru (např. příloha 5 \"krycí list PPF k softwaru\""},null,null,null,null,null,null,null,null,{"$f":"IF(AS2=\"X\",Sprachen!L4,\"\")","v":""},null,null,null,null,null,null,null,null,null,null,null,null,null,null,null,null,null,null,null,null,null,null,null,null,null,null,null,{"$f":"IF(M61=Sprachen!$L$4,\"J\",\"N\")","v":"N"},{"$f":"IF(OR(O61=\"X\",Q61=\"X\"),\"J\",\"N\")","v":"N"},{"$f":"IF(AND(AO61=\"J\",AP61=\"J\"),0,IF(AND(AO61=\"J\",AP61=\"N\"),-1,\"\"))","v":""},null,{"$f":"IF(O61=\"X\",\"J\",IF(AP61=\"N\",IF(AQ61=-1,\"Fehlt\",\"\"),\"N\"))","v":""},{"$f":"IF(IFERROR(VLOOKUP(\"Fehlt\",AS61:AS71,1,FALSE)=\"Fehlt\",FALSE),\"X\",\"\")","v":""},{"$f":"IF(OR(IFERROR(VLOOKUP(\"N\",AS61:AS71,1,FALSE),FALSE)=\"N\",IFERROR(VLOOKUP(\"Fehlt\",AS61:AS71,1,FALSE),FALSE)=\"Fehlt\")=FALSE,\"X\",\"\")","v":"X"},{"$f":"IF(IFERROR(VLOOKUP(\"N\",AS61:AS71,1,FALSE),FALSE)=\"N\",\"X\",\"\")","v":""}]
["6.2",null,null,{"$f":"Sprachen!L138","v":"stanovení rozsahu (\"scope\") SW produktu, který má být dodáván"},null,null,null,null,null,null,null,null,{"$f":"IF(AS2=\"X\",Sprachen!L4,\"\")","v":""},null,null,null,null,null,null,null,null,null,null,null,null,null,null,null,null,null,null,null,null,null,null,null,null,null,null,null,{"$f":"IF(M62=Sprachen!$L$4,\"J\",\"N\")","v":"N"},"N","",null,""]
["6.3",null,null,{"$f":"Sprachen!L297","v":"odkaz na smluvně stanovené požadavky na kvalitu (např. značení, kódy, pokrytí testy)"},null,null,null,null,null,null,null,null,{"$f":"IF(AS2=\"X\",Sprachen!L4,\"\")","v":""},null,null,null,null,null,null,null,null,null,null,null,null,null,null,null,null,null,null,null,null,null,null,null,null,null,null,null,{"$f":"IF(M63=Sprachen!$L$4,\"J\",\"N\")","v":"N"},"N","",null,""]
["6.4",null,null,{"$f":"Sprachen!L105","v":"dokumentace technických specifikací SW"},null,null,null,null,null,null,null,null,{"$f":"IF('Anlage 2 PPF Abstimmung'!O202<>\"\",'Anlage 2 PPF Abstimmung'!O202,\"\")","v":""},null,null,null,null,null,null,null,null,null,null,null,null,null,null,null,null,null,null,null,null,null,null,null,null,null,null,null,{"$f":"IF(M64=Sprachen!$L$4,\"J\",\"N\")","v":"N"},"N","",null,""]
["6.5",null,null,{"$f":"Sprachen!L223","v":"důkaz o realizaci požadavků 6.3 a 6.4 "},null,null,null,null,null,null,null,null,{"$f":"IF('Anlage 2 PPF Abstimmung'!O203<>\"\",'Anlage 2 PPF Abstimmung'!O203,\"\")","v":""},null,null,null,null,null,null,null,null,null,null,null,null,null,null,null,null,null,null,null,null,null,null,null,null,null,null,null,{"$f":"IF(M65=Sprachen!$L$4,\"J\",\"N\")","v":"N"},"N","",null,""]
["6.6",null,null,{"$f":"Sprachen!L111","v":"dokumentace FOSS (volný a otevřený SW)"},null,null,null,null,null,null,null,null,{"$f":"IF(AS2=\"X\",Sprachen!L4,\"\")","v":""},null,null,null,null,null,null,null,null,null,null,null,null,null,null,null,null,null,null,null,null,null,null,null,null,null,null,null,{"$f":"IF(M66=Sprachen!$L$4,\"J\",\"N\")","v":"N"},"N","",null,""]
["6.7",null,null,{"$f":"Sprachen!L200","v":"výpis známých chyb"},null,null,null,null,null,null,null,null,{"$f":"IF(AS2=\"X\",Sprachen!L4,\"\")","v":""},null,null,null,null,null,null,null,null,null,null,null,null,null,null,null,null,null,null,null,null,null,null,null,null,null,null,null,{"$f":"IF(M67=Sprachen!$L$4,\"J\",\"N\")","v":"N"},"N","",null,""]
["6.8",null,null,{"$f":"Sprachen!L108","v":"dokumentace nástrojů vývoje použitých během celkového průběhu projektu"},null,null,null,null,null,null,null,null,{"$f":"IF('Anlage 2 PPF Abstimmung'!O206<>\"\",'Anlage 2 PPF Abstimmung'!O206,\"\")","v":""},null,null,null,null,null,null,null,null,null,null,null,null,null,null,null,null,null,null,null,null,null,null,null,null,null,null,null,{"$f":"IF(M68=Sprachen!$L$4,\"J\",\"N\")","v":"N"},"N","",null,""]
["6.9",null,null,{"$f":"Sprachen!L109","v":"dokumentace nástrojů testování použitých během celkového průběhu projektu"},null,null,null,null,null,null,null,null,{"$f":"IF('Anlage 2 PPF Abstimmung'!O207<>\"\",'Anlage 2 PPF Abstimmung'!O207,\"\")","v":""},null,null,null,null,null,null,null,null,null,null,null,null,null,null,null,null,null,null,null,null,null,null,null,null,null,null,null,{"$f":"IF(M69=Sprachen!$L$4,\"J\",\"N\")","v":"N"},"N","",null,""]
["6.10",null,null,{"$f":"Sprachen!L110","v":"dokumentace managementu verzí (základní provedení, konfigurace, změny)"},null,null,null,null,null,null,null,null,{"$f":"IF('Anlage 2 PPF Abstimmung'!O208<>\"\",'Anlage 2 PPF Abstimmung'!O208,\"\")","v":""},null,null,null,null,null,null,null,null,null,null,null,null,null,null,null,null,null,null,null,null,null,null,null,null,null,null,null,{"$f":"IF(M70=Sprachen!$L$4,\"J\",\"N\")","v":"N"},"N","",null,""]
["6.11",null,null,{"$f":"Sprachen!L221","v":"důkaz o hodnocení procesu (např. Automotive SPICE)"},null,null,null,null,null,null,null,null,{"$f":"IF('Anlage 2 PPF Abstimmung'!O209<>\"\",'Anlage 2 PPF Abstimmung'!O209,\"\")","v":""},null,null,null,null,null,null,null,null,null,null,null,null,null,null,null,null,null,null,null,null,null,null,null,null,null,null,null,{"$f":"IF(M71=Sprachen!$L$4,\"J\",\"N\")","v":"N"},"N","",null,""]
[{"$f":"Sprachen!L340","v":"rodina produktů"}]
[null,null,{"$f":"Sprachen!L267","v":"postup PPF pro rodinu produktů"},null,null,null,null,null,null,null,null,null,null,null,null,null,null,null,null,null,{"$f":"Sprachen!L158","v":"příp. seznam dotčených čísel dílů v příloze"}]
[null,null,{"$f":"Sprachen!L65","v":"název"},null,null,null,null,null,null,null,null,{"$f":"Sprachen!L304","v":"číslo dílu"},null,null,null,null,{"$f":"Sprachen!L361","v":"verze/datum"},null,null,null,{"$f":"Sprachen!L65","v":"název"},null,null,null,null,null,null,null,null,null,null,{"$f":"Sprachen!L304","v":"číslo dílu"},null,null,null,null,{"$f":"Sprachen!L361","v":"verze/datum"}]
[null,null,null,null,null,null,null,null,null,null,null,null,null,null,null,null,null,null,null,null,null,null,null,null,null,null,null,null,null,null,null,null,null,null,null,null,null,null,null,null,{"$f":"COUNTA(C75:AN75)","v":0}]
[null,null,null,null,null,null,null,null,null,null,null,null,null,null,null,null,null,null,null,null,null,null,null,null,null,null,null,null,null,null,null,null,null,null,null,null,null,null,null,null,{"$f":"COUNTA(C76:AN76)","v":0}]
[null,null,null,null,null,null,null,null,null,null,null,null,null,null,null,null,null,null,null,null,null,null,null,null,null,null,null,null,null,null,null,null,null,null,null,null,null,null,null,null,0]
[null,null,null,null,null,null,null,null,null,null,null,null,null,null,null,null,null,null,null,null,null,null,null,null,null,null,null,null,null,null,null,null,null,null,null,null,null,null,null,null,0]
[]
[]
[]
[]
[]
[]
[]
[]
[]
[]
[]
[]
[]
[]
[]
[]
[]
[]
[]
[]
[]
[]
[]
[]
[]
[null,null,null,null,null,null,null,null,null,null,null,null,null,null,null,null,null,null,null,null,null,null,null,null,null,null,null,null,null,null,null,null,null,null,null,null,null,null,null,null,0]
[null,null,null,null,null,null,null,null,null,null,null,null,null,null,null,null,null,null,null,null,null,null,null,null,null,null,null,null,null,null,null,null,null,null,null,null,null,null,null,null,0]
[null,null,null,null,null,null,null,null,null,null,null,null,null,null,null,null,null,null,null,null,null,null,null,null,null,null,null,null,null,null,null,null,null,null,null,null,null,null,null,null,0]
[null,null,null,null,null,null,null,null,null,null,null,null,null,null,null,null,null,null,null,null,null,null,null,null,null,null,null,null,null,null,null,null,null,null,null,null,null,null,null,null,0]
[{"$f":"Sprachen!L170","v":"sebehodnocení organizací"}]
[{"$f":"Sprachen!L233","v":"kategorie důkazu"},null,null,null,null,null,null,null,null,null,null,null,{"$f":"Sprachen!L366","v":"požadováno předložení"},null,{"$f":"Sprachen!L43","v":"požadavky zcela splněny "},null,{"$f":"Sprachen!L42","v":"některé požadavky nejsou splněny"},null,{"$f":"Sprachen!L268","v":"postup PPF vůči zákazníkovi uzavřen"},null,null,{"$f":"Sprachen!L25","v":"požadována aktualizovaná dokumentace PPF"},null,null,{"$f":"Sprachen!L238","v":"vyžadován nový postup PPF"},null,null,{"$f":"Sprachen!L302","v":"posouzení rizik"},null,null,null,null,null,null,null,null,{"$f":"Sprachen!L361","v":"verze/datum"},null,null,null,"Erforderlich","i.O","n.i.O.","unvollständig"]
[{"$f":"Sprachen!L31","v":"krycí list PPF/hodnocení PPF/samohodnocení"},null,null,null,null,null,null,null,null,null,null,null,{"$f":"IF(AO110=\"J\",Sprachen!$L$4,\"\")","v":"ano"},null,{"$f":"IF(AP110=\"J\",\"X\",\"\")","v":""},null,null,null,null,null,null,null,null,null,null,null,null,null,null,null,null,null,null,null,null,null,null,null,null,null,{"$f":"IFERROR(VLOOKUP(\"J\",AO15:AO16,1,FALSE),\"N\")","v":"J"},{"$f":"IF(AU15=\"X\",\"J\",\"\")","v":""},{"$f":"IF(AV15=\"X\",\"J\",\"\")","v":""},{"$f":"IF(AT15=\"X\",TRUE,\"\")","v":true}]
[{"$f":"Sprachen!L227","v":"důkazy k produktu"},null,null,null,null,null,null,null,null,null,null,null,{"$f":"IF(AO111=\"J\",Sprachen!$L$4,\"\")","v":""},null,{"$f":"IF(M111=Sprachen!$L$4,IF(AP111=\"J\",\"X\",\"\"),\"\")","v":""},null,{"$f":"IF(AQ111=TRUE,\"X\",\"\")","v":"X"},null,null,null,null,null,null,null,null,null,null,null,null,null,null,null,null,null,null,null,null,null,null,null,{"$f":"IF(OR(IFERROR(VLOOKUP(\"J\",AO19:AO23,1,FALSE),\"N\")=\"J\",IFERROR(VLOOKUP(\"J\",AO29:AO41,1,FALSE),\"N\")=\"J\")=TRUE,\"J\",\"N\")","v":"N"},{"$f":"IF(AND(AU19=\"X\",AU29=\"X\")=TRUE,\"J\",\"\")","v":""},{"$f":"OR(AV19=\"X\",AV29=\"X\")","v":true},{"$f":"OR(AT19=\"X\",AT29=\"X\")","v":false}]
[{"$f":"Sprachen!L225","v":"důkazy k výrobnímu procesu"},null,null,null,null,null,null,null,null,null,null,null,{"$f":"IF(AO112=\"J\",Sprachen!$L$4,\"\")","v":""},null,{"$f":"IF(M112=Sprachen!$L$4,IF(AP112=\"J\",\"X\",\"\"),\"\")","v":""},null,{"$f":"IF(AQ112=TRUE,\"X\",\"\")","v":""},null,null,null,null,null,null,null,null,null,null,null,null,null,null,null,null,null,null,null,null,null,null,null,{"$f":"IF(OR(IFERROR(VLOOKUP(\"J\",AO25:AO27,1,FALSE),\"N\")=\"J\",IFERROR(VLOOKUP(\"J\",AO43:AO48,1,FALSE),\"N\")=\"J\")=TRUE,\"J\",\"N\")","v":"N"},{"$f":"IF(AND(AU25=\"X\",AU43=\"X\")=TRUE,\"J\",\"\")","v":"J"},{"$f":"OR(AV25=\"X\",AV43=\"X\")","v":false},{"$f":"OR(AT25=\"X\",AT43=\"X\")","v":false}]
[{"$f":"Sprachen!L151","v":"všeobecné důkazy"},null,null,null,null,null,null,null,null,null,null,null,{"$f":"IF(AO113=\"J\",Sprachen!$L$4,\"\")","v":""},null,{"$f":"IF(M113=Sprachen!$L$4,IF(AP113=\"J\",\"X\",\"\"),\"\")","v":""},null,{"$f":"IF(AQ113=\"J\",\"X\",\"\")","v":""},null,null,null,null,null,null,null,null,null,null,null,null,null,null,null,null,null,null,null,null,null,null,null,{"$f":"IFERROR(VLOOKUP(\"J\",AO50:AO58,1,FALSE),\"N\")","v":"N"},{"$f":"IF(AU50=\"X\",\"J\",\"\")","v":"J"},{"$f":"IF(AV50=\"X\",\"J\",\"\")","v":""},{"$f":"IF(AT50=\"X\",TRUE,\"\")","v":""}]
[{"$f":"Sprachen!L323","v":"důkazy k softwaru"},null,null,null,null,null,null,null,null,null,null,null,{"$f":"IF(AO114=\"J\",Sprachen!$L$4,\"\")","v":""},null,{"$f":"IF(M114=Sprachen!$L$4,IF(AP114=\"J\",\"X\",\"\"),\"\")","v":""},null,"",null,null,null,null,null,null,null,null,null,null,null,null,null,null,null,null,null,null,null,null,null,null,null,{"$f":"IFERROR(VLOOKUP(\"J\",AO61:AO71,1,FALSE),\"N\")","v":"N"},{"$f":"IF(AU61=\"X\",\"J\",\"\")","v":"J"},{"$f":"IF(AV61=\"X\",\"J\",\"\")","v":""},{"$f":"IF(AT61=\"X\",TRUE,\"\")","v":""}]
[{"$f":"Sprachen!L181","v":"komentář organizace"}]
[]
[{"$f":"Sprachen!L122","v":"doporučení organizací"}]
[{"$f":"Sprachen!L191","v":"vhodné pro zákazníka/vhodné pro sériovou výrobu"},null,null,null,null,null,null,null,null,null,null,null,null,null,null,null,null,null,{"$f":"IF(AND(AM118=\"\",AX110>0),\"X\",\"\")","v":""},null,{"$f":"Sprachen!L242","v":"není vhodné pro zákazníka/není vhodné pro sériovou výrobu"},null,null,null,null,null,null,null,null,null,null,null,null,null,null,null,null,null,{"$f":"IF(AO118>0,\"X\",\"\")","v":""},null,{"$f":"COUNTIF(Y110:AA114,\"X\")","v":0}]
[{"$f":"Sprachen!L84","v":"potvrzení organizací"}]
[{"$f":"Sprachen!L234","v":"jméno "},null,null,null,null,null,null,null,{"$f":"IF('Anlage 3 Selbstb. Produkt'!I28<>\"\",'Anlage 3 Selbstb. Produkt'!I28,\"\")","v":""},null,null,null,null,null,null,null,null,null,null,null,null,{"$f":"Sprachen!L61","v":"poznámka"}]
[{"$f":"Sprachen!L20","v":"oddělení"},null,null,null,null,null,null,null,{"$f":"IF('Anlage 3 Selbstb. Produkt'!I29<>\"\",'Anlage 3 Selbstb. Produkt'!I29,\"\")","v":""}]
[{"$f":"Sprachen!L343","v":"telefon"},null,null,null,null,null,null,null,{"$f":"IF('Anlage 3 Selbstb. Produkt'!I30<>\"\",'Anlage 3 Selbstb. Produkt'!I30,\"\")","v":""}]
[{"$f":"Sprachen!L119","v":"e-mail/fax č."},null,null,null,null,null,null,null,{"$f":"IF('Anlage 3 Selbstb. Produkt'!I31<>\"\",'Anlage 3 Selbstb. Produkt'!I31,\"\")","v":""}]
[{"$f":"Sprachen!L91","v":"datum"},null,null,null,null,null,null,null,null,null,null,null,null,null,null,null,null,null,null,null,null,{"$f":"Sprachen!L348","v":"podpis"}]
[{"$f":"Sprachen!L124","v":"rozhodnutí zákazníka"}]
[{"$f":"Sprachen!L191","v":"vhodné pro zákazníka/vhodné pro sériovou výrobu"},null,null,null,null,null,null,null,null,null,null,null,null,null,null,null,null,null,null,null,{"$f":"Sprachen!L243","v":"není vhodné pro zákazníka/není vhodné pro sériovou výrobu"}]
[{"$f":"Sprachen!L268","v":"postup PPF vůči zákazníkovi uzavřen"},null,null,null,null,null,null,null,null,null,null,null,null,null,null,null,null,null,null,null,{"$f":"Sprachen!L238","v":"vyžadován nový postup PPF"},null,null,null,null,null,null,null,null,null,null,null,null,null,null,null,null,null,null,null,{"$f":"COUNTIF(S127:T128,\"X\")+COUNTIF(AM127,\"X\")","v":0}]
[{"$f":"Sprachen!L25","v":"požadována aktualizovaná dokumentace PPF"}]
[{"$f":"Sprachen!L21","v":"odlišné posouzení zákazníkem oproti organizaci"}]
[{"$f":"Sprachen!L219","v":"dodatečné požadavky na předložení dokumentace k otevřeným oblastem zkoušení"},null,null,null,null,null,null,null,null,null,{"$f":"Sprachen!L289","v":"oblast zkoušení"},null,null,null,null,{"$f":"Sprachen!L220","v":"další požadavky/zdůvodnění"}]
[]
[]
[]
[]
[{"$f":"Sprachen!L29","v":"schválení odchylky (bez přizpůsobení dalších dokumentů)"},null,null,null,null,null,null,null,null,null,{"$f":"Sprachen!L289","v":"oblast zkoušení"},null,null,null,null,{"$f":"Sprachen!L237","v":"nová specifikace"}]
[]
[]
[]
[]
[{"$f":"Sprachen!L23","v":"schválení odchylky"},null,null,null,null,null,null,null,null,null,{"$f":"Sprachen!L289","v":"oblast zkoušení"},null,null,null,null,{"$f":"Sprachen!L22","v":"schválení odchylky"},null,null,null,null,null,null,null,null,null,null,null,null,null,null,null,null,null,null,null,{"$f":"Sprachen!L160","v":"platnost"}]
[]
[]
[]
[]
[{"$f":"Sprachen!L234","v":"jméno "},null,null,null,null,null,null,null,{"$f":"IF('Anlage 2 PPF Abstimmung'!I270<>\"\",'Anlage 2 PPF Abstimmung'!I270,\"\")","v":""},null,null,null,null,null,null,null,null,null,null,null,null,{"$f":"Sprachen!L61","v":"poznámka"}]
[{"$f":"Sprachen!L20","v":"oddělení"},null,null,null,null,null,null,null,{"$f":"IF('Anlage 2 PPF Abstimmung'!I271<>\"\",'Anlage 2 PPF Abstimmung'!I271,\"\")","v":""}]
[{"$f":"Sprachen!L343","v":"telefon"},null,null,null,null,null,null,null,{"$f":"IF('Anlage 2 PPF Abstimmung'!I272<>\"\",'Anlage 2 PPF Abstimmung'!I272,\"\")","v":""}]
[{"$f":"Sprachen!L119","v":"e-mail/fax č."},null,null,null,null,null,null,null,{"$f":"IF('Anlage 2 PPF Abstimmung'!I273<>\"\",'Anlage 2 PPF Abstimmung'!I273,\"\")","v":""}]
[{"$f":"Sprachen!L91","v":"datum"},null,null,null,null,null,null,null,null,null,null,null,null,null,null,null,null,null,null,null,null,{"$f":"Sprachen!L348","v":"podpis"}]

{"sheet":"Anlage 4 Produktbez. Nachweise","index":5,"n_rows":49,"n_cols":46,"rows_kept":49,"cut":false,"hidden":false,"merged":[[48,26,48,39],[46,8,46,20],[47,0,47,7],[47,8,47,20],[48,0,48,7],[48,8,48,20],[48,21,48,25],[42,28,42,29],[42,30,42,39],[43,0,43,39],[44,0,44,7],[44,8,44,20],[44,21,47,25],[44,26,47,39],[45,0,45,7],[45,8,45,20],[46,0,46,7],[41,30,41,39],[42,0,42,2],[42,3,42,10],[42,11,42,13],[42,14,42,16],[42,17,42,19],[42,20,42,22],[42,23,42,25],[42,26,42,27],[41,0,41,2],[41,3,41,10],[41,11,41,13],[41,14,41,16],[41,17,41,19],[41,20,41,22],[41,23,41,25],[41,26,41,27],[41,28,41,29],[39,30,39,39],[40,0,40,2],[40,3,40,10],[40,11,40,13],[40,14,40,16],[40,17,40,19],[40,20,40,22],[40,23,40,25],[40,26,40,27],[40,28,40,29],[40,30,40,39],[39,0,39,2],[39,3,39,10],[39,11,39,13],[39,14,39,16],[39,17,39,19],[39,20,39,22],[39,23,39,25],[39,26,39,27],[39,28,39,29],[37,30,37,39],[38,0,38,2],[38,3,38,10],[38,11,38,13],[38,14,38,16],[38,17,38,19],[38,20,38,22],[38,23,38,25],[38,26,38,27],[38,28,38,29],[38,30,38,39],[37,0,37,2],[37,3,37,10],[37,11,37,13],[37,14,37,16],[37,17,37,19],[37,20,37,22],[37,23,37,25],[37,26,37,27],[37,28,37,29],[35,30,35,39],[36,0,36,2],[36,3,36,10],[36,11,36,13],[36,14,36,16],[36,17,36,19],[36,20,36,22],[36,23,36,25],[36,26,36,27],[36,28,36,29],[36,30,36,39],[35,0,35,2],[35,3,35,10],[35,11,35,13],[35,14,35,16],[35,17,35,19],[35,20,35,22],[35,23,35,25],[35,26,35,27],[35,28,35,29],[33,30,33,39],[34,0,34,2],[34,3,34,10],[34,11,34,13],[34,14,34,16],[34,17,34,19],[34,20,34,22],[34,23,34,25],[34,26,34,27],[34,28,34,29],[34,30,34,39],[33,0,33,2],[33,3,33,10],[33,11,33,13],[33,14,33,16],[33,17,33,19],[33,20,33,22],[33,23,33,25],[33,26,33,27],[33,28,33,29],[31,30,31,39],[32,0,32,2],[32,3,32,10],[32,11,32,13],[32,14,32,16],[32,17,32,19],[32,20,32,22],[32,23,32,25],[32,26,32,27],[32,28,32,29],[32,30,32,39],[31,0,31,2],[31,3,31,10],[31,11,31,13],[31,14,31,16],[31,17,31,19],[31,20,31,22],[31,23,31,25],[31,26,31,27],[31,28,31,29],[29,30,29,39],[30,0,30,2],[30,3,30,10],[30,11,30,13],[30,14,30,16],[30,17,30,19],[30,20,30,22],[30,23,30,25],[30,26,30,27],[30,28,30,29],[30,30,30,39],[29,0,29,2],[29,3,29,10],[29,11,29,13],[29,14,29,16],[29,17,29,19],[29,20,29,22],[29,23,29,25],[29,26,29,27],[29,28,29,29],[27,30,27,39],[28,0,28,2],[28,3,28,10],[28,11,28,13],[28,14,28,16],[28,17,28,19],[28,20,28,22],[28,23,28,25],[28,26,28,27],[28,28,28,29],[28,30,28,39],[27,0,27,2],[27,3,27,10],[27,11,27,13],[27,14,27,16],[27,17,27,19],[27,20,27,22],[27,23,27,25],[27,26,27,27],[27,28,27,29],[25,30,25,39],[26,0,26,2],[26,3,26,10],[26,11,26,13],[26,14,26,16],[26,17,26,19],[26,20,26,22],[26,23,26,25],[26,26,26,27],[26,28,26,29],[26,30,26,39],[25,0,25,2],[25,3,25,10],[25,11,25,13],[25,14,25,16],[25,17,25,19],[25,20,25,22],[25,23,25,25],[25,26,25,27],[25,28,25,29],[23,30,23,39],[24,0,24,2],[24,3,24,10],[24,11,24,13],[24,14,24,16],[24,17,24,19],[24,20,24,22],[24,23,24,25],[24,26,24,27],[24,28,24,29],[24,30,24,39],[23,0,23,2],[23,3,23,10],[23,11,23,13],[23,14,23,16],[23,17,23,19],[23,20,23,22],[23,23,23,25],[23,26,23,27],[23,28,23,29],[21,30,21,39],[22,0,22,2],[22,3,22,10],[22,11,22,13],[22,14,22,16],[22,17,22,19],[22,20,22,22],[22,23,22,25],[22,26,22,27],[22,28,22,29],[22,30,22,39],[21,0,21,2],[21,3,21,10],[21,11,21,13],[21,14,21,16],[21,17,21,19],[21,20,21,22],[21,23,21,25],[21,26,21,27],[21,28,21,29],[19,30,19,39],[20,0,20,2],[20,3,20,10],[20,11,20,13],[20,14,20,16],[20,17,20,19],[20,20,20,22],[20,23,20,25],[20,26,20,27],[20,28,20,29],[20,30,20,39],[18,26,18,27],[18,28,18,29],[19,0,19,2],[19,3,19,10],[19,11,19,13],[19,14,19,16],[19,17,19,19],[19,20,19,22],[19,23,19,25],[19,26,19,27],[17,0,18,2],[17,3,18,10],[17,11,17,25],[17,26,17,29],[19,28,19,29],[15,0,15,2],[15,3,15,4],[15,5,15,13],[15,14,15,15],[15,16,15,17],[15,18,15,26],[15,27,15,28],[15,29,15,30],[17,30,18,39],[18,11,18,13],[18,14,18,16],[18,17,18,19],[18,20,18,22],[18,23,18,25],[15,31,15,39],[16,0,16,2],[16,3,16,4],[16,5,16,13],[16,14,16,15],[16,16,16,17],[16,18,16,26],[16,27,16,28],[16,29,16,30],[16,31,16,39],[14,0,14,2],[14,3,14,4],[14,5,14,13],[14,14,14,15],[14,16,14,17],[14,18,14,26],[14,27,14,28],[14,29,14,30],[14,31,14,39],[12,27,12,28],[12,29,12,30],[12,31,12,39],[13,0,13,2],[13,3,13,4],[13,5,13,13],[13,14,13,15],[13,16,13,17],[13,18,13,26],[13,27,13,28],[13,29,13,30],[13,31,13,39],[11,0,11,13],[12,0,12,2],[12,3,12,4],[12,5,12,13],[12,14,12,15],[12,16,12,17],[10,0,10,6],[10,7,10,13],[10,14,10,20],[12,18,12,26],[10,21,10,26],[10,27,10,33],[10,34,10,39],[9,0,9,6],[9,7,9,13],[9,14,9,20],[9,21,9,26],[9,27,9,33],[9,34,9,39],[8,0,8,6],[8,7,8,13],[8,14,8,20],[8,21,8,26],[8,27,8,33],[8,34,8,39],[7,0,7,6],[7,7,7,13],[7,14,7,20],[7,21,7,26],[7,27,7,33],[7,34,7,39],[6,0,6,6],[6,7,6,13],[6,14,6,20],[6,21,6,26],[6,27,6,33],[6,34,6,39],[5,0,5,6],[5,7,5,13],[5,14,5,20],[5,21,5,26],[5,27,5,33],[5,34,5,39],[3,0,3,6],[3,7,3,13],[3,14,3,20],[3,21,3,26],[3,27,4,33],[4,0,4,6],[4,7,4,13],[4,14,4,20],[4,21,4,26],[3,34,4,39],[0,37,0,39],[1,13,1,19],[1,20,1,39],[2,0,2,13],[2,14,2,26],[2,27,2,39],[0,0,1,12],[0,13,0,19],[0,20,0,27],[0,28,0,30],[0,31,0,33],[0,34,0,36]]}
[{"$f":"Sprachen!L271","v":"důkazy vztažené k produktu"},null,null,null,null,null,null,null,null,null,null,null,null,{"$f":"Sprachen!L378","v":"zpráva"},null,null,null,null,null,null,{"$f":"IF(H4<>\"\",H4&\" / \"&H5,\"\")","v":""},null,null,null,null,null,null,null,{"$f":"Sprachen!L88","v":"list"},null,null,null,null,null,{"$f":"Sprachen!L364","v":"z"},null,null,null,null,null,null,"Sprachauswahl",null,null,null,"Optionales Template: Die Inhalte können auch in geeigneter Form auf andere Art nachgewiesen werden, \ndie spezifischen Inhalte sind zwischen Organisation und Kunde abzustimmen"]
[null,null,null,null,null,null,null,null,null,null,null,null,null,{"$f":"Sprachen!L255","v":"organizace"},null,null,null,null,null,null,{"$f":"IF('Anlage 4 Deckblatt'!U2<>\"\",'Anlage 4 Deckblatt'!U2,\"\")","v":""},null,null,null,null,null,null,null,null,null,null,null,null,null,null,null,null,null,null,null,null,{"$f":"'Anlage 4 PPF-Bewertung'!AP3","v":0},null,null,null,"„Volitelné: Obsah lze také prokázat vhodnou formou jiným způsobem, konkrétní obsah musí být dohodnut mezi organizací a zákazníkem.“"]
[{"$f":"Sprachen!L46","v":"údaje organizace"},null,null,null,null,null,null,null,null,null,null,null,null,null,{"$f":"Sprachen!L44","v":"údaje o vzorcích"},null,null,null,null,null,null,null,null,null,null,null,null,{"$f":"Sprachen!L45","v":"údaje zákazníka"}]
[{"$f":"Sprachen!L75","v":"číslo zprávy"},null,null,null,null,null,null,{"$f":"IF('Anlage 4 Deckblatt'!H16<>\"\",'Anlage 4 Deckblatt'!H16,\"\")","v":""},null,null,null,null,null,null,{"$f":"Sprachen!L198","v":"číslo dodacího listu"},null,null,null,null,null,null,{"$f":"IF('Anlage 4 Deckblatt'!V16<>\"\",'Anlage 4 Deckblatt'!V16,\"\")","v":""},null,null,null,null,null,{"$f":"Sprachen!L187","v":"zákazník"},null,null,null,null,null,null,{"$f":"IF('Anlage 4 Deckblatt'!A10<>\"\",'Anlage 4 Deckblatt'!A10,\"\")","v":""}]
[{"$f":"Sprachen!L77","v":"verze zprávy"},null,null,null,null,null,null,{"$f":"IF('Anlage 4 Deckblatt'!H17<>\"\",'Anlage 4 Deckblatt'!H17,\"\")","v":""},null,null,null,null,null,null,{"$f":"Sprachen!L197","v":"dodané množství"},null,null,null,null,null,null,{"$f":"IF('Anlage 4 Deckblatt'!V17<>\"\",'Anlage 4 Deckblatt'!V17,\"\")","v":""}]
[{"$f":"Sprachen!L199","v":"místo odeslání"},null,null,null,null,null,null,{"$f":"IF('Anlage 4 Deckblatt'!H18<>\"\",'Anlage 4 Deckblatt'!H18,\"\")","v":""},null,null,null,null,null,null,{"$f":"Sprachen!L89","v":"číslo šarže"},null,null,null,null,null,null,{"$f":"IF('Anlage 4 Deckblatt'!V18<>\"\",'Anlage 4 Deckblatt'!V18,\"\")","v":""},null,null,null,null,null,{"$f":"Sprachen!L87","v":"číslo objednávky vzorků PPF"},null,null,null,null,null,null,{"$f":"IF('Anlage 4 Deckblatt'!AI18<>\"\",'Anlage 4 Deckblatt'!AI18,\"\")","v":""}]
[{"$f":"Sprachen!L276","v":"výrobní místo"},null,null,null,null,null,null,{"$f":"IF('Anlage 4 Deckblatt'!H19<>\"\",'Anlage 4 Deckblatt'!H19,\"\")","v":""},null,null,null,null,null,null,{"$f":"Sprachen!L217","v":"hmotnost vzorku (kg)"},null,null,null,null,null,null,{"$f":"IF('Anlage 4 Deckblatt'!V19<>\"\",'Anlage 4 Deckblatt'!V19,\"\")","v":""},null,null,null,null,null,{"$f":"Sprachen!L14","v":"místo dodání"},null,null,null,null,null,null,{"$f":"IF('Anlage 4 Deckblatt'!AI19<>\"\",'Anlage 4 Deckblatt'!AI19,\"\")","v":""}]
[{"$f":"Sprachen!L304","v":"číslo dílu"},null,null,null,null,null,null,{"$f":"IF('Anlage 4 Deckblatt'!H20<>\"\",'Anlage 4 Deckblatt'!H20,\"\")","v":""},null,null,null,null,null,null,{"$f":"Sprachen!L166","v":"verze hardwaru"},null,null,null,null,null,null,{"$f":"IF('Anlage 4 Deckblatt'!V20<>\"\",'Anlage 4 Deckblatt'!V20,\"\")","v":""},null,null,null,null,null,{"$f":"Sprachen!L304","v":"číslo dílu"},null,null,null,null,null,null,{"$f":"IF('Anlage 4 Deckblatt'!AI20<>\"\",'Anlage 4 Deckblatt'!AI20,\"\")","v":""}]
[{"$f":"Sprachen!L65","v":"název"},null,null,null,null,null,null,{"$f":"IF('Anlage 4 Deckblatt'!H21<>\"\",'Anlage 4 Deckblatt'!H21,\"\")","v":""},null,null,null,null,null,null,{"$f":"Sprachen!L98","v":"status diagnózy"},null,null,null,null,null,null,{"$f":"IF('Anlage 4 Deckblatt'!V21<>\"\",'Anlage 4 Deckblatt'!V21,\"\")","v":""},null,null,null,null,null,{"$f":"Sprachen!L65","v":"název"},null,null,null,null,null,null,{"$f":"IF('Anlage 4 Deckblatt'!AI21<>\"\",'Anlage 4 Deckblatt'!AI21,\"\")","v":""}]
[{"$f":"Sprachen!L374","v":"číslo výkresu"},null,null,null,null,null,null,{"$f":"IF('Anlage 4 Deckblatt'!H22<>\"\",'Anlage 4 Deckblatt'!H22,\"\")","v":""},null,null,null,null,null,null,{"$f":"Sprachen!L326","v":"verze softwaru"},null,null,null,null,null,null,{"$f":"IF('Anlage 4 Deckblatt'!V22<>\"\",'Anlage 4 Deckblatt'!V22,\"\")","v":""},null,null,null,null,null,{"$f":"Sprachen!L374","v":"číslo výkresu"},null,null,null,null,null,null,{"$f":"IF('Anlage 4 Deckblatt'!AI22<>\"\",'Anlage 4 Deckblatt'!AI22,\"\")","v":""}]
[{"$f":"Sprachen!L361","v":"verze/datum"},null,null,null,null,null,null,{"$f":"IF('Anlage 4 Deckblatt'!H23<>\"\",'Anlage 4 Deckblatt'!H23,\"\")","v":""},null,null,null,null,null,null,{"$f":"Sprachen!L177","v":"identifikace/DUNS"},null,null,null,null,null,null,{"$f":"IF('Anlage 4 Deckblatt'!V23<>\"\",'Anlage 4 Deckblatt'!V23,\"\")","v":""},null,null,null,null,null,{"$f":"Sprachen!L361","v":"verze/datum"},null,null,null,null,null,null,{"$f":"IF('Anlage 4 Deckblatt'!AI23<>\"\",'Anlage 4 Deckblatt'!AI23,\"\")","v":""}]
[{"$f":"IF('Anlage 4 Deckblatt'!A24:N24<>\"\",'Anlage 4 Deckblatt'!A24:N24,\"\")","v":"díl s povinností zvláštní archivace"}]
[null,null,null,"3.1",null,{"$f":"Sprachen!L153","v":"geometrie, rozměry"},null,null,null,null,null,null,null,null,null,null,"3.5",null,{"$f":"Sprachen!L27","v":"akustika"},null,null,null,null,null,null,null,null,null,null,"3.9",null,{"$f":"Sprachen!L333","v":"technická čistota"}]
[null,null,null,"3.2",null,{"$f":"Sprachen!L367","v":"materál"},null,null,null,null,null,null,null,null,null,null,"3.6",null,{"$f":"Sprachen!L154","v":"pach"},null,null,null,null,null,null,null,null,null,null,"3.10",null,{"$f":"Sprachen!L377","v":"spolehlivost"}]
[null,null,null,"3.3",null,{"$f":"Sprachen!L144","v":"funkce"},null,null,null,null,null,null,null,null,null,null,"3.7",null,{"$f":"Sprachen!L56","v":"vzhled"},null,null,null,null,null,null,null,null,null,null,"3.11",null,{"$f":"Sprachen!L82","v":"odolnost proti elektrostatickému výboji (ESD)"}]
[null,null,null,"3.4",null,{"$f":"Sprachen!L161","v":"hmatový vjem (haptika)"},null,null,null,null,null,null,null,null,null,null,"3.8",null,{"$f":"Sprachen!L252","v":"požadavky týkající se povrchu"},null,null,null,null,null,null,null,null,null,null,"3.12",null,{"$f":"Sprachen!L117","v":"elektrická bezpečnost/ochrana proti vysokému napětí"}]
[null,null,null,null,null,null,null,null,null,null,null,null,null,null,null,null,null,null,null,null,null,null,null,null,null,null,null,null,null,"3.13",null,{"$f":"Sprachen!L118","v":"elektromagnetická kompatibilita (EMC)"}]
[{"$f":"Sprachen!L248","v":"číslo"},null,null,{"$f":"Sprachen!L41","v":"požadavky/specifikace"},null,null,null,null,null,null,null,{"$f":"Sprachen!L171","v":"aktuální hodnota hodnocena organizací"},null,null,null,null,null,null,null,null,null,null,null,null,null,null,{"$f":"Sprachen!L328","v":"specifikace splněna"},null,null,null,{"$f":"Sprachen!L61","v":"poznámka"}]
[null,null,null,null,null,null,null,null,null,null,null,{"$f":"Sprachen!L335","v":"díl č. 1"},null,null,{"$f":"Sprachen!L336","v":"díl č. 2"},null,null,{"$f":"Sprachen!L337","v":"díl č. 3"},null,null,{"$f":"Sprachen!L338","v":"díl č. 4"},null,null,{"$f":"Sprachen!L339","v":"díl č. 5"},null,null,{"$f":"Sprachen!L4","v":"ano"},null,{"$f":"Sprachen!L5","v":"ne"}]
[1]
[2]
[3]
[4]
[5]
[6]
[7]
[8]
[9]
[10]
[11]
[12]
[13]
[14]
[15]
[16]
[17]
[18]
[19]
[20]
[21]
[22]
[23]
[24]
[{"$f":"Sprachen!L84","v":"potvrzení organizací"}]
[{"$f":"Sprachen!L234","v":"jméno "},null,null,null,null,null,null,null,{"$f":"IF('Anlage 3 Selbstb. Produkt'!I28<>\"\",'Anlage 3 Selbstb. Produkt'!I28,\"\")","v":""},null,null,null,null,null,null,null,null,null,null,null,null,{"$f":"Sprachen!L61","v":"poznámka"}]
[{"$f":"Sprachen!L20","v":"oddělení"},null,null,null,null,null,null,null,{"$f":"IF('Anlage 3 Selbstb. Produkt'!I29<>\"\",'Anlage 3 Selbstb. Produkt'!I29,\"\")","v":""}]
[{"$f":"Sprachen!L343","v":"telefon"},null,null,null,null,null,null,null,{"$f":"IF('Anlage 3 Selbstb. Produkt'!I30<>\"\",'Anlage 3 Selbstb. Produkt'!I30,\"\")","v":""}]
[{"$f":"Sprachen!L119","v":"e-mail/fax č."},null,null,null,null,null,null,null,{"$f":"IF('Anlage 3 Selbstb. Produkt'!I31<>\"\",'Anlage 3 Selbstb. Produkt'!I31,\"\")","v":""}]
[{"$f":"Sprachen!L91","v":"datum"},null,null,null,null,null,null,null,{"$f":"IF('Anlage 3 Selbstb. Produkt'!I32<>\"\",'Anlage 3 Selbstb. Produkt'!I32,\"\")","v":""},null,null,null,null,null,null,null,null,null,null,null,null,{"$f":"Sprachen!L348","v":"podpis"}]

{"sheet":"Anlage 4 Prozessbez. Nachweise","index":6,"n_rows":44,"n_cols":45,"rows_kept":44,"cut":false,"hidden":false,"merged":[[42,8,42,20],[43,0,43,7],[43,8,43,20],[43,21,43,25],[43,26,43,39],[38,0,38,39],[39,0,39,7],[39,8,39,20],[39,21,42,25],[39,26,42,39],[40,0,40,7],[40,8,40,20],[41,0,41,7],[41,8,41,20],[42,0,42,7],[37,0,37,2],[37,3,37,10],[37,11,37,22],[37,23,37,25],[37,26,37,29],[37,30,37,39],[36,0,36,2],[36,3,36,10],[36,11,36,22],[36,23,36,25],[36,26,36,29],[36,30,36,39],[35,0,35,2],[35,3,35,10],[35,11,35,22],[35,23,35,25],[35,26,35,29],[35,30,35,39],[34,0,34,2],[34,3,34,10],[34,11,34,22],[34,23,34,25],[34,26,34,29],[34,30,34,39],[33,0,33,2],[33,3,33,10],[33,11,33,22],[33,23,33,25],[33,26,33,29],[33,30,33,39],[32,0,32,2],[32,3,32,10],[32,11,32,22],[32,23,32,25],[32,26,32,29],[32,30,32,39],[31,0,31,2],[31,3,31,10],[31,11,31,22],[31,23,31,25],[31,26,31,29],[31,30,31,39],[30,0,30,2],[30,3,30,10],[30,11,30,22],[30,23,30,25],[30,26,30,29],[30,30,30,39],[29,0,29,2],[29,3,29,10],[29,11,29,22],[29,23,29,25],[29,26,29,29],[29,30,29,39],[28,0,28,2],[28,3,28,10],[28,11,28,22],[28,23,28,25],[28,26,28,29],[28,30,28,39],[27,0,27,2],[27,3,27,10],[27,11,27,22],[27,23,27,25],[27,26,27,29],[27,30,27,39],[26,0,26,2],[26,3,26,10],[26,11,26,22],[26,23,26,25],[26,26,26,29],[26,30,26,39],[25,0,25,2],[25,3,25,10],[25,11,25,22],[25,23,25,25],[25,26,25,29],[25,30,25,39],[24,0,24,2],[24,3,24,10],[24,11,24,22],[24,23,24,25],[24,26,24,29],[24,30,24,39],[23,0,23,2],[23,3,23,10],[23,11,23,22],[23,23,23,25],[23,26,23,29],[23,30,23,39],[22,0,22,2],[22,3,22,10],[22,11,22,22],[22,23,22,25],[22,26,22,29],[22,30,22,39],[21,0,21,2],[21,3,21,10],[21,11,21,22],[21,23,21,25],[21,26,21,29],[21,30,21,39],[20,0,20,2],[20,3,20,10],[20,11,20,22],[20,23,20,25],[20,26,20,29],[20,30,20,39],[17,27,17,28],[17,29,17,30],[17,31,17,39],[18,0,19,2],[18,3,19,10],[18,11,18,29],[18,30,19,39],[19,11,19,22],[19,23,19,25],[19,26,19,29],[17,0,17,2],[17,3,17,4],[17,5,17,13],[17,14,17,15],[17,16,17,17],[17,18,17,26],[16,0,16,2],[16,3,16,4],[16,5,16,13],[16,14,16,15],[16,16,16,17],[16,18,16,26],[16,27,16,28],[16,29,16,30],[16,31,16,39],[15,0,15,2],[15,3,15,4],[15,5,15,13],[15,14,15,15],[15,16,15,17],[15,18,15,26],[15,27,15,28],[15,29,15,30],[15,31,15,39],[14,0,14,2],[14,3,14,4],[14,5,14,13],[14,14,14,15],[14,16,14,17],[14,18,14,26],[14,27,14,28],[14,29,14,30],[14,31,14,39],[12,27,12,28],[12,29,12,30],[12,31,12,39],[13,0,13,2],[13,3,13,4],[13,5,13,13],[13,14,13,15],[13,16,13,17],[13,18,13,26],[13,27,13,28],[13,29,13,30],[13,31,13,39],[11,0,11,13],[12,0,12,2],[12,3,12,4],[12,5,12,13],[12,14,12,15],[12,16,12,17],[10,0,10,6],[10,7,10,13],[10,14,10,20],[12,18,12,26],[10,21,10,26],[10,27,10,33],[10,34,10,39],[9,0,9,6],[9,7,9,13],[9,14,9,20],[9,21,9,26],[9,27,9,33],[9,34,9,39],[8,0,8,6],[8,7,8,13],[8,14,8,20],[8,21,8,26],[8,27,8,33],[8,34,8,39],[7,0,7,6],[7,7,7,13],[7,14,7,20],[7,21,7,26],[7,27,7,33],[7,34,7,39],[6,0,6,6],[6,7,6,13],[6,14,6,20],[6,21,6,26],[6,27,6,33],[6,34,6,39],[5,0,5,6],[5,7,5,13],[5,14,5,20],[5,21,5,26],[5,27,5,33],[5,34,5,39],[3,0,3,6],[3,7,3,13],[3,14,3,20],[3,21,3,26],[3,27,4,33],[4,0,4,6],[4,7,4,13],[4,14,4,20],[4,21,4,26],[3,34,4,39],[0,37,0,39],[1,13,1,19],[1,20,1,39],[2,0,2,13],[2,14,2,26],[2,27,2,39],[0,0,1,12],[0,13,0,19],[0,20,0,27],[0,28,0,30],[0,31,0,33],[0,34,0,36]]}
[{"$f":"Sprachen!L286","v":"důkazy vztažené k výrobnímu procesu a všeobecné důkazy"},null,null,null,null,null,null,null,null,null,null,null,null,{"$f":"Sprachen!L378","v":"zpráva"},null,null,null,null,null,null,{"$f":"IF(H4<>\"\",H4&\" / \"&H5,\"\")","v":""},null,null,null,null,null,null,null,{"$f":"Sprachen!L88","v":"list"},null,null,null,null,null,{"$f":"Sprachen!L364","v":"z"},null,null,null,null,null,null,"Sprachauswahl",null,null,"Optionales Template: Die Inhalte können auch in geeigneter Form auf andere Art nachgewiesen werden, \ndie spezifischen Inhalte sind zwischen Organisation und Kunde abzustimmen"]
[null,null,null,null,null,null,null,null,null,null,null,null,null,{"$f":"Sprachen!L255","v":"organizace"},null,null,null,null,null,null,{"$f":"IF('Anlage 4 Deckblatt'!U2<>\"\",'Anlage 4 Deckblatt'!U2,\"\")","v":""},null,null,null,null,null,null,null,null,null,null,null,null,null,null,null,null,null,null,null,null,{"$f":"'Anlage 4 PPF-Bewertung'!AP3","v":0},null,null,"„Volitelné: Obsah lze také prokázat vhodnou formou jiným způsobem, konkrétní obsah musí být dohodnut mezi organizací a zákazníkem.“"]
[{"$f":"Sprachen!L46","v":"údaje organizace"},null,null,null,null,null,null,null,null,null,null,null,null,null,{"$f":"Sprachen!L44","v":"údaje o vzorcích"},null,null,null,null,null,null,null,null,null,null,null,null,{"$f":"Sprachen!L45","v":"údaje zákazníka"}]
[{"$f":"Sprachen!L75","v":"číslo zprávy"},null,null,null,null,null,null,{"$f":"IF('Anlage 4 Deckblatt'!H16<>\"\",'Anlage 4 Deckblatt'!H16,\"\")","v":""},null,null,null,null,null,null,{"$f":"Sprachen!L198","v":"číslo dodacího listu"},null,null,null,null,null,null,{"$f":"IF('Anlage 4 Deckblatt'!V16<>\"\",'Anlage 4 Deckblatt'!V16,\"\")","v":""},null,null,null,null,null,{"$f":"Sprachen!L187","v":"zákazník"},null,null,null,null,null,null,{"$f":"IF('Anlage 4 Deckblatt'!A10<>\"\",'Anlage 4 Deckblatt'!A10,\"\")","v":""}]
[{"$f":"Sprachen!L77","v":"verze zprávy"},null,null,null,null,null,null,{"$f":"IF('Anlage 4 Deckblatt'!H17<>\"\",'Anlage 4 Deckblatt'!H17,\"\")","v":""},null,null,null,null,null,null,{"$f":"Sprachen!L197","v":"dodané množství"},null,null,null,null,null,null,{"$f":"IF('Anlage 4 Deckblatt'!V17<>\"\",'Anlage 4 Deckblatt'!V17,\"\")","v":""}]
[{"$f":"Sprachen!L199","v":"místo odeslání"},null,null,null,null,null,null,{"$f":"IF('Anlage 4 Deckblatt'!H18<>\"\",'Anlage 4 Deckblatt'!H18,\"\")","v":""},null,null,null,null,null,null,{"$f":"Sprachen!L89","v":"číslo šarže"},null,null,null,null,null,null,{"$f":"IF('Anlage 4 Deckblatt'!V18<>\"\",'Anlage 4 Deckblatt'!V18,\"\")","v":""},null,null,null,null,null,{"$f":"Sprachen!L87","v":"číslo objednávky vzorků PPF"},null,null,null,null,null,null,{"$f":"IF('Anlage 4 Deckblatt'!AI18<>\"\",'Anlage 4 Deckblatt'!AI18,\"\")","v":""}]
[{"$f":"Sprachen!L276","v":"výrobní místo"},null,null,null,null,null,null,{"$f":"IF('Anlage 4 Deckblatt'!H19<>\"\",'Anlage 4 Deckblatt'!H19,\"\")","v":""},null,null,null,null,null,null,{"$f":"Sprachen!L217","v":"hmotnost vzorku (kg)"},null,null,null,null,null,null,{"$f":"IF('Anlage 4 Deckblatt'!V19<>\"\",'Anlage 4 Deckblatt'!V19,\"\")","v":""},null,null,null,null,null,{"$f":"Sprachen!L14","v":"místo dodání"},null,null,null,null,null,null,{"$f":"IF('Anlage 4 Deckblatt'!AI19<>\"\",'Anlage 4 Deckblatt'!AI19,\"\")","v":""}]
[{"$f":"Sprachen!L304","v":"číslo dílu"},null,null,null,null,null,null,{"$f":"IF('Anlage 4 Deckblatt'!H20<>\"\",'Anlage 4 Deckblatt'!H20,\"\")","v":""},null,null,null,null,null,null,{"$f":"Sprachen!L166","v":"verze hardwaru"},null,null,null,null,null,null,{"$f":"IF('Anlage 4 Deckblatt'!V20<>\"\",'Anlage 4 Deckblatt'!V20,\"\")","v":""},null,null,null,null,null,{"$f":"Sprachen!L304","v":"číslo dílu"},null,null,null,null,null,null,{"$f":"IF('Anlage 4 Deckblatt'!AI20<>\"\",'Anlage 4 Deckblatt'!AI20,\"\")","v":""}]
[{"$f":"Sprachen!L65","v":"název"},null,null,null,null,null,null,{"$f":"IF('Anlage 4 Deckblatt'!H21<>\"\",'Anlage 4 Deckblatt'!H21,\"\")","v":""},null,null,null,null,null,null,{"$f":"Sprachen!L98","v":"status diagnózy"},null,null,null,null,null,null,{"$f":"IF('Anlage 4 Deckblatt'!V21<>\"\",'Anlage 4 Deckblatt'!V21,\"\")","v":""},null,null,null,null,null,{"$f":"Sprachen!L65","v":"název"},null,null,null,null,null,null,{"$f":"IF('Anlage 4 Deckblatt'!AI21<>\"\",'Anlage 4 Deckblatt'!AI21,\"\")","v":""}]
[{"$f":"Sprachen!L374","v":"číslo výkresu"},null,null,null,null,null,null,{"$f":"IF('Anlage 4 Deckblatt'!H22<>\"\",'Anlage 4 Deckblatt'!H22,\"\")","v":""},null,null,null,null,null,null,{"$f":"Sprachen!L326","v":"verze softwaru"},null,null,null,null,null,null,{"$f":"IF('Anlage 4 Deckblatt'!V22<>\"\",'Anlage 4 Deckblatt'!V22,\"\")","v":""},null,null,null,null,null,{"$f":"Sprachen!L374","v":"číslo výkresu"},null,null,null,null,null,null,{"$f":"IF('Anlage 4 Deckblatt'!AI22<>\"\",'Anlage 4 Deckblatt'!AI22,\"\")","v":""}]
[{"$f":"Sprachen!L361","v":"verze/datum"},null,null,null,null,null,null,{"$f":"IF('Anlage 4 Deckblatt'!H23<>\"\",'Anlage 4 Deckblatt'!H23,\"\")","v":""},null,null,null,null,null,null,{"$f":"Sprachen!L177","v":"identifikace/DUNS"},null,null,null,null,null,null,{"$f":"IF('Anlage 4 Deckblatt'!V23<>\"\",'Anlage 4 Deckblatt'!V23,\"\")","v":""},null,null,null,null,null,{"$f":"Sprachen!L361","v":"verze/datum"},null,null,null,null,null,null,{"$f":"IF('Anlage 4 Deckblatt'!AI23<>\"\",'Anlage 4 Deckblatt'!AI23,\"\")","v":""}]
["díl s povinností zvláštní archivace"]
[null,null,null,"2.1",null,{"$f":"Sprachen!L283","v":"vývojový diagram procesu (flowchart)"},null,null,null,null,null,null,null,null,null,null,"4.4",null,{"$f":"Sprachen!L300","v":"referenční vzorek"},null,null,null,null,null,null,null,null,null,null,"5.4","5.4",{"$f":"Sprachen!L291","v":"důkaz o způsobilosti měřidel pro produkt a výrobní proces"}]
[null,null,null,"2.2",null,{"$f":"Sprachen!L287","v":"FMEA-P"},null,null,null,null,null,null,null,null,null,null,"4.5",null,{"$f":"Sprachen!L274","v":"kapacita výroby"},null,null,null,null,null,null,null,null,null,null,"5.5","5.5",{"$f":"Sprachen!L341","v":"životopis dílu"}]
[null,null,null,"2.3",null,{"$f":"Sprachen!L275","v":"plán kontroly a řízení"},null,null,null,null,null,null,null,null,null,null,"4.6",null,{"$f":"Sprachen!L371","v":"nástroje "},null,null,null,null,null,null,null,null,null,null,"5.6","5.6",{"$f":"Sprachen!L113","v":"důkaz o vhodnosti nasazených balících jednotek, včetně skladování"}]
[null,null,null,"4.1",null,{"$f":"Sprachen!L16","v":"zajištění zvláštních charakteristik podle technických specifikací a dohodnutých charakteristik (např. Poka Yoke, 100% zkoušení, způsobilosti procesu…)"},null,null,null,null,null,null,null,null,null,null,"5.1",null,{"$f":"Sprachen!L226","v":"důkazy o dodržení požadavků právních předpisů"},null,null,null,null,null,null,null,null,null,null,"5.7","5.7",{"$f":"Sprachen!L107","v":"dokumentace dohod k procesu posuzování a analýz:\n- zpracování reklamací (např. 8D)\n- analýza vadných dílů z provozu "}]
[null,null,null,"4.2",null,{"$f":"Sprachen!L194","v":"kvalifikace laboratoře"},null,null,null,null,null,null,null,null,null,null,"5.2",null,{"$f":"Sprachen!L264","v":"status PPF dodavatelského řetězce"},null,null,null,null,null,null,null,null,null,null,"5.8","5.8",{"$f":"Sprachen!L106","v":"dokumentace dohody o rekvalifikačních zkouškách"}]
[null,null,null,"4.3",null,{"$f":"Sprachen!L216","v":"vzorek včetně výrobní dokumentace"},null,null,null,null,null,null,null,null,null,null,"5.3",null,{"$f":"Sprachen!L292","v":"seznam měřidel k produktu a výrobnímu procesu"},null,null,null,null,null,null,null,null,null,null,"5.9","5.9",{"$f":"Sprachen!L327","v":"jiné"}]
[{"$f":"Sprachen!L248","v":"číslo"},null,null,{"$f":"Sprachen!L39","v":"požadavek"},null,null,null,null,null,null,null,{"$f":"Sprachen!L224","v":"průkazná dokumentace"},null,null,null,null,null,null,null,null,null,null,null,null,null,null,null,null,null,null,{"$f":"Sprachen!L61","v":"poznámka"}]
[null,null,null,null,null,null,null,null,null,null,null,{"$f":"Sprachen!L104","v":"dokument"},null,null,null,null,null,null,null,null,null,null,null,{"$f":"Sprachen!L360","v":"verze"},null,null,{"$f":"Sprachen!L91","v":"datum"}]
[1]
[2]
[3]
[4]
[5]
[6]
[7]
[8]
[9]
[10]
[11]
[12]
[13]
[14]
[15]
[16]
[17]
[18]
[{"$f":"Sprachen!L84","v":"potvrzení organizací"}]
[{"$f":"Sprachen!L234","v":"jméno "},null,null,null,null,null,null,null,{"$f":"IF('Anlage 3 Selbstb. Produkt'!I28<>\"\",'Anlage 3 Selbstb. Produkt'!I28,\"\")","v":""},null,null,null,null,null,null,null,null,null,null,null,null,{"$f":"Sprachen!L61","v":"poznámka"}]
[{"$f":"Sprachen!L20","v":"oddělení"},null,null,null,null,null,null,null,{"$f":"IF('Anlage 3 Selbstb. Produkt'!I29<>\"\",'Anlage 3 Selbstb. Produkt'!I29,\"\")","v":""}]
[{"$f":"Sprachen!L343","v":"telefon"},null,null,null,null,null,null,null,{"$f":"IF('Anlage 3 Selbstb. Produkt'!I30<>\"\",'Anlage 3 Selbstb. Produkt'!I30,\"\")","v":""}]
[{"$f":"Sprachen!L119","v":"e-mail/fax č."},null,null,null,null,null,null,null,{"$f":"IF('Anlage 3 Selbstb. Produkt'!I31<>\"\",'Anlage 3 Selbstb. Produkt'!I31,\"\")","v":""}]
[{"$f":"Sprachen!L91","v":"datum"},null,null,null,null,null,null,null,{"$f":"IF('Anlage 3 Selbstb. Produkt'!I32<>\"\",'Anlage 3 Selbstb. Produkt'!I32,\"\")","v":""},null,null,null,null,null,null,null,null,null,null,null,null,{"$f":"Sprachen!L348","v":"podpis"}]

{"sheet":"Anlage 5 Deckblatt Software 1","index":7,"n_rows":85,"n_cols":53,"rows_kept":85,"cut":false,"hidden":false,"merged":[[82,8,82,20],[83,0,83,7],[83,8,83,20],[84,0,84,7],[84,8,84,20],[84,21,84,25],[79,10,79,14],[79,15,79,34],[79,35,79,39],[80,0,80,7],[80,8,80,20],[80,21,83,25],[80,26,83,39],[81,0,81,7],[81,8,81,20],[82,0,82,7],[75,0,79,9],[78,10,78,14],[78,15,78,34],[78,35,78,39],[84,26,84,39],[70,0,74,9],[70,10,70,14],[70,15,70,39],[71,10,71,14],[71,15,71,39],[72,10,72,14],[76,15,76,34],[76,35,76,39],[77,10,77,14],[77,15,77,34],[77,35,77,39],[72,15,72,39],[73,10,73,14],[73,15,73,39],[74,10,74,14],[74,15,74,39],[75,10,75,14],[75,15,75,34],[75,35,75,39],[76,10,76,14],[64,0,64,9],[64,10,64,39],[65,0,69,9],[65,10,65,14],[66,10,66,14],[66,15,66,39],[67,10,67,14],[67,15,67,39],[68,10,68,14],[68,15,68,39],[69,10,69,14],[69,15,69,39],[65,15,65,39],[60,0,60,39],[61,0,61,17],[61,18,61,19],[61,20,61,37],[61,38,61,39],[62,0,62,17],[62,18,62,19],[62,20,63,37],[62,38,63,39],[63,0,63,17],[63,18,63,19],[59,0,59,39],[53,0,53,39],[54,0,54,7],[54,8,54,20],[54,21,57,25],[54,26,57,39],[55,0,55,7],[55,8,55,20],[56,0,56,7],[56,8,56,20],[57,0,57,7],[49,0,49,39],[50,0,50,39],[51,0,51,39],[52,0,52,17],[52,18,52,19],[52,20,52,37],[52,38,52,39],[57,8,57,20],[58,0,58,7],[58,8,58,20],[58,21,58,25],[58,26,58,39],[47,24,47,26],[47,27,47,35],[47,36,47,39],[48,0,48,11],[48,12,48,13],[48,14,48,15],[48,16,48,17],[48,18,48,20],[48,21,48,23],[48,24,48,26],[47,0,47,11],[47,12,47,13],[47,14,47,15],[47,16,47,17],[47,18,47,20],[47,21,47,23],[48,27,48,35],[48,36,48,39],[45,0,45,39],[46,0,46,39],[42,1,42,5],[42,6,42,15],[42,16,42,26],[42,31,42,39],[43,1,43,5],[43,6,43,15],[43,16,43,26],[43,31,43,39],[40,16,40,26],[40,31,40,39],[41,1,41,5],[41,6,41,15],[41,16,41,26],[41,31,41,39],[37,0,37,39],[38,0,44,0],[38,1,39,5],[38,6,39,15],[38,16,39,26],[38,27,38,28],[38,29,38,30],[38,31,39,39],[40,1,40,5],[40,6,40,15],[44,1,44,5],[44,6,44,15],[44,16,44,26],[44,31,44,39],[25,0,34,0],[35,31,35,39],[36,0,36,2],[36,3,36,11],[36,12,36,13],[36,14,36,15],[36,16,36,17],[36,18,36,19],[36,20,36,26],[36,27,36,30],[36,31,36,39],[35,0,35,2],[35,3,35,5],[35,6,35,11],[35,12,35,13],[35,14,35,15],[35,16,35,17],[35,18,35,19],[35,20,35,26],[35,27,35,30],[34,1,34,2],[34,3,34,11],[34,12,34,13],[34,14,34,15],[34,16,34,17],[34,18,34,19],[34,20,34,26],[34,27,34,30],[34,31,34,39],[32,20,32,26],[32,27,32,30],[32,31,32,39],[33,1,33,2],[33,3,33,11],[33,12,33,13],[33,14,33,15],[33,16,33,17],[33,18,33,19],[33,20,33,26],[32,1,32,2],[32,3,32,11],[32,12,32,13],[32,14,32,15],[32,16,32,17],[32,18,32,19],[33,27,33,30],[33,31,33,39],[31,1,31,2],[31,3,31,11],[31,12,31,13],[31,14,31,15],[31,16,31,17],[31,18,31,19],[31,20,31,26],[31,27,31,30],[31,31,31,39],[30,1,30,2],[30,3,30,11],[30,12,30,13],[30,14,30,15],[30,16,30,17],[30,18,30,19],[30,20,30,26],[30,27,30,30],[30,31,30,39],[28,16,28,17],[28,18,28,19],[28,20,28,26],[28,27,28,30],[28,31,28,39],[29,1,29,2],[29,3,29,11],[29,12,29,13],[29,14,29,15],[29,16,29,17],[29,27,29,30],[29,31,29,39],[26,48,36,48],[26,49,36,49],[26,50,36,50],[27,1,27,2],[27,3,27,11],[27,12,27,13],[27,14,27,15],[27,16,27,17],[27,18,27,19],[27,20,27,26],[26,18,26,19],[26,20,26,26],[26,27,26,30],[26,31,26,39],[26,46,36,46],[26,47,36,47],[27,27,27,30],[27,31,27,39],[29,18,29,19],[29,20,29,26],[28,1,28,2],[28,3,28,11],[28,12,28,13],[28,14,28,15],[25,16,25,17],[25,18,25,19],[25,20,25,26],[25,27,25,30],[25,31,25,39],[26,1,26,2],[26,3,26,11],[26,12,26,13],[26,14,26,15],[26,16,26,17],[25,1,25,2],[25,3,25,5],[25,6,25,11],[25,12,25,13],[25,14,25,15],[22,0,23,0],[22,1,22,2],[22,3,22,39],[23,1,23,2],[23,3,23,39],[24,0,24,39],[20,31,20,39],[21,1,21,2],[21,3,21,9],[21,10,21,13],[21,14,21,17],[21,18,21,21],[21,22,21,25],[21,31,21,39],[20,1,20,2],[20,3,20,9],[20,10,20,13],[20,14,20,17],[20,18,20,21],[20,22,20,25],[17,31,18,39],[19,1,19,2],[19,3,19,9],[19,10,19,13],[19,14,19,17],[19,18,19,21],[19,22,19,25],[19,31,19,39],[16,0,16,39],[17,0,21,0],[17,1,18,2],[17,3,18,9],[17,10,18,13],[17,14,18,17],[17,18,18,21],[17,22,18,25],[17,26,17,27],[17,28,17,30],[11,0,11,13],[12,0,12,39],[13,0,13,39],[14,0,14,20],[14,21,14,39],[15,0,15,20],[15,21,15,39],[10,0,10,6],[10,7,10,13],[10,14,10,20],[10,21,10,26],[10,27,10,33],[10,34,10,39],[9,0,9,6],[9,7,9,13],[9,14,9,20],[9,21,9,26],[9,27,9,33],[9,34,9,39],[8,0,8,6],[8,7,8,13],[8,14,8,20],[8,21,8,26],[8,27,8,33],[8,34,8,39],[7,0,7,6],[7,7,7,13],[7,14,7,20],[7,21,7,26],[7,27,7,33],[7,34,7,39],[6,0,6,6],[6,7,6,13],[6,14,6,20],[6,21,6,26],[6,27,6,33],[6,34,6,39],[0,0,1,12],[0,13,0,19],[0,20,0,39],[1,13,1,19],[1,20,1,39],[2,0,2,13],[2,14,2,26],[2,27,2,39],[5,0,5,6],[5,7,5,13],[5,14,5,20],[5,21,5,26],[5,27,5,33],[5,34,5,39],[3,0,3,6],[3,7,3,13],[3,14,4,20],[3,21,4,26],[3,27,4,33],[4,0,4,6],[4,7,4,13],[3,34,4,39]]}
[{"$f":"Sprachen!L392","v":"6.1 krycí list PPF softwaru"},null,null,null,null,null,null,null,null,null,null,null,null,{"$f":"Sprachen!L378","v":"zpráva"},null,null,null,null,null,null,{"$f":"IF(H4<>\"\",H4&\" / \"&H5,\"\")","v":""},null,null,null,null,null,null,null,null,null,null,null,null,null,null,null,null,null,null,null,null,"Sprachauswahl",null,1,"Hardwarebemusterung erforderlich",{"$f":"IF(#REF!=Sprachen!L4,\"X\",\"N\")","v":{"$error":"#REF!"}},null,null,null,null,null,null,"Optionales Template: Die Inhalte können auch in geeigneter Form auf andere Art nachgewiesen werden, \ndie spezifischen Inhalte sind zwischen Organisation und Kunde abzustimmen"]
[null,null,null,null,null,null,null,null,null,null,null,null,null,{"$f":"Sprachen!L255","v":"organizace"},null,null,null,null,null,null,{"$f":"IF('Anlage 4 Deckblatt'!U2<>\"\",'Anlage 4 Deckblatt'!U2,\"\")","v":""},null,null,null,null,null,null,null,null,null,null,null,null,null,null,null,null,null,null,null,null,null,null,null,"Softwarebemusterung erforderlich",{"$f":"IF(#REF!=Sprachen!L4,\"X\",\"N\")","v":{"$error":"#REF!"}}]
[{"$f":"Sprachen!L46","v":"údaje organizace"},null,null,null,null,null,null,null,null,null,null,null,null,null,{"$f":"Sprachen!L433","v":"údaje k softwaru"},null,null,null,null,null,null,null,null,null,null,null,null,{"$f":"Sprachen!L45","v":"údaje zákazníka"},null,null,null,null,null,null,null,null,null,null,null,null,null,{"$f":"'Anlage 4 Deckblatt'!AP2","v":0},null,null,null,null,null,null,null,null,null,null,"„Volitelné: Obsah lze také prokázat vhodnou formou jiným způsobem, konkrétní obsah musí být dohodnut mezi organizací a zákazníkem.“"]
[{"$f":"Sprachen!L75","v":"číslo zprávy"},null,null,null,null,null,null,{"$f":"IF('Anlage 4 Deckblatt'!H16<>\"\",'Anlage 4 Deckblatt'!H16,\"\")","v":""},null,null,null,null,null,null,{"$f":"Sprachen!L437","v":"odkaz na kusovník (zákazník)"},null,null,null,null,null,null,null,null,null,null,null,null,{"$f":"Sprachen!L187","v":"zákazník"},null,null,null,null,null,null,{"$f":"IF('Anlage 4 Deckblatt'!A10<>\"\",'Anlage 4 Deckblatt'!A10,\"\")","v":""}]
[{"$f":"Sprachen!L77","v":"verze zprávy"},null,null,null,null,null,null,{"$f":"IF('Anlage 4 Deckblatt'!H17<>\"\",'Anlage 4 Deckblatt'!H17,\"\")","v":""}]
[{"$f":"Sprachen!L199","v":"místo odeslání"},null,null,null,null,null,null,{"$f":"IF('Anlage 4 Deckblatt'!H18<>\"\",'Anlage 4 Deckblatt'!H18,\"\")","v":""},null,null,null,null,null,null,null,null,null,null,null,null,null,null,null,null,null,null,null,{"$f":"Sprachen!L87","v":"číslo objednávky vzorků PPF"},null,null,null,null,null,null,{"$f":"IF('Anlage 4 Deckblatt'!AI18<>\"\",'Anlage 4 Deckblatt'!AI18,\"\")","v":""}]
[{"$f":"Sprachen!L276","v":"výrobní místo"},null,null,null,null,null,null,{"$f":"IF('Anlage 4 Deckblatt'!H19<>\"\",'Anlage 4 Deckblatt'!H19,\"\")","v":""},null,null,null,null,null,null,null,null,null,null,null,null,null,null,null,null,null,null,null,{"$f":"Sprachen!L14","v":"místo dodání"},null,null,null,null,null,null,{"$f":"IF('Anlage 4 Deckblatt'!AI19<>\"\",'Anlage 4 Deckblatt'!AI19,\"\")","v":""}]
[{"$f":"Sprachen!L304","v":"číslo dílu"},null,null,null,null,null,null,{"$f":"IF('Anlage 4 Deckblatt'!H20<>\"\",'Anlage 4 Deckblatt'!H20,\"\")","v":""},null,null,null,null,null,null,null,null,null,null,null,null,null,null,null,null,null,null,null,{"$f":"Sprachen!L304","v":"číslo dílu"},null,null,null,null,null,null,{"$f":"IF('Anlage 4 Deckblatt'!AI20<>\"\",'Anlage 4 Deckblatt'!AI20,\"\")","v":""}]
[{"$f":"Sprachen!L65","v":"název"},null,null,null,null,null,null,{"$f":"IF('Anlage 4 Deckblatt'!H21<>\"\",'Anlage 4 Deckblatt'!H21,\"\")","v":""},null,null,null,null,null,null,null,null,null,null,null,null,null,null,null,null,null,null,null,{"$f":"Sprachen!L65","v":"název"},null,null,null,null,null,null,{"$f":"IF('Anlage 4 Deckblatt'!AI21<>\"\",'Anlage 4 Deckblatt'!AI21,\"\")","v":""}]
[{"$f":"Sprachen!L374","v":"číslo výkresu"},null,null,null,null,null,null,{"$f":"IF('Anlage 4 Deckblatt'!H22<>\"\",'Anlage 4 Deckblatt'!H22,\"\")","v":""},null,null,null,null,null,null,null,null,null,null,null,null,null,null,null,null,null,null,null,{"$f":"Sprachen!L374","v":"číslo výkresu"},null,null,null,null,null,null,{"$f":"IF('Anlage 4 Deckblatt'!AI22<>\"\",'Anlage 4 Deckblatt'!AI22,\"\")","v":""}]
[{"$f":"Sprachen!L361","v":"verze/datum"},null,null,null,null,null,null,{"$f":"IF('Anlage 4 Deckblatt'!H23<>\"\",'Anlage 4 Deckblatt'!H23,\"\")","v":""},null,null,null,null,null,null,{"$f":"Sprachen!L177","v":"identifikace/DUNS"},null,null,null,null,null,null,{"$f":"IF('Anlage 4 Deckblatt'!V23<>\"\",'Anlage 4 Deckblatt'!V23,\"\")","v":""},null,null,null,null,null,{"$f":"Sprachen!L361","v":"verze/datum"},null,null,null,null,null,null,{"$f":"IF('Anlage 4 Deckblatt'!AI23<>\"\",'Anlage 4 Deckblatt'!AI23,\"\")","v":""}]
[{"$f":"IF('Anlage 2 PPF Abstimmung'!A38<>\"\",'Anlage 2 PPF Abstimmung'!A38,\"\")","v":"díl s povinností zvláštní archivace"}]
[{"$f":"Sprachen!L434","v":"popis softwaru"}]
[]
[{"$f":"Sprachen!L435","v":"identifikátor/klíč k produktu"},null,null,null,null,null,null,null,null,null,null,null,null,null,null,null,null,null,null,null,null,{"$f":"Sprachen!L436","v":"kontrolní součet"}]
[]
[{"$f":"Sprachen!L402","v":"Údaje o použitých softwarových modulech (uvést vlastní a cizí podíl) "}]
[{"$f":"Sprachen!L79","v":"popis"},{"$f":"Sprachen!L403","v":"nezávislé pakety softwaru"},null,{"$f":"Sprachen!L404","v":"použití HW"},null,null,null,null,null,null,{"$f":"Sprachen!L405","v":"verze softwaru"},null,null,null,{"$f":"Sprachen!L406","v":"operační systém"},null,null,null,{"$f":"Sprachen!L407","v":"verze diagnostiky"},null,null,null,{"$f":"Sprachen!L408","v":"klasifikace ASIL"},null,null,null,{"$f":"Sprachen!L409","v":"soulad se specifikací"},null,{"$f":"Sprachen!L412","v":"(6.6) uvolnění FOSS"},null,null,{"$f":"Sprachen!L61","v":"poznámka"}]
[null,null,null,null,null,null,null,null,null,null,null,null,null,null,null,null,null,null,null,null,null,null,null,null,null,null,{"$f":"Sprachen!L410","v":"splněno"},{"$f":"Sprachen!L411","v":"nesplněno"},{"$f":"Sprachen!L413","v":"k dispozici"},{"$f":"Sprachen!L414","v":"není k dispozici"},{"$f":"Sprachen!L415","v":"není relevantní"}]
[]
[]
[]
[{"$f":"Sprachen!L416","v":"iniciátor"},null,null,{"$f":"Sprachen!L417","v":"prvotní postup PPF"}]
[null,null,null,{"$f":"Sprachen!L418","v":"postup PPF na základě změny"}]
[{"$f":"Sprachen!L311","v":"sebehodnocení organizací"}]
[{"$f":"Sprachen!L423","v":"specifikace a důkazy"},{"$f":"Sprachen!L253","v":"pořadové číslo"},null,{"$f":"Sprachen!L289","v":"oblast zkoušení"},null,null,{"$f":"Sprachen!L12","v":"(pokud se produktu týká)"},null,null,null,null,null,{"$f":"Sprachen!L366","v":"požadováno předložení"},null,{"$f":"Sprachen!L43","v":"požadavky zcela splněny "},null,null,null,{"$f":"Sprachen!L419","v":"požadavky nesplněny"},null,{"$f":"Sprachen!L224","v":"průkazná dokumentace"},null,null,null,null,null,null,{"$f":"Sprachen!L361","v":"verze/datum"},null,null,null,{"$f":"Sprachen!L61","v":"poznámka"}]
[null,"6.2",null,{"$f":"Sprachen!L138","v":"stanovení rozsahu (\"scope\") SW produktu, který má být dodáván"},null,null,null,null,null,null,null,null,{"$f":"Sprachen!L4","v":"ano"},null,null,null,null,null,null,null,null,null,null,null,null,null,null,null,null,null,null,null,null,null,null,null,null,null,null,null,{"$f":"IF(O27<>\"\",1)","v":false},{"$f":"IF(Q27<>\"\",1)","v":false},{"$f":"IF(S27<>\"\",1)","v":false},{"$f":"SUM(AO27:AQ27)","v":0},{"$f":"AND(M27=Sprachen!$L$4,AR27=0)","v":true},{"$f":"IF(M27=Sprachen!$L$4,1,0)","v":1},{"$f":"SUM(AT27:AT37)","v":4},{"$f":"SUM(AO27:AO37)","v":0},{"$f":"SUM(AP27:AP37)","v":0},{"$f":"SUM(AQ27:AQ37)","v":0},{"$f":"IF(AND(AU27=SUM(AO27:AP28),AU27>0),IF(AU27=AV27,1,2),0)","v":0}]
[null,"6.3",null,{"$f":"Sprachen!L297","v":"odkaz na smluvně stanovené požadavky na kvalitu (např. značení, kódy, pokrytí testy)"},null,null,null,null,null,null,null,null,{"$f":"Sprachen!L4","v":"ano"},null,null,null,null,null,null,null,null,null,null,null,null,null,null,null,null,null,null,null,null,null,null,null,null,null,null,null,false,false,{"$f":"IF(S28<>\"\",1)","v":false},{"$f":"SUM(AO28:AQ28)","v":0},{"$f":"AND(M28=Sprachen!$L$4,AR28=0)","v":true},{"$f":"IF(M28=Sprachen!$L$4,1,0)","v":1}]
[null,"6.4",null,{"$f":"Sprachen!L105","v":"dokumentace technických specifikací SW"},null,null,null,null,null,null,null,null,{"$f":"IF('Anlage 2 PPF Abstimmung'!O202<>\"\",'Anlage 2 PPF Abstimmung'!O202,\"\")","v":""},null,null,null,null,null,null,null,null,null,null,null,null,null,null,null,null,null,null,null,null,null,null,null,null,null,null,null,false,false,false,0,{"$f":"AND(M29=Sprachen!$L$4,AR29=0)","v":false},{"$f":"IF(M29=Sprachen!$L$4,1,0)","v":0}]
[null,"6.5",null,{"$f":"Sprachen!L223","v":"důkaz o realizaci požadavků 6.3 a 6.4 "},null,null,null,null,null,null,null,null,{"$f":"IF('Anlage 2 PPF Abstimmung'!O203<>\"\",'Anlage 2 PPF Abstimmung'!O203,\"\")","v":""},null,null,null,null,null,null,null,null,null,null,null,null,null,null,null,null,null,null,null,null,null,null,null,null,null,null,null,false,false,false,0,{"$f":"AND(M30=Sprachen!$L$4,AR30=0)","v":false},{"$f":"IF(M30=Sprachen!$L$4,1,0)","v":0}]
[null,"6.6",null,{"$f":"Sprachen!L111","v":"dokumentace FOSS (volný a otevřený SW)"},null,null,null,null,null,null,null,null,{"$f":"Sprachen!L4","v":"ano"},null,null,null,null,null,null,null,null,null,null,null,null,null,null,null,null,null,null,null,null,null,null,null,null,null,null,null,false,false,false,0,{"$f":"AND(M31=Sprachen!$L$4,AR31=0)","v":true},{"$f":"IF(M31=Sprachen!$L$4,1,0)","v":1}]
[null,"6.7",null,{"$f":"Sprachen!L200","v":"výpis známých chyb"},null,null,null,null,null,null,null,null,{"$f":"Sprachen!L4","v":"ano"},null,null,null,null,null,null,null,null,null,null,null,null,null,null,null,null,null,null,null,null,null,null,null,null,null,null,null,false,false,false,0,{"$f":"AND(M32=Sprachen!$L$4,AR32=0)","v":true},{"$f":"IF(M32=Sprachen!$L$4,1,0)","v":1}]
[null,"6.8",null,{"$f":"Sprachen!L108","v":"dokumentace nástrojů vývoje použitých během celkového průběhu projektu"},null,null,null,null,null,null,null,null,{"$f":"IF('Anlage 2 PPF Abstimmung'!O206<>\"\",'Anlage 2 PPF Abstimmung'!O206,\"\")","v":""},null,null,null,null,null,null,null,null,null,null,null,null,null,null,null,null,null,null,null,null,null,null,null,null,null,null,null,false,false,false,0,{"$f":"AND(M33=Sprachen!$L$4,AR33=0)","v":false},{"$f":"IF(M33=Sprachen!$L$4,1,0)","v":0}]
[null,"6.9",null,{"$f":"Sprachen!L109","v":"dokumentace nástrojů testování použitých během celkového průběhu projektu"},null,null,null,null,null,null,null,null,{"$f":"IF('Anlage 2 PPF Abstimmung'!O207<>\"\",'Anlage 2 PPF Abstimmung'!O207,\"\")","v":""},null,null,null,null,null,null,null,null,null,null,null,null,null,null,null,null,null,null,null,null,null,null,null,null,null,null,null,false,false,false,0,{"$f":"AND(M34=Sprachen!$L$4,AR34=0)","v":false},{"$f":"IF(M34=Sprachen!$L$4,1,0)","v":0}]
[null,"6.10",null,{"$f":"Sprachen!L110","v":"dokumentace managementu verzí (základní provedení, konfigurace, změny)"},null,null,null,null,null,null,null,null,{"$f":"IF('Anlage 2 PPF Abstimmung'!O208<>\"\",'Anlage 2 PPF Abstimmung'!O208,\"\")","v":""},null,null,null,null,null,null,null,null,null,null,null,null,null,null,null,null,null,null,null,null,null,null,null,null,null,null,null,false,false,false,0,{"$f":"AND(M35=Sprachen!$L$4,AR35=0)","v":false},{"$f":"IF(M35=Sprachen!$L$4,1,0)","v":0}]
[{"$f":"Sprachen!L253","v":"pořadové číslo"},null,null,{"$f":"Sprachen!L289","v":"oblast zkoušení"},null,null,{"$f":"Sprachen!L12","v":"(pokud se produktu týká)"},null,null,null,null,null,{"$f":"Sprachen!L366","v":"požadováno předložení"},null,{"$f":"Sprachen!L43","v":"požadavky zcela splněny "},null,null,null,{"$f":"Sprachen!L419","v":"požadavky nesplněny"},null,{"$f":"Sprachen!L421","v":"metoda hodnocení procesu"},null,null,null,null,null,null,{"$f":"Sprachen!L420","v":"datum posledního hodnocení procesu"},null,null,null,{"$f":"Sprachen!L422","v":"výsledek hodnocení procesu"}]
["6.11",null,null,{"$f":"Sprachen!L221","v":"důkaz o hodnocení procesu (např. Automotive SPICE)"},null,null,null,null,null,null,null,null,{"$f":"IF('Anlage 2 PPF Abstimmung'!O209<>\"\",'Anlage 2 PPF Abstimmung'!O209,\"\")","v":""},null,null,null,null,null,null,null,null,null,null,null,null,null,null,null,null,null,null,null,null,null,null,null,null,null,null,null,false,false,false,0,{"$f":"AND(M37=Sprachen!$L$4,AR37=0)","v":false},{"$f":"IF(M37=Sprachen!$L$4,1,0)","v":0}]
[{"$f":"Sprachen!L424","v":"detaily k použití softwarových modulů"}]
[{"$f":"Sprachen!L424","v":"detaily k použití softwarových modulů"},{"$f":"Sprachen!L425","v":"SW-PNR"},null,null,null,null,{"$f":"Sprachen!L426","v":"jmého zákazníka"},null,null,null,null,null,null,null,null,null,{"$f":"Sprachen!L427","v":"označení organizace"},null,null,null,null,null,null,null,null,null,null,{"$f":"Sprachen!L428","v":"zpráva o zkoušce"},null,{"$f":"Sprachen!L429","v":"status uvolnění"},null,{"$f":"Sprachen!L61","v":"poznámka"},null,null,null,null,null,null,null,null,null,null,null,null,null,null,{"$f":"IF(AX27>0,\"X\",\"\")","v":""}]
[null,null,null,null,null,null,null,null,null,null,null,null,null,null,null,null,null,null,null,null,null,null,null,null,null,null,null,{"$f":"Sprachen!L413","v":"k dispozici"},{"$f":"Sprachen!L414","v":"není k dispozici"},{"$f":"Sprachen!L413","v":"k dispozici"},{"$f":"Sprachen!L414","v":"není k dispozici"}]
[]
[]
[]
[]
[]
[{"$f":"Sprachen!L430","v":"doporučení organizací k nasazení"}]
[{"$f":"Sprachen!L431","v":"(Povolení k používání softwaru k zamýšlenému účelu oprávněnou osobou organizace prostřednictvím právně závazného podpisu [písemně, elektronicky])"}]
[{"$f":"Sprachen!L233","v":"kategorie důkazu"},null,null,null,null,null,null,null,null,null,null,null,{"$f":"Sprachen!L366","v":"požadováno předložení"},null,{"$f":"Sprachen!L43","v":"požadavky zcela splněny "},null,{"$f":"Sprachen!L42","v":"některé požadavky nejsou splněny"},null,{"$f":"Sprachen!L268","v":"postup PPF vůči zákazníkovi uzavřen"},null,null,{"$f":"Sprachen!L25","v":"požadována aktualizovaná dokumentace PPF"},null,null,{"$f":"Sprachen!L238","v":"vyžadován nový postup PPF"},null,null,{"$f":"Sprachen!L302","v":"posouzení rizik"},null,null,null,null,null,null,null,null,{"$f":"Sprachen!L361","v":"verze/datum"}]
[{"$f":"Sprachen!L323","v":"důkazy k softwaru"},null,null,null,null,null,null,null,null,null,null,null,{"$f":"Sprachen!L4","v":"ano"},null,{"$f":"IF(AND(AW27=0,AX27=0,AU27=AV27),\"X\",\"\")","v":""},null,{"$f":"IF(AND(AV27<AU27,AX27=0,AU27=(AV27+AW27)),\"X\",\"\")","v":""}]
[{"$f":"Sprachen!L181","v":"komentář organizace"}]
[]
[{"$f":"Sprachen!L122","v":"doporučení organizací"}]
[{"$f":"Sprachen!L191","v":"vhodné pro zákazníka/vhodné pro sériovou výrobu"},null,null,null,null,null,null,null,null,null,null,null,null,null,null,null,null,null,{"$f":"IF(AND(AW27=0,AX27=0,AU27=AV27),\"X\",\"\")","v":""},null,{"$f":"Sprachen!L242","v":"není vhodné pro zákazníka/není vhodné pro sériovou výrobu"},null,null,null,null,null,null,null,null,null,null,null,null,null,null,null,null,null,{"$f":"IF(AX27>0,\"X\",\"\")","v":""}]
[{"$f":"Sprachen!L84","v":"potvrzení organizací"}]
[{"$f":"Sprachen!L234","v":"jméno "},null,null,null,null,null,null,null,{"$f":"IF('Anlage 3 Selbstb. Produkt'!I28<>\"\",'Anlage 3 Selbstb. Produkt'!I28,\"\")","v":""},null,null,null,null,null,null,null,null,null,null,null,null,{"$f":"Sprachen!L61","v":"poznámka"}]
[{"$f":"Sprachen!L20","v":"oddělení"},null,null,null,null,null,null,null,{"$f":"IF('Anlage 3 Selbstb. Produkt'!I29<>\"\",'Anlage 3 Selbstb. Produkt'!I29,\"\")","v":""}]
[{"$f":"Sprachen!L343","v":"telefon"},null,null,null,null,null,null,null,{"$f":"IF('Anlage 3 Selbstb. Produkt'!I30<>\"\",'Anlage 3 Selbstb. Produkt'!I30,\"\")","v":""}]
[{"$f":"Sprachen!L119","v":"e-mail/fax č."},null,null,null,null,null,null,null,{"$f":"IF('Anlage 3 Selbstb. Produkt'!I31<>\"\",'Anlage 3 Selbstb. Produkt'!I31,\"\")","v":""}]
[{"$f":"Sprachen!L91","v":"datum"},null,null,null,null,null,null,null,{"$f":"IF('Anlage 3 Selbstb. Produkt'!I32<>\"\",'Anlage 3 Selbstb. Produkt'!I32,\"\")","v":""},null,null,null,null,null,null,null,null,null,null,null,null,{"$f":"Sprachen!L348","v":"podpis"}]
[{"$f":"Sprachen!L124","v":"rozhodnutí zákazníka"}]
[{"$f":"Sprachen!L432","v":"(Povolení k používání softwaru k zamýšlenému účelu oprávněnou osobou organizace prostřednictvím právně závazného podpisu [písemně, elektronicky])"}]
[{"$f":"Sprachen!L191","v":"vhodné pro zákazníka/vhodné pro sériovou výrobu"},null,null,null,null,null,null,null,null,null,null,null,null,null,null,null,null,null,null,null,{"$f":"Sprachen!L243","v":"není vhodné pro zákazníka/není vhodné pro sériovou výrobu"}]
[{"$f":"Sprachen!L268","v":"postup PPF vůči zákazníkovi uzavřen"},null,null,null,null,null,null,null,null,null,null,null,null,null,null,null,null,null,null,null,{"$f":"Sprachen!L238","v":"vyžadován nový postup PPF"},null,null,null,null,null,null,null,null,null,null,null,null,null,null,null,null,null,null,null,{"$f":"COUNTIF(S63:T64,\"X\")+COUNTIF(AM63,\"X\")","v":0}]
[{"$f":"Sprachen!L25","v":"požadována aktualizovaná dokumentace PPF"}]
[{"$f":"Sprachen!L21","v":"odlišné posouzení zákazníkem oproti organizaci"}]
[{"$f":"Sprachen!L219","v":"dodatečné požadavky na předložení dokumentace k otevřeným oblastem zkoušení"},null,null,null,null,null,null,null,null,null,{"$f":"Sprachen!L289","v":"oblast zkoušení"},null,null,null,null,"následný požadavek/odůvodnění"]
[]
[]
[]
[]
[{"$f":"Sprachen!L29","v":"schválení odchylky (bez přizpůsobení dalších dokumentů)"},null,null,null,null,null,null,null,null,null,{"$f":"Sprachen!L289","v":"oblast zkoušení"},null,null,null,null,{"$f":"Sprachen!L237","v":"nová specifikace"}]
[]
[]
[]
[]
[{"$f":"Sprachen!L23","v":"schválení odchylky"},null,null,null,null,null,null,null,null,null,{"$f":"Sprachen!L289","v":"oblast zkoušení"},null,null,null,null,{"$f":"Sprachen!L22","v":"schválení odchylky"},null,null,null,null,null,null,null,null,null,null,null,null,null,null,null,null,null,null,null,{"$f":"Sprachen!L160","v":"platnost"}]
[]
[]
[]
[]
[{"$f":"Sprachen!L234","v":"jméno "},null,null,null,null,null,null,null,{"$f":"IF('Anlage 2 PPF Abstimmung'!I270<>\"\",'Anlage 2 PPF Abstimmung'!I270,\"\")","v":""},null,null,null,null,null,null,null,null,null,null,null,null,{"$f":"Sprachen!L61","v":"poznámka"}]
[{"$f":"Sprachen!L20","v":"oddělení"},null,null,null,null,null,null,null,{"$f":"IF('Anlage 2 PPF Abstimmung'!I271<>\"\",'Anlage 2 PPF Abstimmung'!I271,\"\")","v":""}]
[{"$f":"Sprachen!L343","v":"telefon"},null,null,null,null,null,null,null,{"$f":"IF('Anlage 2 PPF Abstimmung'!I272<>\"\",'Anlage 2 PPF Abstimmung'!I272,\"\")","v":""}]
[{"$f":"Sprachen!L119","v":"e-mail/fax č."},null,null,null,null,null,null,null,{"$f":"IF('Anlage 2 PPF Abstimmung'!I273<>\"\",'Anlage 2 PPF Abstimmung'!I273,\"\")","v":""}]
[{"$f":"Sprachen!L91","v":"datum"},null,null,null,null,null,null,null,{"$f":"IF('Anlage 4 PPF-Bewertung'!I149<>\"\",'Anlage 4 PPF-Bewertung'!I149,\"\")","v":""},null,null,null,null,null,null,null,null,null,null,null,null,{"$f":"Sprachen!L348","v":"podpis"}]

{"sheet":"Anlage 5 Deckblatt Software 2","index":8,"n_rows":55,"n_cols":53,"rows_kept":55,"cut":false,"hidden":false,"merged":[[53,0,53,7],[53,8,53,20],[54,0,54,7],[54,8,54,20],[54,21,54,25],[54,26,54,39],[48,0,48,39],[49,0,49,39],[50,0,50,7],[50,8,50,20],[50,21,53,25],[50,26,53,39],[51,0,51,7],[51,8,51,20],[52,0,52,7],[52,8,52,20],[46,0,46,7],[46,8,46,11],[46,12,46,24],[46,25,46,30],[46,31,46,39],[47,0,47,7],[47,8,47,11],[47,12,47,24],[47,25,47,30],[47,31,47,39],[44,0,44,16],[44,17,44,19],[44,20,44,36],[44,37,44,39],[45,0,45,7],[45,8,45,11],[45,12,45,24],[45,25,45,30],[45,31,45,39],[42,0,42,39],[43,0,43,7],[43,8,43,11],[43,12,43,24],[43,25,43,30],[43,31,43,39],[39,0,39,1],[39,2,39,39],[40,0,41,7],[40,8,40,20],[40,21,41,28],[40,29,40,39],[41,8,41,20],[41,29,41,39],[36,0,36,1],[36,2,36,39],[37,0,38,7],[37,8,37,20],[37,21,38,28],[37,29,37,39],[38,8,38,20],[38,29,38,39],[35,0,35,10],[35,11,35,15],[35,16,35,20],[35,21,35,25],[35,26,35,30],[35,31,35,39],[34,0,34,10],[34,11,34,15],[34,16,34,20],[34,21,34,25],[34,26,34,30],[34,31,34,39],[33,0,33,10],[33,11,33,15],[33,16,33,20],[33,21,33,25],[33,26,33,30],[33,31,33,39],[32,0,32,10],[32,11,32,15],[32,16,32,20],[32,21,32,25],[32,26,32,30],[32,31,32,39],[31,0,31,10],[31,11,31,15],[31,16,31,20],[31,21,31,25],[31,26,31,30],[31,31,31,39],[30,0,30,10],[30,11,30,15],[30,16,30,20],[30,21,30,25],[30,26,30,30],[30,31,30,39],[28,0,28,39],[29,0,29,10],[29,11,29,15],[29,16,29,20],[29,21,29,25],[29,26,29,30],[29,31,29,39],[27,0,27,10],[27,11,27,15],[27,16,27,20],[27,21,27,25],[27,26,27,30],[27,31,27,39],[26,0,26,10],[26,11,26,15],[26,16,26,20],[26,21,26,25],[26,26,26,30],[26,31,26,39],[25,0,25,10],[25,11,25,15],[25,16,25,20],[25,21,25,25],[25,26,25,30],[25,31,25,39],[24,0,24,10],[24,11,24,15],[24,16,24,20],[24,21,24,25],[24,26,24,30],[24,31,24,39],[23,0,23,10],[23,11,23,15],[23,16,23,20],[23,21,23,25],[23,26,23,30],[23,31,23,39],[22,0,22,10],[22,11,22,15],[22,16,22,20],[22,21,22,25],[22,26,22,30],[22,31,22,39],[21,0,21,10],[21,11,21,15],[21,16,21,20],[21,21,21,25],[21,26,21,30],[21,31,21,39],[20,0,20,10],[20,11,20,15],[20,16,20,20],[20,21,20,25],[20,26,20,30],[20,31,20,39],[19,0,19,10],[19,11,19,15],[19,16,19,20],[19,21,19,25],[19,26,19,30],[19,31,19,39],[17,0,17,39],[18,0,18,10],[18,11,18,15],[18,16,18,20],[18,21,18,25],[18,26,18,30],[18,31,18,39],[15,0,15,6],[15,8,15,17],[15,19,15,28],[15,30,15,39],[16,0,16,6],[16,8,16,17],[16,19,16,28],[16,30,16,39],[11,0,11,13],[12,0,12,39],[13,0,13,39],[14,0,14,6],[14,8,14,17],[14,19,14,28],[14,30,14,39],[10,0,10,6],[10,7,10,13],[10,14,10,20],[10,21,10,26],[10,27,10,33],[10,34,10,39],[9,0,9,6],[9,7,9,13],[9,14,9,20],[9,21,9,26],[9,27,9,33],[9,34,9,39],[8,0,8,6],[8,7,8,13],[8,14,8,20],[8,21,8,26],[8,27,8,33],[8,34,8,39],[7,0,7,6],[7,7,7,13],[7,14,7,20],[7,21,7,26],[7,27,7,33],[7,34,7,39],[6,0,6,6],[6,7,6,13],[6,14,6,20],[6,21,6,26],[6,27,6,33],[6,34,6,39],[5,0,5,6],[5,7,5,13],[5,14,5,20],[5,21,5,26],[5,27,5,33],[5,34,5,39],[0,0,1,12],[0,13,0,19],[0,20,0,39],[1,13,1,19],[1,20,1,39],[2,0,2,13],[2,14,2,26],[2,27,2,39],[3,0,3,6],[3,7,3,13],[3,14,4,20],[3,21,4,26],[3,27,4,33],[4,0,4,6],[4,7,4,13],[3,34,4,39]]}
[{"$f":"Sprachen!L392","v":"6.1 krycí list PPF softwaru"},null,null,null,null,null,null,null,null,null,null,null,null,{"$f":"Sprachen!L378","v":"zpráva"},null,null,null,null,null,null,{"$f":"IF(H4<>\"\",H4&\" / \"&H5,\"\")","v":""},null,null,null,null,null,null,null,null,null,null,null,null,null,null,null,null,null,null,null,null,"Sprachauswahl",null,1,"Hardwarebemusterung erforderlich",{"$f":"IF(#REF!=Sprachen!L4,\"X\",\"N\")","v":{"$error":"#REF!"}},null,null,null,null,null,null,"Optionales Template: Die Inhalte können auch in geeigneter Form auf andere Art nachgewiesen werden, \ndie spezifischen Inhalte sind zwischen Organisation und Kunde abzustimmen"]
[null,null,null,null,null,null,null,null,null,null,null,null,null,{"$f":"Sprachen!L255","v":"organizace"},null,null,null,null,null,null,{"$f":"IF('Anlage 4 Deckblatt'!U2<>\"\",'Anlage 4 Deckblatt'!U2,\"\")","v":""},null,null,null,null,null,null,null,null,null,null,null,null,null,null,null,null,null,null,null,null,null,null,null,"Softwarebemusterung erforderlich",{"$f":"IF(#REF!=Sprachen!L4,\"X\",\"N\")","v":{"$error":"#REF!"}},null,null,null,null,null,null,"„Volitelné: Obsah lze také prokázat vhodnou formou jiným způsobem, konkrétní obsah musí být dohodnut mezi organizací a zákazníkem.“"]
[{"$f":"Sprachen!L46","v":"údaje organizace"},null,null,null,null,null,null,null,null,null,null,null,null,null,{"$f":"Sprachen!L433","v":"údaje k softwaru"},null,null,null,null,null,null,null,null,null,null,null,null,{"$f":"Sprachen!L45","v":"údaje zákazníka"},null,null,null,null,null,null,null,null,null,null,null,null,null,{"$f":"'Anlage 4 Deckblatt'!AP2","v":0}]
[{"$f":"Sprachen!L75","v":"číslo zprávy"},null,null,null,null,null,null,{"$f":"IF('Anlage 4 Deckblatt'!H16<>\"\",'Anlage 4 Deckblatt'!H16,\"\")","v":""},null,null,null,null,null,null,{"$f":"Sprachen!L437","v":"odkaz na kusovník (zákazník)"},null,null,null,null,null,null,{"$f":"IF('Anlage 5 Deckblatt Software 1'!V4<>\"\",'Anlage 5 Deckblatt Software 1'!V4,\"\")","v":""},null,null,null,null,null,{"$f":"Sprachen!L187","v":"zákazník"},null,null,null,null,null,null,{"$f":"IF('Anlage 4 Deckblatt'!A10<>\"\",'Anlage 4 Deckblatt'!A10,\"\")","v":""}]
[{"$f":"Sprachen!L77","v":"verze zprávy"},null,null,null,null,null,null,{"$f":"IF('Anlage 4 Deckblatt'!H17<>\"\",'Anlage 4 Deckblatt'!H17,\"\")","v":""}]
[{"$f":"Sprachen!L199","v":"místo odeslání"},null,null,null,null,null,null,{"$f":"IF('Anlage 4 Deckblatt'!H18<>\"\",'Anlage 4 Deckblatt'!H18,\"\")","v":""},null,null,null,null,null,null,null,null,null,null,null,null,null,null,null,null,null,null,null,{"$f":"Sprachen!L87","v":"číslo objednávky vzorků PPF"},null,null,null,null,null,null,{"$f":"IF('Anlage 4 Deckblatt'!AI18<>\"\",'Anlage 4 Deckblatt'!AI18,\"\")","v":""}]
[{"$f":"Sprachen!L276","v":"výrobní místo"},null,null,null,null,null,null,{"$f":"IF('Anlage 4 Deckblatt'!H19<>\"\",'Anlage 4 Deckblatt'!H19,\"\")","v":""},null,null,null,null,null,null,null,null,null,null,null,null,null,null,null,null,null,null,null,{"$f":"Sprachen!L14","v":"místo dodání"},null,null,null,null,null,null,{"$f":"IF('Anlage 4 Deckblatt'!AI19<>\"\",'Anlage 4 Deckblatt'!AI19,\"\")","v":""}]
[{"$f":"Sprachen!L304","v":"číslo dílu"},null,null,null,null,null,null,{"$f":"IF('Anlage 4 Deckblatt'!H20<>\"\",'Anlage 4 Deckblatt'!H20,\"\")","v":""},null,null,null,null,null,null,null,null,null,null,null,null,null,null,null,null,null,null,null,{"$f":"Sprachen!L304","v":"číslo dílu"},null,null,null,null,null,null,{"$f":"IF('Anlage 4 Deckblatt'!AI20<>\"\",'Anlage 4 Deckblatt'!AI20,\"\")","v":""}]
[{"$f":"Sprachen!L65","v":"název"},null,null,null,null,null,null,{"$f":"IF('Anlage 4 Deckblatt'!H21<>\"\",'Anlage 4 Deckblatt'!H21,\"\")","v":""},null,null,null,null,null,null,null,null,null,null,null,null,null,null,null,null,null,null,null,{"$f":"Sprachen!L65","v":"název"},null,null,null,null,null,null,{"$f":"IF('Anlage 4 Deckblatt'!AI21<>\"\",'Anlage 4 Deckblatt'!AI21,\"\")","v":""}]
[{"$f":"Sprachen!L374","v":"číslo výkresu"},null,null,null,null,null,null,{"$f":"IF('Anlage 4 Deckblatt'!H22<>\"\",'Anlage 4 Deckblatt'!H22,\"\")","v":""},null,null,null,null,null,null,null,null,null,null,null,null,null,null,null,null,null,null,null,{"$f":"Sprachen!L374","v":"číslo výkresu"},null,null,null,null,null,null,{"$f":"IF('Anlage 4 Deckblatt'!AI22<>\"\",'Anlage 4 Deckblatt'!AI22,\"\")","v":""}]
[{"$f":"Sprachen!L361","v":"verze/datum"},null,null,null,null,null,null,{"$f":"IF('Anlage 4 Deckblatt'!H23<>\"\",'Anlage 4 Deckblatt'!H23,\"\")","v":""},null,null,null,null,null,null,{"$f":"Sprachen!L177","v":"identifikace/DUNS"},null,null,null,null,null,null,{"$f":"IF('Anlage 4 Deckblatt'!V23<>\"\",'Anlage 4 Deckblatt'!V23,\"\")","v":""},null,null,null,null,null,{"$f":"Sprachen!L361","v":"verze/datum"},null,null,null,null,null,null,{"$f":"IF('Anlage 4 Deckblatt'!AI23<>\"\",'Anlage 4 Deckblatt'!AI23,\"\")","v":""}]
[{"$f":"IF('Anlage 2 PPF Abstimmung'!A38<>\"\",'Anlage 2 PPF Abstimmung'!A38,\"\")","v":"díl s povinností zvláštní archivace"}]
[{"$f":"Sprachen!L438","v":"provedené zkoušky"}]
[{"$f":"Sprachen!L439","v":"všeobecné údaje o hardwaru (minimální požadavky)"}]
[{"$f":"Sprachen!L440","v":"procesor"},null,null,null,null,null,null,"1.",null,null,null,null,null,null,null,null,null,null,"2.",null,null,null,null,null,null,null,null,null,null,"3."]
[{"$f":"Sprachen!L441","v":"kmitočet procesoru"},null,null,null,null,null,null,"1.",null,null,null,null,null,null,null,null,null,null,"2.",null,null,null,null,null,null,null,null,null,null,"3."]
[{"$f":"Sprachen!L442","v":"kmitočet krystalu"},null,null,null,null,null,null,"1.",null,null,null,null,null,null,null,null,null,null,"2.",null,null,null,null,null,null,null,null,null,null,"3."]
[{"$f":"Sprachen!L443","v":"využití paměti (měření)"}]
[{"$f":"Sprachen!L444","v":"komponent"},null,null,null,null,null,null,null,null,null,null,{"$f":"Sprachen!L445","v":"obsazeno (kB)"},null,null,null,null,{"$f":"Sprachen!L446","v":"k dispozici (kB)"},null,null,null,null,{"$f":"Sprachen!L447","v":"obsazeno (%)"},null,null,null,null,{"$f":"Sprachen!L452","v":"specifikace splněna"},null,null,null,null,{"$f":"Sprachen!L61","v":"poznámka"}]
[{"$f":"Sprachen!L448","v":"ROM"}]
[{"$f":"Sprachen!L449","v":"RAM"}]
[{"$f":"Sprachen!L450","v":"EEPROM"}]
[{"$f":"Sprachen!L451","v":"harddisk"}]
[]
[]
[]
[]
[]
[{"$f":"Sprachen!L457","v":"využití procesoru (hodnota)"}]
[{"$f":"Sprachen!L444","v":"komponent"},null,null,null,null,null,null,null,null,null,null,{"$f":"Sprachen!L453","v":"počáteční zatížení procesoru"},null,null,null,null,{"$f":"Sprachen!L454","v":"provozní zatížení procesoru"},null,null,null,null,{"$f":"Sprachen!L455","v":"špičkové zatížení procesoru"},null,null,null,null,{"$f":"Sprachen!L452","v":"specifikace splněna"},null,null,null,null,{"$f":"Sprachen!L61","v":"poznámka"}]
[{"$f":"Sprachen!L456","v":"využití procesoru"}]
[]
[]
[]
[]
[]
["6.9",null,{"$f":"Sprachen!L109","v":"dokumentace nástrojů testování použitých během celkového průběhu projektu"}]
[{"$f":"Sprachen!L458","v":"odkaz na dokumentaci"},null,null,null,null,null,null,null,{"$f":"Sprachen!L460","v":"základní konfigurace"},null,null,null,null,null,null,null,null,null,null,null,null,{"$f":"Sprachen!L459","v":"status dokumentace"},null,null,null,null,null,null,null,{"$f":"Sprachen!L461","v":"přezkoumání a uvolnění posledního statusu"}]
[]
["6.10",null,{"$f":"Sprachen!L110","v":"dokumentace managementu verzí (základní provedení, konfigurace, změny)"}]
[{"$f":"Sprachen!L458","v":"odkaz na dokumentaci"},null,null,null,null,null,null,null,{"$f":"Sprachen!L460","v":"základní konfigurace"},null,null,null,null,null,null,null,null,null,null,null,null,{"$f":"Sprachen!L459","v":"status dokumentace"},null,null,null,null,null,null,null,{"$f":"Sprachen!L461","v":"přezkoumání a uvolnění posledního statusu"}]
[]
[{"$f":"Sprachen!L462","v":"funkční test"}]
[{"$f":"Sprachen!L463","v":"odzkoušeno podle specifikace zkoušky"},null,null,null,null,null,null,null,{"$f":"Sprachen!L224","v":"průkazná dokumentace"},null,null,null,null,null,null,null,null,null,null,null,null,null,null,null,null,{"$f":"Sprachen!L361","v":"verze/datum"}]
[{"$f":"Sprachen!L464","v":"Obstálo ve všech testovacích sekvencích?"},null,null,null,null,null,null,null,null,null,null,null,null,null,null,null,null,null,null,null,{"$f":"Sprachen!L465","v":"Obstálo ve všech regresních sekvencích?"}]
[{"$f":"Sprachen!L466","v":"Výpis neúspěšných testů a posouzení rizik"},null,null,null,null,null,null,null,{"$f":"Sprachen!L224","v":"průkazná dokumentace"},null,null,null,null,null,null,null,null,null,null,null,null,null,null,null,null,{"$f":"Sprachen!L361","v":"verze/datum"}]
[{"$f":"Sprachen!L467","v":"důkaz o efektivnosti provedených opatření"},null,null,null,null,null,null,null,{"$f":"Sprachen!L224","v":"průkazná dokumentace"},null,null,null,null,null,null,null,null,null,null,null,null,null,null,null,null,{"$f":"Sprachen!L361","v":"verze/datum"}]
[{"$f":"Sprachen!L468","v":"jaká zvláštní uvolnění jsou předložena?"},null,null,null,null,null,null,null,{"$f":"Sprachen!L224","v":"průkazná dokumentace"},null,null,null,null,null,null,null,null,null,null,null,null,null,null,null,null,{"$f":"Sprachen!L361","v":"verze/datum"}]
[{"$f":"Sprachen!L84","v":"potvrzení organizací"}]
[{"$f":"Sprachen!L469","v":"důkazy o uvolnění mohou být kdykoliv prohlédnuty zákazníkem"}]
[{"$f":"Sprachen!L234","v":"jméno "},null,null,null,null,null,null,null,{"$f":"IF('Anlage 3 Selbstb. Produkt'!I28<>\"\",'Anlage 3 Selbstb. Produkt'!I28,\"\")","v":""},null,null,null,null,null,null,null,null,null,null,null,null,{"$f":"Sprachen!L61","v":"poznámka"}]
[{"$f":"Sprachen!L20","v":"oddělení"},null,null,null,null,null,null,null,{"$f":"IF('Anlage 3 Selbstb. Produkt'!I29<>\"\",'Anlage 3 Selbstb. Produkt'!I29,\"\")","v":""}]
[{"$f":"Sprachen!L343","v":"telefon"},null,null,null,null,null,null,null,{"$f":"IF('Anlage 3 Selbstb. Produkt'!I30<>\"\",'Anlage 3 Selbstb. Produkt'!I30,\"\")","v":""}]
[{"$f":"Sprachen!L119","v":"e-mail/fax č."},null,null,null,null,null,null,null,{"$f":"IF('Anlage 3 Selbstb. Produkt'!I31<>\"\",'Anlage 3 Selbstb. Produkt'!I31,\"\")","v":""}]
[{"$f":"Sprachen!L91","v":"datum"},null,null,null,null,null,null,null,{"$f":"IF('Anlage 3 Selbstb. Produkt'!I32<>\"\",'Anlage 3 Selbstb. Produkt'!I32,\"\")","v":""},null,null,null,null,null,null,null,null,null,null,null,null,{"$f":"Sprachen!L348","v":"podpis"}]

{"sheet":"Sprachen","index":9,"n_rows":836,"n_cols":12,"rows_kept":836,"cut":false,"hidden":false,"merged":[]}
[1,2,3,4,5,6,7,8,9,10,null,{"$f":"'Anlage 2 PPF Abstimmung'!AS2","v":3}]
["Deutsch","English","česky",null,null,null,null,null,null,null,null,{"$f":"VLOOKUP(A2,A:J,$L$1,FALSE)","v":"česky"}]
[]
["Ja","Yes","ano",null,null,null,null,null,null,null,null,{"$f":"VLOOKUP(A4,A:J,$L$1,FALSE)","v":"ano"}]
["Nein","No","ne",null,null,null,null,null,null,null,null,"ne"]
["Anforderungen erfüllt","Requirements met","požadavky zcela splněny",null,null,null,null,null,null,null,null,"požadavky zcela splněny"]
["Anforderungen nicht vollständig erfüllt","Requirements not fully met","některé požadavky nejsou splněny",null,null,null,null,null,null,null,null,"některé požadavky nejsou splněny"]
["Anforderungen nicht erfüllt","Requirements not met","požadavky nesplněny",null,null,null,null,null,null,null,null,"požadavky nesplněny"]
["Eingabe nicht korrekt, bitte prüfen","Entry incorrect, please check","zadání není správné, prosím ověřte",null,null,null,null,null,null,null,null,"zadání není správné, prosím ověřte"]
["Adresse","Address","adresa",null,null,null,null,null,null,null,null,"adresa"]
["Abweichung zur Spezifikation,\nKundenakzeptanz liegt vor ","Deviation from specification\ncustomer acceptance granted ","odchylka od specifikace, akceptováno zákazníkem",null,null,null,null,null,null,null,null,"odchylka od specifikace, akceptováno zákazníkem"]
["(sofern für das Produkt zutreffend)","(if applicable for the product)","(pokud se produktu týká)",null,null,null,null,null,null,null,null,"(pokud se produktu týká)"]
["3D-Datensatzmessung","3D record measurement","datový soubor náměrů 3D",null,null,null,null,null,null,null,null,"datový soubor náměrů 3D"]
["Abladestelle","Unloading point","místo dodání",null,null,null,null,null,null,null,null,"místo dodání"]
["Abnahmerichtlinien","Acceptance guidelines","přejímací směrnice",null,null,null,null,null,null,null,null,"přejímací směrnice"]
["Absicherung Besonderer Merkmale gemäß technischen Spezifikationen und vereinbarten Merkmalen (z. B. Poka Yoke, 100%-Prüfung, Prozessfähigkeiten, …)","Assurance of special characteristics according to technical specifications and agreed characteristics (e.g. poka-yoke, 100% inspection, process capabilities, etc.)","zajištění zvláštních charakteristik podle technických specifikací a dohodnutých charakteristik (např. Poka Yoke, 100% zkoušení, způsobilosti procesu…)",null,null,null,null,null,null,null,null,"zajištění zvláštních charakteristik podle technických specifikací a dohodnutých charakteristik (např. Poka Yoke, 100% zkoušení, způsobilosti procesu…)"]
["Absicherung nicht vollständig nachgewiesen ","Assurance not fully verified ","zajištění není prokázáno zcela",null,null,null,null,null,null,null,null,"zajištění není prokázáno zcela"]
["Absicherung nicht vollständig nachgewiesen, \nZusatzmaßnahmen sind installiert,\nKundenakzeptanz liegt vor","Assurance not fully verified\nadditional measures installed\ncustomer acceptance granted","zajištění není prokázáno zcela, dodatečná opatření jsou zavedena, předložena akceptance zákazníka",null,null,null,null,null,null,null,null,"zajištění není prokázáno zcela, dodatečná opatření jsou zavedena, předložena akceptance zákazníka"]
["Abstimmung PPF-Inhalt und Vorlage","Agreement on PPA content and submission","dohoda o obsahu a předložení PPF",null,null,null,null,null,null,null,null,"dohoda o obsahu a předložení PPF"]
["Abteilung","Department","oddělení",null,null,null,null,null,null,null,null,"oddělení"]
["Abweichende Einschätzung des Kunden gegenüber der Organisation","Customer evaluation deviating from that of the organization","odlišné posouzení zákazníkem oproti organizaci",null,null,null,null,null,null,null,null,"odlišné posouzení zákazníkem oproti organizaci"]
["Abweichgenehmigung","Deviation approval","schválení odchylky",null,null,null,null,null,null,null,null,"schválení odchylky"]
["Abweich-          genehmigung","Deviation approval","schválení odchylky",null,null,null,null,null,null,null,null,"schválení odchylky"]
["Aktualisierte PPF-Dokumentation","Updated PPA documentation","aktualizovaná dokumentace PPF",null,null,null,null,null,null,null,null,"aktualizovaná dokumentace PPF"]
["Aktualisierte PPF-Dokumentation erforderlich","Updated PPA documentation required","požadována aktualizovaná dokumentace PPF",null,null,null,null,null,null,null,null,"požadována aktualizovaná dokumentace PPF"]
["Aktualisierung der PPF-Dokumentation erforderlich","Update of PPA documentation required","požadována aktualizace dokumentace PPF",null,null,null,null,null,null,null,null,"požadována aktualizace dokumentace PPF"]
["Akustik","Acoustics","akustika",null,null,null,null,null,null,null,null,"akustika"]
["Akustikprüfung","Acoustic","zkoušky akustiky",null,null,null,null,null,null,null,null,"zkoušky akustiky"]
["Akzeptanz von Abweichungen \n(ohne Anpassung weiterer Dokumente)","Acceptance of deviations\n(without adjusting other documents)","schválení odchylky (bez přizpůsobení dalších dokumentů)",null,null,null,null,null,null,null,null,"schválení odchylky (bez přizpůsobení dalších dokumentů)"]
["Alle Produktionseinrichtungen  \nabgenommen (2)","All production facilities\naccepted *2","všechna výrobní zařízení převzata (2)",null,null,null,null,null,null,null,null,"všechna výrobní zařízení převzata (2)"]
["PPF-Deckblatt / PPF-Bewertung / Selbstbeurteilung","PPA cover sheet / PPA evaluation / Self-Assessment","krycí list PPF/hodnocení PPF/samohodnocení",null,null,null,null,null,null,null,null,"krycí list PPF/hodnocení PPF/samohodnocení"]
["Änd.-Stand Kunde","Version, customer","status změny, zákazník",null,null,null,null,null,null,null,null,"status změny, zákazník"]
["Änd.-Stand Organisation","Version, organization","status změny, organizace",null,null,null,null,null,null,null,null,"status změny, organizace"]
["Änd.-Nummer Kunde","Change number customer","číslo změny zákazník",null,null,null,null,null,null,null,null,"číslo změny zákazník"]
["Änderung in der Lieferkette","Change to supply chain","změna v dodavatelském řetězci",null,null,null,null,null,null,null,null,"změna v dodavatelském řetězci"]
["Änderungen am Produkt","Changes to product","změna na produktu",null,null,null,null,null,null,null,null,"změna na produktu"]
["Änderungen am Produktionsprozess","Changes to production process","změna ve výrobním procesu",null,null,null,null,null,null,null,null,"změna ve výrobním procesu"]
["Änderungsbeschreibung","Description of change","popis změny",null,null,null,null,null,null,null,null,"popis změny"]
["Anforderung","Requirement","požadavek",null,null,null,null,null,null,null,null,"požadavek"]
["Anforderung vorhanden","Requirement existing","požadavek je k dispozici",null,null,null,null,null,null,null,null,"požadavek je k dispozici"]
["Anforderungen/\nSpezifikation","Requirements/\nSpecification","požadavky/specifikace",null,null,null,null,null,null,null,null,"požadavky/specifikace"]
["Anforderungen nicht vollständig erfüllt","Requirements not fully met","některé požadavky nejsou splněny",null,null,null,null,null,null,null,null,"některé požadavky nejsou splněny"]
["Anforderungen vollständig erfüllt","Requirements fully met","požadavky zcela splněny ",null,null,null,null,null,null,null,null,"požadavky zcela splněny "]
["Angaben zu Mustern","Information about samples","údaje o vzorcích",null,null,null,null,null,null,null,null,"údaje o vzorcích"]
["Angaben zum Kunden","Information about the customer","údaje zákazníka",null,null,null,null,null,null,null,null,"údaje zákazníka"]
["Angaben zur Organisation","Information about the organization","údaje organizace",null,null,null,null,null,null,null,null,"údaje organizace"]
["Ansprechpartner","Contact person","kontaktní osoby",null,null,null,null,null,null,null,null,"kontaktní osoby"]
["Ansprechpartner Kunde","Customer contact","kontaktní osoba u zákazníka",null,null,null,null,null,null,null,null,"kontaktní osoba u zákazníka"]
["Anwendung","Application","použití",null,null,null,null,null,null,null,null,"použití"]
["Anwen-dung","Application","použití",null,null,null,null,null,null,null,null,"použití"]
["Anzahl Musterteile","Number of sample parts","počet vzorků",null,null,null,null,null,null,null,null,"počet vzorků"]
["Anzahl Teile pro Nest/Form","Number of parts per cavity/mold","počet dílů na hnízdo/formu",null,null,null,null,null,null,null,null,"počet dílů na hnízdo/formu"]
["Ausfüllhilfen:","Instruction how to fill in the form:","instrukce pro vyplnění:",null,null,null,null,null,null,null,null,"instrukce pro vyplnění:"]
["Ausgabe/ Stand/Datum","Issue/ Status/Date","vydání/stav/datum",null,null,null,null,null,null,null,null,"vydání/stav/datum"]
["Auslöser PPF-Verfahren","Trigger of PPA procedure","iniciátor postupu PPF",null,null,null,null,null,null,null,null,"iniciátor postupu PPF"]
["Aussehen","Appearance","vzhled",null,null,null,null,null,null,null,null,"vzhled"]
["PPF-Verfahren","PPA procedure","postup PPF",null,null,null,null,null,null,null,null,"postup PPF"]
["PPF-Verfahren","PPA procedure","postup PPF",null,null,null,null,null,null,null,null,"postup PPF"]
["Bauteilinformationen","Component information","informace o díle",null,null,null,null,null,null,null,null,"informace o díle"]
["Begründung des gestuften PPF-Verfahrens","Reason for stepped PPA procedure","důvod odstupňovaného postupu PPF",null,null,null,null,null,null,null,null,"důvod odstupňovaného postupu PPF"]
["Bemerkung","Remark","poznámka",null,null,null,null,null,null,null,null,"poznámka"]
["Bemerkung/Beschreibung","Remark/Description","poznámka/popis",null,null,null,null,null,null,null,null,"poznámka/popis"]
["Bemerkung/Maßnahmen + Termin \n(sofern nicht OK ausgewählt) (5)","Remark/actions + date\n(if not OK selected) (5)","poznámka/opatření + termín (pokud  není zvoleno i.O)",null,null,null,null,null,null,null,null,"poznámka/opatření + termín (pokud  není zvoleno i.O)"]
["PPF-Verantwortlicher (optional)","Sampling representative (optional)","osoba odpovědná za PPF (volitelné)",null,null,null,null,null,null,null,null,"osoba odpovědná za PPF (volitelné)"]
["Benennung","Name","název",null,null,null,null,null,null,null,null,"název"]
["Benennung Kunde","Part name customer","název dílu - zákazník",null,null,null,null,null,null,null,null,"název dílu - zákazník"]
["Benennung Organisation","Part name organization","název dílu - organizace",null,null,null,null,null,null,null,null,"název dílu - organizace"]
["Bereitstellung IMDS","IMDS provision","poskytnutí IMDS",null,null,null,null,null,null,null,null,{"$f":"VLOOKUP(A68,A:J,$L$1,FALSE)","v":"poskytnutí IMDS"}]
["Bereitstellungsdauer","Duration of provision","doba přípravy",null,null,null,null,null,null,null,null,"doba přípravy"]
["Bereitstellungs-termin","Date of provision","termín poskytnutí",null,null,null,null,null,null,null,null,"termín poskytnutí"]
["Bericht Produktionsprozess- und Produktfreigabe (PPF)","Report on production process and product approval (PPA)","zpráva o uvolnění produktu a výrobního procesu (PPF)",null,null,null,null,null,null,null,null,"zpráva o uvolnění produktu a výrobního procesu (PPF)"]
["Bericht sonstige Muster","Report on other samples","zpráva o zvláštních vzorcích",null,null,null,null,null,null,null,null,"zpráva o zvláštních vzorcích"]
["Bauteil mit besonderer Archivierungspflicht","Part with special archiving requirement","díl s povinností zvláštní archivace",null,null,null,null,null,null,null,null,"díl s povinností zvláštní archivace"]
["-","-","-",null,null,null,null,null,null,null,null,"-"]
["Berichtsnummer","Report number","číslo zprávy",null,null,null,null,null,null,null,null,"číslo zprávy"]
["Berichtsnummer/-version","Report number/version","číslo zprávy/verze",null,null,null,null,null,null,null,null,"číslo zprávy/verze"]
["Berichtsversion","Report version","verze zprávy",null,null,null,null,null,null,null,null,"verze zprávy"]
["Berücksichtigung im Rahmen des PPF-Verfahrens","Consideration in the scope of the PPA procedure","zohledněno v rámci postupu PPF",null,null,null,null,null,null,null,null,"zohledněno v rámci postupu PPF"]
["Beschreibung","Description","popis",null,null,null,null,null,null,null,null,"popis"]
["Besondere Merkmale (Sicherheit, Zulassung, Funktion)","Special Characteristics (safety, legal, function)","zvláštní charakteristiky (bezpečnost, schvalování, funkce)",null,null,null,null,null,null,null,null,"zvláštní charakteristiky (bezpečnost, schvalování, funkce)"]
["Besondere und vereinbarte Merkmale abgesichert","Special and agreed characteristics assured","zvláštní charakteristiky a dohodnuté charakteristiky zajištěny",null,null,null,null,null,null,null,null,"zvláštní charakteristiky a dohodnuté charakteristiky zajištěny"]
["Beständigkeit gegenüber Electrostatic Discharge (ESD) ","Resistance to electrostatic discharge (ESD) ","odolnost proti elektrostatickému výboji (ESD)",null,null,null,null,null,null,null,null,"odolnost proti elektrostatickému výboji (ESD)"]
["Bestätigung Kunde","Confirmation of customer","potvrzení zákazníkem",null,null,null,null,null,null,null,null,"potvrzení zákazníkem"]
["Bestätigung Organisation","Confirmation of organization","potvrzení organizací",null,null,null,null,null,null,null,null,"potvrzení organizací"]
["Hiermit wird bestätigt, dass das PPF-Verfahren entsprechend den Vereinbarungen der Abstimmung zum PPF-Verfahren und nach den Vorgaben gemäß VDA Band 2 durchgeführt wurde.","It is hereby confirmed that the PPA procedure was carried out in accordance with the agreements made in the PPA agreement and the specifications of VDA Volume 2.","Tímto se potvrzuje, že postup PPF byl proveden v souladu s dohodami a odsouhlaseným postupem PPF a v souladu s požadavky svazku VDA 2.",null,null,null,null,null,null,null,null,"Tímto se potvrzuje, že postup PPF byl proveden v souladu s dohodami a odsouhlaseným postupem PPF a v souladu s požadavky svazku VDA 2."]
["Bestätigung Organisation:","Confirmation of organization:","potvrzení organizací:",null,null,null,null,null,null,null,null,"potvrzení organizací:"]
["Bestellnr. PPF-Muster","Order Number\nPPA samples","číslo objednávky vzorků PPF",null,null,null,null,null,null,null,null,"číslo objednávky vzorků PPF"]
["Blatt","Sheet","list",null,null,null,null,null,null,null,null,"list"]
["Chargennummer","Batch number","číslo šarže",null,null,null,null,null,null,null,null,"číslo šarže"]
["Chemische Analysen","Chemical analyses","chemická analýza",null,null,null,null,null,null,null,null,"chemická analýza"]
["Datum","Date","datum",null,null,null,null,null,null,null,null,"datum"]
["Dauer in Arbeitstagen","Duration in working days","doba ttvání v pracovních dnech",null,null,null,null,null,null,null,null,"doba ttvání v pracovních dnech"]
["Deckblatt zum \nPPF-Bericht","Cover sheet PPA report","krycí list zprávy PPF",null,null,null,null,null,null,null,null,"krycí list zprávy PPF"]
["PPF-Deckblatt/PPF-Bewertung","PPA cover sheet/evaluation","krycí list PPF/hodnocení PPF",null,null,null,null,null,null,null,null,"krycí list PPF/hodnocení PPF"]
["Der IMDS-Datensatz wurde erstellt unter der MDB-ID-Nr.:","The IMDS record was created under the MDS ID No.:","datový soubor IMDS byl vytvořen pod číslem MDB-ID-Nr.: ",null,null,null,null,null,null,null,null,"datový soubor IMDS byl vytvořen pod číslem MDB-ID-Nr.: "]
["Der Kunde verzichtet auf die Vorlage von Dokumenten. \nDurchführung und Dokumentation des PPF-Verfahrens erfolgen ausschließlich innerhalb der Organisation.\nDer Kunde schließt sich der Freigabeempfehlung der Organisation an.","The customer waives the submission of documents. \nThe implementation and documentation of the PPA procedure take place exclusively within the organization.\nThe customer follows the approval recommendation of the organization.","Zákazník se zříká předložení dokumentace. Realizace a dokumentování PPF probíhá výhradně v rámci organizace. Zákazník souhlasí s doporučením organizace o uvolnění.",null,null,null,null,null,null,null,null,"Zákazník se zříká předložení dokumentace. Realizace a dokumentování PPF probíhá výhradně v rámci organizace. Zákazník souhlasí s doporučením organizace o uvolnění."]
["Design-FMEA","Design FMEA","FMEA-D",null,null,null,null,null,null,null,null,"FMEA-D"]
["Diagnosestand","Diagnosis status","status diagnózy",null,null,null,null,null,null,null,null,"status diagnózy"]
["Die vorgestellten Muster wurden bezüglich der nachzuweisenden Merkmale mit serienmäßigen Betriebsmitteln unter serienmäßigen","With regards to the features to be verified, the samples presented were produced with serial equipment under serial conditions, ","Předložené vzorky byly s ohledem na prokazované charakteristiky vyrobeny sériovými provozními prostředky za sériových podmínek",null,null,null,null,null,null,null,null,"Předložené vzorky byly s ohledem na prokazované charakteristiky vyrobeny sériovými provozními prostředky za sériových podmínek"]
["Bedingungen am Serienstandort hergestellt bzw. bei „sonstigen Mustern“ gemäß Vereinbarung zwischen Organisation und Kunde"," at the series production location or, for “other samples”, according to the agreement between the organization and the customer","v sériovém výrobním místě případně u \"zvláštních vzorků\" podle dohody mezi organizací a zákazníkem",null,null,null,null,null,null,null,null,"v sériovém výrobním místě případně u \"zvláštních vzorků\" podle dohody mezi organizací a zákazníkem"]
["(als Anlage beigefügt). Bezüglich dieser Merkmale sind keine Änderungen bekannt bzw. geplant. Die bei unseren Prüfungen und"," (agreement to be attached). No changes are known or planned regarding these features. The results obtained in our tests","(ta je připojena jako příloha). S ohledem na dotčené charakteristiky není známa příp. plánována žádná změna. Výsledky dosažené našimi zkouškami ",null,null,null,null,null,null,null,null,"(ta je připojena jako příloha). S ohledem na dotčené charakteristiky není známa příp. plánována žádná změna. Výsledky dosažené našimi zkouškami "]
["der Freigabe erzielten Ergebnisse können für eine aktualisierte PPF-Dokumentation übernommen werden.  Sollten trotzdem Änderungen an"," can be re-used for an updated PPA documentation. Should changes to the part and/or production process still be necessary, ","a uvolněním mohou být převzaty do aktualizované dokumentace PPF. Pokud by měly být přesto  změny na ",null,null,null,null,null,null,null,null,"a uvolněním mohou být převzaty do aktualizované dokumentace PPF. Pokud by měly být přesto  změny na "]
["Teil und/oder Produktionsprozess notwendig sein, werden wir dies bei der aktualisierten PPF-Dokumentation anzeigen.","we will indicate this in the updated PPA documentation.","díle a/nebo v procesu nezbytné,  oznámíme to při aktualizaci dokumentace PPF. ",null,null,null,null,null,null,null,null,"díle a/nebo v procesu nezbytné,  oznámíme to při aktualizaci dokumentace PPF. "]
["Dokument","Document","dokument",null,null,null,null,null,null,null,null,"dokument"]
["Dokumentation der technischen SW-Spezifikationen","Documentation of technical SW specifications","dokumentace technických specifikací SW",null,null,null,null,null,null,null,null,"dokumentace technických specifikací SW"]
["Dokumentation der Vereinbarung zur Requalifikation","Documentation of the requalification agreement","dokumentace dohody o rekvalifikačních zkouškách",null,null,null,null,null,null,null,null,"dokumentace dohody o rekvalifikačních zkouškách"]
["Dokumentation der Vereinbarungen zum Befundungs- und Analyseprozess\n- Reklamationsbearbeitung (z.B. 8D)\n- Schadteilanalyse Feld","Documentation of agreements regarding the diagnosis and analysis process\n- Complaints handling (e.g. 8D)\n- Field failure analysis ","dokumentace dohod k procesu posuzování a analýz:\n- zpracování reklamací (např. 8D)\n- analýza vadných dílů z provozu ",null,null,null,null,null,null,null,null,"dokumentace dohod k procesu posuzování a analýz:\n- zpracování reklamací (např. 8D)\n- analýza vadných dílů z provozu "]
["Dokumentation der während der gesamten Projektlaufzeit eingesetzten Entwicklungswerkzeuge","Documentation of development tools","dokumentace nástrojů vývoje použitých během celkového průběhu projektu",null,null,null,null,null,null,null,null,"dokumentace nástrojů vývoje použitých během celkového průběhu projektu"]
["Dokumentation der während der gesamten Projektlaufzeit eingesetzten Testwerkzeuge","Documentation of testing tools ","dokumentace nástrojů testování použitých během celkového průběhu projektu",null,null,null,null,null,null,null,null,"dokumentace nástrojů testování použitých během celkového průběhu projektu"]
["Dokumentation des Versionsmanagements (Baseline, Konfigurationen, Änderungshistorie)","Documentation of version management","dokumentace managementu verzí (základní provedení, konfigurace, změny)",null,null,null,null,null,null,null,null,"dokumentace managementu verzí (základní provedení, konfigurace, změny)"]
["Dokumentation über FOSS (Free-and-Open-Source-Software)","Documentation of FOSS (free and open-source software)","dokumentace FOSS (volný a otevřený SW)",null,null,null,null,null,null,null,null,"dokumentace FOSS (volný a otevřený SW)"]
["Dokumenten-nummer","Document number","číslo dokumentu",null,null,null,null,null,null,null,null,"číslo dokumentu"]
["Eignungsnachweis der eingesetzten Ladungsträger inkl. Lagerung","Evidence of suitability of the employed load carriers including storage","důkaz o vhodnosti nasazených balících jednotek, včetně skladování",null,null,null,null,null,null,null,null,"důkaz o vhodnosti nasazených balících jednotek, včetně skladování"]
["Einkauf (optional)","Purchasing (optional)","nákup (volitelné)",null,null,null,null,null,null,null,null,"nákup (volitelné)"]
["Einzelbewertung durch die Organisation","Individual evaluation by organization","sebehodnocení organizací",null,null,null,null,null,null,null,null,"sebehodnocení organizací"]
["Einzelteilmessung","Single part measurement","náměry dílu",null,null,null,null,null,null,null,null,"náměry dílu"]
["Elektrische Sicherheit / Hochvolt-Sicherheit","Electrical safety / high-voltage safety","elektrická bezpečnost/ochrana proti vysokému napětí",null,null,null,null,null,null,null,null,"elektrická bezpečnost/ochrana proti vysokému napětí"]
["Elektromagnetische Verträglichkeit (EMV)","Electromagnetic compatibility (EMC)","elektromagnetická kompatibilita (EMC)",null,null,null,null,null,null,null,null,"elektromagnetická kompatibilita (EMC)"]
["E-Mail/Fax-Nr.","E-mail/Fax","e-mail/fax č.",null,null,null,null,null,null,null,null,"e-mail/fax č."]
["E-Mail/Fax-Nr.","E-mail/Fax","e-mail/fax č.",null,null,null,null,null,null,null,null,"e-mail/fax č."]
["Empfängerstandort","Recipient location","výrobní místo příjemce",null,null,null,null,null,null,null,null,"výrobní místo příjemce"]
["Empfehlung durch die Organisation","Recommendation by the organization","doporučení organizací",null,null,null,null,null,null,null,null,"doporučení organizací"]
["Endtermin des PPF-Verfahrens","PPA procedure due date","konečný termín postupu PPF",null,null,null,null,null,null,null,null,"konečný termín postupu PPF"]
["Entscheidung Kunde","Customer decision","rozhodnutí zákazníka",null,null,null,null,null,null,null,null,"rozhodnutí zákazníka"]
["Entspricht nicht dem Serienstand,\nKundenakzeptanz liegt nicht vor","Does not correspond to series status customer acceptance not granted","neodpovídá sériovému stavu, neakceptováno zákazníkem",null,null,null,null,null,null,null,null,"neodpovídá sériovému stavu, neakceptováno zákazníkem"]
["Entspricht nicht dem Serienstand, Kundenakzeptanz liegt vor ","Does not correspond to series status, customer acceptance granted ","neodpovídá sériovému stavu, akceptováno zákazníkem",null,null,null,null,null,null,null,null,"neodpovídá sériovému stavu, akceptováno zákazníkem"]
["Entwicklung (optional)","Engineering (optional)","vývoj (volitelné)",null,null,null,null,null,null,null,null,"vývoj (volitelné)"]
["Erforderliches Personal verfügbar und geschult,\nArbeits- und Prüfanweisungen \nvollständig","Required personnel available and trained\nwork and test instructions\ncomplete","sériový personál k dispozici\nzcela proškolen, pracovní a kontrolní návodky úplné ",null,null,null,null,null,null,null,null,"sériový personál k dispozici\nzcela proškolen, pracovní a kontrolní návodky úplné "]
["Ersteinsatz","First use","první  použití",null,null,null,null,null,null,null,null,"první  použití"]
["Erstlieferdatum","Date of first delivery","datum první dodávky",null,null,null,null,null,null,null,null,"datum první dodávky"]
["Farbabhängige Eigenschaften","Color-dependent properties","vlastnosti závislé na barvě",null,null,null,null,null,null,null,null,"vlastnosti závislé na barvě"]
["Farbmessung und visuelle Eigenbeurteilung","Color measurement and visual self-assessment","měření barvy a sebehodnocení vzhledu ",null,null,null,null,null,null,null,null,{"$f":"VLOOKUP(A132,A:J,$L$1,FALSE)","v":"měření barvy a sebehodnocení vzhledu "}]
["Farbton","Color","barevný tón",null,null,null,null,null,null,null,null,"barevný tón"]
["Fertigung (optional)","Production (optional)","výroba (volitelné)",null,null,null,null,null,null,null,null,"výroba (volitelné)"]
["Fertigung am Produktionsstandort \ndurch die Organisation abgenommen\n(Fertigungslayout umgesetzt, Verkettung Anlagen umgesetzt) ","Production at production location\napproved by the organization\n(Production layout set up, linking between production equipment realized)","Výroba ve výrobním místě převzata organizací (realizován layout, propojení zařízení provedeno)",null,null,null,null,null,null,null,null,"Výroba ve výrobním místě převzata organizací (realizován layout, propojení zařízení provedeno)"]
["Fertigung am Produktionsstandort \ndurch die Organisation noch nicht abgenommen; \nKeine Qualitäts-beeinträchtigungen \nin der Serie zu erwarten","Production at production location\nnot approved by the organization yet;\nNo negative quality impacts expected in series production","Výroba ve výrobním místě organizací ještě není převzata, nejsou očekávána žádná  ohrožení kvality v sérii",null,null,null,null,null,null,null,null,"Výroba ve výrobním místě organizací ještě není převzata, nejsou očekávána žádná  ohrožení kvality v sérii"]
["Fertigung nicht am Produktionsstandort; \n \n\nQualitätsbeeinträchtigun-gen möglich","Production not at production location;\n\n\nNegative quality impacts possible","Výroba není realizována ve výrobním místě, možné kvalitativní ovlivnění ",null,null,null,null,null,null,null,null,"Výroba není realizována ve výrobním místě, možné kvalitativní ovlivnění "]
["Festlegung des Kontextes („Scope“) des zu liefernden Softwareproduktes","Definition of scope of the software product","stanovení rozsahu (\"scope\") SW produktu, který má být dodáván",null,null,null,null,null,null,null,null,"stanovení rozsahu (\"scope\") SW produktu, který má být dodáván"]
["Festlegung Grenzmuster","Definition of boundary samples","stanovení mezních vzorků ",null,null,null,null,null,null,null,null,"stanovení mezních vzorků "]
["Festlegung Porenklassen","Definition of pore classes","stanovení třídy porezity",null,null,null,null,null,null,null,null,"stanovení třídy porezity"]
["Freigabe Einzelteile","Single part approval","uvolnění jednotlivých dílů",null,null,null,null,null,null,null,null,"uvolnění jednotlivých dílů"]
["Freigabe Hilfs- und Betriebsstoffe","Auxiliary and operating material approval","uvolnění pomocných a provozních látek",null,null,null,null,null,null,null,null,"uvolnění pomocných a provozních látek"]
["Freigabe Rohteile","Raw part approval","uvolnění surovin",null,null,null,null,null,null,null,null,"uvolnění surovin"]
["Funktion","Function","funkce",null,null,null,null,null,null,null,null,"funkce"]
["Funktion/EMV/ ESD","Function / EMC / ESD","funkce EMC/ESD",null,null,null,null,null,null,null,null,"funkce EMC/ESD"]
["Funktion erfüllt,\nentspricht Spezifikation","Function fulfilled\nmeets specification","funkce splněna, odpovídá specifikaci",null,null,null,null,null,null,null,null,"funkce splněna, odpovídá specifikaci"]
["Funktion n. i. O. bzw. Funktion nicht nachgewiesen,\nSpezifikation nicht erfüllt","Function NOK or function not verified\nspecification not met","funkce nesplněna (N.i.O.) příp. neprokázána, specifikace nesplněna",null,null,null,null,null,null,null,null,"funkce nesplněna (N.i.O.) příp. neprokázána, specifikace nesplněna"]
["Funktionsprüfung gemäß KLH/Spezifikation/Funktions-vorschriften","Functional test acc. to CRS/specification/functional regulations","zkoušky funkce podle specifikace zákaznického zadání (KLH)/předpisů",null,null,null,null,null,null,null,null,"zkoušky funkce podle specifikace zákaznického zadání (KLH)/předpisů"]
["Gemäß Prozessablauf","According to process sequence","v souladu s průběhem procesu",null,null,null,null,null,null,null,null,"v souladu s průběhem procesu"]
["Genehmigte Konstruktionsänderungen","Approved design changes","schválené změny konstrukce",null,null,null,null,null,null,null,null,"schválené změny konstrukce"]
["Generelle Nachweise","General deliverables","všeobecné důkazy",null,null,null,null,null,null,null,null,"všeobecné důkazy"]
["Generelle Nachweise","General deliverables","všeobecné důkazy",null,null,null,null,null,null,null,null,"všeobecné důkazy"]
["Geometrie, Maß","Geometry, dimensions","geometrie, rozměry",null,null,null,null,null,null,null,null,"geometrie, rozměry"]
["Geruch","Odor","pach",null,null,null,null,null,null,null,null,"pach"]
["Geruchsprüfung","Odor"," zkoušky pachu",null,null,null,null,null,null,null,null," zkoušky pachu"]
["Gestuftes PPF-Verfahren","Stepped PPA procedure","odstupňovaný postup PPF",null,null,null,null,null,null,null,null,"odstupňovaný postup PPF"]
["gestuftes PPF-Verfahren (Bitte unten vereinbaren, die Termine der einzelnen PPF-Stufen angeben und die notwendigen Dokumente je Vorgang planen)","Step PPA procedure (please arrange below, specify the dates of the individual PPA steps, and plan the necessary documents for each operation)","odstupňovaný postup PPF (prosím podle odsouhlasených termínů pro jednotlivé stupně a plánu dokumentace vztažené k těmto stupňům)",null,null,null,null,null,null,null,null,"odstupňovaný postup PPF (prosím podle odsouhlasených termínů pro jednotlivé stupně a plánu dokumentace vztažené k těmto stupňům)"]
["ggf. Anhang für Auflistung aller betroffenen Sachnrn. verwenden","Use Appendix for list of all relevant part numbers if necessary","příp. seznam dotčených čísel dílů v příloze",null,null,null,null,null,null,null,null,"příp. seznam dotčených čísel dílů v příloze"]
["Grund der Berichterstellung","Reason for report creation","důvod zpracování zprávy",null,null,null,null,null,null,null,null,"důvod zpracování zprávy"]
["Gültigkeit","Validity","platnost",null,null,null,null,null,null,null,null,"platnost"]
["Haptik","Haptics","hmatový vjem (haptika)",null,null,null,null,null,null,null,null,"hmatový vjem (haptika)"]
["Haptikprüfung","Haptics","zkoušky haptiky",null,null,null,null,null,null,null,null,"zkoušky haptiky"]
["Hardwarefreigabe","Hardware approval","uvolnění hardwaru",null,null,null,null,null,null,null,null,"uvolnění hardwaru"]
["Hardwarefreigabe erforderlich","Hardware approval required","požadováno uvolnění hardwaru",null,null,null,null,null,null,null,null,"požadováno uvolnění hardwaru"]
["Hardwarefreigabe erforderlich","Hardware approval required","požadováno uvolnění hardwaru",null,null,null,null,null,null,null,null,"požadováno uvolnění hardwaru"]
["Hardwarestand","Hardware version","verze hardwaru",null,null,null,null,null,null,null,null,"verze hardwaru"]
["i. O.  ","OK","v pořádku (i.O./OK)",null,null,null,null,null,null,null,null,"v pořádku (i.O./OK)"]
["IMDS-ID Kunde","IMDS ID of customer","IMDS-ID zákazníka",null,null,null,null,null,null,null,null,"IMDS-ID zákazníka"]
["Inhalte","Contents","obsah",null,null,null,null,null,null,null,null,"obsah"]
["Gesamtbewertung durch die Organisation","Overall evaluation by organization","sebehodnocení organizací",null,null,null,null,null,null,null,null,"sebehodnocení organizací"]
["IST-Werte Organisation","Actual values of organization","aktuální hodnota hodnocena organizací",null,null,null,null,null,null,null,null,"aktuální hodnota hodnocena organizací"]
["Kategorie","Category","kategorie",null,null,null,null,null,null,null,null,"kategorie"]
["Kein geschultes oder in ausreichender Anzahl verfügbares Personal,\nQualitätsbeeinträchtigun-gen möglich (4)","No trained personnel or not enough personnel available\nnegative quality impacts possible *4","Nejsou k dispozici vyškolení pracovníci, nebo není kispozici dostatečný počet pracovníků, jsou možná ohrožení kvality (4) ",null,null,null,null,null,null,null,null,"Nejsou k dispozici vyškolení pracovníci, nebo není kispozici dostatečný počet pracovníků, jsou možná ohrožení kvality (4) "]
["Qualifiziertes Personal nicht in ausreichender Anzahl verfügbar:\nQualitätsbeeinträchtigungen möglich\nArbeits- und/oder Prüfanweisungen unvollständig","Not enough qualified personnel available:\nnegative quality impacts possible\nwork and/or inspection instructions not completely available","není k dispozici dostatečný počet kvalifikovaných pracovníků: jsou možná kvalitativní ovlivnění pracoví a/nebo zkušební návodky nejsou úplné",null,null,null,null,null,null,null,null,"není k dispozici dostatečný počet kvalifikovaných pracovníků: jsou možná kvalitativní ovlivnění pracoví a/nebo zkušební návodky nejsou úplné"]
["Kein Serienwerkstoff oder andere Verarbeitung,\nKundenakzeptanz liegt vor ","No series material or other processing\ncustomer acceptance granted ","nesériový materiál nebo jiné zpracování, akceptováno zákazníkem",null,null,null,null,null,null,null,null,"nesériový materiál nebo jiné zpracování, akceptováno zákazníkem"]
["Kein Serienwerkstoff,\nSpezifikation nicht erfüllt/nicht nachgewiesen","No series material\nspecification not met/not verified.","nesériový materiál, specifikace nesplněna/neprokázána ",null,null,null,null,null,null,null,null,"nesériový materiál, specifikace nesplněna/neprokázána "]
["Kennung/DUNS","Identification/DUNS","identifikace/DUNS",null,null,null,null,null,null,null,null,"identifikace/DUNS"]
["Kennzeichnung der Lieferung","Delivery identification","označení dodávky",null,null,null,null,null,null,null,null,"označení dodávky"]
["Kommentar","Comment","komentář",null,null,null,null,null,null,null,null,"komentář"]
["Kommentar Kunde","Comment of customer","komentář zákazníka",null,null,null,null,null,null,null,null,"komentář zákazníka"]
["Kommentar Organisation","To be provided by the customer","komentář organizace",null,null,null,null,null,null,null,null,"komentář organizace"]
["Konstruktions-, Entwicklungsfreigaben","Design, development approvals","uvolnění konstrukcí/vývojem",null,null,null,null,null,null,null,null,"uvolnění konstrukcí/vývojem"]
["Konstruktions-, Entwicklungsfreigaben der Organisation bei Entwicklungsverantwortung entsprechend Vereinbarung","Design, engineering approvals by organization in case of development responsibility as per agreement","uvolnění organizace v případě odpovědnosti za konstrukci/vývoj  ",null,null,null,null,null,null,null,null,"uvolnění organizace v případě odpovědnosti za konstrukci/vývoj  "]
["Kontaktinformationen","Contact information","kontaktní informace",null,null,null,null,null,null,null,null,"kontaktní informace"]
["Korrosion","Corrosion","koroze",null,null,null,null,null,null,null,null,"koroze"]
["Korrosionsprüfung","Corrosion test","korozní zkoušky",null,null,null,null,null,null,null,null,"korozní zkoušky"]
["Kunde","Customer","zákazník",null,null,null,null,null,null,null,null,"zákazník"]
["Kunde (Empfänger)","Customer (recipient)","zákazník (příjemce)",null,null,null,null,null,null,null,null,"zákazník (příjemce)"]
["Kundenspezifische Teilestände\n(z. B. TGS/ F-Stand/ Q-Stand, …)","Customer-specific part statuses (e.g. part generation version / production status / quality status, etc.)","status dílů od zákazníka (generační stav/stav výroby/stav kvality atd.)",null,null,null,null,null,null,null,null,"status dílů od zákazníka (generační stav/stav výroby/stav kvality atd.)"]
["Kunden-/Serientauglich (Anforderungen erfüllt oder Abweichungen nach Risikoanalyse akzeptiert)","Customer-ready (requirements met or deviations accepted after risk analysis)","vhodné pro zákazníka (požadavky splněny, nebo na základě analýzy rizik akceptovaná odchylka)",null,null,null,null,null,null,null,null,"vhodné pro zákazníka (požadavky splněny, nebo na základě analýzy rizik akceptovaná odchylka)"]
["Kundentauglich/Serientauglich","Customer-ready/Ready for series production","vhodné pro zákazníka/vhodné pro sériovou výrobu",null,null,null,null,null,null,null,null,"vhodné pro zákazníka/vhodné pro sériovou výrobu"]
["Kunden-/Serientauglich nach Risikobewertung,\naktualisierte PPF-Dokumentation erforderlich"," Customer-ready after risk assessment\nUpdated PPA documentation required","vhodné pro zákazníka/vhodné pro sériovou výrobu, po posouzení rizik je vyžadována aktualizovaná dokumentace PPF",null,null,null,null,null,null,null,null,"vhodné pro zákazníka/vhodné pro sériovou výrobu, po posouzení rizik je vyžadována aktualizovaná dokumentace PPF"]
["Kundenteilnahme bei Prozessabnahme gewünscht","Customer participation desired for process acceptance","požadována účast zákazníka při přejímce procesu",null,null,null,null,null,null,null,null,"požadována účast zákazníka při přejímce procesu"]
["Laborqualifizierung","Laboratory qualification","kvalifikace laboratoře",null,null,null,null,null,null,null,null,"kvalifikace laboratoře"]
["Lacktechnik","Paint technology","technika lakování",null,null,null,null,null,null,null,null,"technika lakování"]
["Lieferantennummer/ \nDUNS-Code","Supplier number/ \nDUNS Code:","číslo dodavatele/DUNS číslo",null,null,null,null,null,null,null,null,{"$f":"VLOOKUP(A196,A:J,$L$1,FALSE)","v":"číslo dodavatele/DUNS číslo"}]
["Liefermenge","Delivery quantity","dodané množství",null,null,null,null,null,null,null,null,"dodané množství"]
["Lieferscheinnummer","Delivery note number","číslo dodacího listu",null,null,null,null,null,null,null,null,"číslo dodacího listu"]
["Lieferstandort","Delivery location","místo odeslání",null,null,null,null,null,null,null,null,"místo odeslání"]
["Liste bekannter Fehler ","List of known errors ","výpis známých chyb",null,null,null,null,null,null,null,null,"výpis známých chyb"]
["Liste mit Terminen für \nFarb-/Varianten-PPF","List with dates for color / variant PPAs","soupis barev/variant PPF s termíny",null,null,null,null,null,null,null,null,"soupis barev/variant PPF s termíny"]
["Logistik (1)\n","Logistics *1","logistika (1)",null,null,null,null,null,null,null,null,"logistika (1)"]
["Logistik: wenn zutreffend bewerten\n- zum Kunden\n- innerhalb der Organisation\n- von Lieferanten\n(z. B. Transport-, Verpackungsvorschriften erstellt, Serienverpackung in vereinbarter Menge vorhanden, keine Qualitätsbeeinträchtigung in der Serie zu erwarten)","Logistics: if applicable evaluate:\n- towards customer\n- within the organization\n- from supplier\n(e.g. transport, packaging specification created; serial packaging in agreed quantity available, no negative quality impacts to expect)","logistika: položky hodnocení, pokud jsou relevantní - k zákazníkovi - uvnitř organizace - od dodavatele (např. transport,  balicí předpisy zpracovány, sériové obaly jsou k dispozici v dohodnutém množství, není očekáváno ovlivnění kvality v sériové výrobě)",null,null,null,null,null,null,null,null,"logistika: položky hodnocení, pokud jsou relevantní - k zákazníkovi - uvnitř organizace - od dodavatele (např. transport,  balicí předpisy zpracovány, sériové obaly jsou k dispozici v dohodnutém množství, není očekáváno ovlivnění kvality v sériové výrobě)"]
["E-Mail","E-mail","e-mail",null,null,null,null,null,null,null,null,"e-mail"]
["Maß","Dimension","rozměry",null,null,null,null,null,null,null,null,"rozměry"]
["Maßlich i. O., \nkeine Nacharbeit","Dimensionally OK\nno rework","rozměry v pořádku (i.O), bez přepracování",null,null,null,null,null,null,null,null,"rozměry v pořádku (i.O), bez přepracování"]
["Maßlich i. O. \nmit Nacharbeit oder unkritische Werte n. i. O. ","Dimensionally OK\nwith rework or uncritical values NOK","rozměry v pořádku (i.O), s přepracováním, nebo nekritické hodnoty nejsou v pořádku (n.i. O.)",null,null,null,null,null,null,null,null,"rozměry v pořádku (i.O), s přepracováním, nebo nekritické hodnoty nejsou v pořádku (n.i. O.)"]
["Maßlich n. i. O.","Dimensionally NOK","rozměry nejsou v pořádku (n.i. O.)",null,null,null,null,null,null,null,null,"rozměry nejsou v pořádku (n.i. O.)"]
["Materialdaten per IMDS","Material data via IMDS","materiálová data podle IMDS",null,null,null,null,null,null,null,null,"materiálová data podle IMDS"]
["Mechanische Kennwerte","Mechanical measures","mechanické vlastnosti",null,null,null,null,null,null,null,null,"mechanické vlastnosti"]
["Merkmale abgesichert","Characteristics assured","charakteristiky zajištěny",null,null,null,null,null,null,null,null,"charakteristiky zajištěny"]
["Messtechnik (optional)","Measuring department (optional)","měřicí technika (volitelné)",null,null,null,null,null,null,null,null,"měřicí technika (volitelné)"]
["Metallographie","Metallography","metalografie",null,null,null,null,null,null,null,null,"metalografie"]
["Mindestens eine Produktionseinheit abgenommen (2)","At least one production unit\naccepted *2","minimálně jedna výrobní jednotka převzata (2)",null,null,null,null,null,null,null,null,"minimálně jedna výrobní jednotka převzata (2)"]
["Mitgeltende Unterlagen zum PPF-Verfahren","Applicable documents for the PPA procedure","platné podklady související s postupem PPF ",null,null,null,null,null,null,null,null,"platné podklady související s postupem PPF "]
["Muster inkl. Fertigungsdokumentation","Sample including production documentation","vzorek včetně výrobní dokumentace",null,null,null,null,null,null,null,null,"vzorek včetně výrobní dokumentace"]
["Mustergewicht [kg]","Sample weight [kg]","hmotnost vzorku (kg)",null,null,null,null,null,null,null,null,"hmotnost vzorku (kg)"]
["Mustervorstellung","Sample presentation","představení vzorků",null,null,null,null,null,null,null,null,"představení vzorků"]
["Nachforderung \nVorzulegende Dokumente zu offenen Prüfgebieten","Subsequent requirement\nDocuments to be submitted about open test areas","dodatečné požadavky na předložení dokumentace k otevřeným oblastem zkoušení",null,null,null,null,null,null,null,null,"dodatečné požadavky na předložení dokumentace k otevřeným oblastem zkoušení"]
["Nachforderung/Begründung","Subsequent requirement / reason","další požadavky/zdůvodnění",null,null,null,null,null,null,null,null,"další požadavky/zdůvodnění"]
["Nachweis einer Prozessbewertung (z. B. Automotive Spice)","Documentation of a process evaluation (e.g. VDA Automotive Spice)","důkaz o hodnocení procesu (např. Automotive SPICE)",null,null,null,null,null,null,null,null,"důkaz o hodnocení procesu (např. Automotive SPICE)"]
["Nachweis Einhaltung werkstoffspezifischer Kundennormen","Evidence of compliance with material related customer standards","důkaz o dodržení norem zákazníka vztahujících se k materiálům",null,null,null,null,null,null,null,null,"důkaz o dodržení norem zákazníka vztahujících se k materiálům"]
["Nachweis Umsetzung der Anforderungen 6.3 u. 6.4","Implementation of the requirements from 6.3 and 6.4, especially the Special Characteristics","důkaz o realizaci požadavků 6.3 a 6.4 ",null,null,null,null,null,null,null,null,"důkaz o realizaci požadavků 6.3 a 6.4 "]
["Nachweis-      \ndokument","Deliverable","průkazná dokumentace",null,null,null,null,null,null,null,null,"průkazná dokumentace"]
["Nachweise zum Produktionsprozess","Deliverables of production process","důkazy k výrobnímu procesu",null,null,null,null,null,null,null,null,"důkazy k výrobnímu procesu"]
["Nachweise zur Einhaltung gesetzlicher Anforderungen ","Evidence of compliance with statutory requirements ","důkazy o dodržení požadavků právních předpisů",null,null,null,null,null,null,null,null,"důkazy o dodržení požadavků právních předpisů"]
["Nachweise zum Produkt","Deliverables of product","důkazy k produktu",null,null,null,null,null,null,null,null,"důkazy k produktu"]
["Nachweise zur Produktentwicklung","Deliverables of product development","důkazy k návrhu produktu",null,null,null,null,null,null,null,null,"důkazy k návrhu produktu"]
["Nachweise zur Produktionsprozessentwicklung","Deliverables of production process development","důkazy k návrhu výrobního procesu",null,null,null,null,null,null,null,null,"důkazy k návrhu výrobního procesu"]
["Nachweise zur Software","Deliverables for software","důkazy k softwaru",null,null,null,null,null,null,null,null,"důkazy k softwaru"]
["Nachweise zur Validierung des Produktes","Deliverables of the validation of the product","důkazy k validaci produktu",null,null,null,null,null,null,null,null,"důkazy k validaci produktu"]
["Nachweise zur Validierung des Produktionsprozesses","Deliverables of the validation of the production process","důkazy k validaci výrobního procesu",null,null,null,null,null,null,null,null,"důkazy k validaci výrobního procesu"]
["Nachweiskategorie","Deliverable category","kategorie důkazu",null,null,null,null,null,null,null,null,"kategorie důkazu"]
["Name","Name","jméno ",null,null,null,null,null,null,null,null,"jméno "]
["Name der Organisation","Name of organization","název organizace",null,null,null,null,null,null,null,null,"název organizace"]
["Name des Kunden","Name of customer","název zákazníka",null,null,null,null,null,null,null,null,"název zákazníka"]
["Neue Spezifikation","New specification","nová specifikace",null,null,null,null,null,null,null,null,"nová specifikace"]
["Neues PPF-Verfahren erforderlich","New PPA procedure required","vyžadován nový postup PPF",null,null,null,null,null,null,null,null,"vyžadován nový postup PPF"]
["Neuteil","New part","nový díl",null,null,null,null,null,null,null,null,"nový díl"]
["Nicht anwendbar","Not applicable","není aplikovatelné",null,null,null,null,null,null,null,null,"není aplikovatelné"]
["Nicht gemäß Prozessablauf, aber keine Qualitäts-beeinträchtigungen in der Serie zu erwarten","Not according to process sequence but no negative quality impacts expected in series production","neodpovídá průběhu procesu, ale nejsou očekávána žádná ohrožení kvality v sérii",null,null,null,null,null,null,null,null,"neodpovídá průběhu procesu, ale nejsou očekávána žádná ohrožení kvality v sérii"]
["Nicht kundentauglich/ \nNicht serientauglich","Not customer-ready / \nNot ready for series production","není vhodné pro zákazníka/není vhodné pro sériovou výrobu",null,null,null,null,null,null,null,null,"není vhodné pro zákazníka/není vhodné pro sériovou výrobu"]
["Nicht kundentauglich/\n Nicht serientauglich","Not customer-ready / \nNot ready for series production","není vhodné pro zákazníka/není vhodné pro sériovou výrobu",null,null,null,null,null,null,null,null,"není vhodné pro zákazníka/není vhodné pro sériovou výrobu"]
["Nicht kunden- oder serientauglich bzw. noch nicht freigegeben","Not customer-ready or not approved yet","není vhodné pro zákazníka/není vhodné pro sériovou výrobu příp. není ještě uvolněno",null,null,null,null,null,null,null,null,"není vhodné pro zákazníka/není vhodné pro sériovou výrobu příp. není ještě uvolněno"]
["Nicht verbaubar","Not capable for assembly","nelze zamontovat",null,null,null,null,null,null,null,null,"nelze zamontovat"]
["Nicht vorhanden/         nicht abgenommen","Not available\n/ not accepted","není k dispozici/není převzato",null,null,null,null,null,null,null,null,"není k dispozici/není převzato"]
["Normen","Standards","normy",null,null,null,null,null,null,null,null,"normy"]
["Nr.","No.","číslo",null,null,null,null,null,null,null,null,"číslo"]
["Nur teilweise vorhanden/abgenommen,\ngeeignetes Ersatzprüfmittel vorhanden","Only partially available / accepted\nsuitable substitute test equipment available","částečně k dispozici/částečně převzato, k dispozici jsou náhradní měřící zařízení",null,null,null,null,null,null,null,null,"částečně k dispozici/částečně převzato, k dispozici jsou náhradní měřící zařízení"]
["Oberfläche/ Struktur\nFarbe/Narbung","Surface / structure\ncolor / graining","povrch/struktura barva/dezén",null,null,null,null,null,null,null,null,"povrch/struktura barva/dezén"]
["Oberfläche, Narbung","Surface, graining","povrch, dezén",null,null,null,null,null,null,null,null,"povrch, dezén"]
["Oberflächenanforderung","Surface requirement","požadavky týkající se povrchu",null,null,null,null,null,null,null,null,"požadavky týkající se povrchu"]
["Ordnungs-    nummer","Order number","pořadové číslo",null,null,null,null,null,null,null,null,"pořadové číslo"]
["Organisation","Organization","organizace",null,null,null,null,null,null,null,null,"organizace"]
["Organisation","Organization:","organizace",null,null,null,null,null,null,null,null,"organizace"]
["Original","Original","originál",null,null,null,null,null,null,null,null,"originál"]
["Papierform","Paper form","v listinné podobě",null,null,null,null,null,null,null,null,"v listinné podobě"]
["PDF-Format","PDF format","ve formátu PDF",null,null,null,null,null,null,null,null,"ve formátu PDF"]
["Personal","Human Resources","pracovníci",null,null,null,null,null,null,null,null,"pracovníci"]
["Personal nur eingeschränkt verfügbar/geschult, keine Qualitätsbeeinträchtigun-gen zu erwarten (3)","Only limited personnel available / trained, no negative quality impacts expected *3","personál k dispozici v omezené míře/částečně kvalifikovaný, není očekáváno ovlivnění kvality (3)",null,null,null,null,null,null,null,null,{"$f":"VLOOKUP(A260,A:J,$L$1,FALSE)","v":"personál k dispozici v omezené míře/částečně kvalifikovaný, není očekáváno ovlivnění kvality (3)"}]
["Personal nur eingeschränkt verfügbar/qualifiziert, keine Qualitätsbeeinträchtigungen zu erwarten:\n- Anzahl und Qualifikationsgrad müssen noch optimiert werden\n- Arbeits- und Prüfanweisungen vollständig","Only limited personnel available/qualified, no negative quality impacts expected:\n- number and qualification still have to be optimized\n- work and inspection instructions completely available","personál k dispozici v omezené míře/částečně kvalifikovaný, není očekáváno ovlivnění kvality: - počet a stupeň kvalifikace musí být ještě optimalizován- pracovní a zkušební návodky úplné",null,null,null,null,null,null,null,null,"personál k dispozici v omezené míře/částečně kvalifikovaný, není očekáváno ovlivnění kvality: - počet a stupeň kvalifikace musí být ještě optimalizován- pracovní a zkušební návodky úplné"]
["Portal","Portal","portál",null,null,null,null,null,null,null,null,"portál"]
["PPF-Bewertung","PPA evaluation","hodnocení PPF",null,null,null,null,null,null,null,null,"hodnocení PPF"]
["PPF-Status Lieferkette","PPA status of supply chain","status PPF dodavatelského řetězce",null,null,null,null,null,null,null,null,"status PPF dodavatelského řetězce"]
["PPF-Status Lieferkette*","PPA status of supply chain*","status PPF dodavatelského řetězce*",null,null,null,null,null,null,null,null,"status PPF dodavatelského řetězce"]
["PPF-Termin","PPA date","termín PPF",null,null,null,null,null,null,null,null,"termín PPF"]
["PPF-Verfahren für Produktfamilie","PPA procedure for product family","postup PPF pro rodinu produktů",null,null,null,null,null,null,null,null,"postup PPF pro rodinu produktů"]
["PPF-Verfahren zum Kunden abgeschlossen","PPA procedure towards customer closed","postup PPF vůči zákazníkovi uzavřen",null,null,null,null,null,null,null,null,"postup PPF vůči zákazníkovi uzavřen"]
["Probeentnahmeplan","Sample extraction plan","plán odběru vzorků",null,null,null,null,null,null,null,null,"plán odběru vzorků"]
["Produktänderung","Product change","změna produktu",null,null,null,null,null,null,null,null,"změna produktu"]
["Produktbezogene Nachweise","Product-related deliverables","důkazy vztažené k produktu",null,null,null,null,null,null,null,null,"důkazy vztažené k produktu"]
["Produktionsdatum","Production date","datum výroby",null,null,null,null,null,null,null,null,"datum výroby"]
["Produktionseinrichtungen nicht abgenommen (2)","Production facilities not accepted *2","výrobní zařízení není převzato (2)",null,null,null,null,null,null,null,null,"výrobní zařízení není převzato (2)"]
["Produktionskapazität","Production capacity","kapacita výroby",null,null,null,null,null,null,null,null,"kapacita výroby"]
["Produktionslenkungsplan","Control plan (CP)","plán kontroly a řízení",null,null,null,null,null,null,null,null,"plán kontroly a řízení"]
["Produktionsstandort","Production location","výrobní místo",null,null,null,null,null,null,null,null,"výrobní místo"]
["Produktions-     standort","Production location","výrobní místo",null,null,null,null,null,null,null,null,"výrobní místo"]
["Produktionsstückzahl\ndauerhaft erreichbar mit Sondermaßnahmen","Production quantity\npermanently reachable with special measures","objem výroby dosažitelný se zvláštními opatřeními",null,null,null,null,null,null,null,null,"objem výroby dosažitelný se zvláštními opatřeními"]
["Produktionsstückzahl\nerreicht/nachgewiesen","Production quantity\nreached / verified","objem výroby dosažen/prokázán",null,null,null,null,null,null,null,null,"objem výroby dosažen/prokázán"]
["Produktionsstückzahl \nmit Sondermaßnahmen nicht erreichbar","Production quantity\nnot reachable with special measures","objem výroby se zvláštními opatřeními není dosažitelný",null,null,null,null,null,null,null,null,"objem výroby se zvláštními opatřeními není dosažitelný"]
["Projektleiter (optional)","Project manager (optional)","vedoucí projektu (volitelné)",null,null,null,null,null,null,null,null,"vedoucí projektu (volitelné)"]
["Prozess","Process","proces",null,null,null,null,null,null,null,null,"proces"]
["Prozessablaufdiagramm","Process flowchart","vývojový diagram procesu (flowchart)",null,null,null,null,null,null,null,null,"vývojový diagram procesu (flowchart)"]
["Produktionsprozessabnahme erforderlich","Process acceptance required (see above)","požadována přejímka procesu",null,null,null,null,null,null,null,null,"požadována přejímka procesu"]
["Prozessänderung","Production process change","změna výrobního procesu",null,null,null,null,null,null,null,null,"změna výrobního procesu"]
["Produktionsprozess-bezogene und generelle Nachweise","Productionprocess-related and general deliverables","důkazy vztažené k výrobnímu procesu a všeobecné důkazy",null,null,null,null,null,null,null,null,"důkazy vztažené k výrobnímu procesu a všeobecné důkazy"]
["Prozess-FMEA","Process FMEA","FMEA-P",null,null,null,null,null,null,null,null,"FMEA-P"]
["Prüf-/Messprotokolle bzw. Abnahmeprotokolle für Lehren","Test/measurement reports or acceptance test reports for gages","zkušební/měřící protokol příp. přejímací protokol pro šablony",null,null,null,null,null,null,null,null,"zkušební/měřící protokol příp. přejímací protokol pro šablony"]
["Prüfgebiet","Test area","oblast zkoušení",null,null,null,null,null,null,null,null,"oblast zkoušení"]
["Prüfmittel","Test equipment","zkušební zařízení",null,null,null,null,null,null,null,null,"zkušební zařízení"]
["Prüfmittelfähigkeitsnachweis Produkt u. Produktionsprozess","Measurement equipment analysis studies product and production process","důkaz o způsobilosti měřidel pro produkt a výrobní proces",null,null,null,null,null,null,null,null,"důkaz o způsobilosti měřidel pro produkt a výrobní proces"]
["Prüfmittelliste Produkt und Produktionsprozess","Test equipment list for product and production process","seznam měřidel k produktu a výrobnímu procesu",null,null,null,null,null,null,null,null,"seznam měřidel k produktu a výrobnímu procesu"]
["Prüfungen durch Kunde","Tests by customer","zkoušky u zákazníka",null,null,null,null,null,null,null,null,"zkoušky u zákazníka"]
["Prüfvorschriften","Test regulations","zkušební předpisy",null,null,null,null,null,null,null,null,"zkušební předpisy"]
["Qualitätsbeeinträchtigun-gen möglich","Negative quality impacts possible","ovlivnění kvality je možné",null,null,null,null,null,null,null,null,"ovlivnění kvality je možné"]
["Qualitäts-management","Quality management","management kvality",null,null,null,null,null,null,null,null,"management kvality"]
["Referenz zu vertraglich festgelegten Qualitätsanforderungen\n(z. B. Coding Guidelines, Codemetriken, Testabdeckung)","Reference to contractually stipulated quality requirements ","odkaz na smluvně stanovené požadavky na kvalitu (např. značení, kódy, pokrytí testy)",null,null,null,null,null,null,null,null,"odkaz na smluvně stanovené požadavky na kvalitu (např. značení, kódy, pokrytí testy)"]
["Referenz-Berichtsnummer Kunden","Reference report number of customer","odkaz na číslo zprávy zákazníka",null,null,null,null,null,null,null,null,"odkaz na číslo zprávy zákazníka"]
["Referenz-Berichtsnummer Organisation","Reference report number of organization","odkaz na číslo zprávy organizace",null,null,null,null,null,null,null,null,"odkaz na číslo zprávy organizace"]
["Referenzmuster","Master sample","referenční vzorek",null,null,null,null,null,null,null,null,"referenční vzorek"]
["Requalifikation","Requalification","rekvalifikace",null,null,null,null,null,null,null,null,"rekvalifikace"]
["Risikobewertung","Risk assessment","posouzení rizik",null,null,null,null,null,null,null,null,"posouzení rizik"]
["Rohteilmessung","Raw part measurement","náměry polotovaru",null,null,null,null,null,null,null,null,"náměry polotovaru"]
["Sachnummer","Part Number","číslo dílu",null,null,null,null,null,null,null,null,"číslo dílu"]
["Schnitte","Sections","řezy",null,null,null,null,null,null,null,null,"řezy"]
["Stufe 1","Step 1","stupeň 1",null,null,null,null,null,null,null,null,"stupeň 1"]
["Stufe 2","Step 2","stupeň 2",null,null,null,null,null,null,null,null,"stupeň 2"]
["Stufe 3","Step 3","stupeň 3",null,null,null,null,null,null,null,null,"stupeň 3"]
["Stufe 4","Step 4","stupeň 4",null,null,null,null,null,null,null,null,"stupeň 4"]
["Schritt bei gestuftem PPF-Verfahren","Step for stepped PPA procedure","krok odstupňovaného PPF",null,null,null,null,null,null,null,null,"krok odstupňovaného PPF"]
["Selbstbeurteilung Organisation","Self-assessment of organization","sebehodnocení organizací",null,null,null,null,null,null,null,null,"sebehodnocení organizací"]
["Selbstbeurteilung Produkt","Self-assessment product ","sebehodnocení produktu",null,null,null,null,null,null,null,null,"sebehodnocení produktu"]
["Selbstbeurteilung Produkt, Produktionsprozess und ggf. Software","Self-assessment for product, process, SW (if appl.) ","sebehodnocení produktu, procesu příp. softwaru",null,null,null,null,null,null,null,null,"sebehodnocení produktu, procesu příp. softwaru"]
["Selbstbeurteilung Produktionsprozess","Self-assessment production process ","sebehodnocení výrobního procesu",null,null,null,null,null,null,null,null,"sebehodnocení výrobního procesu"]
["Serienwerkstoff\ngemäß Spezifikation","Series material\nacc. to specification","sériový materiál podle specifikace",null,null,null,null,null,null,null,null,"sériový materiál podle specifikace"]
["Serienwerkzeug \nabgenommen","Series tool\naccepted","sériové nástroje převzaty",null,null,null,null,null,null,null,null,"sériové nástroje převzaty"]
["Serienwerkzeug/Kleinserienwerkzeug vorhanden, Optimierung(en) noch nötig, aber keine Qualitätsbeeinträchtigun-gen in der Serie zu erwarten","Series tool / small series tool available, optimization(s) still necessary, but no negative quality impacts expected in series production","sériové/malosériové nástroje jsou k dispozici, je nutná ještě optimalizace, nejsou očekávána žádná ohrožení kvality v sérii",null,null,null,null,null,null,null,null,"sériové/malosériové nástroje jsou k dispozici, je nutná ještě optimalizace, nejsou očekávána žádná ohrožení kvality v sérii"]
["Setzteile","Directed parts","díly stanovené zákazníkem",null,null,null,null,null,null,null,null,"díly stanovené zákazníkem"]
["Setzteile mit Q-Verantwortung der Organisation","Directed parts with Q-responsibility of organization","díly stanovené zákazníkem v odpovědnosti organizace",null,null,null,null,null,null,null,null,"díly stanovené zákazníkem v odpovědnosti organizace"]
["Setzteile mit Q-Verantwortung des Kunden","Directed parts with Q-responsibility of customer","díly stanovené zákazníkem v odpovědnosti zákazníka",null,null,null,null,null,null,null,null,"díly stanovené zákazníkem v odpovědnosti zákazníka"]
["Sind Alternativlieferanten vorgesehen?","Are alternative deliveries provided for","Předpokládají se alternativní dodavatelé?",null,null,null,null,null,null,null,null,"Předpokládají se alternativní dodavatelé?"]
["Sind Ausweichmaschinen oder -prozesse geplant?","Are deviating machines or processes planned","Plánují se odlišné stroje nebo procesy?",null,null,null,null,null,null,null,null,"Plánují se odlišné stroje nebo procesy?"]
["Nachweise zur Software","Software deliverables","důkazy k softwaru",null,null,null,null,null,null,null,null,"důkazy k softwaru"]
["Softwarefreigabe","Software approval","uvolnění softwaru",null,null,null,null,null,null,null,null,{"$f":"VLOOKUP(A324,A:J,$L$1,FALSE)","v":"uvolnění softwaru"}]
["Softwarefreigabe erforderlich","Software approval required","vyžadováno uvolnění softwaru",null,null,null,null,null,null,null,null,"vyžadováno uvolnění softwaru"]
["Softwarestand","Software version","verze softwaru",null,null,null,null,null,null,null,null,"verze softwaru"]
["Sonstiges","Other","jiné",null,null,null,null,null,null,null,null,"jiné"]
["Spezifika-  tion erfüllt","Speci-\nfication met","specifikace splněna",null,null,null,null,null,null,null,null,"specifikace splněna"]
["Standardlehrenbericht","Standard gage report","standardní zpráva o šablonách",null,null,null,null,null,null,null,null,"standardní zpráva o šablonách"]
["Standardmessbericht (alle Zeichnungsmerkmale)","Standard measurement report (all drawing characteristics)","standardní zpráva o měření (všechny výkresové charakteristiky)",null,null,null,null,null,null,null,null,"standardní zpráva o měření (všechny výkresové charakteristiky)"]
["SW-Einsatzfreigabe (z. B. Anlage 5 „Deckblatt PPF Software“)","Software release (e.g. Appendix 5 \"Cover sheet for PPA software\")","uvolnění nasazení softwaru (např. příloha 5 \"krycí list PPF k softwaru\"",null,null,null,null,null,null,null,null,"uvolnění nasazení softwaru (např. příloha 5 \"krycí list PPF k softwaru\""]
["Technische Kundenunterlagen","Technical customer documents","technické podklady zákazníka",null,null,null,null,null,null,null,null,"technické podklady zákazníka"]
["Technische Sauberkeit","Technical cleanliness","technická čistota",null,null,null,null,null,null,null,null,"technická čistota"]
["Technische Spezifikationen ","Technical specifications ","technické specifikace",null,null,null,null,null,null,null,null,"technické specifikace"]
["Teil 1","Part 1","díl č. 1",null,null,null,null,null,null,null,null,"díl č. 1"]
["Teil 2","Part 2","díl č. 2",null,null,null,null,null,null,null,null,"díl č. 2"]
["Teil 3","Part 3","díl č. 3",null,null,null,null,null,null,null,null,"díl č. 3"]
["Teil 4","Part 4","díl č. 4",null,null,null,null,null,null,null,null,"díl č. 4"]
["Teil 5","Part 5","díl č. 5",null,null,null,null,null,null,null,null,"díl č. 5"]
["Teilebündelung/Produktfamilien","Part grouping / Product families","rodina produktů",null,null,null,null,null,null,null,null,"rodina produktů"]
["Teilelebenslauf","Part history","životopis dílu",null,null,null,null,null,null,null,null,"životopis dílu"]
["Teilelebenslauf in der Serie","Part history in series production","životopis dílu v sériové výrobě",null,null,null,null,null,null,null,null,"životopis dílu v sériové výrobě"]
["Telefon","Telephone","telefon",null,null,null,null,null,null,null,null,"telefon"]
["Terminabstimmung","Scheduling","odsouhlasení termínů",null,null,null,null,null,null,null,null,"odsouhlasení termínů"]
["Übermittlung der PPF-Unterlagen","Submission of PPA documents","předložení dokumentace PPF",null,null,null,null,null,null,null,null,"předložení dokumentace PPF"]
["Übermittlungssprache des PPF-Verfahrens","PPA procedure submission language","jazyk předložení postupu PPF",null,null,null,null,null,null,null,null,"jazyk předložení postupu PPF"]
["Unterlagen","Documents","podklady",null,null,null,null,null,null,null,null,"podklady"]
["Unterschrift","Signature","podpis",null,null,null,null,null,null,null,null,"podpis"]
["Varianten","Variants","varianty",null,null,null,null,null,null,null,null,"varianty"]
["Varianten","Variants","varianty",null,null,null,null,null,null,null,null,"varianty"]
["Varianten-PPF","Variant PPA","varianty PPF",null,null,null,null,null,null,null,null,"varianty PPF"]
["Varianten-PPF zu bereits vorgelegtem PPF-Verfahren","Variant PPA for PPA procedure already submitted","varianty PPF k dříve předloženému postupu PPF",null,null,null,null,null,null,null,null,"varianty PPF k dříve předloženému postupu PPF"]
["Verbaubar \nohne Mehraufwand","Capable for assembly\nwith no additional expenditure","vhodné pro zabudování bez dodatečných nákladů",null,null,null,null,null,null,null,null,"vhodné pro zabudování bez dodatečných nákladů"]
["Verbaubar mit Mehraufwand,\nKundenakzeptanz liegt vor ","Capable for assembly with additional expenditure\ncustomer acceptance granted ","vhodné pro zabudování s dodatečnými náklady, předložena akceptance zákazníkem",null,null,null,null,null,null,null,null,"vhodné pro zabudování s dodatečnými náklady, předložena akceptance zákazníkem"]
["Verbaubarkeit","customer acceptance granted ","zástavbové zkoušky",null,null,null,null,null,null,null,null,"zástavbové zkoušky"]
["Verbaubarkeit (beim Kunden)","Assembly capability (at customer site)","zástavba (u zákazníka)",null,null,null,null,null,null,null,null,"zástavba (u zákazníka)"]
["Vereinbarte Produktions-stückzahl","Agreed production quantity","dohodnutý objem výroby",null,null,null,null,null,null,null,null,"dohodnutý objem výroby"]
["Vereinbarte Produktionsstückzahl: \nProduktionseinrichtungen beziehen sich auf Linien/Anlagen/Maschinen/Werkzeuge/Kavitäten/Nester","Agreed production quantity:\nProduction equipment refers to lines / equipments / machines / tools / jigs / cavities","dohodnutý objem výroby:výrobní zařízení se vztahují na linky/zařízení/stroje/nástroje/kavity/hnízda",null,null,null,null,null,null,null,null,"dohodnutý objem výroby:výrobní zařízení se vztahují na linky/zařízení/stroje/nástroje/kavity/hnízda"]
["Vereinbarte Vorgehensweise (z. B. Dauer bzw. Stückzahl des Tests)","Agreed procedure (e.g. duration, test quantity)","dohodnutý postup (např. doba trvání příp. počet testovaných dílů)",null,null,null,null,null,null,null,null,"dohodnutý postup (např. doba trvání příp. počet testovaných dílů)"]
["Version","Version","verze",null,null,null,null,null,null,null,null,"verze"]
["Version/ Datum","Version / Date","verze/datum",null,null,null,null,null,null,null,null,"verze/datum"]
["Vollständig vorhanden/abgenommen,\nFähigkeit nachgewiesen","Completely available / accepted\ncapability verified","zcela k dispozici/převzato, způsobilost prokázána",null,null,null,null,null,null,null,null,"zcela k dispozici/převzato, způsobilost prokázána"]
["Vom Kunden zur Verfügung zu stellen","To be provided by the customer","poskytuje zákazník",null,null,null,null,null,null,null,null,"poskytuje zákazník"]
["von","of","z",null,null,null,null,null,null,null,null,"z"]
["Von der Organisation zur Verfügung zu stellen","To be provided by the organization","poskytuje organizace",null,null,null,null,null,null,null,null,"poskytuje organizace"]
["Vorlage erforderlich","Submission required","požadováno předložení",null,null,null,null,null,null,null,null,"požadováno předložení"]
["Werkstoff","Material","materál",null,null,null,null,null,null,null,null,"materál"]
["Werkstoff (Festigkeit, physikalische Eigenschaften, …)","Material (strength, physical properties, etc.)","materiál (pevnost, fyzikální vlastnosti…)",null,null,null,null,null,null,null,null,"materiál (pevnost, fyzikální vlastnosti…)"]
["Werkstofftechnik (optional)","Material department (optional)","technologie materiálů (volitelné)",null,null,null,null,null,null,null,null,"technologie materiálů (volitelné)"]
["Werkzeug nicht serientauglich\n\nQualitätsbeeinträchtigun-gen in der Serie zu erwarten","Tool not ready for series production\n\nnegative quality impacts expected in series production","nástroje nejsou vhodné pro sériovou výrobu ovlivnění kvality v sérii lze očekávat ",null,null,null,null,null,null,null,null,"nástroje nejsou vhodné pro sériovou výrobu ovlivnění kvality v sérii lze očekávat "]
["Werkzeuge","Tools","nástroje ",null,null,null,null,null,null,null,null,"nástroje "]
["Werkzeuge (mit Stückzahl/Anzahl Nester und Information zum Werkzeugkonzept)","Tools (with quantity/number of cavities and information about tool concept)","nástroje (počet kusů/počet hnízd a informace o koncepci nástrojů",null,null,null,null,null,null,null,null,"nástroje (počet kusů/počet hnízd a informace o koncepci nástrojů"]
["Wiedernutzung > 12 Monate Stillstand","Re-use > 12 months standstill","opětovné použití po odstávce delší než 12 měsíců",null,null,null,null,null,null,null,null,"opětovné použití po odstávce delší než 12 měsíců"]
["Zeichnungsnummer","Drawing number","číslo výkresu",null,null,null,null,null,null,null,null,"číslo výkresu"]
["Zonenfestlegung für optische Beurteilung","Zone definition for optical assessment","stanovení zón pro hodnocení vzhledu",null,null,null,null,null,null,null,null,"stanovení zón pro hodnocení vzhledu"]
["Zur Verfügung zu stellende Schnittstellenbauteile und Hilfsmittel","Interface components and auxiliary materials to be made available","poskytnuté díly na rozhraní a pomocný materiál na rozhraní ",null,null,null,null,null,null,null,null,"poskytnuté díly na rozhraní a pomocný materiál na rozhraní "]
["Zuverlässigkeit","Reliability","spolehlivost",null,null,null,null,null,null,null,null,"spolehlivost"]
["Bericht","Report","zpráva",null,null,null,null,null,null,null,null,"zpráva"]
["Eingabe erforderlich, sofern nicht mit „Anforderung erfüllt“ bewertet","Input mandatory, if other evaluation then \"Requirements met\"","požadováno vyplnění, pokud není hodnocení \"požadavky splněny\"",null,null,null,null,null,null,null,null,"požadováno vyplnění, pokud není hodnocení \"požadavky splněny\""]
["Nicht anwendbar","Not applicable","neí aplikovatelné",null,null,null,null,null,null,null,null,"není aplikovatelné"]
["Bestandteil Requalifikation","Scope of \"Requalifikation\" (L.I. & funct. test)","součást rekvalifikací",null,null,null,null,null,null,null,null,"součást rekvalifikací"]
["Abstimmung Requalifikation","Alignment \"Requalifikation\" (L.I. & funct. test)","odsouhlasení rekvalifikací",null,null,null,null,null,null,null,null,"odsouhlasení rekvalifikací"]
["Requalifikationsintervall","Intervall \"Requalifikation\" (L.I. & funct. test)","intervaly rekvalifikací",null,null,null,null,null,null,null,null,"intervaly rekvalifikací"]
["Weitergabe an den Kunden","Forward to customer","předání zákazníkovi",null,null,null,null,null,null,null,null,"předání zákazníkovi"]
["Nur Nachweis","Evidence only","pouze důkaz",null,null,null,null,null,null,null,null,"pouze důkaz"]
["Dokumentation","Documentation","dokumentace",null,null,null,null,null,null,null,null,"dokumentace"]
["Liegen bei der Requalifikation Abweichungen zu den Spezifikationen vor, ist der Kunde in jedem Fall zu informieren.","In case deviations to specifications are discovered during \"Requalifikation\" (L.I: & funct. test), the customer has to be informed.","pokud dojde během rekvalifikací k odchylkám od specifikace, musí být v každém případě informován zákazník",null,null,null,null,null,null,null,null,"pokud dojde během rekvalifikací k odchylkám od specifikace, musí být v každém případě informován zákazník"]
["Abstimmung zum PPF-Verfahren ","PPA Agreement","dohoda o postupu PPF",null,null,null,null,null,null,null,null,{"$f":"VLOOKUP(A388,A:J,$L$1,FALSE)","v":"dohoda o postupu PPF"}]
["Änd.-Nummer Organisation","Change number organization","číslo změny - organizace",null,null,null,null,null,null,null,null,"číslo změny - organizace"]
["Verantwortliche Person","Responsible person","odpovědná osoba",null,null,null,null,null,null,null,null,"odpovědná osoba"]
["Kopfdaten","Header","záhlaví",null,null,null,null,null,null,null,null,"záhlaví"]
["6.1 Deckblatt PPF Software","6.1 Cover sheet for PPA software ","6.1 krycí list PPF softwaru",null,null,null,null,null,null,null,null,"6.1 krycí list PPF softwaru"]
["Auszufüllen von Organisation","To be filled out by the organization","k vyplnění organizací",null,null,null,null,null,null,null,null,"k vyplnění organizací"]
["Erstellungsdatum","Report date","datum zpracování",null,null,null,null,null,null,null,null,"datum zpracování"]
["Sachnummer (Kunde)","Part number (customer) ","číslo dílu (zákazník)",null,null,null,null,null,null,null,null,"číslo dílu (zákazník)"]
["Stücklistenreferenz (Kunde)","Parts list reference (customer)\n(optional)","odkaz na kusovník (zákazník)",null,null,null,null,null,null,null,null,"odkaz na kusovník (zákazník)"]
["Benennung des Kunden","Release name (customer)","jmého zákazníka",null,null,null,null,null,null,null,null,"jmého zákazníka"]
["Sachnummer (Organisation)\nz. B. FSW-release: 18A-EMS71-ME0850","Part number (organization)\ne.g. FSW-release: 18A-EMS71-ME0850","číslo dílu (organizace) např. 18A-EMS71-ME0850",null,null,null,null,null,null,null,null,"číslo dílu (organizace) např. 18A-EMS71-ME0850"]
["Beschreibung der Software","Description of software","popis softwaru",null,null,null,null,null,null,null,null,"popis softwaru"]
["Produktspezifischer Kenner/Schlüssel","Product-specific identifier/key","identifikátor/klíč k produktu",null,null,null,null,null,null,null,null,"identifikátor/klíč k produktu"]
["Prüfsumme","Checksum","kontrolní součet",null,null,null,null,null,null,null,null,"kontrolní součet"]
["Angaben zu verwendeten Softwaremodulen (Eigen- und Fremdanteile sind aufzuführen)","Information about the software modules used (please list in-house and third-party components)\nConfiguration details","Údaje o použitých softwarových modulech (uvést vlastní a cizí podíl) ",null,null,null,null,null,null,null,null,"Údaje o použitých softwarových modulech (uvést vlastní a cizí podíl) "]
["Eigenständiges Softwarepaket","Independent software package","nezávislé pakety softwaru",null,null,null,null,null,null,null,null,"nezávislé pakety softwaru"]
["HW-Verwendung","Assembled in following HW","použití HW",null,null,null,null,null,null,null,null,"použití HW"]
["Softwarestand","Software version","verze softwaru",null,null,null,null,null,null,null,null,"verze softwaru"]
["Betriebssystem","Operating system","operační systém",null,null,null,null,null,null,null,null,"operační systém"]
["Diagnoseerkennung","Diagnosis version","verze diagnostiky",null,null,null,null,null,null,null,null,"verze diagnostiky"]
["ASIL-Einstufung","ASIL classification","klasifikace ASIL",null,null,null,null,null,null,null,null,"klasifikace ASIL"]
["Kompa-tibilität zur Spezifi-kation","Compatibility with specification","soulad se specifikací",null,null,null,null,null,null,null,null,"soulad se specifikací"]
["erfüllt","Fulfilled","splněno",null,null,null,null,null,null,null,null,"splněno"]
["nicht erfüllt","Not Fulfilled","nesplněno",null,null,null,null,null,null,null,null,"nesplněno"]
["(6.6) FOSS-Freigabe","(6.6) FOSS-Approval","(6.6) uvolnění FOSS",null,null,null,null,null,null,null,null,"(6.6) uvolnění FOSS"]
["liegt vor","Available","k dispozici",null,null,null,null,null,null,null,null,"k dispozici"]
["liegt nicht vor","Not available","není k dispozici",null,null,null,null,null,null,null,null,"není k dispozici"]
["nicht relevant","Not relevant","není relevantní",null,null,null,null,null,null,null,null,"není relevantní"]
["Auslöser","Trigger","iniciátor",null,null,null,null,null,null,null,null,"iniciátor"]
["Initiales PPF-Verfahren","Initial PPA procedure","prvotní postup PPF",null,null,null,null,null,null,null,null,"prvotní postup PPF"]
["PPF-Verfahren aufgrund von Änderungen","PPA procedure due to changes","postup PPF na základě změny",null,null,null,null,null,null,null,null,"postup PPF na základě změny"]
["Anforderung nicht erfüllt","Requirements not met","požadavky nesplněny",null,null,null,null,null,null,null,null,"požadavky nesplněny"]
["Datum der letzten Prozessbewertung","Date of last\nevaluation","datum posledního hodnocení procesu",null,null,null,null,null,null,null,null,"datum posledního hodnocení procesu"]
["Methode zur Prozessbewertung","Process evaluation method","metoda hodnocení procesu",null,null,null,null,null,null,null,null,"metoda hodnocení procesu"]
["Ergebnis der Prozessbewertung","Process evaluation result","výsledek hodnocení procesu",null,null,null,null,null,null,null,null,"výsledek hodnocení procesu"]
["Spezifikation und Nachweise","Specification and deliverables","specifikace a důkazy",null,null,null,null,null,null,null,null,"specifikace a důkazy"]
["Details zur Verwendung von Softwaremodulen","Details for usage of software modules","detaily k použití softwarových modulů",null,null,null,null,null,null,null,null,"detaily k použití softwarových modulů"]
["SW-SNR","SW-PNR","SW-PNR",null,null,null,null,null,null,null,null,"SW-PNR"]
["Benennung des Kunden","Customer description","jméno zákazníka",null,null,null,null,null,null,null,null,"jmého zákazníka"]
["Bezeichnung der Organisation","Designation of organization","označení organizace",null,null,null,null,null,null,null,null,"označení organizace"]
["Testreport","Test report","zpráva o zkoušce",null,null,null,null,null,null,null,null,"zpráva o zkoušce"]
["Freigabestatus","Approval status","status uvolnění",null,null,null,null,null,null,null,null,"status uvolnění"]
["Einsatzempfehlung der Organisation","Usage recommendation of organization","doporučení organizací k nasazení",null,null,null,null,null,null,null,null,"doporučení organizací k nasazení"]
["(Von einer autorisierten Person bei der Organisation durch rechtsverbindliche Unterschrift [schriftlich, elektronisch] gegebene Erlaubnis, die Software für den vorgesehenen Einsatzzweck zu benutzen)","(To use the software for the intended application by an authorized person with the organization thorough permission granted via legally binding signature (handwritten, electronic))","(Povolení k používání softwaru k zamýšlenému účelu oprávněnou osobou organizace prostřednictvím právně závazného podpisu [písemně, elektronicky])",null,null,null,null,null,null,null,null,"(Povolení k používání softwaru k zamýšlenému účelu oprávněnou osobou organizace prostřednictvím právně závazného podpisu [písemně, elektronicky])"]
["(Von einer autorisierten Person beim Kunden durch rechtsverbindliche Unterschrift [schriftlich, elektronisch] gegebene Erlaubnis, die Software für den vorgesehenen Einsatzzweck zu benutzen)","(To use the software for the intended application by an authorized person with the customer company thorough permission granted via legally binding signature (handwritten, electronic))","(Povolení k používání softwaru k zamýšlenému účelu oprávněnou osobou organizace prostřednictvím právně závazného podpisu [písemně, elektronicky])",null,null,null,null,null,null,null,null,"(Povolení k používání softwaru k zamýšlenému účelu oprávněnou osobou organizace prostřednictvím právně závazného podpisu [písemně, elektronicky])"]
["Angaben zur Software","Description about Software","údaje k softwaru",null,null,null,null,null,null,null,null,"údaje k softwaru"]
["Beschreibung der Software","Description of software","popis softwaru",null,null,null,null,null,null,null,null,"popis softwaru"]
["Produktspezifischer Kenner/Schlüssel","Product specific identifier/key","identifikátor/klíč k produktu",null,null,null,null,null,null,null,null,"identifikátor/klíč k produktu"]
["Prüfsumme","Checksum","kontrolní součet",null,null,null,null,null,null,null,null,"kontrolní součet"]
["Stücklistenreferenz (Kunde)","Parts list reference\n(customer)","odkaz na kusovník (zákazník)",null,null,null,null,null,null,null,null,"odkaz na kusovník (zákazník)"]
["Durchgeführte Prüfungen"," Tests completed","provedené zkoušky",null,null,null,null,null,null,null,null,"provedené zkoušky"]
["Allgemeine Angaben zur Hardware (Mindestanforderung)","General information about hardware (minimum requirement)","všeobecné údaje o hardwaru (minimální požadavky)",null,null,null,null,null,null,null,null,"všeobecné údaje o hardwaru (minimální požadavky)"]
["Prozessor","Microcontroller","procesor",null,null,null,null,null,null,null,null,"procesor"]
["Prozessorfrequenz","Microcontroller frequency","kmitočet procesoru",null,null,null,null,null,null,null,null,"kmitočet procesoru"]
["Quarzfrequenz","Quartz frequency","kmitočet krystalu",null,null,null,null,null,null,null,null,"kmitočet krystalu"]
["Speicherauslastung (Messung)","Memory utilization (measurement)","využití paměti (měření)",null,null,null,null,null,null,null,null,"využití paměti (měření)"]
["Komponente","Component information","komponent",null,null,null,null,null,null,null,null,"komponent"]
["Belegt [kB]","Used [kB]","obsazeno (kB)",null,null,null,null,null,null,null,null,"obsazeno (kB)"]
["Verfügbar [kB]","Available [kB]","k dispozici (kB)",null,null,null,null,null,null,null,null,"k dispozici (kB)"]
["Belegt [%]","Used [%]","obsazeno (%)",null,null,null,null,null,null,null,null,"obsazeno (%)"]
["ROM","ROM","ROM",null,null,null,null,null,null,null,null,"ROM"]
["RAM","RAM","RAM",null,null,null,null,null,null,null,null,"RAM"]
["EEPROM","EEPROM","EEPROM",null,null,null,null,null,null,null,null,"EEPROM"]
["Harddisk","Harddisc","harddisk",null,null,null,null,null,null,null,null,"harddisk"]
["Spezifikation erfüllt","Specification met","specifikace splněna",null,null,null,null,null,null,null,null,{"$f":"VLOOKUP(A452,A:J,$L$1,FALSE)","v":"specifikace splněna"}]
["Prozessorlast Initial","Processor load Initial","počáteční zatížení procesoru",null,null,null,null,null,null,null,null,"počáteční zatížení procesoru"]
["Prozessorlast Betrieb","Processor load Operation","provozní zatížení procesoru",null,null,null,null,null,null,null,null,"provozní zatížení procesoru"]
["Prozessorlast Peak","Processor load Peak","špičkové zatížení procesoru",null,null,null,null,null,null,null,null,"špičkové zatížení procesoru"]
["Prozessorauslastung","Processor utilization","využití procesoru",null,null,null,null,null,null,null,null,"využití procesoru"]
["Prozessorauslastung (Messung)","Processor utilization (measurement)","využití procesoru (hodnota)",null,null,null,null,null,null,null,null,"využití procesoru (hodnota)"]
["Referenz zur Dokumentation","Reference to documentation","odkaz na dokumentaci",null,null,null,null,null,null,null,null,"odkaz na dokumentaci"]
["Stand der Dokumentation","Status of documentation","status dokumentace",null,null,null,null,null,null,null,null,"status dokumentace"]
["Zugrundeliegende Konfiguration/Baseline","Aligned configuration / baseline","základní konfigurace",null,null,null,null,null,null,null,null,"základní konfigurace"]
["Review und Freigabe letzter Stand","Review and approval, last status","přezkoumání a uvolnění posledního statusu",null,null,null,null,null,null,null,null,"přezkoumání a uvolnění posledního statusu"]
["Funktionstests Softwarepaket","Function tests","funkční test",null,null,null,null,null,null,null,null,"funkční test"]
["Geprüft nach Testspezifikation","Tested according to test specification","odzkoušeno podle specifikace zkoušky",null,null,null,null,null,null,null,null,"odzkoušeno podle specifikace zkoušky"]
["Alle Testsequenzen bestanden? ","All test sequences passed successfully?","Obstálo ve všech testovacích sekvencích?",null,null,null,null,null,null,null,null,"Obstálo ve všech testovacích sekvencích?"]
["Alle Regressionstest bestanden? ","All regression tests passed successfully?","Obstálo ve všech regresních sekvencích?",null,null,null,null,null,null,null,null,"Obstálo ve všech regresních sekvencích?"]
["Liste nicht bestandener Tests und Risikobewertung","List of tests not passed and risk assessment","Výpis neúspěšných testů a posouzení rizik",null,null,null,null,null,null,null,null,"Výpis neúspěšných testů a posouzení rizik"]
["Nachweis der Wirksamkeit der durchgeführten Maßnahmen","Verification of effectiveness of implemented measures","důkaz o efektivnosti provedených opatření",null,null,null,null,null,null,null,null,"důkaz o efektivnosti provedených opatření"]
["Welche Sonderfreigaben liegen vor?","Which special approvals have been granted?","jaká zvláštní uvolnění jsou předložena?",null,null,null,null,null,null,null,null,"jaká zvláštní uvolnění jsou předložena?"]
["Nachweise zur Freigabe können jederzeit durch den Kunden eingesehen werden.","Deliverables can be inspected by the customer at any time.","důkazy o uvolnění mohou být kdykoliv prohlédnuty zákazníkem",null,null,null,null,null,null,null,null,"důkazy o uvolnění mohou být kdykoliv prohlédnuty zákazníkem"]
["Besondere Archivierungspflicht","Special archieving requirements","povinnost zvláštní archivace",null,null,null,null,null,null,null,null,"povinnost zvláštní archivace"]
["Unvollständig befüllt","Not completely filled","není zcela splněno ",null,null,null,null,null,null,null,null,"není zcela splněno "]
[null,null,null,null,null,null,null,null,null,null,null,{"$error":"#N/A"}]
[null,null,null,null,null,null,null,null,null,null,null,{"$error":"#N/A"}]
[null,null,null,null,null,null,null,null,null,null,null,{"$error":"#N/A"}]
[null,null,null,null,null,null,null,null,null,null,null,{"$error":"#N/A"}]
[null,null,null,null,null,null,null,null,null,null,null,{"$error":"#N/A"}]
[null,null,null,null,null,null,null,null,null,null,null,{"$error":"#N/A"}]
[null,null,null,null,null,null,null,null,null,null,null,{"$error":"#N/A"}]
[null,null,null,null,null,null,null,null,null,null,null,{"$error":"#N/A"}]
[null,null,null,null,null,null,null,null,null,null,null,{"$error":"#N/A"}]
[null,null,null,null,null,null,null,null,null,null,null,{"$error":"#N/A"}]
[null,null,null,null,null,null,null,null,null,null,null,{"$error":"#N/A"}]
[null,null,null,null,null,null,null,null,null,null,null,{"$error":"#N/A"}]
[null,null,null,null,null,null,null,null,null,null,null,{"$error":"#N/A"}]
[null,null,null,null,null,null,null,null,null,null,null,{"$error":"#N/A"}]
[null,null,null,null,null,null,null,null,null,null,null,{"$error":"#N/A"}]
[null,null,null,null,null,null,null,null,null,null,null,{"$error":"#N/A"}]
[null,null,null,null,null,null,null,null,null,null,null,{"$error":"#N/A"}]
[null,null,null,null,null,null,null,null,null,null,null,{"$error":"#N/A"}]
[null,null,null,null,null,null,null,null,null,null,null,{"$error":"#N/A"}]
[null,null,null,null,null,null,null,null,null,null,null,{"$error":"#N/A"}]
[null,null,null,null,null,null,null,null,null,null,null,{"$error":"#N/A"}]
[null,null,null,null,null,null,null,null,null,null,null,{"$error":"#N/A"}]
[null,null,null,null,null,null,null,null,null,null,null,{"$error":"#N/A"}]
[null,null,null,null,null,null,null,null,null,null,null,{"$error":"#N/A"}]
[null,null,null,null,null,null,null,null,null,null,null,{"$error":"#N/A"}]
[null,null,null,null,null,null,null,null,null,null,null,{"$error":"#N/A"}]
[null,null,null,null,null,null,null,null,null,null,null,{"$error":"#N/A"}]
[null,null,null,null,null,null,null,null,null,null,null,{"$error":"#N/A"}]
[null,null,null,null,null,null,null,null,null,null,null,{"$error":"#N/A"}]
[null,null,null,null,null,null,null,null,null,null,null,{"$error":"#N/A"}]
[null,null,null,null,null,null,null,null,null,null,null,{"$error":"#N/A"}]
[null,null,null,null,null,null,null,null,null,null,null,{"$error":"#N/A"}]
[null,null,null,null,null,null,null,null,null,null,null,{"$error":"#N/A"}]
[null,null,null,null,null,null,null,null,null,null,null,{"$error":"#N/A"}]
[null,null,null,null,null,null,null,null,null,null,null,{"$error":"#N/A"}]
[null,null,null,null,null,null,null,null,null,null,null,{"$error":"#N/A"}]
[null,null,null,null,null,null,null,null,null,null,null,{"$error":"#N/A"}]
[null,null,null,null,null,null,null,null,null,null,null,{"$error":"#N/A"}]
[null,null,null,null,null,null,null,null,null,null,null,{"$error":"#N/A"}]
[null,null,null,null,null,null,null,null,null,null,null,{"$error":"#N/A"}]
[null,null,null,null,null,null,null,null,null,null,null,{"$error":"#N/A"}]
[null,null,null,null,null,null,null,null,null,null,null,{"$error":"#N/A"}]
[null,null,null,null,null,null,null,null,null,null,null,{"$error":"#N/A"}]
[null,null,null,null,null,null,null,null,null,null,null,{"$error":"#N/A"}]
[null,null,null,null,null,null,null,null,null,null,null,{"$f":"VLOOKUP(A516,A:J,$L$1,FALSE)","v":{"$error":"#N/A"}}]
[null,null,null,null,null,null,null,null,null,null,null,{"$error":"#N/A"}]
[null,null,null,null,null,null,null,null,null,null,null,{"$error":"#N/A"}]
[null,null,null,null,null,null,null,null,null,null,null,{"$error":"#N/A"}]
[null,null,null,null,null,null,null,null,null,null,null,{"$error":"#N/A"}]
[null,null,null,null,null,null,null,null,null,null,null,{"$error":"#N/A"}]
[null,null,null,null,null,null,null,null,null,null,null,{"$error":"#N/A"}]
[null,null,null,null,null,null,null,null,null,null,null,{"$error":"#N/A"}]
[null,null,null,null,null,null,null,null,null,null,null,{"$error":"#N/A"}]
[null,null,null,null,null,null,null,null,null,null,null,{"$error":"#N/A"}]
[null,null,null,null,null,null,null,null,null,null,null,{"$error":"#N/A"}]
[null,null,null,null,null,null,null,null,null,null,null,{"$error":"#N/A"}]
[null,null,null,null,null,null,null,null,null,null,null,{"$error":"#N/A"}]
[null,null,null,null,null,null,null,null,null,null,null,{"$error":"#N/A"}]
[null,null,null,null,null,null,null,null,null,null,null,{"$error":"#N/A"}]
[null,null,null,null,null,null,null,null,null,null,null,{"$error":"#N/A"}]
[null,null,null,null,null,null,null,null,null,null,null,{"$error":"#N/A"}]
[null,null,null,null,null,null,null,null,null,null,null,{"$error":"#N/A"}]
[null,null,null,null,null,null,null,null,null,null,null,{"$error":"#N/A"}]
[null,null,null,null,null,null,null,null,null,null,null,{"$error":"#N/A"}]
[null,null,null,null,null,null,null,null,null,null,null,{"$error":"#N/A"}]
[null,null,null,null,null,null,null,null,null,null,null,{"$error":"#N/A"}]
[null,null,null,null,null,null,null,null,null,null,null,{"$error":"#N/A"}]
[null,null,null,null,null,null,null,null,null,null,null,{"$error":"#N/A"}]
[null,null,null,null,null,null,null,null,null,null,null,{"$error":"#N/A"}]
[null,null,null,null,null,null,null,null,null,null,null,{"$error":"#N/A"}]
[null,null,null,null,null,null,null,null,null,null,null,{"$error":"#N/A"}]
[null,null,null,null,null,null,null,null,null,null,null,{"$error":"#N/A"}]
[null,null,null,null,null,null,null,null,null,null,null,{"$error":"#N/A"}]
[null,null,null,null,null,null,null,null,null,null,null,{"$error":"#N/A"}]
[null,null,null,null,null,null,null,null,null,null,null,{"$error":"#N/A"}]
[null,null,null,null,null,null,null,null,null,null,null,{"$error":"#N/A"}]
[null,null,null,null,null,null,null,null,null,null,null,{"$error":"#N/A"}]
[null,null,null,null,null,null,null,null,null,null,null,{"$error":"#N/A"}]
[null,null,null,null,null,null,null,null,null,null,null,{"$error":"#N/A"}]
[null,null,null,null,null,null,null,null,null,null,null,{"$error":"#N/A"}]
[null,null,null,null,null,null,null,null,null,null,null,{"$error":"#N/A"}]
[null,null,null,null,null,null,null,null,null,null,null,{"$error":"#N/A"}]
[null,null,null,null,null,null,null,null,null,null,null,{"$error":"#N/A"}]
[null,null,null,null,null,null,null,null,null,null,null,{"$error":"#N/A"}]
[null,null,null,null,null,null,null,null,null,null,null,{"$error":"#N/A"}]
[null,null,null,null,null,null,null,null,null,null,null,{"$error":"#N/A"}]
[null,null,null,null,null,null,null,null,null,null,null,{"$error":"#N/A"}]
[null,null,null,null,null,null,null,null,null,null,null,{"$error":"#N/A"}]
[null,null,null,null,null,null,null,null,null,null,null,{"$error":"#N/A"}]
[null,null,null,null,null,null,null,null,null,null,null,{"$error":"#N/A"}]
[null,null,null,null,null,null,null,null,null,null,null,{"$error":"#N/A"}]
[null,null,null,null,null,null,null,null,null,null,null,{"$error":"#N/A"}]
[null,null,null,null,null,null,null,null,null,null,null,{"$error":"#N/A"}]
[null,null,null,null,null,null,null,null,null,null,null,{"$error":"#N/A"}]
[null,null,null,null,null,null,null,null,null,null,null,{"$error":"#N/A"}]
[null,null,null,null,null,null,null,null,null,null,null,{"$error":"#N/A"}]
[null,null,null,null,null,null,null,null,null,null,null,{"$error":"#N/A"}]
[null,null,null,null,null,null,null,null,null,null,null,{"$error":"#N/A"}]
[null,null,null,null,null,null,null,null,null,null,null,{"$error":"#N/A"}]
[null,null,null,null,null,null,null,null,null,null,null,{"$error":"#N/A"}]
[null,null,null,null,null,null,null,null,null,null,null,{"$error":"#N/A"}]
[null,null,null,null,null,null,null,null,null,null,null,{"$error":"#N/A"}]
[null,null,null,null,null,null,null,null,null,null,null,{"$error":"#N/A"}]
[null,null,null,null,null,null,null,null,null,null,null,{"$error":"#N/A"}]
[null,null,null,null,null,null,null,null,null,null,null,{"$error":"#N/A"}]
[null,null,null,null,null,null,null,null,null,null,null,{"$error":"#N/A"}]
[null,null,null,null,null,null,null,null,null,null,null,{"$error":"#N/A"}]
[null,null,null,null,null,null,null,null,null,null,null,{"$error":"#N/A"}]
[null,null,null,null,null,null,null,null,null,null,null,{"$f":"VLOOKUP(A580,A:J,$L$1,FALSE)","v":{"$error":"#N/A"}}]
[null,null,null,null,null,null,null,null,null,null,null,{"$error":"#N/A"}]
[null,null,null,null,null,null,null,null,null,null,null,{"$error":"#N/A"}]
[null,null,null,null,null,null,null,null,null,null,null,{"$error":"#N/A"}]
[null,null,null,null,null,null,null,null,null,null,null,{"$error":"#N/A"}]
[null,null,null,null,null,null,null,null,null,null,null,{"$error":"#N/A"}]
[null,null,null,null,null,null,null,null,null,null,null,{"$error":"#N/A"}]
[null,null,null,null,null,null,null,null,null,null,null,{"$error":"#N/A"}]
[null,null,null,null,null,null,null,null,null,null,null,{"$error":"#N/A"}]
[null,null,null,null,null,null,null,null,null,null,null,{"$error":"#N/A"}]
[null,null,null,null,null,null,null,null,null,null,null,{"$error":"#N/A"}]
[null,null,null,null,null,null,null,null,null,null,null,{"$error":"#N/A"}]
[null,null,null,null,null,null,null,null,null,null,null,{"$error":"#N/A"}]
[null,null,null,null,null,null,null,null,null,null,null,{"$error":"#N/A"}]
[null,null,null,null,null,null,null,null,null,null,null,{"$error":"#N/A"}]
[null,null,null,null,null,null,null,null,null,null,null,{"$error":"#N/A"}]
[null,null,null,null,null,null,null,null,null,null,null,{"$error":"#N/A"}]
[null,null,null,null,null,null,null,null,null,null,null,{"$error":"#N/A"}]
[null,null,null,null,null,null,null,null,null,null,null,{"$error":"#N/A"}]
[null,null,null,null,null,null,null,null,null,null,null,{"$error":"#N/A"}]
[null,null,null,null,null,null,null,null,null,null,null,{"$error":"#N/A"}]
[null,null,null,null,null,null,null,null,null,null,null,{"$error":"#N/A"}]
[null,null,null,null,null,null,null,null,null,null,null,{"$error":"#N/A"}]
[null,null,null,null,null,null,null,null,null,null,null,{"$error":"#N/A"}]
[null,null,null,null,null,null,null,null,null,null,null,{"$error":"#N/A"}]
[null,null,null,null,null,null,null,null,null,null,null,{"$error":"#N/A"}]
[null,null,null,null,null,null,null,null,null,null,null,{"$error":"#N/A"}]
[null,null,null,null,null,null,null,null,null,null,null,{"$error":"#N/A"}]
[null,null,null,null,null,null,null,null,null,null,null,{"$error":"#N/A"}]
[null,null,null,null,null,null,null,null,null,null,null,{"$error":"#N/A"}]
[null,null,null,null,null,null,null,null,null,null,null,{"$error":"#N/A"}]
[null,null,null,null,null,null,null,null,null,null,null,{"$error":"#N/A"}]
[null,null,null,null,null,null,null,null,null,null,null,{"$error":"#N/A"}]
[null,null,null,null,null,null,null,null,null,null,null,{"$error":"#N/A"}]
[null,null,null,null,null,null,null,null,null,null,null,{"$error":"#N/A"}]
[null,null,null,null,null,null,null,null,null,null,null,{"$error":"#N/A"}]
[null,null,null,null,null,null,null,null,null,null,null,{"$error":"#N/A"}]
[null,null,null,null,null,null,null,null,null,null,null,{"$error":"#N/A"}]
[null,null,null,null,null,null,null,null,null,null,null,{"$error":"#N/A"}]
[null,null,null,null,null,null,null,null,null,null,null,{"$error":"#N/A"}]
[null,null,null,null,null,null,null,null,null,null,null,{"$error":"#N/A"}]
[null,null,null,null,null,null,null,null,null,null,null,{"$error":"#N/A"}]
[null,null,null,null,null,null,null,null,null,null,null,{"$error":"#N/A"}]
[null,null,null,null,null,null,null,null,null,null,null,{"$error":"#N/A"}]
[null,null,null,null,null,null,null,null,null,null,null,{"$error":"#N/A"}]
[null,null,null,null,null,null,null,null,null,null,null,{"$error":"#N/A"}]
[null,null,null,null,null,null,null,null,null,null,null,{"$error":"#N/A"}]
[null,null,null,null,null,null,null,null,null,null,null,{"$error":"#N/A"}]
[null,null,null,null,null,null,null,null,null,null,null,{"$error":"#N/A"}]
[null,null,null,null,null,null,null,null,null,null,null,{"$error":"#N/A"}]
[null,null,null,null,null,null,null,null,null,null,null,{"$error":"#N/A"}]
[null,null,null,null,null,null,null,null,null,null,null,{"$error":"#N/A"}]
[null,null,null,null,null,null,null,null,null,null,null,{"$error":"#N/A"}]
[null,null,null,null,null,null,null,null,null,null,null,{"$error":"#N/A"}]
[null,null,null,null,null,null,null,null,null,null,null,{"$error":"#N/A"}]
[null,null,null,null,null,null,null,null,null,null,null,{"$error":"#N/A"}]
[null,null,null,null,null,null,null,null,null,null,null,{"$error":"#N/A"}]
[null,null,null,null,null,null,null,null,null,null,null,{"$error":"#N/A"}]
[null,null,null,null,null,null,null,null,null,null,null,{"$error":"#N/A"}]
[null,null,null,null,null,null,null,null,null,null,null,{"$error":"#N/A"}]
[null,null,null,null,null,null,null,null,null,null,null,{"$error":"#N/A"}]
[null,null,null,null,null,null,null,null,null,null,null,{"$error":"#N/A"}]
[null,null,null,null,null,null,null,null,null,null,null,{"$error":"#N/A"}]
[null,null,null,null,null,null,null,null,null,null,null,{"$error":"#N/A"}]
[null,null,null,null,null,null,null,null,null,null,null,{"$f":"VLOOKUP(A644,A:J,$L$1,FALSE)","v":{"$error":"#N/A"}}]
[null,null,null,null,null,null,null,null,null,null,null,{"$error":"#N/A"}]
[null,null,null,null,null,null,null,null,null,null,null,{"$error":"#N/A"}]
[null,null,null,null,null,null,null,null,null,null,null,{"$error":"#N/A"}]
[null,null,null,null,null,null,null,null,null,null,null,{"$error":"#N/A"}]
[null,null,null,null,null,null,null,null,null,null,null,{"$error":"#N/A"}]
[null,null,null,null,null,null,null,null,null,null,null,{"$error":"#N/A"}]
[null,null,null,null,null,null,null,null,null,null,null,{"$error":"#N/A"}]
[null,null,null,null,null,null,null,null,null,null,null,{"$error":"#N/A"}]
[null,null,null,null,null,null,null,null,null,null,null,{"$error":"#N/A"}]
[null,null,null,null,null,null,null,null,null,null,null,{"$error":"#N/A"}]
[null,null,null,null,null,null,null,null,null,null,null,{"$error":"#N/A"}]
[null,null,null,null,null,null,null,null,null,null,null,{"$error":"#N/A"}]
[null,null,null,null,null,null,null,null,null,null,null,{"$error":"#N/A"}]
[null,null,null,null,null,null,null,null,null,null,null,{"$error":"#N/A"}]
[null,null,null,null,null,null,null,null,null,null,null,{"$error":"#N/A"}]
[null,null,null,null,null,null,null,null,null,null,null,{"$error":"#N/A"}]
[null,null,null,null,null,null,null,null,null,null,null,{"$error":"#N/A"}]
[null,null,null,null,null,null,null,null,null,null,null,{"$error":"#N/A"}]
[null,null,null,null,null,null,null,null,null,null,null,{"$error":"#N/A"}]
[null,null,null,null,null,null,null,null,null,null,null,{"$error":"#N/A"}]
[null,null,null,null,null,null,null,null,null,null,null,{"$error":"#N/A"}]
[null,null,null,null,null,null,null,null,null,null,null,{"$error":"#N/A"}]
[null,null,null,null,null,null,null,null,null,null,null,{"$error":"#N/A"}]
[null,null,null,null,null,null,null,null,null,null,null,{"$error":"#N/A"}]
[null,null,null,null,null,null,null,null,null,null,null,{"$error":"#N/A"}]
[null,null,null,null,null,null,null,null,null,null,null,{"$error":"#N/A"}]
[null,null,null,null,null,null,null,null,null,null,null,{"$error":"#N/A"}]
[null,null,null,null,null,null,null,null,null,null,null,{"$error":"#N/A"}]
[null,null,null,null,null,null,null,null,null,null,null,{"$error":"#N/A"}]
[null,null,null,null,null,null,null,null,null,null,null,{"$error":"#N/A"}]
[null,null,null,null,null,null,null,null,null,null,null,{"$error":"#N/A"}]
[null,null,null,null,null,null,null,null,null,null,null,{"$error":"#N/A"}]
[null,null,null,null,null,null,null,null,null,null,null,{"$error":"#N/A"}]
[null,null,null,null,null,null,null,null,null,null,null,{"$error":"#N/A"}]
[null,null,null,null,null,null,null,null,null,null,null,{"$error":"#N/A"}]
[null,null,null,null,null,null,null,null,null,null,null,{"$error":"#N/A"}]
[null,null,null,null,null,null,null,null,null,null,null,{"$error":"#N/A"}]
[null,null,null,null,null,null,null,null,null,null,null,{"$error":"#N/A"}]
[null,null,null,null,null,null,null,null,null,null,null,{"$error":"#N/A"}]
[null,null,null,null,null,null,null,null,null,null,null,{"$error":"#N/A"}]
[null,null,null,null,null,null,null,null,null,null,null,{"$error":"#N/A"}]
[null,null,null,null,null,null,null,null,null,null,null,{"$error":"#N/A"}]
[null,null,null,null,null,null,null,null,null,null,null,{"$error":"#N/A"}]
[null,null,null,null,null,null,null,null,null,null,null,{"$error":"#N/A"}]
[null,null,null,null,null,null,null,null,null,null,null,{"$error":"#N/A"}]
[null,null,null,null,null,null,null,null,null,null,null,{"$error":"#N/A"}]
[null,null,null,null,null,null,null,null,null,null,null,{"$error":"#N/A"}]
[null,null,null,null,null,null,null,null,null,null,null,{"$error":"#N/A"}]
[null,null,null,null,null,null,null,null,null,null,null,{"$error":"#N/A"}]
[null,null,null,null,null,null,null,null,null,null,null,{"$error":"#N/A"}]
[null,null,null,null,null,null,null,null,null,null,null,{"$error":"#N/A"}]
[null,null,null,null,null,null,null,null,null,null,null,{"$error":"#N/A"}]
[null,null,null,null,null,null,null,null,null,null,null,{"$error":"#N/A"}]
[null,null,null,null,null,null,null,null,null,null,null,{"$error":"#N/A"}]
[null,null,null,null,null,null,null,null,null,null,null,{"$error":"#N/A"}]
[null,null,null,null,null,null,null,null,null,null,null,{"$error":"#N/A"}]
[null,null,null,null,null,null,null,null,null,null,null,{"$error":"#N/A"}]
[null,null,null,null,null,null,null,null,null,null,null,{"$error":"#N/A"}]
[null,null,null,null,null,null,null,null,null,null,null,{"$error":"#N/A"}]
[null,null,null,null,null,null,null,null,null,null,null,{"$error":"#N/A"}]
[null,null,null,null,null,null,null,null,null,null,null,{"$error":"#N/A"}]
[null,null,null,null,null,null,null,null,null,null,null,{"$error":"#N/A"}]
[null,null,null,null,null,null,null,null,null,null,null,{"$error":"#N/A"}]
[null,null,null,null,null,null,null,null,null,null,null,{"$f":"VLOOKUP(A708,A:J,$L$1,FALSE)","v":{"$error":"#N/A"}}]
[null,null,null,null,null,null,null,null,null,null,null,{"$error":"#N/A"}]
[null,null,null,null,null,null,null,null,null,null,null,{"$error":"#N/A"}]
[null,null,null,null,null,null,null,null,null,null,null,{"$error":"#N/A"}]
[null,null,null,null,null,null,null,null,null,null,null,{"$error":"#N/A"}]
[null,null,null,null,null,null,null,null,null,null,null,{"$error":"#N/A"}]
[null,null,null,null,null,null,null,null,null,null,null,{"$error":"#N/A"}]
[null,null,null,null,null,null,null,null,null,null,null,{"$error":"#N/A"}]
[null,null,null,null,null,null,null,null,null,null,null,{"$error":"#N/A"}]
[null,null,null,null,null,null,null,null,null,null,null,{"$error":"#N/A"}]
[null,null,null,null,null,null,null,null,null,null,null,{"$error":"#N/A"}]
[null,null,null,null,null,null,null,null,null,null,null,{"$error":"#N/A"}]
[null,null,null,null,null,null,null,null,null,null,null,{"$error":"#N/A"}]
[null,null,null,null,null,null,null,null,null,null,null,{"$error":"#N/A"}]
[null,null,null,null,null,null,null,null,null,null,null,{"$error":"#N/A"}]
[null,null,null,null,null,null,null,null,null,null,null,{"$error":"#N/A"}]
[null,null,null,null,null,null,null,null,null,null,null,{"$error":"#N/A"}]
[null,null,null,null,null,null,null,null,null,null,null,{"$error":"#N/A"}]
[null,null,null,null,null,null,null,null,null,null,null,{"$error":"#N/A"}]
[null,null,null,null,null,null,null,null,null,null,null,{"$error":"#N/A"}]
[null,null,null,null,null,null,null,null,null,null,null,{"$error":"#N/A"}]
[null,null,null,null,null,null,null,null,null,null,null,{"$error":"#N/A"}]
[null,null,null,null,null,null,null,null,null,null,null,{"$error":"#N/A"}]
[null,null,null,null,null,null,null,null,null,null,null,{"$error":"#N/A"}]
[null,null,null,null,null,null,null,null,null,null,null,{"$error":"#N/A"}]
[null,null,null,null,null,null,null,null,null,null,null,{"$error":"#N/A"}]
[null,null,null,null,null,null,null,null,null,null,null,{"$error":"#N/A"}]
[null,null,null,null,null,null,null,null,null,null,null,{"$error":"#N/A"}]
[null,null,null,null,null,null,null,null,null,null,null,{"$error":"#N/A"}]
[null,null,null,null,null,null,null,null,null,null,null,{"$error":"#N/A"}]
[null,null,null,null,null,null,null,null,null,null,null,{"$error":"#N/A"}]
[null,null,null,null,null,null,null,null,null,null,null,{"$error":"#N/A"}]
[null,null,null,null,null,null,null,null,null,null,null,{"$error":"#N/A"}]
[null,null,null,null,null,null,null,null,null,null,null,{"$error":"#N/A"}]
[null,null,null,null,null,null,null,null,null,null,null,{"$error":"#N/A"}]
[null,null,null,null,null,null,null,null,null,null,null,{"$error":"#N/A"}]
[null,null,null,null,null,null,null,null,null,null,null,{"$error":"#N/A"}]
[null,null,null,null,null,null,null,null,null,null,null,{"$error":"#N/A"}]
[null,null,null,null,null,null,null,null,null,null,null,{"$error":"#N/A"}]
[null,null,null,null,null,null,null,null,null,null,null,{"$error":"#N/A"}]
[null,null,null,null,null,null,null,null,null,null,null,{"$error":"#N/A"}]
[null,null,null,null,null,null,null,null,null,null,null,{"$error":"#N/A"}]
[null,null,null,null,null,null,null,null,null,null,null,{"$error":"#N/A"}]
[null,null,null,null,null,null,null,null,null,null,null,{"$error":"#N/A"}]
[null,null,null,null,null,null,null,null,null,null,null,{"$error":"#N/A"}]
[null,null,null,null,null,null,null,null,null,null,null,{"$error":"#N/A"}]
[null,null,null,null,null,null,null,null,null,null,null,{"$error":"#N/A"}]
[null,null,null,null,null,null,null,null,null,null,null,{"$error":"#N/A"}]
[null,null,null,null,null,null,null,null,null,null,null,{"$error":"#N/A"}]
[null,null,null,null,null,null,null,null,null,null,null,{"$error":"#N/A"}]
[null,null,null,null,null,null,null,null,null,null,null,{"$error":"#N/A"}]
[null,null,null,null,null,null,null,null,null,null,null,{"$error":"#N/A"}]
[null,null,null,null,null,null,null,null,null,null,null,{"$error":"#N/A"}]
[null,null,null,null,null,null,null,null,null,null,null,{"$error":"#N/A"}]
[null,null,null,null,null,null,null,null,null,null,null,{"$error":"#N/A"}]
[null,null,null,null,null,null,null,null,null,null,null,{"$error":"#N/A"}]
[null,null,null,null,null,null,null,null,null,null,null,{"$error":"#N/A"}]
[null,null,null,null,null,null,null,null,null,null,null,{"$error":"#N/A"}]
[null,null,null,null,null,null,null,null,null,null,null,{"$error":"#N/A"}]
[null,null,null,null,null,null,null,null,null,null,null,{"$error":"#N/A"}]
[null,null,null,null,null,null,null,null,null,null,null,{"$error":"#N/A"}]
[null,null,null,null,null,null,null,null,null,null,null,{"$error":"#N/A"}]
[null,null,null,null,null,null,null,null,null,null,null,{"$error":"#N/A"}]
[null,null,null,null,null,null,null,null,null,null,null,{"$error":"#N/A"}]
[null,null,null,null,null,null,null,null,null,null,null,{"$f":"VLOOKUP(A772,A:J,$L$1,FALSE)","v":{"$error":"#N/A"}}]
[null,null,null,null,null,null,null,null,null,null,null,{"$error":"#N/A"}]
[null,null,null,null,null,null,null,null,null,null,null,{"$error":"#N/A"}]
[null,null,null,null,null,null,null,null,null,null,null,{"$error":"#N/A"}]
[null,null,null,null,null,null,null,null,null,null,null,{"$error":"#N/A"}]
[null,null,null,null,null,null,null,null,null,null,null,{"$error":"#N/A"}]
[null,null,null,null,null,null,null,null,null,null,null,{"$error":"#N/A"}]
[null,null,null,null,null,null,null,null,null,null,null,{"$error":"#N/A"}]
[null,null,null,null,null,null,null,null,null,null,null,{"$error":"#N/A"}]
[null,null,null,null,null,null,null,null,null,null,null,{"$error":"#N/A"}]
[null,null,null,null,null,null,null,null,null,null,null,{"$error":"#N/A"}]
[null,null,null,null,null,null,null,null,null,null,null,{"$error":"#N/A"}]
[null,null,null,null,null,null,null,null,null,null,null,{"$error":"#N/A"}]
[null,null,null,null,null,null,null,null,null,null,null,{"$error":"#N/A"}]
[null,null,null,null,null,null,null,null,null,null,null,{"$error":"#N/A"}]
[null,null,null,null,null,null,null,null,null,null,null,{"$error":"#N/A"}]
[null,null,null,null,null,null,null,null,null,null,null,{"$error":"#N/A"}]
[null,null,null,null,null,null,null,null,null,null,null,{"$error":"#N/A"}]
[null,null,null,null,null,null,null,null,null,null,null,{"$error":"#N/A"}]
[null,null,null,null,null,null,null,null,null,null,null,{"$error":"#N/A"}]
[null,null,null,null,null,null,null,null,null,null,null,{"$error":"#N/A"}]
[null,null,null,null,null,null,null,null,null,null,null,{"$error":"#N/A"}]
[null,null,null,null,null,null,null,null,null,null,null,{"$error":"#N/A"}]
[null,null,null,null,null,null,null,null,null,null,null,{"$error":"#N/A"}]
[null,null,null,null,null,null,null,null,null,null,null,{"$error":"#N/A"}]
[null,null,null,null,null,null,null,null,null,null,null,{"$error":"#N/A"}]
[null,null,null,null,null,null,null,null,null,null,null,{"$error":"#N/A"}]
[null,null,null,null,null,null,null,null,null,null,null,{"$error":"#N/A"}]
[null,null,null,null,null,null,null,null,null,null,null,{"$error":"#N/A"}]
[null,null,null,null,null,null,null,null,null,null,null,{"$error":"#N/A"}]
[null,null,null,null,null,null,null,null,null,null,null,{"$error":"#N/A"}]
[null,null,null,null,null,null,null,null,null,null,null,{"$error":"#N/A"}]
[null,null,null,null,null,null,null,null,null,null,null,{"$error":"#N/A"}]
[null,null,null,null,null,null,null,null,null,null,null,{"$error":"#N/A"}]
[null,null,null,null,null,null,null,null,null,null,null,{"$error":"#N/A"}]
[null,null,null,null,null,null,null,null,null,null,null,{"$error":"#N/A"}]
[null,null,null,null,null,null,null,null,null,null,null,{"$error":"#N/A"}]
[null,null,null,null,null,null,null,null,null,null,null,{"$error":"#N/A"}]
[null,null,null,null,null,null,null,null,null,null,null,{"$error":"#N/A"}]
[null,null,null,null,null,null,null,null,null,null,null,{"$error":"#N/A"}]
[null,null,null,null,null,null,null,null,null,null,null,{"$error":"#N/A"}]
[null,null,null,null,null,null,null,null,null,null,null,{"$error":"#N/A"}]
[null,null,null,null,null,null,null,null,null,null,null,{"$error":"#N/A"}]
[null,null,null,null,null,null,null,null,null,null,null,{"$error":"#N/A"}]
[null,null,null,null,null,null,null,null,null,null,null,{"$error":"#N/A"}]
[null,null,null,null,null,null,null,null,null,null,null,{"$error":"#N/A"}]
[null,null,null,null,null,null,null,null,null,null,null,{"$error":"#N/A"}]
[null,null,null,null,null,null,null,null,null,null,null,{"$error":"#N/A"}]
[null,null,null,null,null,null,null,null,null,null,null,{"$error":"#N/A"}]
[null,null,null,null,null,null,null,null,null,null,null,{"$error":"#N/A"}]
[null,null,null,null,null,null,null,null,null,null,null,{"$error":"#N/A"}]
[null,null,null,null,null,null,null,null,null,null,null,{"$error":"#N/A"}]
[null,null,null,null,null,null,null,null,null,null,null,{"$error":"#N/A"}]
[null,null,null,null,null,null,null,null,null,null,null,{"$error":"#N/A"}]
[null,null,null,null,null,null,null,null,null,null,null,{"$error":"#N/A"}]
[null,null,null,null,null,null,null,null,null,null,null,{"$error":"#N/A"}]
[null,null,null,null,null,null,null,null,null,null,null,{"$error":"#N/A"}]
[null,null,null,null,null,null,null,null,null,null,null,{"$error":"#N/A"}]
[null,null,null,null,null,null,null,null,null,null,null,{"$error":"#N/A"}]
[null,null,null,null,null,null,null,null,null,null,null,{"$error":"#N/A"}]
[null,null,null,null,null,null,null,null,null,null,null,{"$error":"#N/A"}]
[null,null,null,null,null,null,null,null,null,null,null,{"$error":"#N/A"}]
[null,null,null,null,null,null,null,null,null,null,null,{"$error":"#N/A"}]
[null,null,null,null,null,null,null,null,null,null,null,{"$error":"#N/A"}]
[null,null,null,null,null,null,null,null,null,null,null,{"$error":"#N/A"}]

{"sheet":"Anlage 6 Teilelebenslauf","index":10,"n_rows":25,"n_cols":59,"rows_kept":25,"cut":false,"hidden":false,"merged":[[23,8,23,37],[24,0,24,7],[24,8,24,37],[24,38,24,42],[24,43,24,56],[19,0,19,56],[20,0,20,7],[20,8,20,37],[20,38,23,42],[20,43,23,56],[21,0,21,7],[21,8,21,37],[22,0,22,7],[22,8,22,37],[23,0,23,7],[18,20,18,30],[18,31,18,34],[18,35,18,38],[18,39,18,44],[18,45,18,50],[18,51,18,56],[17,31,17,34],[17,35,17,38],[17,39,17,44],[17,45,17,50],[17,51,17,56],[17,20,17,30],[18,0,18,2],[18,3,18,4],[18,5,18,9],[18,10,18,11],[18,12,18,16],[17,0,17,2],[17,3,17,4],[17,5,17,9],[17,10,17,11],[17,12,17,16],[16,20,16,30],[16,31,16,34],[16,35,16,38],[16,39,16,44],[16,45,16,50],[16,51,16,56],[15,31,15,34],[15,35,15,38],[15,39,15,44],[15,45,15,50],[15,51,15,56],[15,20,15,30],[16,0,16,2],[16,3,16,4],[16,5,16,9],[16,10,16,11],[16,12,16,16],[15,0,15,2],[15,3,15,4],[15,5,15,9],[15,10,15,11],[15,12,15,16],[14,20,14,30],[14,31,14,34],[14,35,14,38],[14,39,14,44],[14,45,14,50],[14,51,14,56],[13,31,13,34],[13,35,13,38],[13,39,13,44],[13,45,13,50],[13,51,13,56],[13,20,13,30],[14,0,14,2],[14,3,14,4],[14,5,14,9],[14,10,14,11],[14,12,14,16],[13,0,13,2],[13,3,13,4],[13,5,13,9],[13,10,13,11],[13,12,13,16],[12,20,12,30],[12,31,12,34],[12,35,12,38],[12,39,12,44],[12,45,12,50],[12,51,12,56],[11,31,11,34],[11,35,11,38],[11,39,11,44],[11,45,11,50],[11,51,11,56],[11,20,11,30],[12,0,12,2],[12,3,12,4],[12,5,12,9],[12,10,12,11],[12,12,12,16],[11,0,11,2],[11,3,11,4],[11,5,11,9],[11,10,11,11],[11,12,11,16],[10,20,10,30],[10,31,10,34],[10,35,10,38],[10,39,10,44],[10,45,10,50],[10,51,10,56],[9,31,9,34],[9,35,9,38],[9,39,9,44],[9,45,9,50],[9,51,9,56],[9,20,9,30],[10,0,10,2],[10,3,10,4],[10,5,10,9],[10,10,10,11],[10,12,10,16],[9,0,9,2],[9,3,9,4],[9,5,9,9],[9,10,9,11],[9,12,9,16],[7,20,8,30],[7,31,8,34],[7,35,8,38],[7,39,8,44],[7,45,8,50],[7,51,8,56],[7,0,8,2],[7,3,8,4],[7,5,8,9],[7,10,8,11],[7,12,8,16],[7,17,7,19],[4,0,4,6],[4,7,4,13],[4,14,4,20],[4,21,4,27],[4,28,6,34],[4,35,4,43],[4,44,4,50],[4,51,4,56],[5,51,5,56],[6,0,6,6],[6,7,6,13],[6,14,6,20],[6,21,6,27],[6,44,6,50],[6,51,6,56],[5,0,5,6],[5,7,5,13],[5,14,5,20],[5,21,5,27],[5,44,5,50],[5,35,6,43],[0,0,0,16383],[1,0,2,12],[1,45,1,47],[1,48,1,50],[1,51,1,53],[1,54,1,56],[2,13,2,36],[2,37,2,56],[3,0,3,27],[3,28,3,56],[1,13,1,44]]}
["„Volitelné: Obsah lze také prokázat jiným způsobem, konkrétní obsah musí být dohodnut mezi organizací a zákazníkem.“"]
[{"$f":"Sprachen!L341","v":"životopis dílu"},null,null,null,null,null,null,null,null,null,null,null,null,null,null,null,null,null,null,null,null,null,null,null,null,null,null,null,null,null,null,null,null,null,null,null,null,null,null,null,null,null,null,null,null,{"$f":"Sprachen!L88","v":"list"},null,null,null,null,null,{"$f":"Sprachen!L364","v":"z"},null,null,null,null,null,null,"Sprachauswahl"]
[null,null,null,null,null,null,null,null,null,null,null,null,null,{"$f":"Sprachen!L255","v":"organizace"},null,null,null,null,null,null,null,null,null,null,null,null,null,null,null,null,null,null,null,null,null,null,null,{"$f":"IF('Anlage 2 PPF Abstimmung'!U2<>\"\",'Anlage 2 PPF Abstimmung'!U2,\"\")","v":""},null,null,null,null,null,null,null,null,null,null,null,null,null,null,null,null,null,null,null,null,{"$f":"'Anlage 4 PPF-Bewertung'!AP3","v":0}]
[{"$f":"Sprachen!L46","v":"údaje organizace"},null,null,null,null,null,null,null,null,null,null,null,null,null,null,null,null,null,null,null,null,null,null,null,null,null,null,null,{"$f":"Sprachen!L45","v":"údaje zákazníka"}]
[{"$f":"Sprachen!L199","v":"místo odeslání"},null,null,null,null,null,null,{"$f":"IF('Anlage 2 PPF Abstimmung'!H8<>\"\",'Anlage 2 PPF Abstimmung'!H8,\"\")","v":""},null,null,null,null,null,null,{"$f":"Sprachen!L304","v":"číslo dílu"},null,null,null,null,null,null,{"$f":"IF('Anlage 2 PPF Abstimmung'!H33<>\"\",'Anlage 2 PPF Abstimmung'!H33,\"\")","v":""},null,null,null,null,null,null,{"$f":"Sprachen!L187","v":"zákazník"},null,null,null,null,null,null,{"$f":"IF('Anlage 2 PPF Abstimmung'!AB5<>\"\",'Anlage 2 PPF Abstimmung'!AB5,\"\")","v":""},null,null,null,null,null,null,null,null,{"$f":"Sprachen!L304","v":"číslo dílu"},null,null,null,null,null,null,{"$f":"IF('Anlage 2 PPF Abstimmung'!AB33<>\"\",'Anlage 2 PPF Abstimmung'!AB33,\"\")","v":""}]
[{"$f":"Sprachen!L276","v":"výrobní místo"},null,null,null,null,null,null,{"$f":"IF('Anlage 2 PPF Abstimmung'!H6<>\"\",'Anlage 2 PPF Abstimmung'!H6,\"\")","v":""},null,null,null,null,null,null,{"$f":"Sprachen!L65","v":"název"},null,null,null,null,null,null,{"$f":"IF('Anlage 2 PPF Abstimmung'!H32<>\"\",'Anlage 2 PPF Abstimmung'!H32,\"\")","v":""},null,null,null,null,null,null,null,null,null,null,null,null,null,{"$f":"IF('Anlage 2 PPF Abstimmung'!AB7<>\"\",'Anlage 2 PPF Abstimmung'!AB7,\"\")","v":""},null,null,null,null,null,null,null,null,{"$f":"Sprachen!L65","v":"název"},null,null,null,null,null,null,{"$f":"IF('Anlage 2 PPF Abstimmung'!AB32<>\"\",'Anlage 2 PPF Abstimmung'!AB32,\"\")","v":""}]
[{"$f":"Sprachen!L177","v":"identifikace/DUNS"},null,null,null,null,null,null,{"$f":"IF('Anlage 2 PPF Abstimmung'!H10<>\"\",'Anlage 2 PPF Abstimmung'!H10,\"\")","v":""},null,null,null,null,null,null,{"$f":"Sprachen!L374","v":"číslo výkresu"},null,null,null,null,null,null,{"$f":"IF('Anlage 2 PPF Abstimmung'!H34<>\"\",'Anlage 2 PPF Abstimmung'!H34,\"\")","v":""},null,null,null,null,null,null,null,null,null,null,null,null,null,null,null,null,null,null,null,null,null,null,{"$f":"Sprachen!L374","v":"číslo výkresu"},null,null,null,null,null,null,{"$f":"IF('Anlage 2 PPF Abstimmung'!AB34<>\"\",'Anlage 2 PPF Abstimmung'!AB34,\"\")","v":""}]
[{"$f":"Sprachen!L248","v":"číslo"},null,null,{"$f":"Sprachen!L33","v":"status změny, organizace"},null,{"$f":"Sprachen!L389","v":"číslo změny - organizace"},null,null,null,null,{"$f":"Sprachen!L32","v":"status změny, zákazník"},null,{"$f":"Sprachen!L34","v":"číslo změny zákazník"},null,null,null,null,{"$f":"Sprachen!L50","v":"použití"},null,null,{"$f":"Sprachen!L38","v":"popis změny"},null,null,null,null,null,null,null,null,null,null,{"$f":"Sprachen!L272","v":"datum výroby"},null,null,null,{"$f":"Sprachen!L130","v":"datum první dodávky"},null,null,null,{"$f":"Sprachen!L178","v":"označení dodávky"},null,null,null,null,null,{"$f":"Sprachen!L390","v":"odpovědná osoba"},null,null,null,null,null,{"$f":"Sprachen!L61","v":"poznámka"}]
[null,null,null,null,null,null,null,null,null,null,null,null,null,null,null,null,null,{"$f":"Sprachen!L129","v":"první  použití"},{"$f":"Sprachen!L270","v":"změna produktu"},{"$f":"Sprachen!L285","v":"změna výrobního procesu"}]
[1,null,null,null,null,null,null,null,null,null,null,null,null,null,null,null,null,null,null,null,null,null,null,null,null,null,null,null,null,null,null,null,null,null,null,null,null,null,null,null,null,null,null,null,null,null,null,null,null,null,null,null,null,null,null,null,null,null,{"$f":"COUNTIF(R10:T10,\"X\")","v":0}]
[2,null,null,null,null,null,null,null,null,null,null,null,null,null,null,null,null,null,null,null,null,null,null,null,null,null,null,null,null,null,null,null,null,null,null,null,null,null,null,null,null,null,null,null,null,null,null,null,null,null,null,null,null,null,null,null,null,null,0]
[3,null,null,null,null,null,null,null,null,null,null,null,null,null,null,null,null,null,null,null,null,null,null,null,null,null,null,null,null,null,null,null,null,null,null,null,null,null,null,null,null,null,null,null,null,null,null,null,null,null,null,null,null,null,null,null,null,null,0]
[4,null,null,null,null,null,null,null,null,null,null,null,null,null,null,null,null,null,null,null,null,null,null,null,null,null,null,null,null,null,null,null,null,null,null,null,null,null,null,null,null,null,null,null,null,null,null,null,null,null,null,null,null,null,null,null,null,null,0]
[5,null,null,null,null,null,null,null,null,null,null,null,null,null,null,null,null,null,null,null,null,null,null,null,null,null,null,null,null,null,null,null,null,null,null,null,null,null,null,null,null,null,null,null,null,null,null,null,null,null,null,null,null,null,null,null,null,null,0]
[6,null,null,null,null,null,null,null,null,null,null,null,null,null,null,null,null,null,null,null,null,null,null,null,null,null,null,null,null,null,null,null,null,null,null,null,null,null,null,null,null,null,null,null,null,null,null,null,null,null,null,null,null,null,null,null,null,null,0]
[7,null,null,null,null,null,null,null,null,null,null,null,null,null,null,null,null,null,null,null,null,null,null,null,null,null,null,null,null,null,null,null,null,null,null,null,null,null,null,null,null,null,null,null,null,null,null,null,null,null,null,null,null,null,null,null,null,null,0]
[8,null,null,null,null,null,null,null,null,null,null,null,null,null,null,null,null,null,null,null,null,null,null,null,null,null,null,null,null,null,null,null,null,null,null,null,null,null,null,null,null,null,null,null,null,null,null,null,null,null,null,null,null,null,null,null,null,null,0]
[9,null,null,null,null,null,null,null,null,null,null,null,null,null,null,null,null,null,null,null,null,null,null,null,null,null,null,null,null,null,null,null,null,null,null,null,null,null,null,null,null,null,null,null,null,null,null,null,null,null,null,null,null,null,null,null,null,null,0]
[10,null,null,null,null,null,null,null,null,null,null,null,null,null,null,null,null,null,null,null,null,null,null,null,null,null,null,null,null,null,null,null,null,null,null,null,null,null,null,null,null,null,null,null,null,null,null,null,null,null,null,null,null,null,null,null,null,null,0]
[{"$f":"Sprachen!L84","v":"potvrzení organizací"}]
[{"$f":"Sprachen!L234","v":"jméno "},null,null,null,null,null,null,null,{"$f":"IF('Anlage 3 Selbstb. Produkt'!I28<>\"\",'Anlage 3 Selbstb. Produkt'!I28,\"\")","v":""},null,null,null,null,null,null,null,null,null,null,null,null,null,null,null,null,null,null,null,null,null,null,null,null,null,null,null,null,null,{"$f":"Sprachen!L61","v":"poznámka"}]
[{"$f":"Sprachen!L20","v":"oddělení"},null,null,null,null,null,null,null,{"$f":"IF('Anlage 3 Selbstb. Produkt'!I29<>\"\",'Anlage 3 Selbstb. Produkt'!I29,\"\")","v":""}]
[{"$f":"Sprachen!L343","v":"telefon"},null,null,null,null,null,null,null,{"$f":"IF('Anlage 3 Selbstb. Produkt'!I30<>\"\",'Anlage 3 Selbstb. Produkt'!I30,\"\")","v":""}]
[{"$f":"Sprachen!L119","v":"e-mail/fax č."},null,null,null,null,null,null,null,{"$f":"IF('Anlage 3 Selbstb. Produkt'!I31<>\"\",'Anlage 3 Selbstb. Produkt'!I31,\"\")","v":""}]
[{"$f":"Sprachen!L91","v":"datum"},null,null,null,null,null,null,null,{"$f":"IF('Anlage 3 Selbstb. Produkt'!I32<>\"\",'Anlage 3 Selbstb. Produkt'!I32,\"\")","v":""},null,null,null,null,null,null,null,null,null,null,null,null,null,null,null,null,null,null,null,null,null,null,null,null,null,null,null,null,null,{"$f":"Sprachen!L348","v":"podpis"}]